Workbook

Sheet Cenários COPOM
A1: Reuniões | B1: Cenário 1 | C1: CDI | D1: Cenário 2 | E1: CDI | F1: Cenário 3 | G1: CDI | H1: Cenário 4 | I1: CDI | J1: Cenário 5 | K1: CDI | O1: Data | P1: =+'Resumo estatístico Futuro DI'!B1 -> 2020-01-02
A2: Atual | C2: =+P2 -> 4.4 | E2: =+C2 -> 4.4 | G2: =+E2 -> 4.4 | I2: =+G2 -> 4.4 | K2: =+I2 -> 4.4 | O2: CDI Atual | P2: =+'Resumo estatístico Futuro DI'!B3*100 -> 4.4
A3: 2019-10-30 | B3: 0 | C3: =+C2+(B3/100) -> 4.4 | D3: 0 | E3: =+E2+(D3/100) -> 4.4 | F3: 0 | G3: =+G2+(F3/100) -> 4.4 | H3: 0 | I3: =+I2+(H3/100) -> 4.4 | J3: 0 | K3: =+K2+(J3/100) -> 4.4
A4: 2019-12-11 | B4: 0 | C4: =+C3+(B4/100) -> 4.4 | D4: 0 | E4: 4.4 | F4: 0 | G4: 4.4 | H4: 0 | I4: 4.4 | J4: 0 | K4: 4.4
A5: 2020-02-05 | B5: 0 | C5: 4.4 | D5: 0 | E5: 4.4 | F5: 0 | G5: 4.4 | H5: 0 | I5: 4.4 | J5: 0 | K5: 4.4
A6: 2020-03-18 | B6: 0 | C6: 4.4 | D6: 0 | E6: 4.4 | F6: 0 | G6: 4.4 | H6: 0 | I6: 4.4 | J6: 0 | K6: 4.4
A7: 2020-05-06 | B7: 0 | C7: 4.4 | D7: 0 | E7: 4.4 | F7: 0 | G7: 4.4 | H7: 0 | I7: 4.4 | J7: 0 | K7: 4.4
A8: 2020-06-17 | B8: 0 | C8: 4.4 | D8: 0 | E8: 4.4 | F8: 0 | G8: 4.4 | H8: 0 | I8: 4.4 | J8: 0 | K8: 4.4
A9: 2020-08-05 | B9: 0 | C9: 4.4 | D9: 0 | E9: 4.4 | F9: 0 | G9: 4.4 | H9: 0 | I9: 4.4 | J9: 0 | K9: 4.4
A10: 2020-09-16 | B10: 0 | C10: 4.4 | D10: 0 | E10: 4.4 | F10: 0 | G10: 4.4 | H10: 0 | I10: 4.4 | J10: 0 | K10: 4.4
A11: 2020-10-28 | B11: 0 | C11: 4.4 | D11: 0 | E11: 4.4 | F11: 0 | G11: 4.4 | H11: 0 | I11: 4.4 | J11: 0 | K11: 4.4
A12: 2020-12-09 | B12: 0 | C12: 4.4 | D12: 0 | E12: 4.4 | F12: 0 | G12: 4.4 | H12: 0 | I12: 4.4 | J12: 0 | K12: 4.4
A13: 2021-01-20 | B13: 0 | C13: 4.4 | D13: 0 | E13: 4.4 | F13: 0 | G13: 4.4 | H13: 0 | I13: 4.4 | J13: 0 | K13: 4.4
A14: 2021-03-17 | B14: 0 | C14: 4.4 | D14: 0 | E14: 4.4 | F14: 0 | G14: 4.4 | H14: 0 | I14: 4.4 | J14: 0 | K14: 4.4
A15: 2021-05-05 | B15: 0 | C15: 4.4 | D15: 0 | E15: 4.4 | F15: 0 | G15: 4.4 | H15: 0 | I15: 4.4 | J15: 0 | K15: 4.4
A16: 2021-06-16 | B16: 0 | C16: 4.4 | D16: 0 | E16: 4.4 | F16: 0 | G16: 4.4 | H16: 0 | I16: 4.4 | J16: 0 | K16: 4.4
A17: 2021-08-04 | B17: 0 | C17: 4.4 | D17: 0 | E17: 4.4 | F17: 0 | G17: 4.4 | H17: 0 | I17: 4.4 | J17: 0 | K17: 4.4
A18: 2021-09-22 | B18: 0 | C18: 4.4 | D18: 0 | E18: 4.4 | F18: 0 | G18: 4.4 | H18: 0 | I18: 4.4 | J18: 0 | K18: 4.4
A19: 2021-10-27 | B19: 0 | C19: 4.4 | D19: 0 | E19: 4.4 | F19: 0 | G19: 4.4 | H19: 0 | I19: 4.4 | J19: 0 | K19: 4.4
A20: 2021-12-08 | B20: 0 | C20: =+C19+(B20/100) -> 4.4 | D20: 0 | E20: =+E19+(D20/100) -> 4.4 | F20: 0 | G20: =+G19+(F20/100) -> 4.4 | H20: 0 | I20: =+I19+(H20/100) -> 4.4 | J20: 0 | K20: =+K19+(J20/100) -> 4.4
A21: 2022-02-02 | B21: 0 | C21: 4.4 | D21: 0 | E21: 4.4 | F21: 0 | G21: 4.4 | H21: 0 | I21: 4.4 | J21: 0 | K21: 4.4
A22: 2022-03-16 | B22: 0 | C22: 4.4 | D22: 0 | E22: 4.4 | F22: 0 | G22: 4.4 | H22: 0 | I22: 4.4 | J22: 0 | K22: 4.4
A23: 2022-05-04 | B23: 0 | C23: 4.4 | D23: 0 | E23: 4.4 | F23: 0 | G23: 4.4 | H23: 0 | I23: 4.4 | J23: 0 | K23: 4.4
A24: 2022-06-15 | B24: 0 | C24: 4.4 | D24: 0 | E24: 4.4 | F24: 0 | G24: 4.4 | H24: 0 | I24: 4.4 | J24: 0 | K24: 4.4
A25: 2022-08-03 | B25: 0 | C25: 4.4 | D25: 0 | E25: 4.4 | F25: 0 | G25: 4.4 | H25: 0 | I25: 4.4 | J25: 0 | K25: 4.4
A26: 2022-09-21 | B26: 0 | C26: =+C25+(B26/100) -> 4.4 | D26: 0 | E26: =+E25+(D26/100) -> 4.4 | F26: 0 | G26: =+G25+(F26/100) -> 4.4 | H26: 0 | I26: =+I25+(H26/100) -> 4.4 | J26: 0 | K26: =+K25+(J26/100) -> 4.4
A27: 2022-10-26 | B27: 0 | C27: 4.4 | D27: 0 | E27: 4.4 | F27: 0 | G27: 4.4 | H27: 0 | I27: 4.4 | J27: 0 | K27: 4.4
A28: 2022-12-07 | B28: 0 | C28: 4.4 | D28: 0 | E28: 4.4 | F28: 0 | G28: 4.4 | H28: 0 | I28: 4.4 | J28: 0 | K28: 4.4

Sheet Projeção DI Futuro
A1: DU | B1: Data | C1: CDI Atual | D1: Alteração | E1: CDI 2 | F1: =+'Cenários COPOM'!B1 -> Cenário 1 | G1: Taxa Ano | I1: DU | J1: Data | K1: CDI Atual | L1: Alteração | M1: CDI 2 | N1: =+'Cenários COPOM'!D1 -> Cenário 2 | O1: Taxa Ano | Q1: DU | R1: Data | S1: CDI Atual | T1: Alteração | U1: CDI 2 | V1: =+'Cenários COPOM'!F1 -> Cenário 3 | W1: Taxa Ano | Y1: DU | Z1: Data | AA1: CDI Atual | AB1: Alteração | AC1: CDI 2 | AD1: =+'Cenários COPOM'!H1 -> Cenário 4 | AE1: Taxa Ano | AG1: DU | AH1: Data | AI1: CDI Atual | AJ1: Alteração | AK1: CDI 2 | AL1: =+'Cenários COPOM'!J1 -> Cenário 5 | AM1: Taxa Ano
A2: 0 | B2: =+'Resumo estatístico Futuro DI'!B1 -> 2020-01-02 | C2: =+'Cenários COPOM'!C2 -> 4.4 | D2: =IF(ISERROR(VLOOKUP(B2,'Cenários COPOM'!$A$1:$K$100,2,FALSE)),0,VLOOKUP(B2,'Cenários COPOM'!$A$1:$K$100,2,FALSE)/100) -> 0 | E2: =+C2+D2 -> 4.4 | F2: 10000 | G2: =+C2 -> 4.4 | I2: 0 | J2: =+B2 -> 2020-01-02 | K2: =+C2 -> 4.4 | L2: =IF(ISERROR(VLOOKUP(J2,'Cenários COPOM'!$A$1:$K$100,4,FALSE)),0,VLOOKUP(J2,'Cenários COPOM'!$A$1:$K$100,4,FALSE)/100) -> 0 | M2: =+K2+L2 -> 4.4 | N2: =+F2 -> 10000 | O2: =+K2 -> 4.4 | Q2: 0 | R2: =+J2 -> 2020-01-02 | S2: =+C2 -> 4.4 | T2: =IF(ISERROR(VLOOKUP(R2,'Cenários COPOM'!$A$1:$K$100,6,FALSE)),0,VLOOKUP(R2,'Cenários COPOM'!$A$1:$K$100,6,FALSE)/100) -> 0 | U2: =+S2+T2 -> 4.4 | V2: =+N2 -> 10000 | W2: =+O2 -> 4.4 | Y2: 0 | Z2: =+R2 -> 2020-01-02 | AA2: =+C2 -> 4.4 | AB2: =IF(ISERROR(VLOOKUP(Z2,'Cenários COPOM'!$A$1:$K$100,8,FALSE)),0,VLOOKUP(Z2,'Cenários COPOM'!$A$1:$K$100,8,FALSE)/100) -> 0 | AC2: =+AA2+AB2 -> 4.4 | AD2: =+V2 -> 10000 | AE2: =+W2 -> 4.4 | AG2: 0 | AH2: =+Z2 -> 2020-01-02 | AI2: =+C2 -> 4.4 | AJ2: =IF(ISERROR(VLOOKUP(AH2,'Cenários COPOM'!$A$1:$K$100,10,FALSE)),0,VLOOKUP(AH2,'Cenários COPOM'!$A$1:$K$100,10,FALSE)/100) -> 0 | AK2: =+AI2+AJ2 -> 4.4 | AL2: =+AD2 -> 10000 | AM2: =+AI2 -> 4.4
A3: =+A2+1 -> 1 | B3: =WORKDAY(B2,1,feriados!$A$2:$A$1000) -> 2020-01-03 | C3: =+C2 -> 4.4 | D3: =IF(ISERROR(VLOOKUP(B3,'Cenários COPOM'!$A$1:$K$100,2,FALSE)),0,VLOOKUP(B3,'Cenários COPOM'!$A$1:$K$100,2,FALSE)/100) -> 0 | E3: =+E2+D3 -> 4.4 | F3: =+ROUND(((1+E2/100)^(1/252))*F2,2) -> 10001.71 | G3: =+((F3/$F$2)^(252/A3)-1)*100 -> 4.40300954 | I3: =+I2+1 -> 1 | J3: =WORKDAY(J2,1,feriados!$A$2:$A$1000) -> 2020-01-03 | K3: =+K2 -> 4.4 | L3: =IF(ISERROR(VLOOKUP(J3,'Cenários COPOM'!$A$1:$K$100,4,FALSE)),0,VLOOKUP(J3,'Cenários COPOM'!$A$1:$K$100,4,FALSE)/100) -> 0 | M3: =+M2+L3 -> 4.4 | N3: =+ROUND(((1+M2/100)^(1/252))*N2,2) -> 10001.71 | O3: =+((N3/$N$2)^(252/I3)-1)*100 -> 4.40300954 | Q3: =+Q2+1 -> 1 | R3: =WORKDAY(R2,1,feriados!$A$2:$A$1000) -> 2020-01-03 | S3: =+S2 -> 4.4 | T3: =IF(ISERROR(VLOOKUP(R3,'Cenários COPOM'!$A$1:$K$100,6,FALSE)),0,VLOOKUP(R3,'Cenários COPOM'!$A$1:$K$100,6,FALSE)/100) -> 0 | U3: =+U2+T3 -> 4.4 | V3: =+ROUND(((1+U2/100)^(1/252))*V2,2) -> 10001.71 | W3: =+((V3/$V$2)^(252/Q3)-1)*100 -> 4.40300954 | Y3: =+Y2+1 -> 1 | Z3: =WORKDAY(Z2,1,feriados!$A$2:$A$1000) -> 2020-01-03 | AA3: =+AA2 -> 4.4 | AB3: =IF(ISERROR(VLOOKUP(Z3,'Cenários COPOM'!$A$1:$K$100,8,FALSE)),0,VLOOKUP(Z3,'Cenários COPOM'!$A$1:$K$100,8,FALSE)/100) -> 0 | AC3: =+AC2+AB3 -> 4.4 | AD3: =+ROUND(((1+AC2/100)^(1/252))*AD2,2) -> 10001.71 | AE3: =+((AD3/$AD$2)^(252/Y3)-1)*100 -> 4.40300954 | AG3: =+AG2+1 -> 1 | AH3: =WORKDAY(AH2,1,feriados!$A$2:$A$1000) -> 2020-01-03 | AI3: =+AI2 -> 4.4 | AJ3: =IF(ISERROR(VLOOKUP(AH3,'Cenários COPOM'!$A$1:$K$100,10,FALSE)),0,VLOOKUP(AH3,'Cenários COPOM'!$A$1:$K$100,10,FALSE)/100) -> 0 | AK3: =+AK2+AJ3 -> 4.4 | AL3: =+ROUND(((1+AK2/100)^(1/252))*AL2,2) -> 10001.71 | AM3: =+((AL3/$F$2)^(252/AG3)-1)*100 -> 4.40300954
A4: =+A3+1 -> 2 | B4: =WORKDAY(B3,1,feriados!$A$2:$A$1000) -> 2020-01-06 | C4: =+C3 -> 4.4 | D4: =IF(ISERROR(VLOOKUP(B4,'Cenários COPOM'!$A$1:$K$100,2,FALSE)),0,VLOOKUP(B4,'Cenários COPOM'!$A$1:$K$100,2,FALSE)/100) -> 0 | E4: =+E3+D4 -> 4.4 | F4: =+ROUND(((1+E3/100)^(1/252))*F3,2) -> 10003.42 | G4: =+((F4/$F$2)^(252/A4)-1)*100 -> 4.402625013 | I4: =+I3+1 -> 2 | J4: =WORKDAY(J3,1,feriados!$A$2:$A$1000) -> 2020-01-06 | K4: =+K3 -> 4.4 | L4: =IF(ISERROR(VLOOKUP(J4,'Cenários COPOM'!$A$1:$K$100,4,FALSE)),0,VLOOKUP(J4,'Cenários COPOM'!$A$1:$K$100,4,FALSE)/100) -> 0 | M4: =+M3+L4 -> 4.4 | N4: =+ROUND(((1+M3/100)^(1/252))*N3,2) -> 10003.42 | O4: =+((N4/$N$2)^(252/I4)-1)*100 -> 4.402625013 | Q4: =+Q3+1 -> 2 | R4: =WORKDAY(R3,1,feriados!$A$2:$A$1000) -> 2020-01-06 | S4: =+S3 -> 4.4 | T4: =IF(ISERROR(VLOOKUP(R4,'Cenários COPOM'!$A$1:$K$100,6,FALSE)),0,VLOOKUP(R4,'Cenários COPOM'!$A$1:$K$100,6,FALSE)/100) -> 0 | U4: =+U3+T4 -> 4.4 | V4: =+ROUND(((1+U3/100)^(1/252))*V3,2) -> 10003.42 | W4: =+((V4/$V$2)^(252/Q4)-1)*100 -> 4.402625013 | Y4: =+Y3+1 -> 2 | Z4: =WORKDAY(Z3,1,feriados!$A$2:$A$1000) -> 2020-01-06 | AA4: =+AA3 -> 4.4 | AB4: =IF(ISERROR(VLOOKUP(Z4,'Cenários COPOM'!$A$1:$K$100,8,FALSE)),0,VLOOKUP(Z4,'Cenários COPOM'!$A$1:$K$100,8,FALSE)/100) -> 0 | AC4: =+AC3+AB4 -> 4.4 | AD4: =+ROUND(((1+AC3/100)^(1/252))*AD3,2) -> 10003.42 | AE4: =+((AD4/$AD$2)^(252/Y4)-1)*100 -> 4.402625013 | AG4: =+AG3+1 -> 2 | AH4: =WORKDAY(AH3,1,feriados!$A$2:$A$1000) -> 2020-01-06 | AI4: =+AI3 -> 4.4 | AJ4: =IF(ISERROR(VLOOKUP(AH4,'Cenários COPOM'!$A$1:$K$100,10,FALSE)),0,VLOOKUP(AH4,'Cenários COPOM'!$A$1:$K$100,10,FALSE)/100) -> 0 | AK4: =+AK3+AJ4 -> 4.4 | AL4: =+ROUND(((1+AK3/100)^(1/252))*AL3,2) -> 10003.42 | AM4: =+((AL4/$F$2)^(252/AG4)-1)*100 -> 4.402625013
A5: 3 | B5: =WORKDAY(B4,1,feriados!$A$2:$A$1000) -> 2020-01-07 | C5: 4.4 | D5: =IF(ISERROR(VLOOKUP(B5,'Cenários COPOM'!$A$1:$K$100,2,FALSE)),0,VLOOKUP(B5,'Cenários COPOM'!$A$1:$K$100,2,FALSE)/100) -> 0 | E5: 4.4 | F5: 10005.13 | G5: 4.402240575 | I5: 3 | J5: =WORKDAY(J4,1,feriados!$A$2:$A$1000) -> 2020-01-07 | K5: 4.4 | L5: =IF(ISERROR(VLOOKUP(J5,'Cenários COPOM'!$A$1:$K$100,4,FALSE)),0,VLOOKUP(J5,'Cenários COPOM'!$A$1:$K$100,4,FALSE)/100) -> 0 | M5: 4.4 | N5: 10005.13 | O5: 4.402240575 | Q5: 3 | R5: =WORKDAY(R4,1,feriados!$A$2:$A$1000) -> 2020-01-07 | S5: 4.4 | T5: =IF(ISERROR(VLOOKUP(R5,'Cenários COPOM'!$A$1:$K$100,6,FALSE)),0,VLOOKUP(R5,'Cenários COPOM'!$A$1:$K$100,6,FALSE)/100) -> 0 | U5: 4.4 | V5: 10005.13 | W5: 4.402240575 | Y5: 3 | Z5: =WORKDAY(Z4,1,feriados!$A$2:$A$1000) -> 2020-01-07 | AA5: 4.4 | AB5: =IF(ISERROR(VLOOKUP(Z5,'Cenários COPOM'!$A$1:$K$100,8,FALSE)),0,VLOOKUP(Z5,'Cenários COPOM'!$A$1:$K$100,8,FALSE)/100) -> 0 | AC5: 4.4 | AD5: 10005.13 | AE5: 4.402240575 | AG5: 3 | AH5: =WORKDAY(AH4,1,feriados!$A$2:$A$1000) -> 2020-01-07 | AI5: 4.4 | AJ5: =IF(ISERROR(VLOOKUP(AH5,'Cenários COPOM'!$A$1:$K$100,10,FALSE)),0,VLOOKUP(AH5,'Cenários COPOM'!$A$1:$K$100,10,FALSE)/100) -> 0 | AK5: 4.4 | AL5: 10005.13 | AM5: 4.402240575
A6: 4 | B6: =WORKDAY(B5,1,feriados!$A$2:$A$1000) -> 2020-01-08 | C6: 4.4 | D6: =IF(ISERROR(VLOOKUP(B6,'Cenários COPOM'!$A$1:$K$100,2,FALSE)),0,VLOOKUP(B6,'Cenários COPOM'!$A$1:$K$100,2,FALSE)/100) -> 0 | E6: 4.4 | F6: 10006.84 | G6: 4.401856227 | I6: 4 | J6: =WORKDAY(J5,1,feriados!$A$2:$A$1000) -> 2020-01-08 | K6: 4.4 | L6: =IF(ISERROR(VLOOKUP(J6,'Cenários COPOM'!$A$1:$K$100,4,FALSE)),0,VLOOKUP(J6,'Cenários COPOM'!$A$1:$K$100,4,FALSE)/100) -> 0 | M6: 4.4 | N6: 10006.84 | O6: 4.401856227 | Q6: 4 | R6: =WORKDAY(R5,1,feriados!$A$2:$A$1000) -> 2020-01-08 | S6: 4.4 | T6: =IF(ISERROR(VLOOKUP(R6,'Cenários COPOM'!$A$1:$K$100,6,FALSE)),0,VLOOKUP(R6,'Cenários COPOM'!$A$1:$K$100,6,FALSE)/100) -> 0 | U6: 4.4 | V6: 10006.84 | W6: 4.401856227 | Y6: 4 | Z6: =WORKDAY(Z5,1,feriados!$A$2:$A$1000) -> 2020-01-08 | AA6: 4.4 | AB6: =IF(ISERROR(VLOOKUP(Z6,'Cenários COPOM'!$A$1:$K$100,8,FALSE)),0,VLOOKUP(Z6,'Cenários COPOM'!$A$1:$K$100,8,FALSE)/100) -> 0 | AC6: 4.4 | AD6: 10006.84 | AE6: 4.401856227 | AG6: 4 | AH6: =WORKDAY(AH5,1,feriados!$A$2:$A$1000) -> 2020-01-08 | AI6: 4.4 | AJ6: =IF(ISERROR(VLOOKUP(AH6,'Cenários COPOM'!$A$1:$K$100,10,FALSE)),0,VLOOKUP(AH6,'Cenários COPOM'!$A$1:$K$100,10,FALSE)/100) -> 0 | AK6: 4.4 | AL6: 10006.84 | AM6: 4.401856227
A7: 5 | B7: =WORKDAY(B6,1,feriados!$A$2:$A$1000) -> 2020-01-09 | C7: 4.4 | D7: =IF(ISERROR(VLOOKUP(B7,'Cenários COPOM'!$A$1:$K$100,2,FALSE)),0,VLOOKUP(B7,'Cenários COPOM'!$A$1:$K$100,2,FALSE)/100) -> 0 | E7: 4.4 | F7: 10008.55 | G7: 4.401471967 | I7: 5 | J7: =WORKDAY(J6,1,feriados!$A$2:$A$1000) -> 2020-01-09 | K7: 4.4 | L7: =IF(ISERROR(VLOOKUP(J7,'Cenários COPOM'!$A$1:$K$100,4,FALSE)),0,VLOOKUP(J7,'Cenários COPOM'!$A$1:$K$100,4,FALSE)/100) -> 0 | M7: 4.4 | N7: 10008.55 | O7: 4.401471967 | Q7: 5 | R7: =WORKDAY(R6,1,feriados!$A$2:$A$1000) -> 2020-01-09 | S7: 4.4 | T7: =IF(ISERROR(VLOOKUP(R7,'Cenários COPOM'!$A$1:$K$100,6,FALSE)),0,VLOOKUP(R7,'Cenários COPOM'!$A$1:$K$100,6,FALSE)/100) -> 0 | U7: 4.4 | V7: 10008.55 | W7: 4.401471967 | Y7: 5 | Z7: =WORKDAY(Z6,1,feriados!$A$2:$A$1000) -> 2020-01-09 | AA7: 4.4 | AB7: =IF(ISERROR(VLOOKUP(Z7,'Cenários COPOM'!$A$1:$K$100,8,FALSE)),0,VLOOKUP(Z7,'Cenários COPOM'!$A$1:$K$100,8,FALSE)/100) -> 0 | AC7: 4.4 | AD7: 10008.55 | AE7: 4.401471967 | AG7: 5 | AH7: =WORKDAY(AH6,1,feriados!$A$2:$A$1000) -> 2020-01-09 | AI7: 4.4 | AJ7: =IF(ISERROR(VLOOKUP(AH7,'Cenários COPOM'!$A$1:$K$100,10,FALSE)),0,VLOOKUP(AH7,'Cenários COPOM'!$A$1:$K$100,10,FALSE)/100) -> 0 | AK7: 4.4 | AL7: 10008.55 | AM7: 4.401471967
A8: 6 | B8: =WORKDAY(B7,1,feriados!$A$2:$A$1000) -> 2020-01-10 | C8: 4.4 | D8: =IF(ISERROR(VLOOKUP(B8,'Cenários COPOM'!$A$1:$K$100,2,FALSE)),0,VLOOKUP(B8,'Cenários COPOM'!$A$1:$K$100,2,FALSE)/100) -> 0 | E8: 4.4 | F8: 10010.26 | G8: 4.401087797 | I8: 6 | J8: =WORKDAY(J7,1,feriados!$A$2:$A$1000) -> 2020-01-10 | K8: 4.4 | L8: =IF(ISERROR(VLOOKUP(J8,'Cenários COPOM'!$A$1:$K$100,4,FALSE)),0,VLOOKUP(J8,'Cenários COPOM'!$A$1:$K$100,4,FALSE)/100) -> 0 | M8: 4.4 | N8: 10010.26 | O8: 4.401087797 | Q8: 6 | R8: =WORKDAY(R7,1,feriados!$A$2:$A$1000) -> 2020-01-10 | S8: 4.4 | T8: =IF(ISERROR(VLOOKUP(R8,'Cenários COPOM'!$A$1:$K$100,6,FALSE)),0,VLOOKUP(R8,'Cenários COPOM'!$A$1:$K$100,6,FALSE)/100) -> 0 | U8: 4.4 | V8: 10010.26 | W8: 4.401087797 | Y8: 6 | Z8: =WORKDAY(Z7,1,feriados!$A$2:$A$1000) -> 2020-01-10 | AA8: 4.4 | AB8: =IF(ISERROR(VLOOKUP(Z8,'Cenários COPOM'!$A$1:$K$100,8,FALSE)),0,VLOOKUP(Z8,'Cenários COPOM'!$A$1:$K$100,8,FALSE)/100) -> 0 | AC8: 4.4 | AD8: 10010.26 | AE8: 4.401087797 | AG8: 6 | AH8: =WORKDAY(AH7,1,feriados!$A$2:$A$1000) -> 2020-01-10 | AI8: 4.4 | AJ8: =IF(ISERROR(VLOOKUP(AH8,'Cenários COPOM'!$A$1:$K$100,10,FALSE)),0,VLOOKUP(AH8,'Cenários COPOM'!$A$1:$K$100,10,FALSE)/100) -> 0 | AK8: 4.4 | AL8: 10010.26 | AM8: 4.401087797
A9: 7 | B9: =WORKDAY(B8,1,feriados!$A$2:$A$1000) -> 2020-01-13 | C9: 4.4 | D9: =IF(ISERROR(VLOOKUP(B9,'Cenários COPOM'!$A$1:$K$100,2,FALSE)),0,VLOOKUP(B9,'Cenários COPOM'!$A$1:$K$100,2,FALSE)/100) -> 0 | E9: 4.4 | F9: 10011.97 | G9: 4.400703715 | I9: 7 | J9: =WORKDAY(J8,1,feriados!$A$2:$A$1000) -> 2020-01-13 | K9: 4.4 | L9: =IF(ISERROR(VLOOKUP(J9,'Cenários COPOM'!$A$1:$K$100,4,FALSE)),0,VLOOKUP(J9,'Cenários COPOM'!$A$1:$K$100,4,FALSE)/100) -> 0 | M9: 4.4 | N9: 10011.97 | O9: 4.400703715 | Q9: 7 | R9: =WORKDAY(R8,1,feriados!$A$2:$A$1000) -> 2020-01-13 | S9: 4.4 | T9: =IF(ISERROR(VLOOKUP(R9,'Cenários COPOM'!$A$1:$K$100,6,FALSE)),0,VLOOKUP(R9,'Cenários COPOM'!$A$1:$K$100,6,FALSE)/100) -> 0 | U9: 4.4 | V9: 10011.97 | W9: 4.400703715 | Y9: 7 | Z9: =WORKDAY(Z8,1,feriados!$A$2:$A$1000) -> 2020-01-13 | AA9: 4.4 | AB9: =IF(ISERROR(VLOOKUP(Z9,'Cenários COPOM'!$A$1:$K$100,8,FALSE)),0,VLOOKUP(Z9,'Cenários COPOM'!$A$1:$K$100,8,FALSE)/100) -> 0 | AC9: 4.4 | AD9: 10011.97 | AE9: 4.400703715 | AG9: 7 | AH9: =WORKDAY(AH8,1,feriados!$A$2:$A$1000) -> 2020-01-13 | AI9: 4.4 | AJ9: =IF(ISERROR(VLOOKUP(AH9,'Cenários COPOM'!$A$1:$K$100,10,FALSE)),0,VLOOKUP(AH9,'Cenários COPOM'!$A$1:$K$100,10,FALSE)/100) -> 0 | AK9: 4.4 | AL9: 10011.97 | AM9: 4.400703715
A10: 8 | B10: =WORKDAY(B9,1,feriados!$A$2:$A$1000) -> 2020-01-14 | C10: 4.4 | D10: =IF(ISERROR(VLOOKUP(B10,'Cenários COPOM'!$A$1:$K$100,2,FALSE)),0,VLOOKUP(B10,'Cenários COPOM'!$A$1:$K$100,2,FALSE)/100) -> 0 | E10: 4.4 | F10: 10013.68 | G10: 4.400319722 | I10: 8 | J10: =WORKDAY(J9,1,feriados!$A$2:$A$1000) -> 2020-01-14 | K10: 4.4 | L10: =IF(ISERROR(VLOOKUP(J10,'Cenários COPOM'!$A$1:$K$100,4,FALSE)),0,VLOOKUP(J10,'Cenários COPOM'!$A$1:$K$100,4,FALSE)/100) -> 0 | M10: 4.4 | N10: 10013.68 | O10: 4.400319722 | Q10: 8 | R10: =WORKDAY(R9,1,feriados!$A$2:$A$1000) -> 2020-01-14 | S10: 4.4 | T10: =IF(ISERROR(VLOOKUP(R10,'Cenários COPOM'!$A$1:$K$100,6,FALSE)),0,VLOOKUP(R10,'Cenários COPOM'!$A$1:$K$100,6,FALSE)/100) -> 0 | U10: 4.4 | V10: 10013.68 | W10: 4.400319722 | Y10: 8 | Z10: =WORKDAY(Z9,1,feriados!$A$2:$A$1000) -> 2020-01-14 | AA10: 4.4 | AB10: =IF(ISERROR(VLOOKUP(Z10,'Cenários COPOM'!$A$1:$K$100,8,FALSE)),0,VLOOKUP(Z10,'Cenários COPOM'!$A$1:$K$100,8,FALSE)/100) -> 0 | AC10: 4.4 | AD10: 10013.68 | AE10: 4.400319722 | AG10: 8 | AH10: =WORKDAY(AH9,1,feriados!$A$2:$A$1000) -> 2020-01-14 | AI10: 4.4 | AJ10: =IF(ISERROR(VLOOKUP(AH10,'Cenários COPOM'!$A$1:$K$100,10,FALSE)),0,VLOOKUP(AH10,'Cenários COPOM'!$A$1:$K$100,10,FALSE)/100) -> 0 | AK10: 4.4 | AL10: 10013.68 | AM10: 4.400319722
A11: 9 | B11: =WORKDAY(B10,1,feriados!$A$2:$A$1000) -> 2020-01-15 | C11: 4.4 | D11: =IF(ISERROR(VLOOKUP(B11,'Cenários COPOM'!$A$1:$K$100,2,FALSE)),0,VLOOKUP(B11,'Cenários COPOM'!$A$1:$K$100,2,FALSE)/100) -> 0 | E11: 4.4 | F11: 10015.39 | G11: 4.399935818 | I11: 9 | J11: =WORKDAY(J10,1,feriados!$A$2:$A$1000) -> 2020-01-15 | K11: 4.4 | L11: =IF(ISERROR(VLOOKUP(J11,'Cenários COPOM'!$A$1:$K$100,4,FALSE)),0,VLOOKUP(J11,'Cenários COPOM'!$A$1:$K$100,4,FALSE)/100) -> 0 | M11: 4.4 | N11: 10015.39 | O11: 4.399935818 | Q11: 9 | R11: =WORKDAY(R10,1,feriados!$A$2:$A$1000) -> 2020-01-15 | S11: 4.4 | T11: =IF(ISERROR(VLOOKUP(R11,'Cenários COPOM'!$A$1:$K$100,6,FALSE)),0,VLOOKUP(R11,'Cenários COPOM'!$A$1:$K$100,6,FALSE)/100) -> 0 | U11: 4.4 | V11: 10015.39 | W11: 4.399935818 | Y11: 9 | Z11: =WORKDAY(Z10,1,feriados!$A$2:$A$1000) -> 2020-01-15 | AA11: 4.4 | AB11: =IF(ISERROR(VLOOKUP(Z11,'Cenários COPOM'!$A$1:$K$100,8,FALSE)),0,VLOOKUP(Z11,'Cenários COPOM'!$A$1:$K$100,8,FALSE)/100) -> 0 | AC11: 4.4 | AD11: 10015.39 | AE11: 4.399935818 | AG11: 9 | AH11: =WORKDAY(AH10,1,feriados!$A$2:$A$1000) -> 2020-01-15 | AI11: 4.4 | AJ11: =IF(ISERROR(VLOOKUP(AH11,'Cenários COPOM'!$A$1:$K$100,10,FALSE)),0,VLOOKUP(AH11,'Cenários COPOM'!$A$1:$K$100,10,FALSE)/100) -> 0 | AK11: 4.4 | AL11: 10015.39 | AM11: 4.399935818
A12: 10 | B12: =WORKDAY(B11,1,feriados!$A$2:$A$1000) -> 2020-01-16 | C12: 4.4 | D12: =IF(ISERROR(VLOOKUP(B12,'Cenários COPOM'!$A$1:$K$100,2,FALSE)),0,VLOOKUP(B12,'Cenários COPOM'!$A$1:$K$100,2,FALSE)/100) -> 0 | E12: 4.4 | F12: 10017.1 | G12: 4.399552003 | I12: 10 | J12: =WORKDAY(J11,1,feriados!$A$2:$A$1000) -> 2020-01-16 | K12: 4.4 | L12: =IF(ISERROR(VLOOKUP(J12,'Cenários COPOM'!$A$1:$K$100,4,FALSE)),0,VLOOKUP(J12,'Cenários COPOM'!$A$1:$K$100,4,FALSE)/100) -> 0 | M12: 4.4 | N12: 10017.1 | O12: 4.399552003 | Q12: 10 | R12: =WORKDAY(R11,1,feriados!$A$2:$A$1000) -> 2020-01-16 | S12: 4.4 | T12: =IF(ISERROR(VLOOKUP(R12,'Cenários COPOM'!$A$1:$K$100,6,FALSE)),0,VLOOKUP(R12,'Cenários COPOM'!$A$1:$K$100,6,FALSE)/100) -> 0 | U12: 4.4 | V12: 10017.1 | W12: 4.399552003 | Y12: 10 | Z12: =WORKDAY(Z11,1,feriados!$A$2:$A$1000) -> 2020-01-16 | AA12: 4.4 | AB12: =IF(ISERROR(VLOOKUP(Z12,'Cenários COPOM'!$A$1:$K$100,8,FALSE)),0,VLOOKUP(Z12,'Cenários COPOM'!$A$1:$K$100,8,FALSE)/100) -> 0 | AC12: 4.4 | AD12: 10017.1 | AE12: 4.399552003 | AG12: 10 | AH12: =WORKDAY(AH11,1,feriados!$A$2:$A$1000) -> 2020-01-16 | AI12: 4.4 | AJ12: =IF(ISERROR(VLOOKUP(AH12,'Cenários COPOM'!$A$1:$K$100,10,FALSE)),0,VLOOKUP(AH12,'Cenários COPOM'!$A$1:$K$100,10,FALSE)/100) -> 0 | AK12: 4.4 | AL12: 10017.1 | AM12: 4.399552003
A13: 11 | B13: =WORKDAY(B12,1,feriados!$A$2:$A$1000) -> 2020-01-17 | C13: 4.4 | D13: =IF(ISERROR(VLOOKUP(B13,'Cenários COPOM'!$A$1:$K$100,2,FALSE)),0,VLOOKUP(B13,'Cenários COPOM'!$A$1:$K$100,2,FALSE)/100) -> 0 | E13: 4.4 | F13: 10018.81 | G13: 4.399168276 | I13: 11 | J13: =WORKDAY(J12,1,feriados!$A$2:$A$1000) -> 2020-01-17 | K13: 4.4 | L13: =IF(ISERROR(VLOOKUP(J13,'Cenários COPOM'!$A$1:$K$100,4,FALSE)),0,VLOOKUP(J13,'Cenários COPOM'!$A$1:$K$100,4,FALSE)/100) -> 0 | M13: 4.4 | N13: 10018.81 | O13: 4.399168276 | Q13: 11 | R13: =WORKDAY(R12,1,feriados!$A$2:$A$1000) -> 2020-01-17 | S13: 4.4 | T13: =IF(ISERROR(VLOOKUP(R13,'Cenários COPOM'!$A$1:$K$100,6,FALSE)),0,VLOOKUP(R13,'Cenários COPOM'!$A$1:$K$100,6,FALSE)/100) -> 0 | U13: 4.4 | V13: 10018.81 | W13: 4.399168276 | Y13: 11 | Z13: =WORKDAY(Z12,1,feriados!$A$2:$A$1000) -> 2020-01-17 | AA13: 4.4 | AB13: =IF(ISERROR(VLOOKUP(Z13,'Cenários COPOM'!$A$1:$K$100,8,FALSE)),0,VLOOKUP(Z13,'Cenários COPOM'!$A$1:$K$100,8,FALSE)/100) -> 0 | AC13: 4.4 | AD13: 10018.81 | AE13: 4.399168276 | AG13: 11 | AH13: =WORKDAY(AH12,1,feriados!$A$2:$A$1000) -> 2020-01-17 | AI13: 4.4 | AJ13: =IF(ISERROR(VLOOKUP(AH13,'Cenários COPOM'!$A$1:$K$100,10,FALSE)),0,VLOOKUP(AH13,'Cenários COPOM'!$A$1:$K$100,10,FALSE)/100) -> 0 | AK13: 4.4 | AL13: 10018.81 | AM13: 4.399168276
A14: 12 | B14: =WORKDAY(B13,1,feriados!$A$2:$A$1000) -> 2020-01-20 | C14: 4.4 | D14: =IF(ISERROR(VLOOKUP(B14,'Cenários COPOM'!$A$1:$K$100,2,FALSE)),0,VLOOKUP(B14,'Cenários COPOM'!$A$1:$K$100,2,FALSE)/100) -> 0 | E14: 4.4 | F14: 10020.52 | G14: 4.398784638 | I14: 12 | J14: =WORKDAY(J13,1,feriados!$A$2:$A$1000) -> 2020-01-20 | K14: 4.4 | L14: =IF(ISERROR(VLOOKUP(J14,'Cenários COPOM'!$A$1:$K$100,4,FALSE)),0,VLOOKUP(J14,'Cenários COPOM'!$A$1:$K$100,4,FALSE)/100) -> 0 | M14: 4.4 | N14: 10020.52 | O14: 4.398784638 | Q14: 12 | R14: =WORKDAY(R13,1,feriados!$A$2:$A$1000) -> 2020-01-20 | S14: 4.4 | T14: =IF(ISERROR(VLOOKUP(R14,'Cenários COPOM'!$A$1:$K$100,6,FALSE)),0,VLOOKUP(R14,'Cenários COPOM'!$A$1:$K$100,6,FALSE)/100) -> 0 | U14: 4.4 | V14: 10020.52 | W14: 4.398784638 | Y14: 12 | Z14: =WORKDAY(Z13,1,feriados!$A$2:$A$1000) -> 2020-01-20 | AA14: 4.4 | AB14: =IF(ISERROR(VLOOKUP(Z14,'Cenários COPOM'!$A$1:$K$100,8,FALSE)),0,VLOOKUP(Z14,'Cenários COPOM'!$A$1:$K$100,8,FALSE)/100) -> 0 | AC14: 4.4 | AD14: 10020.52 | AE14: 4.398784638 | AG14: 12 | AH14: =WORKDAY(AH13,1,feriados!$A$2:$A$1000) -> 2020-01-20 | AI14: 4.4 | AJ14: =IF(ISERROR(VLOOKUP(AH14,'Cenários COPOM'!$A$1:$K$100,10,FALSE)),0,VLOOKUP(AH14,'Cenários COPOM'!$A$1:$K$100,10,FALSE)/100) -> 0 | AK14: 4.4 | AL14: 10020.52 | AM14: 4.398784638
A15: 13 | B15: =WORKDAY(B14,1,feriados!$A$2:$A$1000) -> 2020-01-21 | C15: 4.4 | D15: =IF(ISERROR(VLOOKUP(B15,'Cenários COPOM'!$A$1:$K$100,2,FALSE)),0,VLOOKUP(B15,'Cenários COPOM'!$A$1:$K$100,2,FALSE)/100) -> 0 | E15: 4.4 | F15: 10022.23 | G15: 4.398401089 | I15: 13 | J15: =WORKDAY(J14,1,feriados!$A$2:$A$1000) -> 2020-01-21 | K15: 4.4 | L15: =IF(ISERROR(VLOOKUP(J15,'Cenários COPOM'!$A$1:$K$100,4,FALSE)),0,VLOOKUP(J15,'Cenários COPOM'!$A$1:$K$100,4,FALSE)/100) -> 0 | M15: 4.4 | N15: 10022.23 | O15: 4.398401089 | Q15: 13 | R15: =WORKDAY(R14,1,feriados!$A$2:$A$1000) -> 2020-01-21 | S15: 4.4 | T15: =IF(ISERROR(VLOOKUP(R15,'Cenários COPOM'!$A$1:$K$100,6,FALSE)),0,VLOOKUP(R15,'Cenários COPOM'!$A$1:$K$100,6,FALSE)/100) -> 0 | U15: 4.4 | V15: 10022.23 | W15: 4.398401089 | Y15: 13 | Z15: =WORKDAY(Z14,1,feriados!$A$2:$A$1000) -> 2020-01-21 | AA15: 4.4 | AB15: =IF(ISERROR(VLOOKUP(Z15,'Cenários COPOM'!$A$1:$K$100,8,FALSE)),0,VLOOKUP(Z15,'Cenários COPOM'!$A$1:$K$100,8,FALSE)/100) -> 0 | AC15: 4.4 | AD15: 10022.23 | AE15: 4.398401089 | AG15: 13 | AH15: =WORKDAY(AH14,1,feriados!$A$2:$A$1000) -> 2020-01-21 | AI15: 4.4 | AJ15: =IF(ISERROR(VLOOKUP(AH15,'Cenários COPOM'!$A$1:$K$100,10,FALSE)),0,VLOOKUP(AH15,'Cenários COPOM'!$A$1:$K$100,10,FALSE)/100) -> 0 | AK15: 4.4 | AL15: 10022.23 | AM15: 4.398401089
A16: 14 | B16: =WORKDAY(B15,1,feriados!$A$2:$A$1000) -> 2020-01-22 | C16: 4.4 | D16: =IF(ISERROR(VLOOKUP(B16,'Cenários COPOM'!$A$1:$K$100,2,FALSE)),0,VLOOKUP(B16,'Cenários COPOM'!$A$1:$K$100,2,FALSE)/100) -> 0 | E16: 4.4 | F16: 10023.94 | G16: 4.398017629 | I16: 14 | J16: =WORKDAY(J15,1,feriados!$A$2:$A$1000) -> 2020-01-22 | K16: 4.4 | L16: =IF(ISERROR(VLOOKUP(J16,'Cenários COPOM'!$A$1:$K$100,4,FALSE)),0,VLOOKUP(J16,'Cenários COPOM'!$A$1:$K$100,4,FALSE)/100) -> 0 | M16: 4.4 | N16: 10023.94 | O16: 4.398017629 | Q16: 14 | R16: =WORKDAY(R15,1,feriados!$A$2:$A$1000) -> 2020-01-22 | S16: 4.4 | T16: =IF(ISERROR(VLOOKUP(R16,'Cenários COPOM'!$A$1:$K$100,6,FALSE)),0,VLOOKUP(R16,'Cenários COPOM'!$A$1:$K$100,6,FALSE)/100) -> 0 | U16: 4.4 | V16: 10023.94 | W16: 4.398017629 | Y16: 14 | Z16: =WORKDAY(Z15,1,feriados!$A$2:$A$1000) -> 2020-01-22 | AA16: 4.4 | AB16: =IF(ISERROR(VLOOKUP(Z16,'Cenários COPOM'!$A$1:$K$100,8,FALSE)),0,VLOOKUP(Z16,'Cenários COPOM'!$A$1:$K$100,8,FALSE)/100) -> 0 | AC16: 4.4 | AD16: 10023.94 | AE16: 4.398017629 | AG16: 14 | AH16: =WORKDAY(AH15,1,feriados!$A$2:$A$1000) -> 2020-01-22 | AI16: 4.4 | AJ16: =IF(ISERROR(VLOOKUP(AH16,'Cenários COPOM'!$A$1:$K$100,10,FALSE)),0,VLOOKUP(AH16,'Cenários COPOM'!$A$1:$K$100,10,FALSE)/100) -> 0 | AK16: 4.4 | AL16: 10023.94 | AM16: 4.398017629
A17: 15 | B17: =WORKDAY(B16,1,feriados!$A$2:$A$1000) -> 2020-01-23 | C17: 4.4 | D17: =IF(ISERROR(VLOOKUP(B17,'Cenários COPOM'!$A$1:$K$100,2,FALSE)),0,VLOOKUP(B17,'Cenários COPOM'!$A$1:$K$100,2,FALSE)/100) -> 0 | E17: 4.4 | F17: 10025.65 | G17: 4.397634257 | I17: 15 | J17: =WORKDAY(J16,1,feriados!$A$2:$A$1000) -> 2020-01-23 | K17: 4.4 | L17: =IF(ISERROR(VLOOKUP(J17,'Cenários COPOM'!$A$1:$K$100,4,FALSE)),0,VLOOKUP(J17,'Cenários COPOM'!$A$1:$K$100,4,FALSE)/100) -> 0 | M17: 4.4 | N17: 10025.65 | O17: 4.397634257 | Q17: 15 | R17: =WORKDAY(R16,1,feriados!$A$2:$A$1000) -> 2020-01-23 | S17: 4.4 | T17: =IF(ISERROR(VLOOKUP(R17,'Cenários COPOM'!$A$1:$K$100,6,FALSE)),0,VLOOKUP(R17,'Cenários COPOM'!$A$1:$K$100,6,FALSE)/100) -> 0 | U17: 4.4 | V17: 10025.65 | W17: 4.397634257 | Y17: 15 | Z17: =WORKDAY(Z16,1,feriados!$A$2:$A$1000) -> 2020-01-23 | AA17: 4.4 | AB17: =IF(ISERROR(VLOOKUP(Z17,'Cenários COPOM'!$A$1:$K$100,8,FALSE)),0,VLOOKUP(Z17,'Cenários COPOM'!$A$1:$K$100,8,FALSE)/100) -> 0 | AC17: 4.4 | AD17: 10025.65 | AE17: 4.397634257 | AG17: 15 | AH17: =WORKDAY(AH16,1,feriados!$A$2:$A$1000) -> 2020-01-23 | AI17: 4.4 | AJ17: =IF(ISERROR(VLOOKUP(AH17,'Cenários COPOM'!$A$1:$K$100,10,FALSE)),0,VLOOKUP(AH17,'Cenários COPOM'!$A$1:$K$100,10,FALSE)/100) -> 0 | AK17: 4.4 | AL17: 10025.65 | AM17: 4.397634257
A18: 16 | B18: =WORKDAY(B17,1,feriados!$A$2:$A$1000) -> 2020-01-24 | C18: 4.4 | D18: =IF(ISERROR(VLOOKUP(B18,'Cenários COPOM'!$A$1:$K$100,2,FALSE)),0,VLOOKUP(B18,'Cenários COPOM'!$A$1:$K$100,2,FALSE)/100) -> 0 | E18: 4.4 | F18: 10027.36 | G18: 4.397250974 | I18: 16 | J18: =WORKDAY(J17,1,feriados!$A$2:$A$1000) -> 2020-01-24 | K18: 4.4 | L18: =IF(ISERROR(VLOOKUP(J18,'Cenários COPOM'!$A$1:$K$100,4,FALSE)),0,VLOOKUP(J18,'Cenários COPOM'!$A$1:$K$100,4,FALSE)/100) -> 0 | M18: 4.4 | N18: 10027.36 | O18: 4.397250974 | Q18: 16 | R18: =WORKDAY(R17,1,feriados!$A$2:$A$1000) -> 2020-01-24 | S18: 4.4 | T18: =IF(ISERROR(VLOOKUP(R18,'Cenários COPOM'!$A$1:$K$100,6,FALSE)),0,VLOOKUP(R18,'Cenários COPOM'!$A$1:$K$100,6,FALSE)/100) -> 0 | U18: 4.4 | V18: 10027.36 | W18: 4.397250974 | Y18: 16 | Z18: =WORKDAY(Z17,1,feriados!$A$2:$A$1000) -> 2020-01-24 | AA18: 4.4 | AB18: =IF(ISERROR(VLOOKUP(Z18,'Cenários COPOM'!$A$1:$K$100,8,FALSE)),0,VLOOKUP(Z18,'Cenários COPOM'!$A$1:$K$100,8,FALSE)/100) -> 0 | AC18: 4.4 | AD18: 10027.36 | AE18: 4.397250974 | AG18: 16 | AH18: =WORKDAY(AH17,1,feriados!$A$2:$A$1000) -> 2020-01-24 | AI18: 4.4 | AJ18: =IF(ISERROR(VLOOKUP(AH18,'Cenários COPOM'!$A$1:$K$100,10,FALSE)),0,VLOOKUP(AH18,'Cenários COPOM'!$A$1:$K$100,10,FALSE)/100) -> 0 | AK18: 4.4 | AL18: 10027.36 | AM18: 4.397250974
A19: 17 | B19: =WORKDAY(B18,1,feriados!$A$2:$A$1000) -> 2020-01-27 | C19: 4.4 | D19: =IF(ISERROR(VLOOKUP(B19,'Cenários COPOM'!$A$1:$K$100,2,FALSE)),0,VLOOKUP(B19,'Cenários COPOM'!$A$1:$K$100,2,FALSE)/100) -> 0 | E19: 4.4 | F19: 10029.07 | G19: 4.39686778 | I19: 17 | J19: =WORKDAY(J18,1,feriados!$A$2:$A$1000) -> 2020-01-27 | K19: 4.4 | L19: =IF(ISERROR(VLOOKUP(J19,'Cenários COPOM'!$A$1:$K$100,4,FALSE)),0,VLOOKUP(J19,'Cenários COPOM'!$A$1:$K$100,4,FALSE)/100) -> 0 | M19: 4.4 | N19: 10029.07 | O19: 4.39686778 | Q19: 17 | R19: =WORKDAY(R18,1,feriados!$A$2:$A$1000) -> 2020-01-27 | S19: 4.4 | T19: =IF(ISERROR(VLOOKUP(R19,'Cenários COPOM'!$A$1:$K$100,6,FALSE)),0,VLOOKUP(R19,'Cenários COPOM'!$A$1:$K$100,6,FALSE)/100) -> 0 | U19: 4.4 | V19: 10029.07 | W19: 4.39686778 | Y19: 17 | Z19: =WORKDAY(Z18,1,feriados!$A$2:$A$1000) -> 2020-01-27 | AA19: 4.4 | AB19: =IF(ISERROR(VLOOKUP(Z19,'Cenários COPOM'!$A$1:$K$100,8,FALSE)),0,VLOOKUP(Z19,'Cenários COPOM'!$A$1:$K$100,8,FALSE)/100) -> 0 | AC19: 4.4 | AD19: 10029.07 | AE19: 4.39686778 | AG19: 17 | AH19: =WORKDAY(AH18,1,feriados!$A$2:$A$1000) -> 2020-01-27 | AI19: 4.4 | AJ19: =IF(ISERROR(VLOOKUP(AH19,'Cenários COPOM'!$A$1:$K$100,10,FALSE)),0,VLOOKUP(AH19,'Cenários COPOM'!$A$1:$K$100,10,FALSE)/100) -> 0 | AK19: 4.4 | AL19: 10029.07 | AM19: 4.39686778
A20: 18 | B20: =WORKDAY(B19,1,feriados!$A$2:$A$1000) -> 2020-01-28 | C20: 4.4 | D20: =IF(ISERROR(VLOOKUP(B20,'Cenários COPOM'!$A$1:$K$100,2,FALSE)),0,VLOOKUP(B20,'Cenários COPOM'!$A$1:$K$100,2,FALSE)/100) -> 0 | E20: 4.4 | F20: 10030.78 | G20: 4.396484674 | I20: 18 | J20: =WORKDAY(J19,1,feriados!$A$2:$A$1000) -> 2020-01-28 | K20: 4.4 | L20: =IF(ISERROR(VLOOKUP(J20,'Cenários COPOM'!$A$1:$K$100,4,FALSE)),0,VLOOKUP(J20,'Cenários COPOM'!$A$1:$K$100,4,FALSE)/100) -> 0 | M20: 4.4 | N20: 10030.78 | O20: 4.396484674 | Q20: 18 | R20: =WORKDAY(R19,1,feriados!$A$2:$A$1000) -> 2020-01-28 | S20: 4.4 | T20: =IF(ISERROR(VLOOKUP(R20,'Cenários COPOM'!$A$1:$K$100,6,FALSE)),0,VLOOKUP(R20,'Cenários COPOM'!$A$1:$K$100,6,FALSE)/100) -> 0 | U20: 4.4 | V20: 10030.78 | W20: 4.396484674 | Y20: 18 | Z20: =WORKDAY(Z19,1,feriados!$A$2:$A$1000) -> 2020-01-28 | AA20: 4.4 | AB20: =IF(ISERROR(VLOOKUP(Z20,'Cenários COPOM'!$A$1:$K$100,8,FALSE)),0,VLOOKUP(Z20,'Cenários COPOM'!$A$1:$K$100,8,FALSE)/100) -> 0 | AC20: 4.4 | AD20: 10030.78 | AE20: 4.396484674 | AG20: 18 | AH20: =WORKDAY(AH19,1,feriados!$A$2:$A$1000) -> 2020-01-28 | AI20: 4.4 | AJ20: =IF(ISERROR(VLOOKUP(AH20,'Cenários COPOM'!$A$1:$K$100,10,FALSE)),0,VLOOKUP(AH20,'Cenários COPOM'!$A$1:$K$100,10,FALSE)/100) -> 0 | AK20: 4.4 | AL20: 10030.78 | AM20: 4.396484674
A21: 19 | B21: =WORKDAY(B20,1,feriados!$A$2:$A$1000) -> 2020-01-29 | C21: 4.4 | D21: =IF(ISERROR(VLOOKUP(B21,'Cenários COPOM'!$A$1:$K$100,2,FALSE)),0,VLOOKUP(B21,'Cenários COPOM'!$A$1:$K$100,2,FALSE)/100) -> 0 | E21: 4.4 | F21: 10032.49 | G21: 4.396101656 | I21: 19 | J21: =WORKDAY(J20,1,feriados!$A$2:$A$1000) -> 2020-01-29 | K21: 4.4 | L21: =IF(ISERROR(VLOOKUP(J21,'Cenários COPOM'!$A$1:$K$100,4,FALSE)),0,VLOOKUP(J21,'Cenários COPOM'!$A$1:$K$100,4,FALSE)/100) -> 0 | M21: 4.4 | N21: 10032.49 | O21: 4.396101656 | Q21: 19 | R21: =WORKDAY(R20,1,feriados!$A$2:$A$1000) -> 2020-01-29 | S21: 4.4 | T21: =IF(ISERROR(VLOOKUP(R21,'Cenários COPOM'!$A$1:$K$100,6,FALSE)),0,VLOOKUP(R21,'Cenários COPOM'!$A$1:$K$100,6,FALSE)/100) -> 0 | U21: 4.4 | V21: 10032.49 | W21: 4.396101656 | Y21: 19 | Z21: =WORKDAY(Z20,1,feriados!$A$2:$A$1000) -> 2020-01-29 | AA21: 4.4 | AB21: =IF(ISERROR(VLOOKUP(Z21,'Cenários COPOM'!$A$1:$K$100,8,FALSE)),0,VLOOKUP(Z21,'Cenários COPOM'!$A$1:$K$100,8,FALSE)/100) -> 0 | AC21: 4.4 | AD21: 10032.49 | AE21: 4.396101656 | AG21: 19 | AH21: =WORKDAY(AH20,1,feriados!$A$2:$A$1000) -> 2020-01-29 | AI21: 4.4 | AJ21: =IF(ISERROR(VLOOKUP(AH21,'Cenários COPOM'!$A$1:$K$100,10,FALSE)),0,VLOOKUP(AH21,'Cenários COPOM'!$A$1:$K$100,10,FALSE)/100) -> 0 | AK21: 4.4 | AL21: 10032.49 | AM21: 4.396101656
A22: 20 | B22: =WORKDAY(B21,1,feriados!$A$2:$A$1000) -> 2020-01-30 | C22: 4.4 | D22: =IF(ISERROR(VLOOKUP(B22,'Cenários COPOM'!$A$1:$K$100,2,FALSE)),0,VLOOKUP(B22,'Cenários COPOM'!$A$1:$K$100,2,FALSE)/100) -> 0 | E22: 4.4 | F22: 10034.2 | G22: 4.395718727 | I22: 20 | J22: =WORKDAY(J21,1,feriados!$A$2:$A$1000) -> 2020-01-30 | K22: 4.4 | L22: =IF(ISERROR(VLOOKUP(J22,'Cenários COPOM'!$A$1:$K$100,4,FALSE)),0,VLOOKUP(J22,'Cenários COPOM'!$A$1:$K$100,4,FALSE)/100) -> 0 | M22: 4.4 | N22: 10034.2 | O22: 4.395718727 | Q22: 20 | R22: =WORKDAY(R21,1,feriados!$A$2:$A$1000) -> 2020-01-30 | S22: 4.4 | T22: =IF(ISERROR(VLOOKUP(R22,'Cenários COPOM'!$A$1:$K$100,6,FALSE)),0,VLOOKUP(R22,'Cenários COPOM'!$A$1:$K$100,6,FALSE)/100) -> 0 | U22: 4.4 | V22: 10034.2 | W22: 4.395718727 | Y22: 20 | Z22: =WORKDAY(Z21,1,feriados!$A$2:$A$1000) -> 2020-01-30 | AA22: 4.4 | AB22: =IF(ISERROR(VLOOKUP(Z22,'Cenários COPOM'!$A$1:$K$100,8,FALSE)),0,VLOOKUP(Z22,'Cenários COPOM'!$A$1:$K$100,8,FALSE)/100) -> 0 | AC22: 4.4 | AD22: 10034.2 | AE22: 4.395718727 | AG22: 20 | AH22: =WORKDAY(AH21,1,feriados!$A$2:$A$1000) -> 2020-01-30 | AI22: 4.4 | AJ22: =IF(ISERROR(VLOOKUP(AH22,'Cenários COPOM'!$A$1:$K$100,10,FALSE)),0,VLOOKUP(AH22,'Cenários COPOM'!$A$1:$K$100,10,FALSE)/100) -> 0 | AK22: 4.4 | AL22: 10034.2 | AM22: 4.395718727
A23: 21 | B23: =WORKDAY(B22,1,feriados!$A$2:$A$1000) -> 2020-01-31 | C23: 4.4 | D23: =IF(ISERROR(VLOOKUP(B23,'Cenários COPOM'!$A$1:$K$100,2,FALSE)),0,VLOOKUP(B23,'Cenários COPOM'!$A$1:$K$100,2,FALSE)/100) -> 0 | E23: 4.4 | F23: 10035.91 | G23: 4.395335886 | I23: 21 | J23: =WORKDAY(J22,1,feriados!$A$2:$A$1000) -> 2020-01-31 | K23: 4.4 | L23: =IF(ISERROR(VLOOKUP(J23,'Cenários COPOM'!$A$1:$K$100,4,FALSE)),0,VLOOKUP(J23,'Cenários COPOM'!$A$1:$K$100,4,FALSE)/100) -> 0 | M23: 4.4 | N23: 10035.91 | O23: 4.395335886 | Q23: 21 | R23: =WORKDAY(R22,1,feriados!$A$2:$A$1000) -> 2020-01-31 | S23: 4.4 | T23: =IF(ISERROR(VLOOKUP(R23,'Cenários COPOM'!$A$1:$K$100,6,FALSE)),0,VLOOKUP(R23,'Cenários COPOM'!$A$1:$K$100,6,FALSE)/100) -> 0 | U23: 4.4 | V23: 10035.91 | W23: 4.395335886 | Y23: 21 | Z23: =WORKDAY(Z22,1,feriados!$A$2:$A$1000) -> 2020-01-31 | AA23: 4.4 | AB23: =IF(ISERROR(VLOOKUP(Z23,'Cenários COPOM'!$A$1:$K$100,8,FALSE)),0,VLOOKUP(Z23,'Cenários COPOM'!$A$1:$K$100,8,FALSE)/100) -> 0 | AC23: 4.4 | AD23: 10035.91 | AE23: 4.395335886 | AG23: 21 | AH23: =WORKDAY(AH22,1,feriados!$A$2:$A$1000) -> 2020-01-31 | AI23: 4.4 | AJ23: =IF(ISERROR(VLOOKUP(AH23,'Cenários COPOM'!$A$1:$K$100,10,FALSE)),0,VLOOKUP(AH23,'Cenários COPOM'!$A$1:$K$100,10,FALSE)/100) -> 0 | AK23: 4.4 | AL23: 10035.91 | AM23: 4.395335886
A24: 22 | B24: =WORKDAY(B23,1,feriados!$A$2:$A$1000) -> 2020-02-03 | C24: 4.4 | D24: =IF(ISERROR(VLOOKUP(B24,'Cenários COPOM'!$A$1:$K$100,2,FALSE)),0,VLOOKUP(B24,'Cenários COPOM'!$A$1:$K$100,2,FALSE)/100) -> 0 | E24: 4.4 | F24: 10037.62 | G24: 4.394953134 | I24: 22 | J24: =WORKDAY(J23,1,feriados!$A$2:$A$1000) -> 2020-02-03 | K24: 4.4 | L24: =IF(ISERROR(VLOOKUP(J24,'Cenários COPOM'!$A$1:$K$100,4,FALSE)),0,VLOOKUP(J24,'Cenários COPOM'!$A$1:$K$100,4,FALSE)/100) -> 0 | M24: 4.4 | N24: 10037.62 | O24: 4.394953134 | Q24: 22 | R24: =WORKDAY(R23,1,feriados!$A$2:$A$1000) -> 2020-02-03 | S24: 4.4 | T24: =IF(ISERROR(VLOOKUP(R24,'Cenários COPOM'!$A$1:$K$100,6,FALSE)),0,VLOOKUP(R24,'Cenários COPOM'!$A$1:$K$100,6,FALSE)/100) -> 0 | U24: 4.4 | V24: 10037.62 | W24: 4.394953134 | Y24: 22 | Z24: =WORKDAY(Z23,1,feriados!$A$2:$A$1000) -> 2020-02-03 | AA24: 4.4 | AB24: =IF(ISERROR(VLOOKUP(Z24,'Cenários COPOM'!$A$1:$K$100,8,FALSE)),0,VLOOKUP(Z24,'Cenários COPOM'!$A$1:$K$100,8,FALSE)/100) -> 0 | AC24: 4.4 | AD24: 10037.62 | AE24: 4.394953134 | AG24: 22 | AH24: =WORKDAY(AH23,1,feriados!$A$2:$A$1000) -> 2020-02-03 | AI24: 4.4 | AJ24: =IF(ISERROR(VLOOKUP(AH24,'Cenários COPOM'!$A$1:$K$100,10,FALSE)),0,VLOOKUP(AH24,'Cenários COPOM'!$A$1:$K$100,10,FALSE)/100) -> 0 | AK24: 4.4 | AL24: 10037.62 | AM24: 4.394953134
A25: 23 | B25: =WORKDAY(B24,1,feriados!$A$2:$A$1000) -> 2020-02-04 | C25: 4.4 | D25: =IF(ISERROR(VLOOKUP(B25,'Cenários COPOM'!$A$1:$K$100,2,FALSE)),0,VLOOKUP(B25,'Cenários COPOM'!$A$1:$K$100,2,FALSE)/100) -> 0 | E25: 4.4 | F25: 10039.34 | G25: 4.395709796 | I25: 23 | J25: =WORKDAY(J24,1,feriados!$A$2:$A$1000) -> 2020-02-04 | K25: 4.4 | L25: =IF(ISERROR(VLOOKUP(J25,'Cenários COPOM'!$A$1:$K$100,4,FALSE)),0,VLOOKUP(J25,'Cenários COPOM'!$A$1:$K$100,4,FALSE)/100) -> 0 | M25: 4.4 | N25: 10039.34 | O25: 4.395709796 | Q25: 23 | R25: =WORKDAY(R24,1,feriados!$A$2:$A$1000) -> 2020-02-04 | S25: 4.4 | T25: =IF(ISERROR(VLOOKUP(R25,'Cenários COPOM'!$A$1:$K$100,6,FALSE)),0,VLOOKUP(R25,'Cenários COPOM'!$A$1:$K$100,6,FALSE)/100) -> 0 | U25: 4.4 | V25: 10039.34 | W25: 4.395709796 | Y25: 23 | Z25: =WORKDAY(Z24,1,feriados!$A$2:$A$1000) -> 2020-02-04 | AA25: 4.4 | AB25: =IF(ISERROR(VLOOKUP(Z25,'Cenários COPOM'!$A$1:$K$100,8,FALSE)),0,VLOOKUP(Z25,'Cenários COPOM'!$A$1:$K$100,8,FALSE)/100) -> 0 | AC25: 4.4 | AD25: 10039.34 | AE25: 4.395709796 | AG25: 23 | AH25: =WORKDAY(AH24,1,feriados!$A$2:$A$1000) -> 2020-02-04 | AI25: 4.4 | AJ25: =IF(ISERROR(VLOOKUP(AH25,'Cenários COPOM'!$A$1:$K$100,10,FALSE)),0,VLOOKUP(AH25,'Cenários COPOM'!$A$1:$K$100,10,FALSE)/100) -> 0 | AK25: 4.4 | AL25: 10039.34 | AM25: 4.395709796
A26: 24 | B26: =WORKDAY(B25,1,feriados!$A$2:$A$1000) -> 2020-02-05 | C26: 4.4 | D26: =IF(ISERROR(VLOOKUP(B26,'Cenários COPOM'!$A$1:$K$100,2,FALSE)),0,VLOOKUP(B26,'Cenários COPOM'!$A$1:$K$100,2,FALSE)/100) -> 0 | E26: 4.4 | F26: 10041.06 | G26: 4.396371233 | I26: 24 | J26: =WORKDAY(J25,1,feriados!$A$2:$A$1000) -> 2020-02-05 | K26: 4.4 | L26: =IF(ISERROR(VLOOKUP(J26,'Cenários COPOM'!$A$1:$K$100,4,FALSE)),0,VLOOKUP(J26,'Cenários COPOM'!$A$1:$K$100,4,FALSE)/100) -> 0 | M26: 4.4 | N26: 10041.06 | O26: 4.396371233 | Q26: 24 | R26: =WORKDAY(R25,1,feriados!$A$2:$A$1000) -> 2020-02-05 | S26: 4.4 | T26: =IF(ISERROR(VLOOKUP(R26,'Cenários COPOM'!$A$1:$K$100,6,FALSE)),0,VLOOKUP(R26,'Cenários COPOM'!$A$1:$K$100,6,FALSE)/100) -> 0 | U26: 4.4 | V26: 10041.06 | W26: 4.396371233 | Y26: 24 | Z26: =WORKDAY(Z25,1,feriados!$A$2:$A$1000) -> 2020-02-05 | AA26: 4.4 | AB26: =IF(ISERROR(VLOOKUP(Z26,'Cenários COPOM'!$A$1:$K$100,8,FALSE)),0,VLOOKUP(Z26,'Cenários COPOM'!$A$1:$K$100,8,FALSE)/100) -> 0 | AC26: 4.4 | AD26: 10041.06 | AE26: 4.396371233 | AG26: 24 | AH26: =WORKDAY(AH25,1,feriados!$A$2:$A$1000) -> 2020-02-05 | AI26: 4.4 | AJ26: =IF(ISERROR(VLOOKUP(AH26,'Cenários COPOM'!$A$1:$K$100,10,FALSE)),0,VLOOKUP(AH26,'Cenários COPOM'!$A$1:$K$100,10,FALSE)/100) -> 0 | AK26: 4.4 | AL26: 10041.06 | AM26: 4.396371233
A27: 25 | B27: =WORKDAY(B26,1,feriados!$A$2:$A$1000) -> 2020-02-06 | C27: 4.4 | D27: =IF(ISERROR(VLOOKUP(B27,'Cenários COPOM'!$A$1:$K$100,2,FALSE)),0,VLOOKUP(B27,'Cenários COPOM'!$A$1:$K$100,2,FALSE)/100) -> 0 | E27: 4.4 | F27: 10042.78 | G27: 4.396948881 | I27: 25 | J27: =WORKDAY(J26,1,feriados!$A$2:$A$1000) -> 2020-02-06 | K27: 4.4 | L27: =IF(ISERROR(VLOOKUP(J27,'Cenários COPOM'!$A$1:$K$100,4,FALSE)),0,VLOOKUP(J27,'Cenários COPOM'!$A$1:$K$100,4,FALSE)/100) -> 0 | M27: 4.4 | N27: 10042.78 | O27: 4.396948881 | Q27: 25 | R27: =WORKDAY(R26,1,feriados!$A$2:$A$1000) -> 2020-02-06 | S27: 4.4 | T27: =IF(ISERROR(VLOOKUP(R27,'Cenários COPOM'!$A$1:$K$100,6,FALSE)),0,VLOOKUP(R27,'Cenários COPOM'!$A$1:$K$100,6,FALSE)/100) -> 0 | U27: 4.4 | V27: 10042.78 | W27: 4.396948881 | Y27: 25 | Z27: =WORKDAY(Z26,1,feriados!$A$2:$A$1000) -> 2020-02-06 | AA27: 4.4 | AB27: =IF(ISERROR(VLOOKUP(Z27,'Cenários COPOM'!$A$1:$K$100,8,FALSE)),0,VLOOKUP(Z27,'Cenários COPOM'!$A$1:$K$100,8,FALSE)/100) -> 0 | AC27: 4.4 | AD27: 10042.78 | AE27: 4.396948881 | AG27: 25 | AH27: =WORKDAY(AH26,1,feriados!$A$2:$A$1000) -> 2020-02-06 | AI27: 4.4 | AJ27: =IF(ISERROR(VLOOKUP(AH27,'Cenários COPOM'!$A$1:$K$100,10,FALSE)),0,VLOOKUP(AH27,'Cenários COPOM'!$A$1:$K$100,10,FALSE)/100) -> 0 | AK27: 4.4 | AL27: 10042.78 | AM27: 4.396948881
A28: 26 | B28: =WORKDAY(B27,1,feriados!$A$2:$A$1000) -> 2020-02-07 | C28: 4.4 | D28: =IF(ISERROR(VLOOKUP(B28,'Cenários COPOM'!$A$1:$K$100,2,FALSE)),0,VLOOKUP(B28,'Cenários COPOM'!$A$1:$K$100,2,FALSE)/100) -> 0 | E28: 4.4 | F28: 10044.5 | G28: 4.397452416 | I28: 26 | J28: =WORKDAY(J27,1,feriados!$A$2:$A$1000) -> 2020-02-07 | K28: 4.4 | L28: =IF(ISERROR(VLOOKUP(J28,'Cenários COPOM'!$A$1:$K$100,4,FALSE)),0,VLOOKUP(J28,'Cenários COPOM'!$A$1:$K$100,4,FALSE)/100) -> 0 | M28: 4.4 | N28: 10044.5 | O28: 4.397452416 | Q28: 26 | R28: =WORKDAY(R27,1,feriados!$A$2:$A$1000) -> 2020-02-07 | S28: 4.4 | T28: =IF(ISERROR(VLOOKUP(R28,'Cenários COPOM'!$A$1:$K$100,6,FALSE)),0,VLOOKUP(R28,'Cenários COPOM'!$A$1:$K$100,6,FALSE)/100) -> 0 | U28: 4.4 | V28: 10044.5 | W28: 4.397452416 | Y28: 26 | Z28: =WORKDAY(Z27,1,feriados!$A$2:$A$1000) -> 2020-02-07 | AA28: 4.4 | AB28: =IF(ISERROR(VLOOKUP(Z28,'Cenários COPOM'!$A$1:$K$100,8,FALSE)),0,VLOOKUP(Z28,'Cenários COPOM'!$A$1:$K$100,8,FALSE)/100) -> 0 | AC28: 4.4 | AD28: 10044.5 | AE28: 4.397452416 | AG28: 26 | AH28: =WORKDAY(AH27,1,feriados!$A$2:$A$1000) -> 2020-02-07 | AI28: 4.4 | AJ28: =IF(ISERROR(VLOOKUP(AH28,'Cenários COPOM'!$A$1:$K$100,10,FALSE)),0,VLOOKUP(AH28,'Cenários COPOM'!$A$1:$K$100,10,FALSE)/100) -> 0 | AK28: 4.4 | AL28: 10044.5 | AM28: 4.397452416
A29: 27 | B29: =WORKDAY(B28,1,feriados!$A$2:$A$1000) -> 2020-02-10 | C29: 4.4 | D29: =IF(ISERROR(VLOOKUP(B29,'Cenários COPOM'!$A$1:$K$100,2,FALSE)),0,VLOOKUP(B29,'Cenários COPOM'!$A$1:$K$100,2,FALSE)/100) -> 0 | E29: 4.4 | F29: 10046.22 | G29: 4.397890084 | I29: 27 | J29: =WORKDAY(J28,1,feriados!$A$2:$A$1000) -> 2020-02-10 | K29: 4.4 | L29: =IF(ISERROR(VLOOKUP(J29,'Cenários COPOM'!$A$1:$K$100,4,FALSE)),0,VLOOKUP(J29,'Cenários COPOM'!$A$1:$K$100,4,FALSE)/100) -> 0 | M29: 4.4 | N29: 10046.22 | O29: 4.397890084 | Q29: 27 | R29: =WORKDAY(R28,1,feriados!$A$2:$A$1000) -> 2020-02-10 | S29: 4.4 | T29: =IF(ISERROR(VLOOKUP(R29,'Cenários COPOM'!$A$1:$K$100,6,FALSE)),0,VLOOKUP(R29,'Cenários COPOM'!$A$1:$K$100,6,FALSE)/100) -> 0 | U29: 4.4 | V29: 10046.22 | W29: 4.397890084 | Y29: 27 | Z29: =WORKDAY(Z28,1,feriados!$A$2:$A$1000) -> 2020-02-10 | AA29: 4.4 | AB29: =IF(ISERROR(VLOOKUP(Z29,'Cenários COPOM'!$A$1:$K$100,8,FALSE)),0,VLOOKUP(Z29,'Cenários COPOM'!$A$1:$K$100,8,FALSE)/100) -> 0 | AC29: 4.4 | AD29: 10046.22 | AE29: 4.397890084 | AG29: 27 | AH29: =WORKDAY(AH28,1,feriados!$A$2:$A$1000) -> 2020-02-10 | AI29: 4.4 | AJ29: =IF(ISERROR(VLOOKUP(AH29,'Cenários COPOM'!$A$1:$K$100,10,FALSE)),0,VLOOKUP(AH29,'Cenários COPOM'!$A$1:$K$100,10,FALSE)/100) -> 0 | AK29: 4.4 | AL29: 10046.22 | AM29: 4.397890084
A30: 28 | B30: =WORKDAY(B29,1,feriados!$A$2:$A$1000) -> 2020-02-11 | C30: 4.4 | D30: =IF(ISERROR(VLOOKUP(B30,'Cenários COPOM'!$A$1:$K$100,2,FALSE)),0,VLOOKUP(B30,'Cenários COPOM'!$A$1:$K$100,2,FALSE)/100) -> 0 | E30: 4.4 | F30: 10047.94 | G30: 4.39826895 | I30: 28 | J30: =WORKDAY(J29,1,feriados!$A$2:$A$1000) -> 2020-02-11 | K30: 4.4 | L30: =IF(ISERROR(VLOOKUP(J30,'Cenários COPOM'!$A$1:$K$100,4,FALSE)),0,VLOOKUP(J30,'Cenários COPOM'!$A$1:$K$100,4,FALSE)/100) -> 0 | M30: 4.4 | N30: 10047.94 | O30: 4.39826895 | Q30: 28 | R30: =WORKDAY(R29,1,feriados!$A$2:$A$1000) -> 2020-02-11 | S30: 4.4 | T30: =IF(ISERROR(VLOOKUP(R30,'Cenários COPOM'!$A$1:$K$100,6,FALSE)),0,VLOOKUP(R30,'Cenários COPOM'!$A$1:$K$100,6,FALSE)/100) -> 0 | U30: 4.4 | V30: 10047.94 | W30: 4.39826895 | Y30: 28 | Z30: =WORKDAY(Z29,1,feriados!$A$2:$A$1000) -> 2020-02-11 | AA30: 4.4 | AB30: =IF(ISERROR(VLOOKUP(Z30,'Cenários COPOM'!$A$1:$K$100,8,FALSE)),0,VLOOKUP(Z30,'Cenários COPOM'!$A$1:$K$100,8,FALSE)/100) -> 0 | AC30: 4.4 | AD30: 10047.94 | AE30: 4.39826895 | AG30: 28 | AH30: =WORKDAY(AH29,1,feriados!$A$2:$A$1000) -> 2020-02-11 | AI30: 4.4 | AJ30: =IF(ISERROR(VLOOKUP(AH30,'Cenários COPOM'!$A$1:$K$100,10,FALSE)),0,VLOOKUP(AH30,'Cenários COPOM'!$A$1:$K$100,10,FALSE)/100) -> 0 | AK30: 4.4 | AL30: 10047.94 | AM30: 4.39826895
A31: 29 | B31: =WORKDAY(B30,1,feriados!$A$2:$A$1000) -> 2020-02-12 | C31: 4.4 | D31: =IF(ISERROR(VLOOKUP(B31,'Cenários COPOM'!$A$1:$K$100,2,FALSE)),0,VLOOKUP(B31,'Cenários COPOM'!$A$1:$K$100,2,FALSE)/100) -> 0 | E31: 4.4 | F31: 10049.66 | G31: 4.398595106 | I31: 29 | J31: =WORKDAY(J30,1,feriados!$A$2:$A$1000) -> 2020-02-12 | K31: 4.4 | L31: =IF(ISERROR(VLOOKUP(J31,'Cenários COPOM'!$A$1:$K$100,4,FALSE)),0,VLOOKUP(J31,'Cenários COPOM'!$A$1:$K$100,4,FALSE)/100) -> 0 | M31: 4.4 | N31: 10049.66 | O31: 4.398595106 | Q31: 29 | R31: =WORKDAY(R30,1,feriados!$A$2:$A$1000) -> 2020-02-12 | S31: 4.4 | T31: =IF(ISERROR(VLOOKUP(R31,'Cenários COPOM'!$A$1:$K$100,6,FALSE)),0,VLOOKUP(R31,'Cenários COPOM'!$A$1:$K$100,6,FALSE)/100) -> 0 | U31: 4.4 | V31: 10049.66 | W31: 4.398595106 | Y31: 29 | Z31: =WORKDAY(Z30,1,feriados!$A$2:$A$1000) -> 2020-02-12 | AA31: 4.4 | AB31: =IF(ISERROR(VLOOKUP(Z31,'Cenários COPOM'!$A$1:$K$100,8,FALSE)),0,VLOOKUP(Z31,'Cenários COPOM'!$A$1:$K$100,8,FALSE)/100) -> 0 | AC31: 4.4 | AD31: 10049.66 | AE31: 4.398595106 | AG31: 29 | AH31: =WORKDAY(AH30,1,feriados!$A$2:$A$1000) -> 2020-02-12 | AI31: 4.4 | AJ31: =IF(ISERROR(VLOOKUP(AH31,'Cenários COPOM'!$A$1:$K$100,10,FALSE)),0,VLOOKUP(AH31,'Cenários COPOM'!$A$1:$K$100,10,FALSE)/100) -> 0 | AK31: 4.4 | AL31: 10049.66 | AM31: 4.398595106
A32: 30 | B32: =WORKDAY(B31,1,feriados!$A$2:$A$1000) -> 2020-02-13 | C32: 4.4 | D32: =IF(ISERROR(VLOOKUP(B32,'Cenários COPOM'!$A$1:$K$100,2,FALSE)),0,VLOOKUP(B32,'Cenários COPOM'!$A$1:$K$100,2,FALSE)/100) -> 0 | E32: 4.4 | F32: 10051.38 | G32: 4.398873831 | I32: 30 | J32: =WORKDAY(J31,1,feriados!$A$2:$A$1000) -> 2020-02-13 | K32: 4.4 | L32: =IF(ISERROR(VLOOKUP(J32,'Cenários COPOM'!$A$1:$K$100,4,FALSE)),0,VLOOKUP(J32,'Cenários COPOM'!$A$1:$K$100,4,FALSE)/100) -> 0 | M32: 4.4 | N32: 10051.38 | O32: 4.398873831 | Q32: 30 | R32: =WORKDAY(R31,1,feriados!$A$2:$A$1000) -> 2020-02-13 | S32: 4.4 | T32: =IF(ISERROR(VLOOKUP(R32,'Cenários COPOM'!$A$1:$K$100,6,FALSE)),0,VLOOKUP(R32,'Cenários COPOM'!$A$1:$K$100,6,FALSE)/100) -> 0 | U32: 4.4 | V32: 10051.38 | W32: 4.398873831 | Y32: 30 | Z32: =WORKDAY(Z31,1,feriados!$A$2:$A$1000) -> 2020-02-13 | AA32: 4.4 | AB32: =IF(ISERROR(VLOOKUP(Z32,'Cenários COPOM'!$A$1:$K$100,8,FALSE)),0,VLOOKUP(Z32,'Cenários COPOM'!$A$1:$K$100,8,FALSE)/100) -> 0 | AC32: 4.4 | AD32: 10051.38 | AE32: 4.398873831 | AG32: 30 | AH32: =WORKDAY(AH31,1,feriados!$A$2:$A$1000) -> 2020-02-13 | AI32: 4.4 | AJ32: =IF(ISERROR(VLOOKUP(AH32,'Cenários COPOM'!$A$1:$K$100,10,FALSE)),0,VLOOKUP(AH32,'Cenários COPOM'!$A$1:$K$100,10,FALSE)/100) -> 0 | AK32: 4.4 | AL32: 10051.38 | AM32: 4.398873831
A33: 31 | B33: =WORKDAY(B32,1,feriados!$A$2:$A$1000) -> 2020-02-14 | C33: 4.4 | D33: =IF(ISERROR(VLOOKUP(B33,'Cenários COPOM'!$A$1:$K$100,2,FALSE)),0,VLOOKUP(B33,'Cenários COPOM'!$A$1:$K$100,2,FALSE)/100) -> 0 | E33: 4.4 | F33: 10053.1 | G33: 4.399109724 | I33: 31 | J33: =WORKDAY(J32,1,feriados!$A$2:$A$1000) -> 2020-02-14 | K33: 4.4 | L33: =IF(ISERROR(VLOOKUP(J33,'Cenários COPOM'!$A$1:$K$100,4,FALSE)),0,VLOOKUP(J33,'Cenários COPOM'!$A$1:$K$100,4,FALSE)/100) -> 0 | M33: 4.4 | N33: 10053.1 | O33: 4.399109724 | Q33: 31 | R33: =WORKDAY(R32,1,feriados!$A$2:$A$1000) -> 2020-02-14 | S33: 4.4 | T33: =IF(ISERROR(VLOOKUP(R33,'Cenários COPOM'!$A$1:$K$100,6,FALSE)),0,VLOOKUP(R33,'Cenários COPOM'!$A$1:$K$100,6,FALSE)/100) -> 0 | U33: 4.4 | V33: 10053.1 | W33: 4.399109724 | Y33: 31 | Z33: =WORKDAY(Z32,1,feriados!$A$2:$A$1000) -> 2020-02-14 | AA33: 4.4 | AB33: =IF(ISERROR(VLOOKUP(Z33,'Cenários COPOM'!$A$1:$K$100,8,FALSE)),0,VLOOKUP(Z33,'Cenários COPOM'!$A$1:$K$100,8,FALSE)/100) -> 0 | AC33: 4.4 | AD33: 10053.1 | AE33: 4.399109724 | AG33: 31 | AH33: =WORKDAY(AH32,1,feriados!$A$2:$A$1000) -> 2020-02-14 | AI33: 4.4 | AJ33: =IF(ISERROR(VLOOKUP(AH33,'Cenários COPOM'!$A$1:$K$100,10,FALSE)),0,VLOOKUP(AH33,'Cenários COPOM'!$A$1:$K$100,10,FALSE)/100) -> 0 | AK33: 4.4 | AL33: 10053.1 | AM33: 4.399109724
A34: 32 | B34: =WORKDAY(B33,1,feriados!$A$2:$A$1000) -> 2020-02-17 | C34: 4.4 | D34: =IF(ISERROR(VLOOKUP(B34,'Cenários COPOM'!$A$1:$K$100,2,FALSE)),0,VLOOKUP(B34,'Cenários COPOM'!$A$1:$K$100,2,FALSE)/100) -> 0 | E34: 4.4 | F34: 10054.82 | G34: 4.399306808 | I34: 32 | J34: =WORKDAY(J33,1,feriados!$A$2:$A$1000) -> 2020-02-17 | K34: 4.4 | L34: =IF(ISERROR(VLOOKUP(J34,'Cenários COPOM'!$A$1:$K$100,4,FALSE)),0,VLOOKUP(J34,'Cenários COPOM'!$A$1:$K$100,4,FALSE)/100) -> 0 | M34: 4.4 | N34: 10054.82 | O34: 4.399306808 | Q34: 32 | R34: =WORKDAY(R33,1,feriados!$A$2:$A$1000) -> 2020-02-17 | S34: 4.4 | T34: =IF(ISERROR(VLOOKUP(R34,'Cenários COPOM'!$A$1:$K$100,6,FALSE)),0,VLOOKUP(R34,'Cenários COPOM'!$A$1:$K$100,6,FALSE)/100) -> 0 | U34: 4.4 | V34: 10054.82 | W34: 4.399306808 | Y34: 32 | Z34: =WORKDAY(Z33,1,feriados!$A$2:$A$1000) -> 2020-02-17 | AA34: 4.4 | AB34: =IF(ISERROR(VLOOKUP(Z34,'Cenários COPOM'!$A$1:$K$100,8,FALSE)),0,VLOOKUP(Z34,'Cenários COPOM'!$A$1:$K$100,8,FALSE)/100) -> 0 | AC34: 4.4 | AD34: 10054.82 | AE34: 4.399306808 | AG34: 32 | AH34: =WORKDAY(AH33,1,feriados!$A$2:$A$1000) -> 2020-02-17 | AI34: 4.4 | AJ34: =IF(ISERROR(VLOOKUP(AH34,'Cenários COPOM'!$A$1:$K$100,10,FALSE)),0,VLOOKUP(AH34,'Cenários COPOM'!$A$1:$K$100,10,FALSE)/100) -> 0 | AK34: 4.4 | AL34: 10054.82 | AM34: 4.399306808
A35: 33 | B35: =WORKDAY(B34,1,feriados!$A$2:$A$1000) -> 2020-02-18 | C35: 4.4 | D35: =IF(ISERROR(VLOOKUP(B35,'Cenários COPOM'!$A$1:$K$100,2,FALSE)),0,VLOOKUP(B35,'Cenários COPOM'!$A$1:$K$100,2,FALSE)/100) -> 0 | E35: 4.4 | F35: 10056.54 | G35: 4.399468618 | I35: 33 | J35: =WORKDAY(J34,1,feriados!$A$2:$A$1000) -> 2020-02-18 | K35: 4.4 | L35: =IF(ISERROR(VLOOKUP(J35,'Cenários COPOM'!$A$1:$K$100,4,FALSE)),0,VLOOKUP(J35,'Cenários COPOM'!$A$1:$K$100,4,FALSE)/100) -> 0 | M35: 4.4 | N35: 10056.54 | O35: 4.399468618 | Q35: 33 | R35: =WORKDAY(R34,1,feriados!$A$2:$A$1000) -> 2020-02-18 | S35: 4.4 | T35: =IF(ISERROR(VLOOKUP(R35,'Cenários COPOM'!$A$1:$K$100,6,FALSE)),0,VLOOKUP(R35,'Cenários COPOM'!$A$1:$K$100,6,FALSE)/100) -> 0 | U35: 4.4 | V35: 10056.54 | W35: 4.399468618 | Y35: 33 | Z35: =WORKDAY(Z34,1,feriados!$A$2:$A$1000) -> 2020-02-18 | AA35: 4.4 | AB35: =IF(ISERROR(VLOOKUP(Z35,'Cenários COPOM'!$A$1:$K$100,8,FALSE)),0,VLOOKUP(Z35,'Cenários COPOM'!$A$1:$K$100,8,FALSE)/100) -> 0 | AC35: 4.4 | AD35: 10056.54 | AE35: 4.399468618 | AG35: 33 | AH35: =WORKDAY(AH34,1,feriados!$A$2:$A$1000) -> 2020-02-18 | AI35: 4.4 | AJ35: =IF(ISERROR(VLOOKUP(AH35,'Cenários COPOM'!$A$1:$K$100,10,FALSE)),0,VLOOKUP(AH35,'Cenários COPOM'!$A$1:$K$100,10,FALSE)/100) -> 0 | AK35: 4.4 | AL35: 10056.54 | AM35: 4.399468618
A36: 34 | B36: =WORKDAY(B35,1,feriados!$A$2:$A$1000) -> 2020-02-19 | C36: 4.4 | D36: =IF(ISERROR(VLOOKUP(B36,'Cenários COPOM'!$A$1:$K$100,2,FALSE)),0,VLOOKUP(B36,'Cenários COPOM'!$A$1:$K$100,2,FALSE)/100) -> 0 | E36: 4.4 | F36: 10058.26 | G36: 4.399598276 | I36: 34 | J36: =WORKDAY(J35,1,feriados!$A$2:$A$1000) -> 2020-02-19 | K36: 4.4 | L36: =IF(ISERROR(VLOOKUP(J36,'Cenários COPOM'!$A$1:$K$100,4,FALSE)),0,VLOOKUP(J36,'Cenários COPOM'!$A$1:$K$100,4,FALSE)/100) -> 0 | M36: 4.4 | N36: 10058.26 | O36: 4.399598276 | Q36: 34 | R36: =WORKDAY(R35,1,feriados!$A$2:$A$1000) -> 2020-02-19 | S36: 4.4 | T36: =IF(ISERROR(VLOOKUP(R36,'Cenários COPOM'!$A$1:$K$100,6,FALSE)),0,VLOOKUP(R36,'Cenários COPOM'!$A$1:$K$100,6,FALSE)/100) -> 0 | U36: 4.4 | V36: 10058.26 | W36: 4.399598276 | Y36: 34 | Z36: =WORKDAY(Z35,1,feriados!$A$2:$A$1000) -> 2020-02-19 | AA36: 4.4 | AB36: =IF(ISERROR(VLOOKUP(Z36,'Cenários COPOM'!$A$1:$K$100,8,FALSE)),0,VLOOKUP(Z36,'Cenários COPOM'!$A$1:$K$100,8,FALSE)/100) -> 0 | AC36: 4.4 | AD36: 10058.26 | AE36: 4.399598276 | AG36: 34 | AH36: =WORKDAY(AH35,1,feriados!$A$2:$A$1000) -> 2020-02-19 | AI36: 4.4 | AJ36: =IF(ISERROR(VLOOKUP(AH36,'Cenários COPOM'!$A$1:$K$100,10,FALSE)),0,VLOOKUP(AH36,'Cenários COPOM'!$A$1:$K$100,10,FALSE)/100) -> 0 | AK36: 4.4 | AL36: 10058.26 | AM36: 4.399598276
A37: 35 | B37: =WORKDAY(B36,1,feriados!$A$2:$A$1000) -> 2020-02-20 | C37: 4.4 | D37: =IF(ISERROR(VLOOKUP(B37,'Cenários COPOM'!$A$1:$K$100,2,FALSE)),0,VLOOKUP(B37,'Cenários COPOM'!$A$1:$K$100,2,FALSE)/100) -> 0 | E37: 4.4 | F37: 10059.98 | G37: 4.399698544 | I37: 35 | J37: =WORKDAY(J36,1,feriados!$A$2:$A$1000) -> 2020-02-20 | K37: 4.4 | L37: =IF(ISERROR(VLOOKUP(J37,'Cenários COPOM'!$A$1:$K$100,4,FALSE)),0,VLOOKUP(J37,'Cenários COPOM'!$A$1:$K$100,4,FALSE)/100) -> 0 | M37: 4.4 | N37: 10059.98 | O37: 4.399698544 | Q37: 35 | R37: =WORKDAY(R36,1,feriados!$A$2:$A$1000) -> 2020-02-20 | S37: 4.4 | T37: =IF(ISERROR(VLOOKUP(R37,'Cenários COPOM'!$A$1:$K$100,6,FALSE)),0,VLOOKUP(R37,'Cenários COPOM'!$A$1:$K$100,6,FALSE)/100) -> 0 | U37: 4.4 | V37: 10059.98 | W37: 4.399698544 | Y37: 35 | Z37: =WORKDAY(Z36,1,feriados!$A$2:$A$1000) -> 2020-02-20 | AA37: 4.4 | AB37: =IF(ISERROR(VLOOKUP(Z37,'Cenários COPOM'!$A$1:$K$100,8,FALSE)),0,VLOOKUP(Z37,'Cenários COPOM'!$A$1:$K$100,8,FALSE)/100) -> 0 | AC37: 4.4 | AD37: 10059.98 | AE37: 4.399698544 | AG37: 35 | AH37: =WORKDAY(AH36,1,feriados!$A$2:$A$1000) -> 2020-02-20 | AI37: 4.4 | AJ37: =IF(ISERROR(VLOOKUP(AH37,'Cenários COPOM'!$A$1:$K$100,10,FALSE)),0,VLOOKUP(AH37,'Cenários COPOM'!$A$1:$K$100,10,FALSE)/100) -> 0 | AK37: 4.4 | AL37: 10059.98 | AM37: 4.399698544
A38: 36 | B38: =WORKDAY(B37,1,feriados!$A$2:$A$1000) -> 2020-02-21 | C38: 4.4 | D38: =IF(ISERROR(VLOOKUP(B38,'Cenários COPOM'!$A$1:$K$100,2,FALSE)),0,VLOOKUP(B38,'Cenários COPOM'!$A$1:$K$100,2,FALSE)/100) -> 0 | E38: 4.4 | F38: 10061.7 | G38: 4.399771879 | I38: 36 | J38: =WORKDAY(J37,1,feriados!$A$2:$A$1000) -> 2020-02-21 | K38: 4.4 | L38: =IF(ISERROR(VLOOKUP(J38,'Cenários COPOM'!$A$1:$K$100,4,FALSE)),0,VLOOKUP(J38,'Cenários COPOM'!$A$1:$K$100,4,FALSE)/100) -> 0 | M38: 4.4 | N38: 10061.7 | O38: 4.399771879 | Q38: 36 | R38: =WORKDAY(R37,1,feriados!$A$2:$A$1000) -> 2020-02-21 | S38: 4.4 | T38: =IF(ISERROR(VLOOKUP(R38,'Cenários COPOM'!$A$1:$K$100,6,FALSE)),0,VLOOKUP(R38,'Cenários COPOM'!$A$1:$K$100,6,FALSE)/100) -> 0 | U38: 4.4 | V38: 10061.7 | W38: 4.399771879 | Y38: 36 | Z38: =WORKDAY(Z37,1,feriados!$A$2:$A$1000) -> 2020-02-21 | AA38: 4.4 | AB38: =IF(ISERROR(VLOOKUP(Z38,'Cenários COPOM'!$A$1:$K$100,8,FALSE)),0,VLOOKUP(Z38,'Cenários COPOM'!$A$1:$K$100,8,FALSE)/100) -> 0 | AC38: 4.4 | AD38: 10061.7 | AE38: 4.399771879 | AG38: 36 | AH38: =WORKDAY(AH37,1,feriados!$A$2:$A$1000) -> 2020-02-21 | AI38: 4.4 | AJ38: =IF(ISERROR(VLOOKUP(AH38,'Cenários COPOM'!$A$1:$K$100,10,FALSE)),0,VLOOKUP(AH38,'Cenários COPOM'!$A$1:$K$100,10,FALSE)/100) -> 0 | AK38: 4.4 | AL38: 10061.7 | AM38: 4.399771879
A39: 37 | B39: =WORKDAY(B38,1,feriados!$A$2:$A$1000) -> 2020-02-26 | C39: 4.4 | D39: =IF(ISERROR(VLOOKUP(B39,'Cenários COPOM'!$A$1:$K$100,2,FALSE)),0,VLOOKUP(B39,'Cenários COPOM'!$A$1:$K$100,2,FALSE)/100) -> 0 | E39: 4.4 | F39: 10063.42 | G39: 4.399820471 | I39: 37 | J39: =WORKDAY(J38,1,feriados!$A$2:$A$1000) -> 2020-02-26 | K39: 4.4 | L39: =IF(ISERROR(VLOOKUP(J39,'Cenários COPOM'!$A$1:$K$100,4,FALSE)),0,VLOOKUP(J39,'Cenários COPOM'!$A$1:$K$100,4,FALSE)/100) -> 0 | M39: 4.4 | N39: 10063.42 | O39: 4.399820471 | Q39: 37 | R39: =WORKDAY(R38,1,feriados!$A$2:$A$1000) -> 2020-02-26 | S39: 4.4 | T39: =IF(ISERROR(VLOOKUP(R39,'Cenários COPOM'!$A$1:$K$100,6,FALSE)),0,VLOOKUP(R39,'Cenários COPOM'!$A$1:$K$100,6,FALSE)/100) -> 0 | U39: 4.4 | V39: 10063.42 | W39: 4.399820471 | Y39: 37 | Z39: =WORKDAY(Z38,1,feriados!$A$2:$A$1000) -> 2020-02-26 | AA39: 4.4 | AB39: =IF(ISERROR(VLOOKUP(Z39,'Cenários COPOM'!$A$1:$K$100,8,FALSE)),0,VLOOKUP(Z39,'Cenários COPOM'!$A$1:$K$100,8,FALSE)/100) -> 0 | AC39: 4.4 | AD39: 10063.42 | AE39: 4.399820471 | AG39: 37 | AH39: =WORKDAY(AH38,1,feriados!$A$2:$A$1000) -> 2020-02-26 | AI39: 4.4 | AJ39: =IF(ISERROR(VLOOKUP(AH39,'Cenários COPOM'!$A$1:$K$100,10,FALSE)),0,VLOOKUP(AH39,'Cenários COPOM'!$A$1:$K$100,10,FALSE)/100) -> 0 | AK39: 4.4 | AL39: 10063.42 | AM39: 4.399820471
A40: 38 | B40: =WORKDAY(B39,1,feriados!$A$2:$A$1000) -> 2020-02-27 | C40: 4.4 | D40: =IF(ISERROR(VLOOKUP(B40,'Cenários COPOM'!$A$1:$K$100,2,FALSE)),0,VLOOKUP(B40,'Cenários COPOM'!$A$1:$K$100,2,FALSE)/100) -> 0 | E40: 4.4 | F40: 10065.14 | G40: 4.399846282 | I40: 38 | J40: =WORKDAY(J39,1,feriados!$A$2:$A$1000) -> 2020-02-27 | K40: 4.4 | L40: =IF(ISERROR(VLOOKUP(J40,'Cenários COPOM'!$A$1:$K$100,4,FALSE)),0,VLOOKUP(J40,'Cenários COPOM'!$A$1:$K$100,4,FALSE)/100) -> 0 | M40: 4.4 | N40: 10065.14 | O40: 4.399846282 | Q40: 38 | R40: =WORKDAY(R39,1,feriados!$A$2:$A$1000) -> 2020-02-27 | S40: 4.4 | T40: =IF(ISERROR(VLOOKUP(R40,'Cenários COPOM'!$A$1:$K$100,6,FALSE)),0,VLOOKUP(R40,'Cenários COPOM'!$A$1:$K$100,6,FALSE)/100) -> 0 | U40: 4.4 | V40: 10065.14 | W40: 4.399846282 | Y40: 38 | Z40: =WORKDAY(Z39,1,feriados!$A$2:$A$1000) -> 2020-02-27 | AA40: 4.4 | AB40: =IF(ISERROR(VLOOKUP(Z40,'Cenários COPOM'!$A$1:$K$100,8,FALSE)),0,VLOOKUP(Z40,'Cenários COPOM'!$A$1:$K$100,8,FALSE)/100) -> 0 | AC40: 4.4 | AD40: 10065.14 | AE40: 4.399846282 | AG40: 38 | AH40: =WORKDAY(AH39,1,feriados!$A$2:$A$1000) -> 2020-02-27 | AI40: 4.4 | AJ40: =IF(ISERROR(VLOOKUP(AH40,'Cenários COPOM'!$A$1:$K$100,10,FALSE)),0,VLOOKUP(AH40,'Cenários COPOM'!$A$1:$K$100,10,FALSE)/100) -> 0 | AK40: 4.4 | AL40: 10065.14 | AM40: 4.399846282
A41: 39 | B41: =WORKDAY(B40,1,feriados!$A$2:$A$1000) -> 2020-02-28 | C41: 4.4 | D41: =IF(ISERROR(VLOOKUP(B41,'Cenários COPOM'!$A$1:$K$100,2,FALSE)),0,VLOOKUP(B41,'Cenários COPOM'!$A$1:$K$100,2,FALSE)/100) -> 0 | E41: 4.4 | F41: 10066.86 | G41: 4.399851069 | I41: 39 | J41: =WORKDAY(J40,1,feriados!$A$2:$A$1000) -> 2020-02-28 | K41: 4.4 | L41: =IF(ISERROR(VLOOKUP(J41,'Cenários COPOM'!$A$1:$K$100,4,FALSE)),0,VLOOKUP(J41,'Cenários COPOM'!$A$1:$K$100,4,FALSE)/100) -> 0 | M41: 4.4 | N41: 10066.86 | O41: 4.399851069 | Q41: 39 | R41: =WORKDAY(R40,1,feriados!$A$2:$A$1000) -> 2020-02-28 | S41: 4.4 | T41: =IF(ISERROR(VLOOKUP(R41,'Cenários COPOM'!$A$1:$K$100,6,FALSE)),0,VLOOKUP(R41,'Cenários COPOM'!$A$1:$K$100,6,FALSE)/100) -> 0 | U41: 4.4 | V41: 10066.86 | W41: 4.399851069 | Y41: 39 | Z41: =WORKDAY(Z40,1,feriados!$A$2:$A$1000) -> 2020-02-28 | AA41: 4.4 | AB41: =IF(ISERROR(VLOOKUP(Z41,'Cenários COPOM'!$A$1:$K$100,8,FALSE)),0,VLOOKUP(Z41,'Cenários COPOM'!$A$1:$K$100,8,FALSE)/100) -> 0 | AC41: 4.4 | AD41: 10066.86 | AE41: 4.399851069 | AG41: 39 | AH41: =WORKDAY(AH40,1,feriados!$A$2:$A$1000) -> 2020-02-28 | AI41: 4.4 | AJ41: =IF(ISERROR(VLOOKUP(AH41,'Cenários COPOM'!$A$1:$K$100,10,FALSE)),0,VLOOKUP(AH41,'Cenários COPOM'!$A$1:$K$100,10,FALSE)/100) -> 0 | AK41: 4.4 | AL41: 10066.86 | AM41: 4.399851069
A42: 40 | B42: =WORKDAY(B41,1,feriados!$A$2:$A$1000) -> 2020-03-02 | C42: 4.4 | D42: =IF(ISERROR(VLOOKUP(B42,'Cenários COPOM'!$A$1:$K$100,2,FALSE)),0,VLOOKUP(B42,'Cenários COPOM'!$A$1:$K$100,2,FALSE)/100) -> 0 | E42: 4.4 | F42: 10068.58 | G42: 4.399836416 | I42: 40 | J42: =WORKDAY(J41,1,feriados!$A$2:$A$1000) -> 2020-03-02 | K42: 4.4 | L42: =IF(ISERROR(VLOOKUP(J42,'Cenários COPOM'!$A$1:$K$100,4,FALSE)),0,VLOOKUP(J42,'Cenários COPOM'!$A$1:$K$100,4,FALSE)/100) -> 0 | M42: 4.4 | N42: 10068.58 | O42: 4.399836416 | Q42: 40 | R42: =WORKDAY(R41,1,feriados!$A$2:$A$1000) -> 2020-03-02 | S42: 4.4 | T42: =IF(ISERROR(VLOOKUP(R42,'Cenários COPOM'!$A$1:$K$100,6,FALSE)),0,VLOOKUP(R42,'Cenários COPOM'!$A$1:$K$100,6,FALSE)/100) -> 0 | U42: 4.4 | V42: 10068.58 | W42: 4.399836416 | Y42: 40 | Z42: =WORKDAY(Z41,1,feriados!$A$2:$A$1000) -> 2020-03-02 | AA42: 4.4 | AB42: =IF(ISERROR(VLOOKUP(Z42,'Cenários COPOM'!$A$1:$K$100,8,FALSE)),0,VLOOKUP(Z42,'Cenários COPOM'!$A$1:$K$100,8,FALSE)/100) -> 0 | AC42: 4.4 | AD42: 10068.58 | AE42: 4.399836416 | AG42: 40 | AH42: =WORKDAY(AH41,1,feriados!$A$2:$A$1000) -> 2020-03-02 | AI42: 4.4 | AJ42: =IF(ISERROR(VLOOKUP(AH42,'Cenários COPOM'!$A$1:$K$100,10,FALSE)),0,VLOOKUP(AH42,'Cenários COPOM'!$A$1:$K$100,10,FALSE)/100) -> 0 | AK42: 4.4 | AL42: 10068.58 | AM42: 4.399836416
A43: 41 | B43: =WORKDAY(B42,1,feriados!$A$2:$A$1000) -> 2020-03-03 | C43: 4.4 | D43: =IF(ISERROR(VLOOKUP(B43,'Cenários COPOM'!$A$1:$K$100,2,FALSE)),0,VLOOKUP(B43,'Cenários COPOM'!$A$1:$K$100,2,FALSE)/100) -> 0 | E43: 4.4 | F43: 10070.3 | G43: 4.399803753 | I43: 41 | J43: =WORKDAY(J42,1,feriados!$A$2:$A$1000) -> 2020-03-03 | K43: 4.4 | L43: =IF(ISERROR(VLOOKUP(J43,'Cenários COPOM'!$A$1:$K$100,4,FALSE)),0,VLOOKUP(J43,'Cenários COPOM'!$A$1:$K$100,4,FALSE)/100) -> 0 | M43: 4.4 | N43: 10070.3 | O43: 4.399803753 | Q43: 41 | R43: =WORKDAY(R42,1,feriados!$A$2:$A$1000) -> 2020-03-03 | S43: 4.4 | T43: =IF(ISERROR(VLOOKUP(R43,'Cenários COPOM'!$A$1:$K$100,6,FALSE)),0,VLOOKUP(R43,'Cenários COPOM'!$A$1:$K$100,6,FALSE)/100) -> 0 | U43: 4.4 | V43: 10070.3 | W43: 4.399803753 | Y43: 41 | Z43: =WORKDAY(Z42,1,feriados!$A$2:$A$1000) -> 2020-03-03 | AA43: 4.4 | AB43: =IF(ISERROR(VLOOKUP(Z43,'Cenários COPOM'!$A$1:$K$100,8,FALSE)),0,VLOOKUP(Z43,'Cenários COPOM'!$A$1:$K$100,8,FALSE)/100) -> 0 | AC43: 4.4 | AD43: 10070.3 | AE43: 4.399803753 | AG43: 41 | AH43: =WORKDAY(AH42,1,feriados!$A$2:$A$1000) -> 2020-03-03 | AI43: 4.4 | AJ43: =IF(ISERROR(VLOOKUP(AH43,'Cenários COPOM'!$A$1:$K$100,10,FALSE)),0,VLOOKUP(AH43,'Cenários COPOM'!$A$1:$K$100,10,FALSE)/100) -> 0 | AK43: 4.4 | AL43: 10070.3 | AM43: 4.399803753
A44: 42 | B44: =WORKDAY(B43,1,feriados!$A$2:$A$1000) -> 2020-03-04 | C44: 4.4 | D44: =IF(ISERROR(VLOOKUP(B44,'Cenários COPOM'!$A$1:$K$100,2,FALSE)),0,VLOOKUP(B44,'Cenários COPOM'!$A$1:$K$100,2,FALSE)/100) -> 0 | E44: 4.4 | F44: 10072.02 | G44: 4.399754371 | I44: 42 | J44: =WORKDAY(J43,1,feriados!$A$2:$A$1000) -> 2020-03-04 | K44: 4.4 | L44: =IF(ISERROR(VLOOKUP(J44,'Cenários COPOM'!$A$1:$K$100,4,FALSE)),0,VLOOKUP(J44,'Cenários COPOM'!$A$1:$K$100,4,FALSE)/100) -> 0 | M44: 4.4 | N44: 10072.02 | O44: 4.399754371 | Q44: 42 | R44: =WORKDAY(R43,1,feriados!$A$2:$A$1000) -> 2020-03-04 | S44: 4.4 | T44: =IF(ISERROR(VLOOKUP(R44,'Cenários COPOM'!$A$1:$K$100,6,FALSE)),0,VLOOKUP(R44,'Cenários COPOM'!$A$1:$K$100,6,FALSE)/100) -> 0 | U44: 4.4 | V44: 10072.02 | W44: 4.399754371 | Y44: 42 | Z44: =WORKDAY(Z43,1,feriados!$A$2:$A$1000) -> 2020-03-04 | AA44: 4.4 | AB44: =IF(ISERROR(VLOOKUP(Z44,'Cenários COPOM'!$A$1:$K$100,8,FALSE)),0,VLOOKUP(Z44,'Cenários COPOM'!$A$1:$K$100,8,FALSE)/100) -> 0 | AC44: 4.4 | AD44: 10072.02 | AE44: 4.399754371 | AG44: 42 | AH44: =WORKDAY(AH43,1,feriados!$A$2:$A$1000) -> 2020-03-04 | AI44: 4.4 | AJ44: =IF(ISERROR(VLOOKUP(AH44,'Cenários COPOM'!$A$1:$K$100,10,FALSE)),0,VLOOKUP(AH44,'Cenários COPOM'!$A$1:$K$100,10,FALSE)/100) -> 0 | AK44: 4.4 | AL44: 10072.02 | AM44: 4.399754371
A45: 43 | B45: =WORKDAY(B44,1,feriados!$A$2:$A$1000) -> 2020-03-05 | C45: 4.4 | D45: =IF(ISERROR(VLOOKUP(B45,'Cenários COPOM'!$A$1:$K$100,2,FALSE)),0,VLOOKUP(B45,'Cenários COPOM'!$A$1:$K$100,2,FALSE)/100) -> 0 | E45: 4.4 | F45: 10073.74 | G45: 4.399689444 | I45: 43 | J45: =WORKDAY(J44,1,feriados!$A$2:$A$1000) -> 2020-03-05 | K45: 4.4 | L45: =IF(ISERROR(VLOOKUP(J45,'Cenários COPOM'!$A$1:$K$100,4,FALSE)),0,VLOOKUP(J45,'Cenários COPOM'!$A$1:$K$100,4,FALSE)/100) -> 0 | M45: 4.4 | N45: 10073.74 | O45: 4.399689444 | Q45: 43 | R45: =WORKDAY(R44,1,feriados!$A$2:$A$1000) -> 2020-03-05 | S45: 4.4 | T45: =IF(ISERROR(VLOOKUP(R45,'Cenários COPOM'!$A$1:$K$100,6,FALSE)),0,VLOOKUP(R45,'Cenários COPOM'!$A$1:$K$100,6,FALSE)/100) -> 0 | U45: 4.4 | V45: 10073.74 | W45: 4.399689444 | Y45: 43 | Z45: =WORKDAY(Z44,1,feriados!$A$2:$A$1000) -> 2020-03-05 | AA45: 4.4 | AB45: =IF(ISERROR(VLOOKUP(Z45,'Cenários COPOM'!$A$1:$K$100,8,FALSE)),0,VLOOKUP(Z45,'Cenários COPOM'!$A$1:$K$100,8,FALSE)/100) -> 0 | AC45: 4.4 | AD45: 10073.74 | AE45: 4.399689444 | AG45: 43 | AH45: =WORKDAY(AH44,1,feriados!$A$2:$A$1000) -> 2020-03-05 | AI45: 4.4 | AJ45: =IF(ISERROR(VLOOKUP(AH45,'Cenários COPOM'!$A$1:$K$100,10,FALSE)),0,VLOOKUP(AH45,'Cenários COPOM'!$A$1:$K$100,10,FALSE)/100) -> 0 | AK45: 4.4 | AL45: 10073.74 | AM45: 4.399689444
A46: 44 | B46: =WORKDAY(B45,1,feriados!$A$2:$A$1000) -> 2020-03-06 | C46: 4.4 | D46: =IF(ISERROR(VLOOKUP(B46,'Cenários COPOM'!$A$1:$K$100,2,FALSE)),0,VLOOKUP(B46,'Cenários COPOM'!$A$1:$K$100,2,FALSE)/100) -> 0 | E46: 4.4 | F46: 10075.46 | G46: 4.399610037 | I46: 44 | J46: =WORKDAY(J45,1,feriados!$A$2:$A$1000) -> 2020-03-06 | K46: 4.4 | L46: =IF(ISERROR(VLOOKUP(J46,'Cenários COPOM'!$A$1:$K$100,4,FALSE)),0,VLOOKUP(J46,'Cenários COPOM'!$A$1:$K$100,4,FALSE)/100) -> 0 | M46: 4.4 | N46: 10075.46 | O46: 4.399610037 | Q46: 44 | R46: =WORKDAY(R45,1,feriados!$A$2:$A$1000) -> 2020-03-06 | S46: 4.4 | T46: =IF(ISERROR(VLOOKUP(R46,'Cenários COPOM'!$A$1:$K$100,6,FALSE)),0,VLOOKUP(R46,'Cenários COPOM'!$A$1:$K$100,6,FALSE)/100) -> 0 | U46: 4.4 | V46: 10075.46 | W46: 4.399610037 | Y46: 44 | Z46: =WORKDAY(Z45,1,feriados!$A$2:$A$1000) -> 2020-03-06 | AA46: 4.4 | AB46: =IF(ISERROR(VLOOKUP(Z46,'Cenários COPOM'!$A$1:$K$100,8,FALSE)),0,VLOOKUP(Z46,'Cenários COPOM'!$A$1:$K$100,8,FALSE)/100) -> 0 | AC46: 4.4 | AD46: 10075.46 | AE46: 4.399610037 | AG46: 44 | AH46: =WORKDAY(AH45,1,feriados!$A$2:$A$1000) -> 2020-03-06 | AI46: 4.4 | AJ46: =IF(ISERROR(VLOOKUP(AH46,'Cenários COPOM'!$A$1:$K$100,10,FALSE)),0,VLOOKUP(AH46,'Cenários COPOM'!$A$1:$K$100,10,FALSE)/100) -> 0 | AK46: 4.4 | AL46: 10075.46 | AM46: 4.399610037
A47: 45 | B47: =WORKDAY(B46,1,feriados!$A$2:$A$1000) -> 2020-03-09 | C47: 4.4 | D47: =IF(ISERROR(VLOOKUP(B47,'Cenários COPOM'!$A$1:$K$100,2,FALSE)),0,VLOOKUP(B47,'Cenários COPOM'!$A$1:$K$100,2,FALSE)/100) -> 0 | E47: 4.4 | F47: 10077.18 | G47: 4.399517122 | I47: 45 | J47: =WORKDAY(J46,1,feriados!$A$2:$A$1000) -> 2020-03-09 | K47: 4.4 | L47: =IF(ISERROR(VLOOKUP(J47,'Cenários COPOM'!$A$1:$K$100,4,FALSE)),0,VLOOKUP(J47,'Cenários COPOM'!$A$1:$K$100,4,FALSE)/100) -> 0 | M47: 4.4 | N47: 10077.18 | O47: 4.399517122 | Q47: 45 | R47: =WORKDAY(R46,1,feriados!$A$2:$A$1000) -> 2020-03-09 | S47: 4.4 | T47: =IF(ISERROR(VLOOKUP(R47,'Cenários COPOM'!$A$1:$K$100,6,FALSE)),0,VLOOKUP(R47,'Cenários COPOM'!$A$1:$K$100,6,FALSE)/100) -> 0 | U47: 4.4 | V47: 10077.18 | W47: 4.399517122 | Y47: 45 | Z47: =WORKDAY(Z46,1,feriados!$A$2:$A$1000) -> 2020-03-09 | AA47: 4.4 | AB47: =IF(ISERROR(VLOOKUP(Z47,'Cenários COPOM'!$A$1:$K$100,8,FALSE)),0,VLOOKUP(Z47,'Cenários COPOM'!$A$1:$K$100,8,FALSE)/100) -> 0 | AC47: 4.4 | AD47: 10077.18 | AE47: 4.399517122 | AG47: 45 | AH47: =WORKDAY(AH46,1,feriados!$A$2:$A$1000) -> 2020-03-09 | AI47: 4.4 | AJ47: =IF(ISERROR(VLOOKUP(AH47,'Cenários COPOM'!$A$1:$K$100,10,FALSE)),0,VLOOKUP(AH47,'Cenários COPOM'!$A$1:$K$100,10,FALSE)/100) -> 0 | AK47: 4.4 | AL47: 10077.18 | AM47: 4.399517122
A48: 46 | B48: =WORKDAY(B47,1,feriados!$A$2:$A$1000) -> 2020-03-10 | C48: 4.4 | D48: =IF(ISERROR(VLOOKUP(B48,'Cenários COPOM'!$A$1:$K$100,2,FALSE)),0,VLOOKUP(B48,'Cenários COPOM'!$A$1:$K$100,2,FALSE)/100) -> 0 | E48: 4.4 | F48: 10078.9 | G48: 4.399411585 | I48: 46 | J48: =WORKDAY(J47,1,feriados!$A$2:$A$1000) -> 2020-03-10 | K48: 4.4 | L48: =IF(ISERROR(VLOOKUP(J48,'Cenários COPOM'!$A$1:$K$100,4,FALSE)),0,VLOOKUP(J48,'Cenários COPOM'!$A$1:$K$100,4,FALSE)/100) -> 0 | M48: 4.4 | N48: 10078.9 | O48: 4.399411585 | Q48: 46 | R48: =WORKDAY(R47,1,feriados!$A$2:$A$1000) -> 2020-03-10 | S48: 4.4 | T48: =IF(ISERROR(VLOOKUP(R48,'Cenários COPOM'!$A$1:$K$100,6,FALSE)),0,VLOOKUP(R48,'Cenários COPOM'!$A$1:$K$100,6,FALSE)/100) -> 0 | U48: 4.4 | V48: 10078.9 | W48: 4.399411585 | Y48: 46 | Z48: =WORKDAY(Z47,1,feriados!$A$2:$A$1000) -> 2020-03-10 | AA48: 4.4 | AB48: =IF(ISERROR(VLOOKUP(Z48,'Cenários COPOM'!$A$1:$K$100,8,FALSE)),0,VLOOKUP(Z48,'Cenários COPOM'!$A$1:$K$100,8,FALSE)/100) -> 0 | AC48: 4.4 | AD48: 10078.9 | AE48: 4.399411585 | AG48: 46 | AH48: =WORKDAY(AH47,1,feriados!$A$2:$A$1000) -> 2020-03-10 | AI48: 4.4 | AJ48: =IF(ISERROR(VLOOKUP(AH48,'Cenários COPOM'!$A$1:$K$100,10,FALSE)),0,VLOOKUP(AH48,'Cenários COPOM'!$A$1:$K$100,10,FALSE)/100) -> 0 | AK48: 4.4 | AL48: 10078.9 | AM48: 4.399411585
A49: 47 | B49: =WORKDAY(B48,1,feriados!$A$2:$A$1000) -> 2020-03-11 | C49: 4.4 | D49: =IF(ISERROR(VLOOKUP(B49,'Cenários COPOM'!$A$1:$K$100,2,FALSE)),0,VLOOKUP(B49,'Cenários COPOM'!$A$1:$K$100,2,FALSE)/100) -> 0 | E49: 4.4 | F49: 10080.62 | G49: 4.399294237 | I49: 47 | J49: =WORKDAY(J48,1,feriados!$A$2:$A$1000) -> 2020-03-11 | K49: 4.4 | L49: =IF(ISERROR(VLOOKUP(J49,'Cenários COPOM'!$A$1:$K$100,4,FALSE)),0,VLOOKUP(J49,'Cenários COPOM'!$A$1:$K$100,4,FALSE)/100) -> 0 | M49: 4.4 | N49: 10080.62 | O49: 4.399294237 | Q49: 47 | R49: =WORKDAY(R48,1,feriados!$A$2:$A$1000) -> 2020-03-11 | S49: 4.4 | T49: =IF(ISERROR(VLOOKUP(R49,'Cenários COPOM'!$A$1:$K$100,6,FALSE)),0,VLOOKUP(R49,'Cenários COPOM'!$A$1:$K$100,6,FALSE)/100) -> 0 | U49: 4.4 | V49: 10080.62 | W49: 4.399294237 | Y49: 47 | Z49: =WORKDAY(Z48,1,feriados!$A$2:$A$1000) -> 2020-03-11 | AA49: 4.4 | AB49: =IF(ISERROR(VLOOKUP(Z49,'Cenários COPOM'!$A$1:$K$100,8,FALSE)),0,VLOOKUP(Z49,'Cenários COPOM'!$A$1:$K$100,8,FALSE)/100) -> 0 | AC49: 4.4 | AD49: 10080.62 | AE49: 4.399294237 | AG49: 47 | AH49: =WORKDAY(AH48,1,feriados!$A$2:$A$1000) -> 2020-03-11 | AI49: 4.4 | AJ49: =IF(ISERROR(VLOOKUP(AH49,'Cenários COPOM'!$A$1:$K$100,10,FALSE)),0,VLOOKUP(AH49,'Cenários COPOM'!$A$1:$K$100,10,FALSE)/100) -> 0 | AK49: 4.4 | AL49: 10080.62 | AM49: 4.399294237
A50: 48 | B50: =WORKDAY(B49,1,feriados!$A$2:$A$1000) -> 2020-03-12 | C50: 4.4 | D50: =IF(ISERROR(VLOOKUP(B50,'Cenários COPOM'!$A$1:$K$100,2,FALSE)),0,VLOOKUP(B50,'Cenários COPOM'!$A$1:$K$100,2,FALSE)/100) -> 0 | E50: 4.4 | F50: 10082.34 | G50: 4.399165822 | I50: 48 | J50: =WORKDAY(J49,1,feriados!$A$2:$A$1000) -> 2020-03-12 | K50: 4.4 | L50: =IF(ISERROR(VLOOKUP(J50,'Cenários COPOM'!$A$1:$K$100,4,FALSE)),0,VLOOKUP(J50,'Cenários COPOM'!$A$1:$K$100,4,FALSE)/100) -> 0 | M50: 4.4 | N50: 10082.34 | O50: 4.399165822 | Q50: 48 | R50: =WORKDAY(R49,1,feriados!$A$2:$A$1000) -> 2020-03-12 | S50: 4.4 | T50: =IF(ISERROR(VLOOKUP(R50,'Cenários COPOM'!$A$1:$K$100,6,FALSE)),0,VLOOKUP(R50,'Cenários COPOM'!$A$1:$K$100,6,FALSE)/100) -> 0 | U50: 4.4 | V50: 10082.34 | W50: 4.399165822 | Y50: 48 | Z50: =WORKDAY(Z49,1,feriados!$A$2:$A$1000) -> 2020-03-12 | AA50: 4.4 | AB50: =IF(ISERROR(VLOOKUP(Z50,'Cenários COPOM'!$A$1:$K$100,8,FALSE)),0,VLOOKUP(Z50,'Cenários COPOM'!$A$1:$K$100,8,FALSE)/100) -> 0 | AC50: 4.4 | AD50: 10082.34 | AE50: 4.399165822 | AG50: 48 | AH50: =WORKDAY(AH49,1,feriados!$A$2:$A$1000) -> 2020-03-12 | AI50: 4.4 | AJ50: =IF(ISERROR(VLOOKUP(AH50,'Cenários COPOM'!$A$1:$K$100,10,FALSE)),0,VLOOKUP(AH50,'Cenários COPOM'!$A$1:$K$100,10,FALSE)/100) -> 0 | AK50: 4.4 | AL50: 10082.34 | AM50: 4.399165822
A51: 49 | B51: =WORKDAY(B50,1,feriados!$A$2:$A$1000) -> 2020-03-13 | C51: 4.4 | D51: =IF(ISERROR(VLOOKUP(B51,'Cenários COPOM'!$A$1:$K$100,2,FALSE)),0,VLOOKUP(B51,'Cenários COPOM'!$A$1:$K$100,2,FALSE)/100) -> 0 | E51: 4.4 | F51: 10084.06 | G51: 4.399027023 | I51: 49 | J51: =WORKDAY(J50,1,feriados!$A$2:$A$1000) -> 2020-03-13 | K51: 4.4 | L51: =IF(ISERROR(VLOOKUP(J51,'Cenários COPOM'!$A$1:$K$100,4,FALSE)),0,VLOOKUP(J51,'Cenários COPOM'!$A$1:$K$100,4,FALSE)/100) -> 0 | M51: 4.4 | N51: 10084.06 | O51: 4.399027023 | Q51: 49 | R51: =WORKDAY(R50,1,feriados!$A$2:$A$1000) -> 2020-03-13 | S51: 4.4 | T51: =IF(ISERROR(VLOOKUP(R51,'Cenários COPOM'!$A$1:$K$100,6,FALSE)),0,VLOOKUP(R51,'Cenários COPOM'!$A$1:$K$100,6,FALSE)/100) -> 0 | U51: 4.4 | V51: 10084.06 | W51: 4.399027023 | Y51: 49 | Z51: =WORKDAY(Z50,1,feriados!$A$2:$A$1000) -> 2020-03-13 | AA51: 4.4 | AB51: =IF(ISERROR(VLOOKUP(Z51,'Cenários COPOM'!$A$1:$K$100,8,FALSE)),0,VLOOKUP(Z51,'Cenários COPOM'!$A$1:$K$100,8,FALSE)/100) -> 0 | AC51: 4.4 | AD51: 10084.06 | AE51: 4.399027023 | AG51: 49 | AH51: =WORKDAY(AH50,1,feriados!$A$2:$A$1000) -> 2020-03-13 | AI51: 4.4 | AJ51: =IF(ISERROR(VLOOKUP(AH51,'Cenários COPOM'!$A$1:$K$100,10,FALSE)),0,VLOOKUP(AH51,'Cenários COPOM'!$A$1:$K$100,10,FALSE)/100) -> 0 | AK51: 4.4 | AL51: 10084.06 | AM51: 4.399027023
A52: 50 | B52: =WORKDAY(B51,1,feriados!$A$2:$A$1000) -> 2020-03-16 | C52: 4.4 | D52: =IF(ISERROR(VLOOKUP(B52,'Cenários COPOM'!$A$1:$K$100,2,FALSE)),0,VLOOKUP(B52,'Cenários COPOM'!$A$1:$K$100,2,FALSE)/100) -> 0 | E52: 4.4 | F52: 10085.78 | G52: 4.398878469 | I52: 50 | J52: =WORKDAY(J51,1,feriados!$A$2:$A$1000) -> 2020-03-16 | K52: 4.4 | L52: =IF(ISERROR(VLOOKUP(J52,'Cenários COPOM'!$A$1:$K$100,4,FALSE)),0,VLOOKUP(J52,'Cenários COPOM'!$A$1:$K$100,4,FALSE)/100) -> 0 | M52: 4.4 | N52: 10085.78 | O52: 4.398878469 | Q52: 50 | R52: =WORKDAY(R51,1,feriados!$A$2:$A$1000) -> 2020-03-16 | S52: 4.4 | T52: =IF(ISERROR(VLOOKUP(R52,'Cenários COPOM'!$A$1:$K$100,6,FALSE)),0,VLOOKUP(R52,'Cenários COPOM'!$A$1:$K$100,6,FALSE)/100) -> 0 | U52: 4.4 | V52: 10085.78 | W52: 4.398878469 | Y52: 50 | Z52: =WORKDAY(Z51,1,feriados!$A$2:$A$1000) -> 2020-03-16 | AA52: 4.4 | AB52: =IF(ISERROR(VLOOKUP(Z52,'Cenários COPOM'!$A$1:$K$100,8,FALSE)),0,VLOOKUP(Z52,'Cenários COPOM'!$A$1:$K$100,8,FALSE)/100) -> 0 | AC52: 4.4 | AD52: 10085.78 | AE52: 4.398878469 | AG52: 50 | AH52: =WORKDAY(AH51,1,feriados!$A$2:$A$1000) -> 2020-03-16 | AI52: 4.4 | AJ52: =IF(ISERROR(VLOOKUP(AH52,'Cenários COPOM'!$A$1:$K$100,10,FALSE)),0,VLOOKUP(AH52,'Cenários COPOM'!$A$1:$K$100,10,FALSE)/100) -> 0 | AK52: 4.4 | AL52: 10085.78 | AM52: 4.398878469
A53: 51 | B53: =WORKDAY(B52,1,feriados!$A$2:$A$1000) -> 2020-03-17 | C53: 4.4 | D53: =IF(ISERROR(VLOOKUP(B53,'Cenários COPOM'!$A$1:$K$100,2,FALSE)),0,VLOOKUP(B53,'Cenários COPOM'!$A$1:$K$100,2,FALSE)/100) -> 0 | E53: 4.4 | F53: 10087.5 | G53: 4.398720738 | I53: 51 | J53: =WORKDAY(J52,1,feriados!$A$2:$A$1000) -> 2020-03-17 | K53: 4.4 | L53: =IF(ISERROR(VLOOKUP(J53,'Cenários COPOM'!$A$1:$K$100,4,FALSE)),0,VLOOKUP(J53,'Cenários COPOM'!$A$1:$K$100,4,FALSE)/100) -> 0 | M53: 4.4 | N53: 10087.5 | O53: 4.398720738 | Q53: 51 | R53: =WORKDAY(R52,1,feriados!$A$2:$A$1000) -> 2020-03-17 | S53: 4.4 | T53: =IF(ISERROR(VLOOKUP(R53,'Cenários COPOM'!$A$1:$K$100,6,FALSE)),0,VLOOKUP(R53,'Cenários COPOM'!$A$1:$K$100,6,FALSE)/100) -> 0 | U53: 4.4 | V53: 10087.5 | W53: 4.398720738 | Y53: 51 | Z53: =WORKDAY(Z52,1,feriados!$A$2:$A$1000) -> 2020-03-17 | AA53: 4.4 | AB53: =IF(ISERROR(VLOOKUP(Z53,'Cenários COPOM'!$A$1:$K$100,8,FALSE)),0,VLOOKUP(Z53,'Cenários COPOM'!$A$1:$K$100,8,FALSE)/100) -> 0 | AC53: 4.4 | AD53: 10087.5 | AE53: 4.398720738 | AG53: 51 | AH53: =WORKDAY(AH52,1,feriados!$A$2:$A$1000) -> 2020-03-17 | AI53: 4.4 | AJ53: =IF(ISERROR(VLOOKUP(AH53,'Cenários COPOM'!$A$1:$K$100,10,FALSE)),0,VLOOKUP(AH53,'Cenários COPOM'!$A$1:$K$100,10,FALSE)/100) -> 0 | AK53: 4.4 | AL53: 10087.5 | AM53: 4.398720738
A54: 52 | B54: =WORKDAY(B53,1,feriados!$A$2:$A$1000) -> 2020-03-18 | C54: 4.4 | D54: =IF(ISERROR(VLOOKUP(B54,'Cenários COPOM'!$A$1:$K$100,2,FALSE)),0,VLOOKUP(B54,'Cenários COPOM'!$A$1:$K$100,2,FALSE)/100) -> 0 | E54: 4.4 | F54: 10089.22 | G54: 4.398554365 | I54: 52 | J54: =WORKDAY(J53,1,feriados!$A$2:$A$1000) -> 2020-03-18 | K54: 4.4 | L54: =IF(ISERROR(VLOOKUP(J54,'Cenários COPOM'!$A$1:$K$100,4,FALSE)),0,VLOOKUP(J54,'Cenários COPOM'!$A$1:$K$100,4,FALSE)/100) -> 0 | M54: 4.4 | N54: 10089.22 | O54: 4.398554365 | Q54: 52 | R54: =WORKDAY(R53,1,feriados!$A$2:$A$1000) -> 2020-03-18 | S54: 4.4 | T54: =IF(ISERROR(VLOOKUP(R54,'Cenários COPOM'!$A$1:$K$100,6,FALSE)),0,VLOOKUP(R54,'Cenários COPOM'!$A$1:$K$100,6,FALSE)/100) -> 0 | U54: 4.4 | V54: 10089.22 | W54: 4.398554365 | Y54: 52 | Z54: =WORKDAY(Z53,1,feriados!$A$2:$A$1000) -> 2020-03-18 | AA54: 4.4 | AB54: =IF(ISERROR(VLOOKUP(Z54,'Cenários COPOM'!$A$1:$K$100,8,FALSE)),0,VLOOKUP(Z54,'Cenários COPOM'!$A$1:$K$100,8,FALSE)/100) -> 0 | AC54: 4.4 | AD54: 10089.22 | AE54: 4.398554365 | AG54: 52 | AH54: =WORKDAY(AH53,1,feriados!$A$2:$A$1000) -> 2020-03-18 | AI54: 4.4 | AJ54: =IF(ISERROR(VLOOKUP(AH54,'Cenários COPOM'!$A$1:$K$100,10,FALSE)),0,VLOOKUP(AH54,'Cenários COPOM'!$A$1:$K$100,10,FALSE)/100) -> 0 | AK54: 4.4 | AL54: 10089.22 | AM54: 4.398554365
A55: 53 | B55: =WORKDAY(B54,1,feriados!$A$2:$A$1000) -> 2020-03-19 | C55: 4.4 | D55: =IF(ISERROR(VLOOKUP(B55,'Cenários COPOM'!$A$1:$K$100,2,FALSE)),0,VLOOKUP(B55,'Cenários COPOM'!$A$1:$K$100,2,FALSE)/100) -> 0 | E55: 4.4 | F55: 10090.94 | G55: 4.398379843 | I55: 53 | J55: =WORKDAY(J54,1,feriados!$A$2:$A$1000) -> 2020-03-19 | K55: 4.4 | L55: =IF(ISERROR(VLOOKUP(J55,'Cenários COPOM'!$A$1:$K$100,4,FALSE)),0,VLOOKUP(J55,'Cenários COPOM'!$A$1:$K$100,4,FALSE)/100) -> 0 | M55: 4.4 | N55: 10090.94 | O55: 4.398379843 | Q55: 53 | R55: =WORKDAY(R54,1,feriados!$A$2:$A$1000) -> 2020-03-19 | S55: 4.4 | T55: =IF(ISERROR(VLOOKUP(R55,'Cenários COPOM'!$A$1:$K$100,6,FALSE)),0,VLOOKUP(R55,'Cenários COPOM'!$A$1:$K$100,6,FALSE)/100) -> 0 | U55: 4.4 | V55: 10090.94 | W55: 4.398379843 | Y55: 53 | Z55: =WORKDAY(Z54,1,feriados!$A$2:$A$1000) -> 2020-03-19 | AA55: 4.4 | AB55: =IF(ISERROR(VLOOKUP(Z55,'Cenários COPOM'!$A$1:$K$100,8,FALSE)),0,VLOOKUP(Z55,'Cenários COPOM'!$A$1:$K$100,8,FALSE)/100) -> 0 | AC55: 4.4 | AD55: 10090.94 | AE55: 4.398379843 | AG55: 53 | AH55: =WORKDAY(AH54,1,feriados!$A$2:$A$1000) -> 2020-03-19 | AI55: 4.4 | AJ55: =IF(ISERROR(VLOOKUP(AH55,'Cenários COPOM'!$A$1:$K$100,10,FALSE)),0,VLOOKUP(AH55,'Cenários COPOM'!$A$1:$K$100,10,FALSE)/100) -> 0 | AK55: 4.4 | AL55: 10090.94 | AM55: 4.398379843
A56: 54 | B56: =WORKDAY(B55,1,feriados!$A$2:$A$1000) -> 2020-03-20 | C56: 4.4 | D56: =IF(ISERROR(VLOOKUP(B56,'Cenários COPOM'!$A$1:$K$100,2,FALSE)),0,VLOOKUP(B56,'Cenários COPOM'!$A$1:$K$100,2,FALSE)/100) -> 0 | E56: 4.4 | F56: 10092.66 | G56: 4.398197632 | I56: 54 | J56: =WORKDAY(J55,1,feriados!$A$2:$A$1000) -> 2020-03-20 | K56: 4.4 | L56: =IF(ISERROR(VLOOKUP(J56,'Cenários COPOM'!$A$1:$K$100,4,FALSE)),0,VLOOKUP(J56,'Cenários COPOM'!$A$1:$K$100,4,FALSE)/100) -> 0 | M56: 4.4 | N56: 10092.66 | O56: 4.398197632 | Q56: 54 | R56: =WORKDAY(R55,1,feriados!$A$2:$A$1000) -> 2020-03-20 | S56: 4.4 | T56: =IF(ISERROR(VLOOKUP(R56,'Cenários COPOM'!$A$1:$K$100,6,FALSE)),0,VLOOKUP(R56,'Cenários COPOM'!$A$1:$K$100,6,FALSE)/100) -> 0 | U56: 4.4 | V56: 10092.66 | W56: 4.398197632 | Y56: 54 | Z56: =WORKDAY(Z55,1,feriados!$A$2:$A$1000) -> 2020-03-20 | AA56: 4.4 | AB56: =IF(ISERROR(VLOOKUP(Z56,'Cenários COPOM'!$A$1:$K$100,8,FALSE)),0,VLOOKUP(Z56,'Cenários COPOM'!$A$1:$K$100,8,FALSE)/100) -> 0 | AC56: 4.4 | AD56: 10092.66 | AE56: 4.398197632 | AG56: 54 | AH56: =WORKDAY(AH55,1,feriados!$A$2:$A$1000) -> 2020-03-20 | AI56: 4.4 | AJ56: =IF(ISERROR(VLOOKUP(AH56,'Cenários COPOM'!$A$1:$K$100,10,FALSE)),0,VLOOKUP(AH56,'Cenários COPOM'!$A$1:$K$100,10,FALSE)/100) -> 0 | AK56: 4.4 | AL56: 10092.66 | AM56: 4.398197632
A57: 55 | B57: =WORKDAY(B56,1,feriados!$A$2:$A$1000) -> 2020-03-23 | C57: 4.4 | D57: =IF(ISERROR(VLOOKUP(B57,'Cenários COPOM'!$A$1:$K$100,2,FALSE)),0,VLOOKUP(B57,'Cenários COPOM'!$A$1:$K$100,2,FALSE)/100) -> 0 | E57: 4.4 | F57: 10094.38 | G57: 4.398008154 | I57: 55 | J57: =WORKDAY(J56,1,feriados!$A$2:$A$1000) -> 2020-03-23 | K57: 4.4 | L57: =IF(ISERROR(VLOOKUP(J57,'Cenários COPOM'!$A$1:$K$100,4,FALSE)),0,VLOOKUP(J57,'Cenários COPOM'!$A$1:$K$100,4,FALSE)/100) -> 0 | M57: 4.4 | N57: 10094.38 | O57: 4.398008154 | Q57: 55 | R57: =WORKDAY(R56,1,feriados!$A$2:$A$1000) -> 2020-03-23 | S57: 4.4 | T57: =IF(ISERROR(VLOOKUP(R57,'Cenários COPOM'!$A$1:$K$100,6,FALSE)),0,VLOOKUP(R57,'Cenários COPOM'!$A$1:$K$100,6,FALSE)/100) -> 0 | U57: 4.4 | V57: 10094.38 | W57: 4.398008154 | Y57: 55 | Z57: =WORKDAY(Z56,1,feriados!$A$2:$A$1000) -> 2020-03-23 | AA57: 4.4 | AB57: =IF(ISERROR(VLOOKUP(Z57,'Cenários COPOM'!$A$1:$K$100,8,FALSE)),0,VLOOKUP(Z57,'Cenários COPOM'!$A$1:$K$100,8,FALSE)/100) -> 0 | AC57: 4.4 | AD57: 10094.38 | AE57: 4.398008154 | AG57: 55 | AH57: =WORKDAY(AH56,1,feriados!$A$2:$A$1000) -> 2020-03-23 | AI57: 4.4 | AJ57: =IF(ISERROR(VLOOKUP(AH57,'Cenários COPOM'!$A$1:$K$100,10,FALSE)),0,VLOOKUP(AH57,'Cenários COPOM'!$A$1:$K$100,10,FALSE)/100) -> 0 | AK57: 4.4 | AL57: 10094.38 | AM57: 4.398008154
A58: 56 | B58: =WORKDAY(B57,1,feriados!$A$2:$A$1000) -> 2020-03-24 | C58: 4.4 | D58: =IF(ISERROR(VLOOKUP(B58,'Cenários COPOM'!$A$1:$K$100,2,FALSE)),0,VLOOKUP(B58,'Cenários COPOM'!$A$1:$K$100,2,FALSE)/100) -> 0 | E58: 4.4 | F58: 10096.1 | G58: 4.397811804 | I58: 56 | J58: =WORKDAY(J57,1,feriados!$A$2:$A$1000) -> 2020-03-24 | K58: 4.4 | L58: =IF(ISERROR(VLOOKUP(J58,'Cenários COPOM'!$A$1:$K$100,4,FALSE)),0,VLOOKUP(J58,'Cenários COPOM'!$A$1:$K$100,4,FALSE)/100) -> 0 | M58: 4.4 | N58: 10096.1 | O58: 4.397811804 | Q58: 56 | R58: =WORKDAY(R57,1,feriados!$A$2:$A$1000) -> 2020-03-24 | S58: 4.4 | T58: =IF(ISERROR(VLOOKUP(R58,'Cenários COPOM'!$A$1:$K$100,6,FALSE)),0,VLOOKUP(R58,'Cenários COPOM'!$A$1:$K$100,6,FALSE)/100) -> 0 | U58: 4.4 | V58: 10096.1 | W58: 4.397811804 | Y58: 56 | Z58: =WORKDAY(Z57,1,feriados!$A$2:$A$1000) -> 2020-03-24 | AA58: 4.4 | AB58: =IF(ISERROR(VLOOKUP(Z58,'Cenários COPOM'!$A$1:$K$100,8,FALSE)),0,VLOOKUP(Z58,'Cenários COPOM'!$A$1:$K$100,8,FALSE)/100) -> 0 | AC58: 4.4 | AD58: 10096.1 | AE58: 4.397811804 | AG58: 56 | AH58: =WORKDAY(AH57,1,feriados!$A$2:$A$1000) -> 2020-03-24 | AI58: 4.4 | AJ58: =IF(ISERROR(VLOOKUP(AH58,'Cenários COPOM'!$A$1:$K$100,10,FALSE)),0,VLOOKUP(AH58,'Cenários COPOM'!$A$1:$K$100,10,FALSE)/100) -> 0 | AK58: 4.4 | AL58: 10096.1 | AM58: 4.397811804
A59: 57 | B59: =WORKDAY(B58,1,feriados!$A$2:$A$1000) -> 2020-03-25 | C59: 4.4 | D59: =IF(ISERROR(VLOOKUP(B59,'Cenários COPOM'!$A$1:$K$100,2,FALSE)),0,VLOOKUP(B59,'Cenários COPOM'!$A$1:$K$100,2,FALSE)/100) -> 0 | E59: 4.4 | F59: 10097.83 | G59: 4.398066025 | I59: 57 | J59: =WORKDAY(J58,1,feriados!$A$2:$A$1000) -> 2020-03-25 | K59: 4.4 | L59: =IF(ISERROR(VLOOKUP(J59,'Cenários COPOM'!$A$1:$K$100,4,FALSE)),0,VLOOKUP(J59,'Cenários COPOM'!$A$1:$K$100,4,FALSE)/100) -> 0 | M59: 4.4 | N59: 10097.83 | O59: 4.398066025 | Q59: 57 | R59: =WORKDAY(R58,1,feriados!$A$2:$A$1000) -> 2020-03-25 | S59: 4.4 | T59: =IF(ISERROR(VLOOKUP(R59,'Cenários COPOM'!$A$1:$K$100,6,FALSE)),0,VLOOKUP(R59,'Cenários COPOM'!$A$1:$K$100,6,FALSE)/100) -> 0 | U59: 4.4 | V59: 10097.83 | W59: 4.398066025 | Y59: 57 | Z59: =WORKDAY(Z58,1,feriados!$A$2:$A$1000) -> 2020-03-25 | AA59: 4.4 | AB59: =IF(ISERROR(VLOOKUP(Z59,'Cenários COPOM'!$A$1:$K$100,8,FALSE)),0,VLOOKUP(Z59,'Cenários COPOM'!$A$1:$K$100,8,FALSE)/100) -> 0 | AC59: 4.4 | AD59: 10097.83 | AE59: 4.398066025 | AG59: 57 | AH59: =WORKDAY(AH58,1,feriados!$A$2:$A$1000) -> 2020-03-25 | AI59: 4.4 | AJ59: =IF(ISERROR(VLOOKUP(AH59,'Cenários COPOM'!$A$1:$K$100,10,FALSE)),0,VLOOKUP(AH59,'Cenários COPOM'!$A$1:$K$100,10,FALSE)/100) -> 0 | AK59: 4.4 | AL59: 10097.83 | AM59: 4.398066025
A60: 58 | B60: =WORKDAY(B59,1,feriados!$A$2:$A$1000) -> 2020-03-26 | C60: 4.4 | D60: =IF(ISERROR(VLOOKUP(B60,'Cenários COPOM'!$A$1:$K$100,2,FALSE)),0,VLOOKUP(B60,'Cenários COPOM'!$A$1:$K$100,2,FALSE)/100) -> 0 | E60: 4.4 | F60: 10099.56 | G60: 4.398298167 | I60: 58 | J60: =WORKDAY(J59,1,feriados!$A$2:$A$1000) -> 2020-03-26 | K60: 4.4 | L60: =IF(ISERROR(VLOOKUP(J60,'Cenários COPOM'!$A$1:$K$100,4,FALSE)),0,VLOOKUP(J60,'Cenários COPOM'!$A$1:$K$100,4,FALSE)/100) -> 0 | M60: 4.4 | N60: 10099.56 | O60: 4.398298167 | Q60: 58 | R60: =WORKDAY(R59,1,feriados!$A$2:$A$1000) -> 2020-03-26 | S60: 4.4 | T60: =IF(ISERROR(VLOOKUP(R60,'Cenários COPOM'!$A$1:$K$100,6,FALSE)),0,VLOOKUP(R60,'Cenários COPOM'!$A$1:$K$100,6,FALSE)/100) -> 0 | U60: 4.4 | V60: 10099.56 | W60: 4.398298167 | Y60: 58 | Z60: =WORKDAY(Z59,1,feriados!$A$2:$A$1000) -> 2020-03-26 | AA60: 4.4 | AB60: =IF(ISERROR(VLOOKUP(Z60,'Cenários COPOM'!$A$1:$K$100,8,FALSE)),0,VLOOKUP(Z60,'Cenários COPOM'!$A$1:$K$100,8,FALSE)/100) -> 0 | AC60: 4.4 | AD60: 10099.56 | AE60: 4.398298167 | AG60: 58 | AH60: =WORKDAY(AH59,1,feriados!$A$2:$A$1000) -> 2020-03-26 | AI60: 4.4 | AJ60: =IF(ISERROR(VLOOKUP(AH60,'Cenários COPOM'!$A$1:$K$100,10,FALSE)),0,VLOOKUP(AH60,'Cenários COPOM'!$A$1:$K$100,10,FALSE)/100) -> 0 | AK60: 4.4 | AL60: 10099.56 | AM60: 4.398298167
A61: 59 | B61: =WORKDAY(B60,1,feriados!$A$2:$A$1000) -> 2020-03-27 | C61: 4.4 | D61: =IF(ISERROR(VLOOKUP(B61,'Cenários COPOM'!$A$1:$K$100,2,FALSE)),0,VLOOKUP(B61,'Cenários COPOM'!$A$1:$K$100,2,FALSE)/100) -> 0 | E61: 4.4 | F61: 10101.29 | G61: 4.398509356 | I61: 59 | J61: =WORKDAY(J60,1,feriados!$A$2:$A$1000) -> 2020-03-27 | K61: 4.4 | L61: =IF(ISERROR(VLOOKUP(J61,'Cenários COPOM'!$A$1:$K$100,4,FALSE)),0,VLOOKUP(J61,'Cenários COPOM'!$A$1:$K$100,4,FALSE)/100) -> 0 | M61: 4.4 | N61: 10101.29 | O61: 4.398509356 | Q61: 59 | R61: =WORKDAY(R60,1,feriados!$A$2:$A$1000) -> 2020-03-27 | S61: 4.4 | T61: =IF(ISERROR(VLOOKUP(R61,'Cenários COPOM'!$A$1:$K$100,6,FALSE)),0,VLOOKUP(R61,'Cenários COPOM'!$A$1:$K$100,6,FALSE)/100) -> 0 | U61: 4.4 | V61: 10101.29 | W61: 4.398509356 | Y61: 59 | Z61: =WORKDAY(Z60,1,feriados!$A$2:$A$1000) -> 2020-03-27 | AA61: 4.4 | AB61: =IF(ISERROR(VLOOKUP(Z61,'Cenários COPOM'!$A$1:$K$100,8,FALSE)),0,VLOOKUP(Z61,'Cenários COPOM'!$A$1:$K$100,8,FALSE)/100) -> 0 | AC61: 4.4 | AD61: 10101.29 | AE61: 4.398509356 | AG61: 59 | AH61: =WORKDAY(AH60,1,feriados!$A$2:$A$1000) -> 2020-03-27 | AI61: 4.4 | AJ61: =IF(ISERROR(VLOOKUP(AH61,'Cenários COPOM'!$A$1:$K$100,10,FALSE)),0,VLOOKUP(AH61,'Cenários COPOM'!$A$1:$K$100,10,FALSE)/100) -> 0 | AK61: 4.4 | AL61: 10101.29 | AM61: 4.398509356
A62: 60 | B62: =WORKDAY(B61,1,feriados!$A$2:$A$1000) -> 2020-03-30 | C62: 4.4 | D62: =IF(ISERROR(VLOOKUP(B62,'Cenários COPOM'!$A$1:$K$100,2,FALSE)),0,VLOOKUP(B62,'Cenários COPOM'!$A$1:$K$100,2,FALSE)/100) -> 0 | E62: 4.4 | F62: 10103.02 | G62: 4.398700645 | I62: 60 | J62: =WORKDAY(J61,1,feriados!$A$2:$A$1000) -> 2020-03-30 | K62: 4.4 | L62: =IF(ISERROR(VLOOKUP(J62,'Cenários COPOM'!$A$1:$K$100,4,FALSE)),0,VLOOKUP(J62,'Cenários COPOM'!$A$1:$K$100,4,FALSE)/100) -> 0 | M62: 4.4 | N62: 10103.02 | O62: 4.398700645 | Q62: 60 | R62: =WORKDAY(R61,1,feriados!$A$2:$A$1000) -> 2020-03-30 | S62: 4.4 | T62: =IF(ISERROR(VLOOKUP(R62,'Cenários COPOM'!$A$1:$K$100,6,FALSE)),0,VLOOKUP(R62,'Cenários COPOM'!$A$1:$K$100,6,FALSE)/100) -> 0 | U62: 4.4 | V62: 10103.02 | W62: 4.398700645 | Y62: 60 | Z62: =WORKDAY(Z61,1,feriados!$A$2:$A$1000) -> 2020-03-30 | AA62: 4.4 | AB62: =IF(ISERROR(VLOOKUP(Z62,'Cenários COPOM'!$A$1:$K$100,8,FALSE)),0,VLOOKUP(Z62,'Cenários COPOM'!$A$1:$K$100,8,FALSE)/100) -> 0 | AC62: 4.4 | AD62: 10103.02 | AE62: 4.398700645 | AG62: 60 | AH62: =WORKDAY(AH61,1,feriados!$A$2:$A$1000) -> 2020-03-30 | AI62: 4.4 | AJ62: =IF(ISERROR(VLOOKUP(AH62,'Cenários COPOM'!$A$1:$K$100,10,FALSE)),0,VLOOKUP(AH62,'Cenários COPOM'!$A$1:$K$100,10,FALSE)/100) -> 0 | AK62: 4.4 | AL62: 10103.02 | AM62: 4.398700645
A63: 61 | B63: =WORKDAY(B62,1,feriados!$A$2:$A$1000) -> 2020-03-31 | C63: 4.4 | D63: =IF(ISERROR(VLOOKUP(B63,'Cenários COPOM'!$A$1:$K$100,2,FALSE)),0,VLOOKUP(B63,'Cenários COPOM'!$A$1:$K$100,2,FALSE)/100) -> 0 | E63: 4.4 | F63: 10104.75 | G63: 4.398873016 | I63: 61 | J63: =WORKDAY(J62,1,feriados!$A$2:$A$1000) -> 2020-03-31 | K63: 4.4 | L63: =IF(ISERROR(VLOOKUP(J63,'Cenários COPOM'!$A$1:$K$100,4,FALSE)),0,VLOOKUP(J63,'Cenários COPOM'!$A$1:$K$100,4,FALSE)/100) -> 0 | M63: 4.4 | N63: 10104.75 | O63: 4.398873016 | Q63: 61 | R63: =WORKDAY(R62,1,feriados!$A$2:$A$1000) -> 2020-03-31 | S63: 4.4 | T63: =IF(ISERROR(VLOOKUP(R63,'Cenários COPOM'!$A$1:$K$100,6,FALSE)),0,VLOOKUP(R63,'Cenários COPOM'!$A$1:$K$100,6,FALSE)/100) -> 0 | U63: 4.4 | V63: 10104.75 | W63: 4.398873016 | Y63: 61 | Z63: =WORKDAY(Z62,1,feriados!$A$2:$A$1000) -> 2020-03-31 | AA63: 4.4 | AB63: =IF(ISERROR(VLOOKUP(Z63,'Cenários COPOM'!$A$1:$K$100,8,FALSE)),0,VLOOKUP(Z63,'Cenários COPOM'!$A$1:$K$100,8,FALSE)/100) -> 0 | AC63: 4.4 | AD63: 10104.75 | AE63: 4.398873016 | AG63: 61 | AH63: =WORKDAY(AH62,1,feriados!$A$2:$A$1000) -> 2020-03-31 | AI63: 4.4 | AJ63: =IF(ISERROR(VLOOKUP(AH63,'Cenários COPOM'!$A$1:$K$100,10,FALSE)),0,VLOOKUP(AH63,'Cenários COPOM'!$A$1:$K$100,10,FALSE)/100) -> 0 | AK63: 4.4 | AL63: 10104.75 | AM63: 4.398873016
A64: 62 | B64: =WORKDAY(B63,1,feriados!$A$2:$A$1000) -> 2020-04-01 | C64: 4.4 | D64: =IF(ISERROR(VLOOKUP(B64,'Cenários COPOM'!$A$1:$K$100,2,FALSE)),0,VLOOKUP(B64,'Cenários COPOM'!$A$1:$K$100,2,FALSE)/100) -> 0 | E64: 4.4 | F64: 10106.48 | G64: 4.399027389 | I64: 62 | J64: =WORKDAY(J63,1,feriados!$A$2:$A$1000) -> 2020-04-01 | K64: 4.4 | L64: =IF(ISERROR(VLOOKUP(J64,'Cenários COPOM'!$A$1:$K$100,4,FALSE)),0,VLOOKUP(J64,'Cenários COPOM'!$A$1:$K$100,4,FALSE)/100) -> 0 | M64: 4.4 | N64: 10106.48 | O64: 4.399027389 | Q64: 62 | R64: =WORKDAY(R63,1,feriados!$A$2:$A$1000) -> 2020-04-01 | S64: 4.4 | T64: =IF(ISERROR(VLOOKUP(R64,'Cenários COPOM'!$A$1:$K$100,6,FALSE)),0,VLOOKUP(R64,'Cenários COPOM'!$A$1:$K$100,6,FALSE)/100) -> 0 | U64: 4.4 | V64: 10106.48 | W64: 4.399027389 | Y64: 62 | Z64: =WORKDAY(Z63,1,feriados!$A$2:$A$1000) -> 2020-04-01 | AA64: 4.4 | AB64: =IF(ISERROR(VLOOKUP(Z64,'Cenários COPOM'!$A$1:$K$100,8,FALSE)),0,VLOOKUP(Z64,'Cenários COPOM'!$A$1:$K$100,8,FALSE)/100) -> 0 | AC64: 4.4 | AD64: 10106.48 | AE64: 4.399027389 | AG64: 62 | AH64: =WORKDAY(AH63,1,feriados!$A$2:$A$1000) -> 2020-04-01 | AI64: 4.4 | AJ64: =IF(ISERROR(VLOOKUP(AH64,'Cenários COPOM'!$A$1:$K$100,10,FALSE)),0,VLOOKUP(AH64,'Cenários COPOM'!$A$1:$K$100,10,FALSE)/100) -> 0 | AK64: 4.4 | AL64: 10106.48 | AM64: 4.399027389
A65: 63 | B65: =WORKDAY(B64,1,feriados!$A$2:$A$1000) -> 2020-04-02 | C65: 4.4 | D65: =IF(ISERROR(VLOOKUP(B65,'Cenários COPOM'!$A$1:$K$100,2,FALSE)),0,VLOOKUP(B65,'Cenários COPOM'!$A$1:$K$100,2,FALSE)/100) -> 0 | E65: 4.4 | F65: 10108.21 | G65: 4.399164626 | I65: 63 | J65: =WORKDAY(J64,1,feriados!$A$2:$A$1000) -> 2020-04-02 | K65: 4.4 | L65: =IF(ISERROR(VLOOKUP(J65,'Cenários COPOM'!$A$1:$K$100,4,FALSE)),0,VLOOKUP(J65,'Cenários COPOM'!$A$1:$K$100,4,FALSE)/100) -> 0 | M65: 4.4 | N65: 10108.21 | O65: 4.399164626 | Q65: 63 | R65: =WORKDAY(R64,1,feriados!$A$2:$A$1000) -> 2020-04-02 | S65: 4.4 | T65: =IF(ISERROR(VLOOKUP(R65,'Cenários COPOM'!$A$1:$K$100,6,FALSE)),0,VLOOKUP(R65,'Cenários COPOM'!$A$1:$K$100,6,FALSE)/100) -> 0 | U65: 4.4 | V65: 10108.21 | W65: 4.399164626 | Y65: 63 | Z65: =WORKDAY(Z64,1,feriados!$A$2:$A$1000) -> 2020-04-02 | AA65: 4.4 | AB65: =IF(ISERROR(VLOOKUP(Z65,'Cenários COPOM'!$A$1:$K$100,8,FALSE)),0,VLOOKUP(Z65,'Cenários COPOM'!$A$1:$K$100,8,FALSE)/100) -> 0 | AC65: 4.4 | AD65: 10108.21 | AE65: 4.399164626 | AG65: 63 | AH65: =WORKDAY(AH64,1,feriados!$A$2:$A$1000) -> 2020-04-02 | AI65: 4.4 | AJ65: =IF(ISERROR(VLOOKUP(AH65,'Cenários COPOM'!$A$1:$K$100,10,FALSE)),0,VLOOKUP(AH65,'Cenários COPOM'!$A$1:$K$100,10,FALSE)/100) -> 0 | AK65: 4.4 | AL65: 10108.21 | AM65: 4.399164626
A66: 64 | B66: =WORKDAY(B65,1,feriados!$A$2:$A$1000) -> 2020-04-03 | C66: 4.4 | D66: =IF(ISERROR(VLOOKUP(B66,'Cenários COPOM'!$A$1:$K$100,2,FALSE)),0,VLOOKUP(B66,'Cenários COPOM'!$A$1:$K$100,2,FALSE)/100) -> 0 | E66: 4.4 | F66: 10109.94 | G66: 4.399285533 | I66: 64 | J66: =WORKDAY(J65,1,feriados!$A$2:$A$1000) -> 2020-04-03 | K66: 4.4 | L66: =IF(ISERROR(VLOOKUP(J66,'Cenários COPOM'!$A$1:$K$100,4,FALSE)),0,VLOOKUP(J66,'Cenários COPOM'!$A$1:$K$100,4,FALSE)/100) -> 0 | M66: 4.4 | N66: 10109.94 | O66: 4.399285533 | Q66: 64 | R66: =WORKDAY(R65,1,feriados!$A$2:$A$1000) -> 2020-04-03 | S66: 4.4 | T66: =IF(ISERROR(VLOOKUP(R66,'Cenários COPOM'!$A$1:$K$100,6,FALSE)),0,VLOOKUP(R66,'Cenários COPOM'!$A$1:$K$100,6,FALSE)/100) -> 0 | U66: 4.4 | V66: 10109.94 | W66: 4.399285533 | Y66: 64 | Z66: =WORKDAY(Z65,1,feriados!$A$2:$A$1000) -> 2020-04-03 | AA66: 4.4 | AB66: =IF(ISERROR(VLOOKUP(Z66,'Cenários COPOM'!$A$1:$K$100,8,FALSE)),0,VLOOKUP(Z66,'Cenários COPOM'!$A$1:$K$100,8,FALSE)/100) -> 0 | AC66: 4.4 | AD66: 10109.94 | AE66: 4.399285533 | AG66: 64 | AH66: =WORKDAY(AH65,1,feriados!$A$2:$A$1000) -> 2020-04-03 | AI66: 4.4 | AJ66: =IF(ISERROR(VLOOKUP(AH66,'Cenários COPOM'!$A$1:$K$100,10,FALSE)),0,VLOOKUP(AH66,'Cenários COPOM'!$A$1:$K$100,10,FALSE)/100) -> 0 | AK66: 4.4 | AL66: 10109.94 | AM66: 4.399285533
A67: 65 | B67: =WORKDAY(B66,1,feriados!$A$2:$A$1000) -> 2020-04-06 | C67: 4.4 | D67: =IF(ISERROR(VLOOKUP(B67,'Cenários COPOM'!$A$1:$K$100,2,FALSE)),0,VLOOKUP(B67,'Cenários COPOM'!$A$1:$K$100,2,FALSE)/100) -> 0 | E67: 4.4 | F67: 10111.67 | G67: 4.399390868 | I67: 65 | J67: =WORKDAY(J66,1,feriados!$A$2:$A$1000) -> 2020-04-06 | K67: 4.4 | L67: =IF(ISERROR(VLOOKUP(J67,'Cenários COPOM'!$A$1:$K$100,4,FALSE)),0,VLOOKUP(J67,'Cenários COPOM'!$A$1:$K$100,4,FALSE)/100) -> 0 | M67: 4.4 | N67: 10111.67 | O67: 4.399390868 | Q67: 65 | R67: =WORKDAY(R66,1,feriados!$A$2:$A$1000) -> 2020-04-06 | S67: 4.4 | T67: =IF(ISERROR(VLOOKUP(R67,'Cenários COPOM'!$A$1:$K$100,6,FALSE)),0,VLOOKUP(R67,'Cenários COPOM'!$A$1:$K$100,6,FALSE)/100) -> 0 | U67: 4.4 | V67: 10111.67 | W67: 4.399390868 | Y67: 65 | Z67: =WORKDAY(Z66,1,feriados!$A$2:$A$1000) -> 2020-04-06 | AA67: 4.4 | AB67: =IF(ISERROR(VLOOKUP(Z67,'Cenários COPOM'!$A$1:$K$100,8,FALSE)),0,VLOOKUP(Z67,'Cenários COPOM'!$A$1:$K$100,8,FALSE)/100) -> 0 | AC67: 4.4 | AD67: 10111.67 | AE67: 4.399390868 | AG67: 65 | AH67: =WORKDAY(AH66,1,feriados!$A$2:$A$1000) -> 2020-04-06 | AI67: 4.4 | AJ67: =IF(ISERROR(VLOOKUP(AH67,'Cenários COPOM'!$A$1:$K$100,10,FALSE)),0,VLOOKUP(AH67,'Cenários COPOM'!$A$1:$K$100,10,FALSE)/100) -> 0 | AK67: 4.4 | AL67: 10111.67 | AM67: 4.399390868
A68: =+A67+1 -> 66 | B68: =WORKDAY(B67,1,feriados!$A$2:$A$1000) -> 2020-04-07 | C68: =+C67 -> 4.4 | D68: =IF(ISERROR(VLOOKUP(B68,'Cenários COPOM'!$A$1:$K$100,2,FALSE)),0,VLOOKUP(B68,'Cenários COPOM'!$A$1:$K$100,2,FALSE)/100) -> 0 | E68: =+E67+D68 -> 4.4 | F68: =+ROUND(((1+E67/100)^(1/252))*F67,2) -> 10113.4 | G68: =+((F68/$F$2)^(252/A68)-1)*100 -> 4.399481343 | I68: =+I67+1 -> 66 | J68: =WORKDAY(J67,1,feriados!$A$2:$A$1000) -> 2020-04-07 | K68: =+K67 -> 4.4 | L68: =IF(ISERROR(VLOOKUP(J68,'Cenários COPOM'!$A$1:$K$100,4,FALSE)),0,VLOOKUP(J68,'Cenários COPOM'!$A$1:$K$100,4,FALSE)/100) -> 0 | M68: =+M67+L68 -> 4.4 | N68: =+ROUND(((1+M67/100)^(1/252))*N67,2) -> 10113.4 | O68: =+((N68/$N$2)^(252/I68)-1)*100 -> 4.399481343 | Q68: =+Q67+1 -> 66 | R68: =WORKDAY(R67,1,feriados!$A$2:$A$1000) -> 2020-04-07 | S68: =+S67 -> 4.4 | T68: =IF(ISERROR(VLOOKUP(R68,'Cenários COPOM'!$A$1:$K$100,6,FALSE)),0,VLOOKUP(R68,'Cenários COPOM'!$A$1:$K$100,6,FALSE)/100) -> 0 | U68: =+U67+T68 -> 4.4 | V68: =+ROUND(((1+U67/100)^(1/252))*V67,2) -> 10113.4 | W68: =+((V68/$V$2)^(252/Q68)-1)*100 -> 4.399481343 | Y68: =+Y67+1 -> 66 | Z68: =WORKDAY(Z67,1,feriados!$A$2:$A$1000) -> 2020-04-07 | AA68: =+AA67 -> 4.4 | AB68: =IF(ISERROR(VLOOKUP(Z68,'Cenários COPOM'!$A$1:$K$100,8,FALSE)),0,VLOOKUP(Z68,'Cenários COPOM'!$A$1:$K$100,8,FALSE)/100) -> 0 | AC68: =+AC67+AB68 -> 4.4 | AD68: =+ROUND(((1+AC67/100)^(1/252))*AD67,2) -> 10113.4 | AE68: =+((AD68/$AD$2)^(252/Y68)-1)*100 -> 4.399481343 | AG68: =+AG67+1 -> 66 | AH68: =WORKDAY(AH67,1,feriados!$A$2:$A$1000) -> 2020-04-07 | AI68: =+AI67 -> 4.4 | AJ68: =IF(ISERROR(VLOOKUP(AH68,'Cenários COPOM'!$A$1:$K$100,10,FALSE)),0,VLOOKUP(AH68,'Cenários COPOM'!$A$1:$K$100,10,FALSE)/100) -> 0 | AK68: =+AK67+AJ68 -> 4.4 | AL68: =+ROUND(((1+AK67/100)^(1/252))*AL67,2) -> 10113.4 | AM68: =+((AL68/$F$2)^(252/AG68)-1)*100 -> 4.399481343
A69: 67 | B69: =WORKDAY(B68,1,feriados!$A$2:$A$1000) -> 2020-04-08 | C69: 4.4 | D69: =IF(ISERROR(VLOOKUP(B69,'Cenários COPOM'!$A$1:$K$100,2,FALSE)),0,VLOOKUP(B69,'Cenários COPOM'!$A$1:$K$100,2,FALSE)/100) -> 0 | E69: 4.4 | F69: 10115.13 | G69: 4.399557627 | I69: 67 | J69: =WORKDAY(J68,1,feriados!$A$2:$A$1000) -> 2020-04-08 | K69: 4.4 | L69: =IF(ISERROR(VLOOKUP(J69,'Cenários COPOM'!$A$1:$K$100,4,FALSE)),0,VLOOKUP(J69,'Cenários COPOM'!$A$1:$K$100,4,FALSE)/100) -> 0 | M69: 4.4 | N69: 10115.13 | O69: 4.399557627 | Q69: 67 | R69: =WORKDAY(R68,1,feriados!$A$2:$A$1000) -> 2020-04-08 | S69: 4.4 | T69: =IF(ISERROR(VLOOKUP(R69,'Cenários COPOM'!$A$1:$K$100,6,FALSE)),0,VLOOKUP(R69,'Cenários COPOM'!$A$1:$K$100,6,FALSE)/100) -> 0 | U69: 4.4 | V69: 10115.13 | W69: 4.399557627 | Y69: 67 | Z69: =WORKDAY(Z68,1,feriados!$A$2:$A$1000) -> 2020-04-08 | AA69: 4.4 | AB69: =IF(ISERROR(VLOOKUP(Z69,'Cenários COPOM'!$A$1:$K$100,8,FALSE)),0,VLOOKUP(Z69,'Cenários COPOM'!$A$1:$K$100,8,FALSE)/100) -> 0 | AC69: 4.4 | AD69: 10115.13 | AE69: 4.399557627 | AG69: 67 | AH69: =WORKDAY(AH68,1,feriados!$A$2:$A$1000) -> 2020-04-08 | AI69: 4.4 | AJ69: =IF(ISERROR(VLOOKUP(AH69,'Cenários COPOM'!$A$1:$K$100,10,FALSE)),0,VLOOKUP(AH69,'Cenários COPOM'!$A$1:$K$100,10,FALSE)/100) -> 0 | AK69: 4.4 | AL69: 10115.13 | AM69: 4.399557627
A70: 68 | B70: =WORKDAY(B69,1,feriados!$A$2:$A$1000) -> 2020-04-09 | C70: 4.4 | D70: =IF(ISERROR(VLOOKUP(B70,'Cenários COPOM'!$A$1:$K$100,2,FALSE)),0,VLOOKUP(B70,'Cenários COPOM'!$A$1:$K$100,2,FALSE)/100) -> 0 | E70: 4.4 | F70: 10116.86 | G70: 4.399620351 | I70: 68 | J70: =WORKDAY(J69,1,feriados!$A$2:$A$1000) -> 2020-04-09 | K70: 4.4 | L70: =IF(ISERROR(VLOOKUP(J70,'Cenários COPOM'!$A$1:$K$100,4,FALSE)),0,VLOOKUP(J70,'Cenários COPOM'!$A$1:$K$100,4,FALSE)/100) -> 0 | M70: 4.4 | N70: 10116.86 | O70: 4.399620351 | Q70: 68 | R70: =WORKDAY(R69,1,feriados!$A$2:$A$1000) -> 2020-04-09 | S70: 4.4 | T70: =IF(ISERROR(VLOOKUP(R70,'Cenários COPOM'!$A$1:$K$100,6,FALSE)),0,VLOOKUP(R70,'Cenários COPOM'!$A$1:$K$100,6,FALSE)/100) -> 0 | U70: 4.4 | V70: 10116.86 | W70: 4.399620351 | Y70: 68 | Z70: =WORKDAY(Z69,1,feriados!$A$2:$A$1000) -> 2020-04-09 | AA70: 4.4 | AB70: =IF(ISERROR(VLOOKUP(Z70,'Cenários COPOM'!$A$1:$K$100,8,FALSE)),0,VLOOKUP(Z70,'Cenários COPOM'!$A$1:$K$100,8,FALSE)/100) -> 0 | AC70: 4.4 | AD70: 10116.86 | AE70: 4.399620351 | AG70: 68 | AH70: =WORKDAY(AH69,1,feriados!$A$2:$A$1000) -> 2020-04-09 | AI70: 4.4 | AJ70: =IF(ISERROR(VLOOKUP(AH70,'Cenários COPOM'!$A$1:$K$100,10,FALSE)),0,VLOOKUP(AH70,'Cenários COPOM'!$A$1:$K$100,10,FALSE)/100) -> 0 | AK70: 4.4 | AL70: 10116.86 | AM70: 4.399620351
A71: 69 | B71: =WORKDAY(B70,1,feriados!$A$2:$A$1000) -> 2020-04-13 | C71: 4.4 | D71: =IF(ISERROR(VLOOKUP(B71,'Cenários COPOM'!$A$1:$K$100,2,FALSE)),0,VLOOKUP(B71,'Cenários COPOM'!$A$1:$K$100,2,FALSE)/100) -> 0 | E71: 4.4 | F71: 10118.59 | G71: 4.399670107 | I71: 69 | J71: =WORKDAY(J70,1,feriados!$A$2:$A$1000) -> 2020-04-13 | K71: 4.4 | L71: =IF(ISERROR(VLOOKUP(J71,'Cenários COPOM'!$A$1:$K$100,4,FALSE)),0,VLOOKUP(J71,'Cenários COPOM'!$A$1:$K$100,4,FALSE)/100) -> 0 | M71: 4.4 | N71: 10118.59 | O71: 4.399670107 | Q71: 69 | R71: =WORKDAY(R70,1,feriados!$A$2:$A$1000) -> 2020-04-13 | S71: 4.4 | T71: =IF(ISERROR(VLOOKUP(R71,'Cenários COPOM'!$A$1:$K$100,6,FALSE)),0,VLOOKUP(R71,'Cenários COPOM'!$A$1:$K$100,6,FALSE)/100) -> 0 | U71: 4.4 | V71: 10118.59 | W71: 4.399670107 | Y71: 69 | Z71: =WORKDAY(Z70,1,feriados!$A$2:$A$1000) -> 2020-04-13 | AA71: 4.4 | AB71: =IF(ISERROR(VLOOKUP(Z71,'Cenários COPOM'!$A$1:$K$100,8,FALSE)),0,VLOOKUP(Z71,'Cenários COPOM'!$A$1:$K$100,8,FALSE)/100) -> 0 | AC71: 4.4 | AD71: 10118.59 | AE71: 4.399670107 | AG71: 69 | AH71: =WORKDAY(AH70,1,feriados!$A$2:$A$1000) -> 2020-04-13 | AI71: 4.4 | AJ71: =IF(ISERROR(VLOOKUP(AH71,'Cenários COPOM'!$A$1:$K$100,10,FALSE)),0,VLOOKUP(AH71,'Cenários COPOM'!$A$1:$K$100,10,FALSE)/100) -> 0 | AK71: 4.4 | AL71: 10118.59 | AM71: 4.399670107
A72: 70 | B72: =WORKDAY(B71,1,feriados!$A$2:$A$1000) -> 2020-04-14 | C72: 4.4 | D72: =IF(ISERROR(VLOOKUP(B72,'Cenários COPOM'!$A$1:$K$100,2,FALSE)),0,VLOOKUP(B72,'Cenários COPOM'!$A$1:$K$100,2,FALSE)/100) -> 0 | E72: 4.4 | F72: 10120.32 | G72: 4.399707456 | I72: 70 | J72: =WORKDAY(J71,1,feriados!$A$2:$A$1000) -> 2020-04-14 | K72: 4.4 | L72: =IF(ISERROR(VLOOKUP(J72,'Cenários COPOM'!$A$1:$K$100,4,FALSE)),0,VLOOKUP(J72,'Cenários COPOM'!$A$1:$K$100,4,FALSE)/100) -> 0 | M72: 4.4 | N72: 10120.32 | O72: 4.399707456 | Q72: 70 | R72: =WORKDAY(R71,1,feriados!$A$2:$A$1000) -> 2020-04-14 | S72: 4.4 | T72: =IF(ISERROR(VLOOKUP(R72,'Cenários COPOM'!$A$1:$K$100,6,FALSE)),0,VLOOKUP(R72,'Cenários COPOM'!$A$1:$K$100,6,FALSE)/100) -> 0 | U72: 4.4 | V72: 10120.32 | W72: 4.399707456 | Y72: 70 | Z72: =WORKDAY(Z71,1,feriados!$A$2:$A$1000) -> 2020-04-14 | AA72: 4.4 | AB72: =IF(ISERROR(VLOOKUP(Z72,'Cenários COPOM'!$A$1:$K$100,8,FALSE)),0,VLOOKUP(Z72,'Cenários COPOM'!$A$1:$K$100,8,FALSE)/100) -> 0 | AC72: 4.4 | AD72: 10120.32 | AE72: 4.399707456 | AG72: 70 | AH72: =WORKDAY(AH71,1,feriados!$A$2:$A$1000) -> 2020-04-14 | AI72: 4.4 | AJ72: =IF(ISERROR(VLOOKUP(AH72,'Cenários COPOM'!$A$1:$K$100,10,FALSE)),0,VLOOKUP(AH72,'Cenários COPOM'!$A$1:$K$100,10,FALSE)/100) -> 0 | AK72: 4.4 | AL72: 10120.32 | AM72: 4.399707456
A73: 71 | B73: =WORKDAY(B72,1,feriados!$A$2:$A$1000) -> 2020-04-15 | C73: 4.4 | D73: =IF(ISERROR(VLOOKUP(B73,'Cenários COPOM'!$A$1:$K$100,2,FALSE)),0,VLOOKUP(B73,'Cenários COPOM'!$A$1:$K$100,2,FALSE)/100) -> 0 | E73: 4.4 | F73: 10122.05 | G73: 4.399732924 | I73: 71 | J73: =WORKDAY(J72,1,feriados!$A$2:$A$1000) -> 2020-04-15 | K73: 4.4 | L73: =IF(ISERROR(VLOOKUP(J73,'Cenários COPOM'!$A$1:$K$100,4,FALSE)),0,VLOOKUP(J73,'Cenários COPOM'!$A$1:$K$100,4,FALSE)/100) -> 0 | M73: 4.4 | N73: 10122.05 | O73: 4.399732924 | Q73: 71 | R73: =WORKDAY(R72,1,feriados!$A$2:$A$1000) -> 2020-04-15 | S73: 4.4 | T73: =IF(ISERROR(VLOOKUP(R73,'Cenários COPOM'!$A$1:$K$100,6,FALSE)),0,VLOOKUP(R73,'Cenários COPOM'!$A$1:$K$100,6,FALSE)/100) -> 0 | U73: 4.4 | V73: 10122.05 | W73: 4.399732924 | Y73: 71 | Z73: =WORKDAY(Z72,1,feriados!$A$2:$A$1000) -> 2020-04-15 | AA73: 4.4 | AB73: =IF(ISERROR(VLOOKUP(Z73,'Cenários COPOM'!$A$1:$K$100,8,FALSE)),0,VLOOKUP(Z73,'Cenários COPOM'!$A$1:$K$100,8,FALSE)/100) -> 0 | AC73: 4.4 | AD73: 10122.05 | AE73: 4.399732924 | AG73: 71 | AH73: =WORKDAY(AH72,1,feriados!$A$2:$A$1000) -> 2020-04-15 | AI73: 4.4 | AJ73: =IF(ISERROR(VLOOKUP(AH73,'Cenários COPOM'!$A$1:$K$100,10,FALSE)),0,VLOOKUP(AH73,'Cenários COPOM'!$A$1:$K$100,10,FALSE)/100) -> 0 | AK73: 4.4 | AL73: 10122.05 | AM73: 4.399732924
A74: 72 | B74: =WORKDAY(B73,1,feriados!$A$2:$A$1000) -> 2020-04-16 | C74: 4.4 | D74: =IF(ISERROR(VLOOKUP(B74,'Cenários COPOM'!$A$1:$K$100,2,FALSE)),0,VLOOKUP(B74,'Cenários COPOM'!$A$1:$K$100,2,FALSE)/100) -> 0 | E74: 4.4 | F74: 10123.78 | G74: 4.399747011 | I74: 72 | J74: =WORKDAY(J73,1,feriados!$A$2:$A$1000) -> 2020-04-16 | K74: 4.4 | L74: =IF(ISERROR(VLOOKUP(J74,'Cenários COPOM'!$A$1:$K$100,4,FALSE)),0,VLOOKUP(J74,'Cenários COPOM'!$A$1:$K$100,4,FALSE)/100) -> 0 | M74: 4.4 | N74: 10123.78 | O74: 4.399747011 | Q74: 72 | R74: =WORKDAY(R73,1,feriados!$A$2:$A$1000) -> 2020-04-16 | S74: 4.4 | T74: =IF(ISERROR(VLOOKUP(R74,'Cenários COPOM'!$A$1:$K$100,6,FALSE)),0,VLOOKUP(R74,'Cenários COPOM'!$A$1:$K$100,6,FALSE)/100) -> 0 | U74: 4.4 | V74: 10123.78 | W74: 4.399747011 | Y74: 72 | Z74: =WORKDAY(Z73,1,feriados!$A$2:$A$1000) -> 2020-04-16 | AA74: 4.4 | AB74: =IF(ISERROR(VLOOKUP(Z74,'Cenários COPOM'!$A$1:$K$100,8,FALSE)),0,VLOOKUP(Z74,'Cenários COPOM'!$A$1:$K$100,8,FALSE)/100) -> 0 | AC74: 4.4 | AD74: 10123.78 | AE74: 4.399747011 | AG74: 72 | AH74: =WORKDAY(AH73,1,feriados!$A$2:$A$1000) -> 2020-04-16 | AI74: 4.4 | AJ74: =IF(ISERROR(VLOOKUP(AH74,'Cenários COPOM'!$A$1:$K$100,10,FALSE)),0,VLOOKUP(AH74,'Cenários COPOM'!$A$1:$K$100,10,FALSE)/100) -> 0 | AK74: 4.4 | AL74: 10123.78 | AM74: 4.399747011
A75: 73 | B75: =WORKDAY(B74,1,feriados!$A$2:$A$1000) -> 2020-04-17 | C75: 4.4 | D75: =IF(ISERROR(VLOOKUP(B75,'Cenários COPOM'!$A$1:$K$100,2,FALSE)),0,VLOOKUP(B75,'Cenários COPOM'!$A$1:$K$100,2,FALSE)/100) -> 0 | E75: 4.4 | F75: 10125.51 | G75: 4.399750188 | I75: 73 | J75: =WORKDAY(J74,1,feriados!$A$2:$A$1000) -> 2020-04-17 | K75: 4.4 | L75: =IF(ISERROR(VLOOKUP(J75,'Cenários COPOM'!$A$1:$K$100,4,FALSE)),0,VLOOKUP(J75,'Cenários COPOM'!$A$1:$K$100,4,FALSE)/100) -> 0 | M75: 4.4 | N75: 10125.51 | O75: 4.399750188 | Q75: 73 | R75: =WORKDAY(R74,1,feriados!$A$2:$A$1000) -> 2020-04-17 | S75: 4.4 | T75: =IF(ISERROR(VLOOKUP(R75,'Cenários COPOM'!$A$1:$K$100,6,FALSE)),0,VLOOKUP(R75,'Cenários COPOM'!$A$1:$K$100,6,FALSE)/100) -> 0 | U75: 4.4 | V75: 10125.51 | W75: 4.399750188 | Y75: 73 | Z75: =WORKDAY(Z74,1,feriados!$A$2:$A$1000) -> 2020-04-17 | AA75: 4.4 | AB75: =IF(ISERROR(VLOOKUP(Z75,'Cenários COPOM'!$A$1:$K$100,8,FALSE)),0,VLOOKUP(Z75,'Cenários COPOM'!$A$1:$K$100,8,FALSE)/100) -> 0 | AC75: 4.4 | AD75: 10125.51 | AE75: 4.399750188 | AG75: 73 | AH75: =WORKDAY(AH74,1,feriados!$A$2:$A$1000) -> 2020-04-17 | AI75: 4.4 | AJ75: =IF(ISERROR(VLOOKUP(AH75,'Cenários COPOM'!$A$1:$K$100,10,FALSE)),0,VLOOKUP(AH75,'Cenários COPOM'!$A$1:$K$100,10,FALSE)/100) -> 0 | AK75: 4.4 | AL75: 10125.51 | AM75: 4.399750188
A76: 74 | B76: =WORKDAY(B75,1,feriados!$A$2:$A$1000) -> 2020-04-20 | C76: 4.4 | D76: =IF(ISERROR(VLOOKUP(B76,'Cenários COPOM'!$A$1:$K$100,2,FALSE)),0,VLOOKUP(B76,'Cenários COPOM'!$A$1:$K$100,2,FALSE)/100) -> 0 | E76: 4.4 | F76: 10127.24 | G76: 4.399742901 | I76: 74 | J76: =WORKDAY(J75,1,feriados!$A$2:$A$1000) -> 2020-04-20 | K76: 4.4 | L76: =IF(ISERROR(VLOOKUP(J76,'Cenários COPOM'!$A$1:$K$100,4,FALSE)),0,VLOOKUP(J76,'Cenários COPOM'!$A$1:$K$100,4,FALSE)/100) -> 0 | M76: 4.4 | N76: 10127.24 | O76: 4.399742901 | Q76: 74 | R76: =WORKDAY(R75,1,feriados!$A$2:$A$1000) -> 2020-04-20 | S76: 4.4 | T76: =IF(ISERROR(VLOOKUP(R76,'Cenários COPOM'!$A$1:$K$100,6,FALSE)),0,VLOOKUP(R76,'Cenários COPOM'!$A$1:$K$100,6,FALSE)/100) -> 0 | U76: 4.4 | V76: 10127.24 | W76: 4.399742901 | Y76: 74 | Z76: =WORKDAY(Z75,1,feriados!$A$2:$A$1000) -> 2020-04-20 | AA76: 4.4 | AB76: =IF(ISERROR(VLOOKUP(Z76,'Cenários COPOM'!$A$1:$K$100,8,FALSE)),0,VLOOKUP(Z76,'Cenários COPOM'!$A$1:$K$100,8,FALSE)/100) -> 0 | AC76: 4.4 | AD76: 10127.24 | AE76: 4.399742901 | AG76: 74 | AH76: =WORKDAY(AH75,1,feriados!$A$2:$A$1000) -> 2020-04-20 | AI76: 4.4 | AJ76: =IF(ISERROR(VLOOKUP(AH76,'Cenários COPOM'!$A$1:$K$100,10,FALSE)),0,VLOOKUP(AH76,'Cenários COPOM'!$A$1:$K$100,10,FALSE)/100) -> 0 | AK76: 4.4 | AL76: 10127.24 | AM76: 4.399742901
A77: 75 | B77: =WORKDAY(B76,1,feriados!$A$2:$A$1000) -> 2020-04-22 | C77: 4.4 | D77: =IF(ISERROR(VLOOKUP(B77,'Cenários COPOM'!$A$1:$K$100,2,FALSE)),0,VLOOKUP(B77,'Cenários COPOM'!$A$1:$K$100,2,FALSE)/100) -> 0 | E77: 4.4 | F77: 10128.97 | G77: 4.399725571 | I77: 75 | J77: =WORKDAY(J76,1,feriados!$A$2:$A$1000) -> 2020-04-22 | K77: 4.4 | L77: =IF(ISERROR(VLOOKUP(J77,'Cenários COPOM'!$A$1:$K$100,4,FALSE)),0,VLOOKUP(J77,'Cenários COPOM'!$A$1:$K$100,4,FALSE)/100) -> 0 | M77: 4.4 | N77: 10128.97 | O77: 4.399725571 | Q77: 75 | R77: =WORKDAY(R76,1,feriados!$A$2:$A$1000) -> 2020-04-22 | S77: 4.4 | T77: =IF(ISERROR(VLOOKUP(R77,'Cenários COPOM'!$A$1:$K$100,6,FALSE)),0,VLOOKUP(R77,'Cenários COPOM'!$A$1:$K$100,6,FALSE)/100) -> 0 | U77: 4.4 | V77: 10128.97 | W77: 4.399725571 | Y77: 75 | Z77: =WORKDAY(Z76,1,feriados!$A$2:$A$1000) -> 2020-04-22 | AA77: 4.4 | AB77: =IF(ISERROR(VLOOKUP(Z77,'Cenários COPOM'!$A$1:$K$100,8,FALSE)),0,VLOOKUP(Z77,'Cenários COPOM'!$A$1:$K$100,8,FALSE)/100) -> 0 | AC77: 4.4 | AD77: 10128.97 | AE77: 4.399725571 | AG77: 75 | AH77: =WORKDAY(AH76,1,feriados!$A$2:$A$1000) -> 2020-04-22 | AI77: 4.4 | AJ77: =IF(ISERROR(VLOOKUP(AH77,'Cenários COPOM'!$A$1:$K$100,10,FALSE)),0,VLOOKUP(AH77,'Cenários COPOM'!$A$1:$K$100,10,FALSE)/100) -> 0 | AK77: 4.4 | AL77: 10128.97 | AM77: 4.399725571
A78: 76 | B78: =WORKDAY(B77,1,feriados!$A$2:$A$1000) -> 2020-04-23 | C78: 4.4 | D78: =IF(ISERROR(VLOOKUP(B78,'Cenários COPOM'!$A$1:$K$100,2,FALSE)),0,VLOOKUP(B78,'Cenários COPOM'!$A$1:$K$100,2,FALSE)/100) -> 0 | E78: 4.4 | F78: 10130.7 | G78: 4.3996986 | I78: 76 | J78: =WORKDAY(J77,1,feriados!$A$2:$A$1000) -> 2020-04-23 | K78: 4.4 | L78: =IF(ISERROR(VLOOKUP(J78,'Cenários COPOM'!$A$1:$K$100,4,FALSE)),0,VLOOKUP(J78,'Cenários COPOM'!$A$1:$K$100,4,FALSE)/100) -> 0 | M78: 4.4 | N78: 10130.7 | O78: 4.3996986 | Q78: 76 | R78: =WORKDAY(R77,1,feriados!$A$2:$A$1000) -> 2020-04-23 | S78: 4.4 | T78: =IF(ISERROR(VLOOKUP(R78,'Cenários COPOM'!$A$1:$K$100,6,FALSE)),0,VLOOKUP(R78,'Cenários COPOM'!$A$1:$K$100,6,FALSE)/100) -> 0 | U78: 4.4 | V78: 10130.7 | W78: 4.3996986 | Y78: 76 | Z78: =WORKDAY(Z77,1,feriados!$A$2:$A$1000) -> 2020-04-23 | AA78: 4.4 | AB78: =IF(ISERROR(VLOOKUP(Z78,'Cenários COPOM'!$A$1:$K$100,8,FALSE)),0,VLOOKUP(Z78,'Cenários COPOM'!$A$1:$K$100,8,FALSE)/100) -> 0 | AC78: 4.4 | AD78: 10130.7 | AE78: 4.3996986 | AG78: 76 | AH78: =WORKDAY(AH77,1,feriados!$A$2:$A$1000) -> 2020-04-23 | AI78: 4.4 | AJ78: =IF(ISERROR(VLOOKUP(AH78,'Cenários COPOM'!$A$1:$K$100,10,FALSE)),0,VLOOKUP(AH78,'Cenários COPOM'!$A$1:$K$100,10,FALSE)/100) -> 0 | AK78: 4.4 | AL78: 10130.7 | AM78: 4.3996986
A79: 77 | B79: =WORKDAY(B78,1,feriados!$A$2:$A$1000) -> 2020-04-24 | C79: 4.4 | D79: =IF(ISERROR(VLOOKUP(B79,'Cenários COPOM'!$A$1:$K$100,2,FALSE)),0,VLOOKUP(B79,'Cenários COPOM'!$A$1:$K$100,2,FALSE)/100) -> 0 | E79: 4.4 | F79: 10132.43 | G79: 4.399662365 | I79: 77 | J79: =WORKDAY(J78,1,feriados!$A$2:$A$1000) -> 2020-04-24 | K79: 4.4 | L79: =IF(ISERROR(VLOOKUP(J79,'Cenários COPOM'!$A$1:$K$100,4,FALSE)),0,VLOOKUP(J79,'Cenários COPOM'!$A$1:$K$100,4,FALSE)/100) -> 0 | M79: 4.4 | N79: 10132.43 | O79: 4.399662365 | Q79: 77 | R79: =WORKDAY(R78,1,feriados!$A$2:$A$1000) -> 2020-04-24 | S79: 4.4 | T79: =IF(ISERROR(VLOOKUP(R79,'Cenários COPOM'!$A$1:$K$100,6,FALSE)),0,VLOOKUP(R79,'Cenários COPOM'!$A$1:$K$100,6,FALSE)/100) -> 0 | U79: 4.4 | V79: 10132.43 | W79: 4.399662365 | Y79: 77 | Z79: =WORKDAY(Z78,1,feriados!$A$2:$A$1000) -> 2020-04-24 | AA79: 4.4 | AB79: =IF(ISERROR(VLOOKUP(Z79,'Cenários COPOM'!$A$1:$K$100,8,FALSE)),0,VLOOKUP(Z79,'Cenários COPOM'!$A$1:$K$100,8,FALSE)/100) -> 0 | AC79: 4.4 | AD79: 10132.43 | AE79: 4.399662365 | AG79: 77 | AH79: =WORKDAY(AH78,1,feriados!$A$2:$A$1000) -> 2020-04-24 | AI79: 4.4 | AJ79: =IF(ISERROR(VLOOKUP(AH79,'Cenários COPOM'!$A$1:$K$100,10,FALSE)),0,VLOOKUP(AH79,'Cenários COPOM'!$A$1:$K$100,10,FALSE)/100) -> 0 | AK79: 4.4 | AL79: 10132.43 | AM79: 4.399662365
A80: 78 | B80: =WORKDAY(B79,1,feriados!$A$2:$A$1000) -> 2020-04-27 | C80: 4.4 | D80: =IF(ISERROR(VLOOKUP(B80,'Cenários COPOM'!$A$1:$K$100,2,FALSE)),0,VLOOKUP(B80,'Cenários COPOM'!$A$1:$K$100,2,FALSE)/100) -> 0 | E80: 4.4 | F80: 10134.16 | G80: 4.399617227 | I80: 78 | J80: =WORKDAY(J79,1,feriados!$A$2:$A$1000) -> 2020-04-27 | K80: 4.4 | L80: =IF(ISERROR(VLOOKUP(J80,'Cenários COPOM'!$A$1:$K$100,4,FALSE)),0,VLOOKUP(J80,'Cenários COPOM'!$A$1:$K$100,4,FALSE)/100) -> 0 | M80: 4.4 | N80: 10134.16 | O80: 4.399617227 | Q80: 78 | R80: =WORKDAY(R79,1,feriados!$A$2:$A$1000) -> 2020-04-27 | S80: 4.4 | T80: =IF(ISERROR(VLOOKUP(R80,'Cenários COPOM'!$A$1:$K$100,6,FALSE)),0,VLOOKUP(R80,'Cenários COPOM'!$A$1:$K$100,6,FALSE)/100) -> 0 | U80: 4.4 | V80: 10134.16 | W80: 4.399617227 | Y80: 78 | Z80: =WORKDAY(Z79,1,feriados!$A$2:$A$1000) -> 2020-04-27 | AA80: 4.4 | AB80: =IF(ISERROR(VLOOKUP(Z80,'Cenários COPOM'!$A$1:$K$100,8,FALSE)),0,VLOOKUP(Z80,'Cenários COPOM'!$A$1:$K$100,8,FALSE)/100) -> 0 | AC80: 4.4 | AD80: 10134.16 | AE80: 4.399617227 | AG80: 78 | AH80: =WORKDAY(AH79,1,feriados!$A$2:$A$1000) -> 2020-04-27 | AI80: 4.4 | AJ80: =IF(ISERROR(VLOOKUP(AH80,'Cenários COPOM'!$A$1:$K$100,10,FALSE)),0,VLOOKUP(AH80,'Cenários COPOM'!$A$1:$K$100,10,FALSE)/100) -> 0 | AK80: 4.4 | AL80: 10134.16 | AM80: 4.399617227
A81: 79 | B81: =WORKDAY(B80,1,feriados!$A$2:$A$1000) -> 2020-04-28 | C81: 4.4 | D81: =IF(ISERROR(VLOOKUP(B81,'Cenários COPOM'!$A$1:$K$100,2,FALSE)),0,VLOOKUP(B81,'Cenários COPOM'!$A$1:$K$100,2,FALSE)/100) -> 0 | E81: 4.4 | F81: 10135.89 | G81: 4.399563526 | I81: 79 | J81: =WORKDAY(J80,1,feriados!$A$2:$A$1000) -> 2020-04-28 | K81: 4.4 | L81: =IF(ISERROR(VLOOKUP(J81,'Cenários COPOM'!$A$1:$K$100,4,FALSE)),0,VLOOKUP(J81,'Cenários COPOM'!$A$1:$K$100,4,FALSE)/100) -> 0 | M81: 4.4 | N81: 10135.89 | O81: 4.399563526 | Q81: 79 | R81: =WORKDAY(R80,1,feriados!$A$2:$A$1000) -> 2020-04-28 | S81: 4.4 | T81: =IF(ISERROR(VLOOKUP(R81,'Cenários COPOM'!$A$1:$K$100,6,FALSE)),0,VLOOKUP(R81,'Cenários COPOM'!$A$1:$K$100,6,FALSE)/100) -> 0 | U81: 4.4 | V81: 10135.89 | W81: 4.399563526 | Y81: 79 | Z81: =WORKDAY(Z80,1,feriados!$A$2:$A$1000) -> 2020-04-28 | AA81: 4.4 | AB81: =IF(ISERROR(VLOOKUP(Z81,'Cenários COPOM'!$A$1:$K$100,8,FALSE)),0,VLOOKUP(Z81,'Cenários COPOM'!$A$1:$K$100,8,FALSE)/100) -> 0 | AC81: 4.4 | AD81: 10135.89 | AE81: 4.399563526 | AG81: 79 | AH81: =WORKDAY(AH80,1,feriados!$A$2:$A$1000) -> 2020-04-28 | AI81: 4.4 | AJ81: =IF(ISERROR(VLOOKUP(AH81,'Cenários COPOM'!$A$1:$K$100,10,FALSE)),0,VLOOKUP(AH81,'Cenários COPOM'!$A$1:$K$100,10,FALSE)/100) -> 0 | AK81: 4.4 | AL81: 10135.89 | AM81: 4.399563526
A82: 80 | B82: =WORKDAY(B81,1,feriados!$A$2:$A$1000) -> 2020-04-29 | C82: 4.4 | D82: =IF(ISERROR(VLOOKUP(B82,'Cenários COPOM'!$A$1:$K$100,2,FALSE)),0,VLOOKUP(B82,'Cenários COPOM'!$A$1:$K$100,2,FALSE)/100) -> 0 | E82: 4.4 | F82: 10137.62 | G82: 4.399501588 | I82: 80 | J82: =WORKDAY(J81,1,feriados!$A$2:$A$1000) -> 2020-04-29 | K82: 4.4 | L82: =IF(ISERROR(VLOOKUP(J82,'Cenários COPOM'!$A$1:$K$100,4,FALSE)),0,VLOOKUP(J82,'Cenários COPOM'!$A$1:$K$100,4,FALSE)/100) -> 0 | M82: 4.4 | N82: 10137.62 | O82: 4.399501588 | Q82: 80 | R82: =WORKDAY(R81,1,feriados!$A$2:$A$1000) -> 2020-04-29 | S82: 4.4 | T82: =IF(ISERROR(VLOOKUP(R82,'Cenários COPOM'!$A$1:$K$100,6,FALSE)),0,VLOOKUP(R82,'Cenários COPOM'!$A$1:$K$100,6,FALSE)/100) -> 0 | U82: 4.4 | V82: 10137.62 | W82: 4.399501588 | Y82: 80 | Z82: =WORKDAY(Z81,1,feriados!$A$2:$A$1000) -> 2020-04-29 | AA82: 4.4 | AB82: =IF(ISERROR(VLOOKUP(Z82,'Cenários COPOM'!$A$1:$K$100,8,FALSE)),0,VLOOKUP(Z82,'Cenários COPOM'!$A$1:$K$100,8,FALSE)/100) -> 0 | AC82: 4.4 | AD82: 10137.62 | AE82: 4.399501588 | AG82: 80 | AH82: =WORKDAY(AH81,1,feriados!$A$2:$A$1000) -> 2020-04-29 | AI82: 4.4 | AJ82: =IF(ISERROR(VLOOKUP(AH82,'Cenários COPOM'!$A$1:$K$100,10,FALSE)),0,VLOOKUP(AH82,'Cenários COPOM'!$A$1:$K$100,10,FALSE)/100) -> 0 | AK82: 4.4 | AL82: 10137.62 | AM82: 4.399501588
A83: 81 | B83: =WORKDAY(B82,1,feriados!$A$2:$A$1000) -> 2020-04-30 | C83: 4.4 | D83: =IF(ISERROR(VLOOKUP(B83,'Cenários COPOM'!$A$1:$K$100,2,FALSE)),0,VLOOKUP(B83,'Cenários COPOM'!$A$1:$K$100,2,FALSE)/100) -> 0 | E83: 4.4 | F83: 10139.35 | G83: 4.399431721 | I83: 81 | J83: =WORKDAY(J82,1,feriados!$A$2:$A$1000) -> 2020-04-30 | K83: 4.4 | L83: =IF(ISERROR(VLOOKUP(J83,'Cenários COPOM'!$A$1:$K$100,4,FALSE)),0,VLOOKUP(J83,'Cenários COPOM'!$A$1:$K$100,4,FALSE)/100) -> 0 | M83: 4.4 | N83: 10139.35 | O83: 4.399431721 | Q83: 81 | R83: =WORKDAY(R82,1,feriados!$A$2:$A$1000) -> 2020-04-30 | S83: 4.4 | T83: =IF(ISERROR(VLOOKUP(R83,'Cenários COPOM'!$A$1:$K$100,6,FALSE)),0,VLOOKUP(R83,'Cenários COPOM'!$A$1:$K$100,6,FALSE)/100) -> 0 | U83: 4.4 | V83: 10139.35 | W83: 4.399431721 | Y83: 81 | Z83: =WORKDAY(Z82,1,feriados!$A$2:$A$1000) -> 2020-04-30 | AA83: 4.4 | AB83: =IF(ISERROR(VLOOKUP(Z83,'Cenários COPOM'!$A$1:$K$100,8,FALSE)),0,VLOOKUP(Z83,'Cenários COPOM'!$A$1:$K$100,8,FALSE)/100) -> 0 | AC83: 4.4 | AD83: 10139.35 | AE83: 4.399431721 | AG83: 81 | AH83: =WORKDAY(AH82,1,feriados!$A$2:$A$1000) -> 2020-04-30 | AI83: 4.4 | AJ83: =IF(ISERROR(VLOOKUP(AH83,'Cenários COPOM'!$A$1:$K$100,10,FALSE)),0,VLOOKUP(AH83,'Cenários COPOM'!$A$1:$K$100,10,FALSE)/100) -> 0 | AK83: 4.4 | AL83: 10139.35 | AM83: 4.399431721
A84: 82 | B84: =WORKDAY(B83,1,feriados!$A$2:$A$1000) -> 2020-05-04 | C84: 4.4 | D84: =IF(ISERROR(VLOOKUP(B84,'Cenários COPOM'!$A$1:$K$100,2,FALSE)),0,VLOOKUP(B84,'Cenários COPOM'!$A$1:$K$100,2,FALSE)/100) -> 0 | E84: 4.4 | F84: 10141.08 | G84: 4.399354217 | I84: 82 | J84: =WORKDAY(J83,1,feriados!$A$2:$A$1000) -> 2020-05-04 | K84: 4.4 | L84: =IF(ISERROR(VLOOKUP(J84,'Cenários COPOM'!$A$1:$K$100,4,FALSE)),0,VLOOKUP(J84,'Cenários COPOM'!$A$1:$K$100,4,FALSE)/100) -> 0 | M84: 4.4 | N84: 10141.08 | O84: 4.399354217 | Q84: 82 | R84: =WORKDAY(R83,1,feriados!$A$2:$A$1000) -> 2020-05-04 | S84: 4.4 | T84: =IF(ISERROR(VLOOKUP(R84,'Cenários COPOM'!$A$1:$K$100,6,FALSE)),0,VLOOKUP(R84,'Cenários COPOM'!$A$1:$K$100,6,FALSE)/100) -> 0 | U84: 4.4 | V84: 10141.08 | W84: 4.399354217 | Y84: 82 | Z84: =WORKDAY(Z83,1,feriados!$A$2:$A$1000) -> 2020-05-04 | AA84: 4.4 | AB84: =IF(ISERROR(VLOOKUP(Z84,'Cenários COPOM'!$A$1:$K$100,8,FALSE)),0,VLOOKUP(Z84,'Cenários COPOM'!$A$1:$K$100,8,FALSE)/100) -> 0 | AC84: 4.4 | AD84: 10141.08 | AE84: 4.399354217 | AG84: 82 | AH84: =WORKDAY(AH83,1,feriados!$A$2:$A$1000) -> 2020-05-04 | AI84: 4.4 | AJ84: =IF(ISERROR(VLOOKUP(AH84,'Cenários COPOM'!$A$1:$K$100,10,FALSE)),0,VLOOKUP(AH84,'Cenários COPOM'!$A$1:$K$100,10,FALSE)/100) -> 0 | AK84: 4.4 | AL84: 10141.08 | AM84: 4.399354217
A85: 83 | B85: =WORKDAY(B84,1,feriados!$A$2:$A$1000) -> 2020-05-05 | C85: 4.4 | D85: =IF(ISERROR(VLOOKUP(B85,'Cenários COPOM'!$A$1:$K$100,2,FALSE)),0,VLOOKUP(B85,'Cenários COPOM'!$A$1:$K$100,2,FALSE)/100) -> 0 | E85: 4.4 | F85: 10142.81 | G85: 4.399269357 | I85: 83 | J85: =WORKDAY(J84,1,feriados!$A$2:$A$1000) -> 2020-05-05 | K85: 4.4 | L85: =IF(ISERROR(VLOOKUP(J85,'Cenários COPOM'!$A$1:$K$100,4,FALSE)),0,VLOOKUP(J85,'Cenários COPOM'!$A$1:$K$100,4,FALSE)/100) -> 0 | M85: 4.4 | N85: 10142.81 | O85: 4.399269357 | Q85: 83 | R85: =WORKDAY(R84,1,feriados!$A$2:$A$1000) -> 2020-05-05 | S85: 4.4 | T85: =IF(ISERROR(VLOOKUP(R85,'Cenários COPOM'!$A$1:$K$100,6,FALSE)),0,VLOOKUP(R85,'Cenários COPOM'!$A$1:$K$100,6,FALSE)/100) -> 0 | U85: 4.4 | V85: 10142.81 | W85: 4.399269357 | Y85: 83 | Z85: =WORKDAY(Z84,1,feriados!$A$2:$A$1000) -> 2020-05-05 | AA85: 4.4 | AB85: =IF(ISERROR(VLOOKUP(Z85,'Cenários COPOM'!$A$1:$K$100,8,FALSE)),0,VLOOKUP(Z85,'Cenários COPOM'!$A$1:$K$100,8,FALSE)/100) -> 0 | AC85: 4.4 | AD85: 10142.81 | AE85: 4.399269357 | AG85: 83 | AH85: =WORKDAY(AH84,1,feriados!$A$2:$A$1000) -> 2020-05-05 | AI85: 4.4 | AJ85: =IF(ISERROR(VLOOKUP(AH85,'Cenários COPOM'!$A$1:$K$100,10,FALSE)),0,VLOOKUP(AH85,'Cenários COPOM'!$A$1:$K$100,10,FALSE)/100) -> 0 | AK85: 4.4 | AL85: 10142.81 | AM85: 4.399269357
A86: 84 | B86: =WORKDAY(B85,1,feriados!$A$2:$A$1000) -> 2020-05-06 | C86: 4.4 | D86: =IF(ISERROR(VLOOKUP(B86,'Cenários COPOM'!$A$1:$K$100,2,FALSE)),0,VLOOKUP(B86,'Cenários COPOM'!$A$1:$K$100,2,FALSE)/100) -> 0 | E86: 4.4 | F86: 10144.54 | G86: 4.399177405 | I86: 84 | J86: =WORKDAY(J85,1,feriados!$A$2:$A$1000) -> 2020-05-06 | K86: 4.4 | L86: =IF(ISERROR(VLOOKUP(J86,'Cenários COPOM'!$A$1:$K$100,4,FALSE)),0,VLOOKUP(J86,'Cenários COPOM'!$A$1:$K$100,4,FALSE)/100) -> 0 | M86: 4.4 | N86: 10144.54 | O86: 4.399177405 | Q86: 84 | R86: =WORKDAY(R85,1,feriados!$A$2:$A$1000) -> 2020-05-06 | S86: 4.4 | T86: =IF(ISERROR(VLOOKUP(R86,'Cenários COPOM'!$A$1:$K$100,6,FALSE)),0,VLOOKUP(R86,'Cenários COPOM'!$A$1:$K$100,6,FALSE)/100) -> 0 | U86: 4.4 | V86: 10144.54 | W86: 4.399177405 | Y86: 84 | Z86: =WORKDAY(Z85,1,feriados!$A$2:$A$1000) -> 2020-05-06 | AA86: 4.4 | AB86: =IF(ISERROR(VLOOKUP(Z86,'Cenários COPOM'!$A$1:$K$100,8,FALSE)),0,VLOOKUP(Z86,'Cenários COPOM'!$A$1:$K$100,8,FALSE)/100) -> 0 | AC86: 4.4 | AD86: 10144.54 | AE86: 4.399177405 | AG86: 84 | AH86: =WORKDAY(AH85,1,feriados!$A$2:$A$1000) -> 2020-05-06 | AI86: 4.4 | AJ86: =IF(ISERROR(VLOOKUP(AH86,'Cenários COPOM'!$A$1:$K$100,10,FALSE)),0,VLOOKUP(AH86,'Cenários COPOM'!$A$1:$K$100,10,FALSE)/100) -> 0 | AK86: 4.4 | AL86: 10144.54 | AM86: 4.399177405
A87: 85 | B87: =WORKDAY(B86,1,feriados!$A$2:$A$1000) -> 2020-05-07 | C87: 4.4 | D87: =IF(ISERROR(VLOOKUP(B87,'Cenários COPOM'!$A$1:$K$100,2,FALSE)),0,VLOOKUP(B87,'Cenários COPOM'!$A$1:$K$100,2,FALSE)/100) -> 0 | E87: 4.4 | F87: 10146.27 | G87: 4.399078616 | I87: 85 | J87: =WORKDAY(J86,1,feriados!$A$2:$A$1000) -> 2020-05-07 | K87: 4.4 | L87: =IF(ISERROR(VLOOKUP(J87,'Cenários COPOM'!$A$1:$K$100,4,FALSE)),0,VLOOKUP(J87,'Cenários COPOM'!$A$1:$K$100,4,FALSE)/100) -> 0 | M87: 4.4 | N87: 10146.27 | O87: 4.399078616 | Q87: 85 | R87: =WORKDAY(R86,1,feriados!$A$2:$A$1000) -> 2020-05-07 | S87: 4.4 | T87: =IF(ISERROR(VLOOKUP(R87,'Cenários COPOM'!$A$1:$K$100,6,FALSE)),0,VLOOKUP(R87,'Cenários COPOM'!$A$1:$K$100,6,FALSE)/100) -> 0 | U87: 4.4 | V87: 10146.27 | W87: 4.399078616 | Y87: 85 | Z87: =WORKDAY(Z86,1,feriados!$A$2:$A$1000) -> 2020-05-07 | AA87: 4.4 | AB87: =IF(ISERROR(VLOOKUP(Z87,'Cenários COPOM'!$A$1:$K$100,8,FALSE)),0,VLOOKUP(Z87,'Cenários COPOM'!$A$1:$K$100,8,FALSE)/100) -> 0 | AC87: 4.4 | AD87: 10146.27 | AE87: 4.399078616 | AG87: 85 | AH87: =WORKDAY(AH86,1,feriados!$A$2:$A$1000) -> 2020-05-07 | AI87: 4.4 | AJ87: =IF(ISERROR(VLOOKUP(AH87,'Cenários COPOM'!$A$1:$K$100,10,FALSE)),0,VLOOKUP(AH87,'Cenários COPOM'!$A$1:$K$100,10,FALSE)/100) -> 0 | AK87: 4.4 | AL87: 10146.27 | AM87: 4.399078616
A88: 86 | B88: =WORKDAY(B87,1,feriados!$A$2:$A$1000) -> 2020-05-08 | C88: 4.4 | D88: =IF(ISERROR(VLOOKUP(B88,'Cenários COPOM'!$A$1:$K$100,2,FALSE)),0,VLOOKUP(B88,'Cenários COPOM'!$A$1:$K$100,2,FALSE)/100) -> 0 | E88: 4.4 | F88: 10148 | G88: 4.398973231 | I88: 86 | J88: =WORKDAY(J87,1,feriados!$A$2:$A$1000) -> 2020-05-08 | K88: 4.4 | L88: =IF(ISERROR(VLOOKUP(J88,'Cenários COPOM'!$A$1:$K$100,4,FALSE)),0,VLOOKUP(J88,'Cenários COPOM'!$A$1:$K$100,4,FALSE)/100) -> 0 | M88: 4.4 | N88: 10148 | O88: 4.398973231 | Q88: 86 | R88: =WORKDAY(R87,1,feriados!$A$2:$A$1000) -> 2020-05-08 | S88: 4.4 | T88: =IF(ISERROR(VLOOKUP(R88,'Cenários COPOM'!$A$1:$K$100,6,FALSE)),0,VLOOKUP(R88,'Cenários COPOM'!$A$1:$K$100,6,FALSE)/100) -> 0 | U88: 4.4 | V88: 10148 | W88: 4.398973231 | Y88: 86 | Z88: =WORKDAY(Z87,1,feriados!$A$2:$A$1000) -> 2020-05-08 | AA88: 4.4 | AB88: =IF(ISERROR(VLOOKUP(Z88,'Cenários COPOM'!$A$1:$K$100,8,FALSE)),0,VLOOKUP(Z88,'Cenários COPOM'!$A$1:$K$100,8,FALSE)/100) -> 0 | AC88: 4.4 | AD88: 10148 | AE88: 4.398973231 | AG88: 86 | AH88: =WORKDAY(AH87,1,feriados!$A$2:$A$1000) -> 2020-05-08 | AI88: 4.4 | AJ88: =IF(ISERROR(VLOOKUP(AH88,'Cenários COPOM'!$A$1:$K$100,10,FALSE)),0,VLOOKUP(AH88,'Cenários COPOM'!$A$1:$K$100,10,FALSE)/100) -> 0 | AK88: 4.4 | AL88: 10148 | AM88: 4.398973231
A89: 87 | B89: =WORKDAY(B88,1,feriados!$A$2:$A$1000) -> 2020-05-11 | C89: 4.4 | D89: =IF(ISERROR(VLOOKUP(B89,'Cenários COPOM'!$A$1:$K$100,2,FALSE)),0,VLOOKUP(B89,'Cenários COPOM'!$A$1:$K$100,2,FALSE)/100) -> 0 | E89: 4.4 | F89: 10149.73 | G89: 4.39886148 | I89: 87 | J89: =WORKDAY(J88,1,feriados!$A$2:$A$1000) -> 2020-05-11 | K89: 4.4 | L89: =IF(ISERROR(VLOOKUP(J89,'Cenários COPOM'!$A$1:$K$100,4,FALSE)),0,VLOOKUP(J89,'Cenários COPOM'!$A$1:$K$100,4,FALSE)/100) -> 0 | M89: 4.4 | N89: 10149.73 | O89: 4.39886148 | Q89: 87 | R89: =WORKDAY(R88,1,feriados!$A$2:$A$1000) -> 2020-05-11 | S89: 4.4 | T89: =IF(ISERROR(VLOOKUP(R89,'Cenários COPOM'!$A$1:$K$100,6,FALSE)),0,VLOOKUP(R89,'Cenários COPOM'!$A$1:$K$100,6,FALSE)/100) -> 0 | U89: 4.4 | V89: 10149.73 | W89: 4.39886148 | Y89: 87 | Z89: =WORKDAY(Z88,1,feriados!$A$2:$A$1000) -> 2020-05-11 | AA89: 4.4 | AB89: =IF(ISERROR(VLOOKUP(Z89,'Cenários COPOM'!$A$1:$K$100,8,FALSE)),0,VLOOKUP(Z89,'Cenários COPOM'!$A$1:$K$100,8,FALSE)/100) -> 0 | AC89: 4.4 | AD89: 10149.73 | AE89: 4.39886148 | AG89: 87 | AH89: =WORKDAY(AH88,1,feriados!$A$2:$A$1000) -> 2020-05-11 | AI89: 4.4 | AJ89: =IF(ISERROR(VLOOKUP(AH89,'Cenários COPOM'!$A$1:$K$100,10,FALSE)),0,VLOOKUP(AH89,'Cenários COPOM'!$A$1:$K$100,10,FALSE)/100) -> 0 | AK89: 4.4 | AL89: 10149.73 | AM89: 4.39886148
A90: 88 | B90: =WORKDAY(B89,1,feriados!$A$2:$A$1000) -> 2020-05-12 | C90: 4.4 | D90: =IF(ISERROR(VLOOKUP(B90,'Cenários COPOM'!$A$1:$K$100,2,FALSE)),0,VLOOKUP(B90,'Cenários COPOM'!$A$1:$K$100,2,FALSE)/100) -> 0 | E90: 4.4 | F90: 10151.46 | G90: 4.398743583 | I90: 88 | J90: =WORKDAY(J89,1,feriados!$A$2:$A$1000) -> 2020-05-12 | K90: 4.4 | L90: =IF(ISERROR(VLOOKUP(J90,'Cenários COPOM'!$A$1:$K$100,4,FALSE)),0,VLOOKUP(J90,'Cenários COPOM'!$A$1:$K$100,4,FALSE)/100) -> 0 | M90: 4.4 | N90: 10151.46 | O90: 4.398743583 | Q90: 88 | R90: =WORKDAY(R89,1,feriados!$A$2:$A$1000) -> 2020-05-12 | S90: 4.4 | T90: =IF(ISERROR(VLOOKUP(R90,'Cenários COPOM'!$A$1:$K$100,6,FALSE)),0,VLOOKUP(R90,'Cenários COPOM'!$A$1:$K$100,6,FALSE)/100) -> 0 | U90: 4.4 | V90: 10151.46 | W90: 4.398743583 | Y90: 88 | Z90: =WORKDAY(Z89,1,feriados!$A$2:$A$1000) -> 2020-05-12 | AA90: 4.4 | AB90: =IF(ISERROR(VLOOKUP(Z90,'Cenários COPOM'!$A$1:$K$100,8,FALSE)),0,VLOOKUP(Z90,'Cenários COPOM'!$A$1:$K$100,8,FALSE)/100) -> 0 | AC90: 4.4 | AD90: 10151.46 | AE90: 4.398743583 | AG90: 88 | AH90: =WORKDAY(AH89,1,feriados!$A$2:$A$1000) -> 2020-05-12 | AI90: 4.4 | AJ90: =IF(ISERROR(VLOOKUP(AH90,'Cenários COPOM'!$A$1:$K$100,10,FALSE)),0,VLOOKUP(AH90,'Cenários COPOM'!$A$1:$K$100,10,FALSE)/100) -> 0 | AK90: 4.4 | AL90: 10151.46 | AM90: 4.398743583
A91: 89 | B91: =WORKDAY(B90,1,feriados!$A$2:$A$1000) -> 2020-05-13 | C91: 4.4 | D91: =IF(ISERROR(VLOOKUP(B91,'Cenários COPOM'!$A$1:$K$100,2,FALSE)),0,VLOOKUP(B91,'Cenários COPOM'!$A$1:$K$100,2,FALSE)/100) -> 0 | E91: 4.4 | F91: 10153.19 | G91: 4.398619751 | I91: 89 | J91: =WORKDAY(J90,1,feriados!$A$2:$A$1000) -> 2020-05-13 | K91: 4.4 | L91: =IF(ISERROR(VLOOKUP(J91,'Cenários COPOM'!$A$1:$K$100,4,FALSE)),0,VLOOKUP(J91,'Cenários COPOM'!$A$1:$K$100,4,FALSE)/100) -> 0 | M91: 4.4 | N91: 10153.19 | O91: 4.398619751 | Q91: 89 | R91: =WORKDAY(R90,1,feriados!$A$2:$A$1000) -> 2020-05-13 | S91: 4.4 | T91: =IF(ISERROR(VLOOKUP(R91,'Cenários COPOM'!$A$1:$K$100,6,FALSE)),0,VLOOKUP(R91,'Cenários COPOM'!$A$1:$K$100,6,FALSE)/100) -> 0 | U91: 4.4 | V91: 10153.19 | W91: 4.398619751 | Y91: 89 | Z91: =WORKDAY(Z90,1,feriados!$A$2:$A$1000) -> 2020-05-13 | AA91: 4.4 | AB91: =IF(ISERROR(VLOOKUP(Z91,'Cenários COPOM'!$A$1:$K$100,8,FALSE)),0,VLOOKUP(Z91,'Cenários COPOM'!$A$1:$K$100,8,FALSE)/100) -> 0 | AC91: 4.4 | AD91: 10153.19 | AE91: 4.398619751 | AG91: 89 | AH91: =WORKDAY(AH90,1,feriados!$A$2:$A$1000) -> 2020-05-13 | AI91: 4.4 | AJ91: =IF(ISERROR(VLOOKUP(AH91,'Cenários COPOM'!$A$1:$K$100,10,FALSE)),0,VLOOKUP(AH91,'Cenários COPOM'!$A$1:$K$100,10,FALSE)/100) -> 0 | AK91: 4.4 | AL91: 10153.19 | AM91: 4.398619751
A92: 90 | B92: =WORKDAY(B91,1,feriados!$A$2:$A$1000) -> 2020-05-14 | C92: 4.4 | D92: =IF(ISERROR(VLOOKUP(B92,'Cenários COPOM'!$A$1:$K$100,2,FALSE)),0,VLOOKUP(B92,'Cenários COPOM'!$A$1:$K$100,2,FALSE)/100) -> 0 | E92: 4.4 | F92: 10154.93 | G92: 4.398778041 | I92: 90 | J92: =WORKDAY(J91,1,feriados!$A$2:$A$1000) -> 2020-05-14 | K92: 4.4 | L92: =IF(ISERROR(VLOOKUP(J92,'Cenários COPOM'!$A$1:$K$100,4,FALSE)),0,VLOOKUP(J92,'Cenários COPOM'!$A$1:$K$100,4,FALSE)/100) -> 0 | M92: 4.4 | N92: 10154.93 | O92: 4.398778041 | Q92: 90 | R92: =WORKDAY(R91,1,feriados!$A$2:$A$1000) -> 2020-05-14 | S92: 4.4 | T92: =IF(ISERROR(VLOOKUP(R92,'Cenários COPOM'!$A$1:$K$100,6,FALSE)),0,VLOOKUP(R92,'Cenários COPOM'!$A$1:$K$100,6,FALSE)/100) -> 0 | U92: 4.4 | V92: 10154.93 | W92: 4.398778041 | Y92: 90 | Z92: =WORKDAY(Z91,1,feriados!$A$2:$A$1000) -> 2020-05-14 | AA92: 4.4 | AB92: =IF(ISERROR(VLOOKUP(Z92,'Cenários COPOM'!$A$1:$K$100,8,FALSE)),0,VLOOKUP(Z92,'Cenários COPOM'!$A$1:$K$100,8,FALSE)/100) -> 0 | AC92: 4.4 | AD92: 10154.93 | AE92: 4.398778041 | AG92: 90 | AH92: =WORKDAY(AH91,1,feriados!$A$2:$A$1000) -> 2020-05-14 | AI92: 4.4 | AJ92: =IF(ISERROR(VLOOKUP(AH92,'Cenários COPOM'!$A$1:$K$100,10,FALSE)),0,VLOOKUP(AH92,'Cenários COPOM'!$A$1:$K$100,10,FALSE)/100) -> 0 | AK92: 4.4 | AL92: 10154.93 | AM92: 4.398778041
A93: 91 | B93: =WORKDAY(B92,1,feriados!$A$2:$A$1000) -> 2020-05-15 | C93: 4.4 | D93: =IF(ISERROR(VLOOKUP(B93,'Cenários COPOM'!$A$1:$K$100,2,FALSE)),0,VLOOKUP(B93,'Cenários COPOM'!$A$1:$K$100,2,FALSE)/100) -> 0 | E93: 4.4 | F93: 10156.67 | G93: 4.398924364 | I93: 91 | J93: =WORKDAY(J92,1,feriados!$A$2:$A$1000) -> 2020-05-15 | K93: 4.4 | L93: =IF(ISERROR(VLOOKUP(J93,'Cenários COPOM'!$A$1:$K$100,4,FALSE)),0,VLOOKUP(J93,'Cenários COPOM'!$A$1:$K$100,4,FALSE)/100) -> 0 | M93: 4.4 | N93: 10156.67 | O93: 4.398924364 | Q93: 91 | R93: =WORKDAY(R92,1,feriados!$A$2:$A$1000) -> 2020-05-15 | S93: 4.4 | T93: =IF(ISERROR(VLOOKUP(R93,'Cenários COPOM'!$A$1:$K$100,6,FALSE)),0,VLOOKUP(R93,'Cenários COPOM'!$A$1:$K$100,6,FALSE)/100) -> 0 | U93: 4.4 | V93: 10156.67 | W93: 4.398924364 | Y93: 91 | Z93: =WORKDAY(Z92,1,feriados!$A$2:$A$1000) -> 2020-05-15 | AA93: 4.4 | AB93: =IF(ISERROR(VLOOKUP(Z93,'Cenários COPOM'!$A$1:$K$100,8,FALSE)),0,VLOOKUP(Z93,'Cenários COPOM'!$A$1:$K$100,8,FALSE)/100) -> 0 | AC93: 4.4 | AD93: 10156.67 | AE93: 4.398924364 | AG93: 91 | AH93: =WORKDAY(AH92,1,feriados!$A$2:$A$1000) -> 2020-05-15 | AI93: 4.4 | AJ93: =IF(ISERROR(VLOOKUP(AH93,'Cenários COPOM'!$A$1:$K$100,10,FALSE)),0,VLOOKUP(AH93,'Cenários COPOM'!$A$1:$K$100,10,FALSE)/100) -> 0 | AK93: 4.4 | AL93: 10156.67 | AM93: 4.398924364
A94: 92 | B94: =WORKDAY(B93,1,feriados!$A$2:$A$1000) -> 2020-05-18 | C94: 4.4 | D94: =IF(ISERROR(VLOOKUP(B94,'Cenários COPOM'!$A$1:$K$100,2,FALSE)),0,VLOOKUP(B94,'Cenários COPOM'!$A$1:$K$100,2,FALSE)/100) -> 0 | E94: 4.4 | F94: 10158.41 | G94: 4.399059114 | I94: 92 | J94: =WORKDAY(J93,1,feriados!$A$2:$A$1000) -> 2020-05-18 | K94: 4.4 | L94: =IF(ISERROR(VLOOKUP(J94,'Cenários COPOM'!$A$1:$K$100,4,FALSE)),0,VLOOKUP(J94,'Cenários COPOM'!$A$1:$K$100,4,FALSE)/100) -> 0 | M94: 4.4 | N94: 10158.41 | O94: 4.399059114 | Q94: 92 | R94: =WORKDAY(R93,1,feriados!$A$2:$A$1000) -> 2020-05-18 | S94: 4.4 | T94: =IF(ISERROR(VLOOKUP(R94,'Cenários COPOM'!$A$1:$K$100,6,FALSE)),0,VLOOKUP(R94,'Cenários COPOM'!$A$1:$K$100,6,FALSE)/100) -> 0 | U94: 4.4 | V94: 10158.41 | W94: 4.399059114 | Y94: 92 | Z94: =WORKDAY(Z93,1,feriados!$A$2:$A$1000) -> 2020-05-18 | AA94: 4.4 | AB94: =IF(ISERROR(VLOOKUP(Z94,'Cenários COPOM'!$A$1:$K$100,8,FALSE)),0,VLOOKUP(Z94,'Cenários COPOM'!$A$1:$K$100,8,FALSE)/100) -> 0 | AC94: 4.4 | AD94: 10158.41 | AE94: 4.399059114 | AG94: 92 | AH94: =WORKDAY(AH93,1,feriados!$A$2:$A$1000) -> 2020-05-18 | AI94: 4.4 | AJ94: =IF(ISERROR(VLOOKUP(AH94,'Cenários COPOM'!$A$1:$K$100,10,FALSE)),0,VLOOKUP(AH94,'Cenários COPOM'!$A$1:$K$100,10,FALSE)/100) -> 0 | AK94: 4.4 | AL94: 10158.41 | AM94: 4.399059114
A95: 93 | B95: =WORKDAY(B94,1,feriados!$A$2:$A$1000) -> 2020-05-19 | C95: 4.4 | D95: =IF(ISERROR(VLOOKUP(B95,'Cenários COPOM'!$A$1:$K$100,2,FALSE)),0,VLOOKUP(B95,'Cenários COPOM'!$A$1:$K$100,2,FALSE)/100) -> 0 | E95: 4.4 | F95: 10160.15 | G95: 4.399182666 | I95: 93 | J95: =WORKDAY(J94,1,feriados!$A$2:$A$1000) -> 2020-05-19 | K95: 4.4 | L95: =IF(ISERROR(VLOOKUP(J95,'Cenários COPOM'!$A$1:$K$100,4,FALSE)),0,VLOOKUP(J95,'Cenários COPOM'!$A$1:$K$100,4,FALSE)/100) -> 0 | M95: 4.4 | N95: 10160.15 | O95: 4.399182666 | Q95: 93 | R95: =WORKDAY(R94,1,feriados!$A$2:$A$1000) -> 2020-05-19 | S95: 4.4 | T95: =IF(ISERROR(VLOOKUP(R95,'Cenários COPOM'!$A$1:$K$100,6,FALSE)),0,VLOOKUP(R95,'Cenários COPOM'!$A$1:$K$100,6,FALSE)/100) -> 0 | U95: 4.4 | V95: 10160.15 | W95: 4.399182666 | Y95: 93 | Z95: =WORKDAY(Z94,1,feriados!$A$2:$A$1000) -> 2020-05-19 | AA95: 4.4 | AB95: =IF(ISERROR(VLOOKUP(Z95,'Cenários COPOM'!$A$1:$K$100,8,FALSE)),0,VLOOKUP(Z95,'Cenários COPOM'!$A$1:$K$100,8,FALSE)/100) -> 0 | AC95: 4.4 | AD95: 10160.15 | AE95: 4.399182666 | AG95: 93 | AH95: =WORKDAY(AH94,1,feriados!$A$2:$A$1000) -> 2020-05-19 | AI95: 4.4 | AJ95: =IF(ISERROR(VLOOKUP(AH95,'Cenários COPOM'!$A$1:$K$100,10,FALSE)),0,VLOOKUP(AH95,'Cenários COPOM'!$A$1:$K$100,10,FALSE)/100) -> 0 | AK95: 4.4 | AL95: 10160.15 | AM95: 4.399182666
A96: 94 | B96: =WORKDAY(B95,1,feriados!$A$2:$A$1000) -> 2020-05-20 | C96: 4.4 | D96: =IF(ISERROR(VLOOKUP(B96,'Cenários COPOM'!$A$1:$K$100,2,FALSE)),0,VLOOKUP(B96,'Cenários COPOM'!$A$1:$K$100,2,FALSE)/100) -> 0 | E96: 4.4 | F96: 10161.89 | G96: 4.399295381 | I96: 94 | J96: =WORKDAY(J95,1,feriados!$A$2:$A$1000) -> 2020-05-20 | K96: 4.4 | L96: =IF(ISERROR(VLOOKUP(J96,'Cenários COPOM'!$A$1:$K$100,4,FALSE)),0,VLOOKUP(J96,'Cenários COPOM'!$A$1:$K$100,4,FALSE)/100) -> 0 | M96: 4.4 | N96: 10161.89 | O96: 4.399295381 | Q96: 94 | R96: =WORKDAY(R95,1,feriados!$A$2:$A$1000) -> 2020-05-20 | S96: 4.4 | T96: =IF(ISERROR(VLOOKUP(R96,'Cenários COPOM'!$A$1:$K$100,6,FALSE)),0,VLOOKUP(R96,'Cenários COPOM'!$A$1:$K$100,6,FALSE)/100) -> 0 | U96: 4.4 | V96: 10161.89 | W96: 4.399295381 | Y96: 94 | Z96: =WORKDAY(Z95,1,feriados!$A$2:$A$1000) -> 2020-05-20 | AA96: 4.4 | AB96: =IF(ISERROR(VLOOKUP(Z96,'Cenários COPOM'!$A$1:$K$100,8,FALSE)),0,VLOOKUP(Z96,'Cenários COPOM'!$A$1:$K$100,8,FALSE)/100) -> 0 | AC96: 4.4 | AD96: 10161.89 | AE96: 4.399295381 | AG96: 94 | AH96: =WORKDAY(AH95,1,feriados!$A$2:$A$1000) -> 2020-05-20 | AI96: 4.4 | AJ96: =IF(ISERROR(VLOOKUP(AH96,'Cenários COPOM'!$A$1:$K$100,10,FALSE)),0,VLOOKUP(AH96,'Cenários COPOM'!$A$1:$K$100,10,FALSE)/100) -> 0 | AK96: 4.4 | AL96: 10161.89 | AM96: 4.399295381
A97: 95 | B97: =WORKDAY(B96,1,feriados!$A$2:$A$1000) -> 2020-05-21 | C97: 4.4 | D97: =IF(ISERROR(VLOOKUP(B97,'Cenários COPOM'!$A$1:$K$100,2,FALSE)),0,VLOOKUP(B97,'Cenários COPOM'!$A$1:$K$100,2,FALSE)/100) -> 0 | E97: 4.4 | F97: 10163.63 | G97: 4.399397604 | I97: 95 | J97: =WORKDAY(J96,1,feriados!$A$2:$A$1000) -> 2020-05-21 | K97: 4.4 | L97: =IF(ISERROR(VLOOKUP(J97,'Cenários COPOM'!$A$1:$K$100,4,FALSE)),0,VLOOKUP(J97,'Cenários COPOM'!$A$1:$K$100,4,FALSE)/100) -> 0 | M97: 4.4 | N97: 10163.63 | O97: 4.399397604 | Q97: 95 | R97: =WORKDAY(R96,1,feriados!$A$2:$A$1000) -> 2020-05-21 | S97: 4.4 | T97: =IF(ISERROR(VLOOKUP(R97,'Cenários COPOM'!$A$1:$K$100,6,FALSE)),0,VLOOKUP(R97,'Cenários COPOM'!$A$1:$K$100,6,FALSE)/100) -> 0 | U97: 4.4 | V97: 10163.63 | W97: 4.399397604 | Y97: 95 | Z97: =WORKDAY(Z96,1,feriados!$A$2:$A$1000) -> 2020-05-21 | AA97: 4.4 | AB97: =IF(ISERROR(VLOOKUP(Z97,'Cenários COPOM'!$A$1:$K$100,8,FALSE)),0,VLOOKUP(Z97,'Cenários COPOM'!$A$1:$K$100,8,FALSE)/100) -> 0 | AC97: 4.4 | AD97: 10163.63 | AE97: 4.399397604 | AG97: 95 | AH97: =WORKDAY(AH96,1,feriados!$A$2:$A$1000) -> 2020-05-21 | AI97: 4.4 | AJ97: =IF(ISERROR(VLOOKUP(AH97,'Cenários COPOM'!$A$1:$K$100,10,FALSE)),0,VLOOKUP(AH97,'Cenários COPOM'!$A$1:$K$100,10,FALSE)/100) -> 0 | AK97: 4.4 | AL97: 10163.63 | AM97: 4.399397604
A98: 96 | B98: =WORKDAY(B97,1,feriados!$A$2:$A$1000) -> 2020-05-22 | C98: 4.4 | D98: =IF(ISERROR(VLOOKUP(B98,'Cenários COPOM'!$A$1:$K$100,2,FALSE)),0,VLOOKUP(B98,'Cenários COPOM'!$A$1:$K$100,2,FALSE)/100) -> 0 | E98: 4.4 | F98: 10165.37 | G98: 4.399489666 | I98: 96 | J98: =WORKDAY(J97,1,feriados!$A$2:$A$1000) -> 2020-05-22 | K98: 4.4 | L98: =IF(ISERROR(VLOOKUP(J98,'Cenários COPOM'!$A$1:$K$100,4,FALSE)),0,VLOOKUP(J98,'Cenários COPOM'!$A$1:$K$100,4,FALSE)/100) -> 0 | M98: 4.4 | N98: 10165.37 | O98: 4.399489666 | Q98: 96 | R98: =WORKDAY(R97,1,feriados!$A$2:$A$1000) -> 2020-05-22 | S98: 4.4 | T98: =IF(ISERROR(VLOOKUP(R98,'Cenários COPOM'!$A$1:$K$100,6,FALSE)),0,VLOOKUP(R98,'Cenários COPOM'!$A$1:$K$100,6,FALSE)/100) -> 0 | U98: 4.4 | V98: 10165.37 | W98: 4.399489666 | Y98: 96 | Z98: =WORKDAY(Z97,1,feriados!$A$2:$A$1000) -> 2020-05-22 | AA98: 4.4 | AB98: =IF(ISERROR(VLOOKUP(Z98,'Cenários COPOM'!$A$1:$K$100,8,FALSE)),0,VLOOKUP(Z98,'Cenários COPOM'!$A$1:$K$100,8,FALSE)/100) -> 0 | AC98: 4.4 | AD98: 10165.37 | AE98: 4.399489666 | AG98: 96 | AH98: =WORKDAY(AH97,1,feriados!$A$2:$A$1000) -> 2020-05-22 | AI98: 4.4 | AJ98: =IF(ISERROR(VLOOKUP(AH98,'Cenários COPOM'!$A$1:$K$100,10,FALSE)),0,VLOOKUP(AH98,'Cenários COPOM'!$A$1:$K$100,10,FALSE)/100) -> 0 | AK98: 4.4 | AL98: 10165.37 | AM98: 4.399489666
A99: 97 | B99: =WORKDAY(B98,1,feriados!$A$2:$A$1000) -> 2020-05-25 | C99: 4.4 | D99: =IF(ISERROR(VLOOKUP(B99,'Cenários COPOM'!$A$1:$K$100,2,FALSE)),0,VLOOKUP(B99,'Cenários COPOM'!$A$1:$K$100,2,FALSE)/100) -> 0 | E99: 4.4 | F99: 10167.11 | G99: 4.399571882 | I99: 97 | J99: =WORKDAY(J98,1,feriados!$A$2:$A$1000) -> 2020-05-25 | K99: 4.4 | L99: =IF(ISERROR(VLOOKUP(J99,'Cenários COPOM'!$A$1:$K$100,4,FALSE)),0,VLOOKUP(J99,'Cenários COPOM'!$A$1:$K$100,4,FALSE)/100) -> 0 | M99: 4.4 | N99: 10167.11 | O99: 4.399571882 | Q99: 97 | R99: =WORKDAY(R98,1,feriados!$A$2:$A$1000) -> 2020-05-25 | S99: 4.4 | T99: =IF(ISERROR(VLOOKUP(R99,'Cenários COPOM'!$A$1:$K$100,6,FALSE)),0,VLOOKUP(R99,'Cenários COPOM'!$A$1:$K$100,6,FALSE)/100) -> 0 | U99: 4.4 | V99: 10167.11 | W99: 4.399571882 | Y99: 97 | Z99: =WORKDAY(Z98,1,feriados!$A$2:$A$1000) -> 2020-05-25 | AA99: 4.4 | AB99: =IF(ISERROR(VLOOKUP(Z99,'Cenários COPOM'!$A$1:$K$100,8,FALSE)),0,VLOOKUP(Z99,'Cenários COPOM'!$A$1:$K$100,8,FALSE)/100) -> 0 | AC99: 4.4 | AD99: 10167.11 | AE99: 4.399571882 | AG99: 97 | AH99: =WORKDAY(AH98,1,feriados!$A$2:$A$1000) -> 2020-05-25 | AI99: 4.4 | AJ99: =IF(ISERROR(VLOOKUP(AH99,'Cenários COPOM'!$A$1:$K$100,10,FALSE)),0,VLOOKUP(AH99,'Cenários COPOM'!$A$1:$K$100,10,FALSE)/100) -> 0 | AK99: 4.4 | AL99: 10167.11 | AM99: 4.399571882
A100: 98 | B100: =WORKDAY(B99,1,feriados!$A$2:$A$1000) -> 2020-05-26 | C100: 4.4 | D100: =IF(ISERROR(VLOOKUP(B100,'Cenários COPOM'!$A$1:$K$100,2,FALSE)),0,VLOOKUP(B100,'Cenários COPOM'!$A$1:$K$100,2,FALSE)/100) -> 0 | E100: 4.4 | F100: 10168.85 | G100: 4.399644558 | I100: 98 | J100: =WORKDAY(J99,1,feriados!$A$2:$A$1000) -> 2020-05-26 | K100: 4.4 | L100: =IF(ISERROR(VLOOKUP(J100,'Cenários COPOM'!$A$1:$K$100,4,FALSE)),0,VLOOKUP(J100,'Cenários COPOM'!$A$1:$K$100,4,FALSE)/100) -> 0 | M100: 4.4 | N100: 10168.85 | O100: 4.399644558 | Q100: 98 | R100: =WORKDAY(R99,1,feriados!$A$2:$A$1000) -> 2020-05-26 | S100: 4.4 | T100: =IF(ISERROR(VLOOKUP(R100,'Cenários COPOM'!$A$1:$K$100,6,FALSE)),0,VLOOKUP(R100,'Cenários COPOM'!$A$1:$K$100,6,FALSE)/100) -> 0 | U100: 4.4 | V100: 10168.85 | W100: 4.399644558 | Y100: 98 | Z100: =WORKDAY(Z99,1,feriados!$A$2:$A$1000) -> 2020-05-26 | AA100: 4.4 | AB100: =IF(ISERROR(VLOOKUP(Z100,'Cenários COPOM'!$A$1:$K$100,8,FALSE)),0,VLOOKUP(Z100,'Cenários COPOM'!$A$1:$K$100,8,FALSE)/100) -> 0 | AC100: 4.4 | AD100: 10168.85 | AE100: 4.399644558 | AG100: 98 | AH100: =WORKDAY(AH99,1,feriados!$A$2:$A$1000) -> 2020-05-26 | AI100: 4.4 | AJ100: =IF(ISERROR(VLOOKUP(AH100,'Cenários COPOM'!$A$1:$K$100,10,FALSE)),0,VLOOKUP(AH100,'Cenários COPOM'!$A$1:$K$100,10,FALSE)/100) -> 0 | AK100: 4.4 | AL100: 10168.85 | AM100: 4.399644558
A101: 99 | B101: =WORKDAY(B100,1,feriados!$A$2:$A$1000) -> 2020-05-27 | C101: 4.4 | D101: =IF(ISERROR(VLOOKUP(B101,'Cenários COPOM'!$A$1:$K$100,2,FALSE)),0,VLOOKUP(B101,'Cenários COPOM'!$A$1:$K$100,2,FALSE)/100) -> 0 | E101: 4.4 | F101: 10170.59 | G101: 4.399707985 | I101: 99 | J101: =WORKDAY(J100,1,feriados!$A$2:$A$1000) -> 2020-05-27 | K101: 4.4 | L101: =IF(ISERROR(VLOOKUP(J101,'Cenários COPOM'!$A$1:$K$100,4,FALSE)),0,VLOOKUP(J101,'Cenários COPOM'!$A$1:$K$100,4,FALSE)/100) -> 0 | M101: 4.4 | N101: 10170.59 | O101: 4.399707985 | Q101: 99 | R101: =WORKDAY(R100,1,feriados!$A$2:$A$1000) -> 2020-05-27 | S101: 4.4 | T101: =IF(ISERROR(VLOOKUP(R101,'Cenários COPOM'!$A$1:$K$100,6,FALSE)),0,VLOOKUP(R101,'Cenários COPOM'!$A$1:$K$100,6,FALSE)/100) -> 0 | U101: 4.4 | V101: 10170.59 | W101: 4.399707985 | Y101: 99 | Z101: =WORKDAY(Z100,1,feriados!$A$2:$A$1000) -> 2020-05-27 | AA101: 4.4 | AB101: =IF(ISERROR(VLOOKUP(Z101,'Cenários COPOM'!$A$1:$K$100,8,FALSE)),0,VLOOKUP(Z101,'Cenários COPOM'!$A$1:$K$100,8,FALSE)/100) -> 0 | AC101: 4.4 | AD101: 10170.59 | AE101: 4.399707985 | AG101: 99 | AH101: =WORKDAY(AH100,1,feriados!$A$2:$A$1000) -> 2020-05-27 | AI101: 4.4 | AJ101: =IF(ISERROR(VLOOKUP(AH101,'Cenários COPOM'!$A$1:$K$100,10,FALSE)),0,VLOOKUP(AH101,'Cenários COPOM'!$A$1:$K$100,10,FALSE)/100) -> 0 | AK101: 4.4 | AL101: 10170.59 | AM101: 4.399707985
A102: 100 | B102: =WORKDAY(B101,1,feriados!$A$2:$A$1000) -> 2020-05-28 | C102: 4.4 | D102: =IF(ISERROR(VLOOKUP(B102,'Cenários COPOM'!$A$1:$K$100,2,FALSE)),0,VLOOKUP(B102,'Cenários COPOM'!$A$1:$K$100,2,FALSE)/100) -> 0 | E102: 4.4 | F102: 10172.33 | G102: 4.399762444 | I102: 100 | J102: =WORKDAY(J101,1,feriados!$A$2:$A$1000) -> 2020-05-28 | K102: 4.4 | L102: =IF(ISERROR(VLOOKUP(J102,'Cenários COPOM'!$A$1:$K$100,4,FALSE)),0,VLOOKUP(J102,'Cenários COPOM'!$A$1:$K$100,4,FALSE)/100) -> 0 | M102: 4.4 | N102: 10172.33 | O102: 4.399762444 | Q102: 100 | R102: =WORKDAY(R101,1,feriados!$A$2:$A$1000) -> 2020-05-28 | S102: 4.4 | T102: =IF(ISERROR(VLOOKUP(R102,'Cenários COPOM'!$A$1:$K$100,6,FALSE)),0,VLOOKUP(R102,'Cenários COPOM'!$A$1:$K$100,6,FALSE)/100) -> 0 | U102: 4.4 | V102: 10172.33 | W102: 4.399762444 | Y102: 100 | Z102: =WORKDAY(Z101,1,feriados!$A$2:$A$1000) -> 2020-05-28 | AA102: 4.4 | AB102: =IF(ISERROR(VLOOKUP(Z102,'Cenários COPOM'!$A$1:$K$100,8,FALSE)),0,VLOOKUP(Z102,'Cenários COPOM'!$A$1:$K$100,8,FALSE)/100) -> 0 | AC102: 4.4 | AD102: 10172.33 | AE102: 4.399762444 | AG102: 100 | AH102: =WORKDAY(AH101,1,feriados!$A$2:$A$1000) -> 2020-05-28 | AI102: 4.4 | AJ102: =IF(ISERROR(VLOOKUP(AH102,'Cenários COPOM'!$A$1:$K$100,10,FALSE)),0,VLOOKUP(AH102,'Cenários COPOM'!$A$1:$K$100,10,FALSE)/100) -> 0 | AK102: 4.4 | AL102: 10172.33 | AM102: 4.399762444
A103: 101 | B103: =WORKDAY(B102,1,feriados!$A$2:$A$1000) -> 2020-05-29 | C103: 4.4 | D103: =IF(ISERROR(VLOOKUP(B103,'Cenários COPOM'!$A$1:$K$100,2,FALSE)),0,VLOOKUP(B103,'Cenários COPOM'!$A$1:$K$100,2,FALSE)/100) -> 0 | E103: 4.4 | F103: 10174.07 | G103: 4.399808202 | I103: 101 | J103: =WORKDAY(J102,1,feriados!$A$2:$A$1000) -> 2020-05-29 | K103: 4.4 | L103: =IF(ISERROR(VLOOKUP(J103,'Cenários COPOM'!$A$1:$K$100,4,FALSE)),0,VLOOKUP(J103,'Cenários COPOM'!$A$1:$K$100,4,FALSE)/100) -> 0 | M103: 4.4 | N103: 10174.07 | O103: 4.399808202 | Q103: 101 | R103: =WORKDAY(R102,1,feriados!$A$2:$A$1000) -> 2020-05-29 | S103: 4.4 | T103: =IF(ISERROR(VLOOKUP(R103,'Cenários COPOM'!$A$1:$K$100,6,FALSE)),0,VLOOKUP(R103,'Cenários COPOM'!$A$1:$K$100,6,FALSE)/100) -> 0 | U103: 4.4 | V103: 10174.07 | W103: 4.399808202 | Y103: 101 | Z103: =WORKDAY(Z102,1,feriados!$A$2:$A$1000) -> 2020-05-29 | AA103: 4.4 | AB103: =IF(ISERROR(VLOOKUP(Z103,'Cenários COPOM'!$A$1:$K$100,8,FALSE)),0,VLOOKUP(Z103,'Cenários COPOM'!$A$1:$K$100,8,FALSE)/100) -> 0 | AC103: 4.4 | AD103: 10174.07 | AE103: 4.399808202 | AG103: 101 | AH103: =WORKDAY(AH102,1,feriados!$A$2:$A$1000) -> 2020-05-29 | AI103: 4.4 | AJ103: =IF(ISERROR(VLOOKUP(AH103,'Cenários COPOM'!$A$1:$K$100,10,FALSE)),0,VLOOKUP(AH103,'Cenários COPOM'!$A$1:$K$100,10,FALSE)/100) -> 0 | AK103: 4.4 | AL103: 10174.07 | AM103: 4.399808202
A104: 102 | B104: =WORKDAY(B103,1,feriados!$A$2:$A$1000) -> 2020-06-01 | C104: 4.4 | D104: =IF(ISERROR(VLOOKUP(B104,'Cenários COPOM'!$A$1:$K$100,2,FALSE)),0,VLOOKUP(B104,'Cenários COPOM'!$A$1:$K$100,2,FALSE)/100) -> 0 | E104: 4.4 | F104: 10175.81 | G104: 4.399845519 | I104: 102 | J104: =WORKDAY(J103,1,feriados!$A$2:$A$1000) -> 2020-06-01 | K104: 4.4 | L104: =IF(ISERROR(VLOOKUP(J104,'Cenários COPOM'!$A$1:$K$100,4,FALSE)),0,VLOOKUP(J104,'Cenários COPOM'!$A$1:$K$100,4,FALSE)/100) -> 0 | M104: 4.4 | N104: 10175.81 | O104: 4.399845519 | Q104: 102 | R104: =WORKDAY(R103,1,feriados!$A$2:$A$1000) -> 2020-06-01 | S104: 4.4 | T104: =IF(ISERROR(VLOOKUP(R104,'Cenários COPOM'!$A$1:$K$100,6,FALSE)),0,VLOOKUP(R104,'Cenários COPOM'!$A$1:$K$100,6,FALSE)/100) -> 0 | U104: 4.4 | V104: 10175.81 | W104: 4.399845519 | Y104: 102 | Z104: =WORKDAY(Z103,1,feriados!$A$2:$A$1000) -> 2020-06-01 | AA104: 4.4 | AB104: =IF(ISERROR(VLOOKUP(Z104,'Cenários COPOM'!$A$1:$K$100,8,FALSE)),0,VLOOKUP(Z104,'Cenários COPOM'!$A$1:$K$100,8,FALSE)/100) -> 0 | AC104: 4.4 | AD104: 10175.81 | AE104: 4.399845519 | AG104: 102 | AH104: =WORKDAY(AH103,1,feriados!$A$2:$A$1000) -> 2020-06-01 | AI104: 4.4 | AJ104: =IF(ISERROR(VLOOKUP(AH104,'Cenários COPOM'!$A$1:$K$100,10,FALSE)),0,VLOOKUP(AH104,'Cenários COPOM'!$A$1:$K$100,10,FALSE)/100) -> 0 | AK104: 4.4 | AL104: 10175.81 | AM104: 4.399845519
A105: 103 | B105: =WORKDAY(B104,1,feriados!$A$2:$A$1000) -> 2020-06-02 | C105: 4.4 | D105: =IF(ISERROR(VLOOKUP(B105,'Cenários COPOM'!$A$1:$K$100,2,FALSE)),0,VLOOKUP(B105,'Cenários COPOM'!$A$1:$K$100,2,FALSE)/100) -> 0 | E105: 4.4 | F105: 10177.55 | G105: 4.399874644 | I105: 103 | J105: =WORKDAY(J104,1,feriados!$A$2:$A$1000) -> 2020-06-02 | K105: 4.4 | L105: =IF(ISERROR(VLOOKUP(J105,'Cenários COPOM'!$A$1:$K$100,4,FALSE)),0,VLOOKUP(J105,'Cenários COPOM'!$A$1:$K$100,4,FALSE)/100) -> 0 | M105: 4.4 | N105: 10177.55 | O105: 4.399874644 | Q105: 103 | R105: =WORKDAY(R104,1,feriados!$A$2:$A$1000) -> 2020-06-02 | S105: 4.4 | T105: =IF(ISERROR(VLOOKUP(R105,'Cenários COPOM'!$A$1:$K$100,6,FALSE)),0,VLOOKUP(R105,'Cenários COPOM'!$A$1:$K$100,6,FALSE)/100) -> 0 | U105: 4.4 | V105: 10177.55 | W105: 4.399874644 | Y105: 103 | Z105: =WORKDAY(Z104,1,feriados!$A$2:$A$1000) -> 2020-06-02 | AA105: 4.4 | AB105: =IF(ISERROR(VLOOKUP(Z105,'Cenários COPOM'!$A$1:$K$100,8,FALSE)),0,VLOOKUP(Z105,'Cenários COPOM'!$A$1:$K$100,8,FALSE)/100) -> 0 | AC105: 4.4 | AD105: 10177.55 | AE105: 4.399874644 | AG105: 103 | AH105: =WORKDAY(AH104,1,feriados!$A$2:$A$1000) -> 2020-06-02 | AI105: 4.4 | AJ105: =IF(ISERROR(VLOOKUP(AH105,'Cenários COPOM'!$A$1:$K$100,10,FALSE)),0,VLOOKUP(AH105,'Cenários COPOM'!$A$1:$K$100,10,FALSE)/100) -> 0 | AK105: 4.4 | AL105: 10177.55 | AM105: 4.399874644
A106: 104 | B106: =WORKDAY(B105,1,feriados!$A$2:$A$1000) -> 2020-06-03 | C106: 4.4 | D106: =IF(ISERROR(VLOOKUP(B106,'Cenários COPOM'!$A$1:$K$100,2,FALSE)),0,VLOOKUP(B106,'Cenários COPOM'!$A$1:$K$100,2,FALSE)/100) -> 0 | E106: 4.4 | F106: 10179.29 | G106: 4.399895814 | I106: 104 | J106: =WORKDAY(J105,1,feriados!$A$2:$A$1000) -> 2020-06-03 | K106: 4.4 | L106: =IF(ISERROR(VLOOKUP(J106,'Cenários COPOM'!$A$1:$K$100,4,FALSE)),0,VLOOKUP(J106,'Cenários COPOM'!$A$1:$K$100,4,FALSE)/100) -> 0 | M106: 4.4 | N106: 10179.29 | O106: 4.399895814 | Q106: 104 | R106: =WORKDAY(R105,1,feriados!$A$2:$A$1000) -> 2020-06-03 | S106: 4.4 | T106: =IF(ISERROR(VLOOKUP(R106,'Cenários COPOM'!$A$1:$K$100,6,FALSE)),0,VLOOKUP(R106,'Cenários COPOM'!$A$1:$K$100,6,FALSE)/100) -> 0 | U106: 4.4 | V106: 10179.29 | W106: 4.399895814 | Y106: 104 | Z106: =WORKDAY(Z105,1,feriados!$A$2:$A$1000) -> 2020-06-03 | AA106: 4.4 | AB106: =IF(ISERROR(VLOOKUP(Z106,'Cenários COPOM'!$A$1:$K$100,8,FALSE)),0,VLOOKUP(Z106,'Cenários COPOM'!$A$1:$K$100,8,FALSE)/100) -> 0 | AC106: 4.4 | AD106: 10179.29 | AE106: 4.399895814 | AG106: 104 | AH106: =WORKDAY(AH105,1,feriados!$A$2:$A$1000) -> 2020-06-03 | AI106: 4.4 | AJ106: =IF(ISERROR(VLOOKUP(AH106,'Cenários COPOM'!$A$1:$K$100,10,FALSE)),0,VLOOKUP(AH106,'Cenários COPOM'!$A$1:$K$100,10,FALSE)/100) -> 0 | AK106: 4.4 | AL106: 10179.29 | AM106: 4.399895814
A107: 105 | B107: =WORKDAY(B106,1,feriados!$A$2:$A$1000) -> 2020-06-04 | C107: 4.4 | D107: =IF(ISERROR(VLOOKUP(B107,'Cenários COPOM'!$A$1:$K$100,2,FALSE)),0,VLOOKUP(B107,'Cenários COPOM'!$A$1:$K$100,2,FALSE)/100) -> 0 | E107: 4.4 | F107: 10181.03 | G107: 4.39990926 | I107: 105 | J107: =WORKDAY(J106,1,feriados!$A$2:$A$1000) -> 2020-06-04 | K107: 4.4 | L107: =IF(ISERROR(VLOOKUP(J107,'Cenários COPOM'!$A$1:$K$100,4,FALSE)),0,VLOOKUP(J107,'Cenários COPOM'!$A$1:$K$100,4,FALSE)/100) -> 0 | M107: 4.4 | N107: 10181.03 | O107: 4.39990926 | Q107: 105 | R107: =WORKDAY(R106,1,feriados!$A$2:$A$1000) -> 2020-06-04 | S107: 4.4 | T107: =IF(ISERROR(VLOOKUP(R107,'Cenários COPOM'!$A$1:$K$100,6,FALSE)),0,VLOOKUP(R107,'Cenários COPOM'!$A$1:$K$100,6,FALSE)/100) -> 0 | U107: 4.4 | V107: 10181.03 | W107: 4.39990926 | Y107: 105 | Z107: =WORKDAY(Z106,1,feriados!$A$2:$A$1000) -> 2020-06-04 | AA107: 4.4 | AB107: =IF(ISERROR(VLOOKUP(Z107,'Cenários COPOM'!$A$1:$K$100,8,FALSE)),0,VLOOKUP(Z107,'Cenários COPOM'!$A$1:$K$100,8,FALSE)/100) -> 0 | AC107: 4.4 | AD107: 10181.03 | AE107: 4.39990926 | AG107: 105 | AH107: =WORKDAY(AH106,1,feriados!$A$2:$A$1000) -> 2020-06-04 | AI107: 4.4 | AJ107: =IF(ISERROR(VLOOKUP(AH107,'Cenários COPOM'!$A$1:$K$100,10,FALSE)),0,VLOOKUP(AH107,'Cenários COPOM'!$A$1:$K$100,10,FALSE)/100) -> 0 | AK107: 4.4 | AL107: 10181.03 | AM107: 4.39990926
A108: 106 | B108: =WORKDAY(B107,1,feriados!$A$2:$A$1000) -> 2020-06-05 | C108: 4.4 | D108: =IF(ISERROR(VLOOKUP(B108,'Cenários COPOM'!$A$1:$K$100,2,FALSE)),0,VLOOKUP(B108,'Cenários COPOM'!$A$1:$K$100,2,FALSE)/100) -> 0 | E108: 4.4 | F108: 10182.77 | G108: 4.399915202 | I108: 106 | J108: =WORKDAY(J107,1,feriados!$A$2:$A$1000) -> 2020-06-05 | K108: 4.4 | L108: =IF(ISERROR(VLOOKUP(J108,'Cenários COPOM'!$A$1:$K$100,4,FALSE)),0,VLOOKUP(J108,'Cenários COPOM'!$A$1:$K$100,4,FALSE)/100) -> 0 | M108: 4.4 | N108: 10182.77 | O108: 4.399915202 | Q108: 106 | R108: =WORKDAY(R107,1,feriados!$A$2:$A$1000) -> 2020-06-05 | S108: 4.4 | T108: =IF(ISERROR(VLOOKUP(R108,'Cenários COPOM'!$A$1:$K$100,6,FALSE)),0,VLOOKUP(R108,'Cenários COPOM'!$A$1:$K$100,6,FALSE)/100) -> 0 | U108: 4.4 | V108: 10182.77 | W108: 4.399915202 | Y108: 106 | Z108: =WORKDAY(Z107,1,feriados!$A$2:$A$1000) -> 2020-06-05 | AA108: 4.4 | AB108: =IF(ISERROR(VLOOKUP(Z108,'Cenários COPOM'!$A$1:$K$100,8,FALSE)),0,VLOOKUP(Z108,'Cenários COPOM'!$A$1:$K$100,8,FALSE)/100) -> 0 | AC108: 4.4 | AD108: 10182.77 | AE108: 4.399915202 | AG108: 106 | AH108: =WORKDAY(AH107,1,feriados!$A$2:$A$1000) -> 2020-06-05 | AI108: 4.4 | AJ108: =IF(ISERROR(VLOOKUP(AH108,'Cenários COPOM'!$A$1:$K$100,10,FALSE)),0,VLOOKUP(AH108,'Cenários COPOM'!$A$1:$K$100,10,FALSE)/100) -> 0 | AK108: 4.4 | AL108: 10182.77 | AM108: 4.399915202
A109: 107 | B109: =WORKDAY(B108,1,feriados!$A$2:$A$1000) -> 2020-06-08 | C109: 4.4 | D109: =IF(ISERROR(VLOOKUP(B109,'Cenários COPOM'!$A$1:$K$100,2,FALSE)),0,VLOOKUP(B109,'Cenários COPOM'!$A$1:$K$100,2,FALSE)/100) -> 0 | E109: 4.4 | F109: 10184.51 | G109: 4.399913855 | I109: 107 | J109: =WORKDAY(J108,1,feriados!$A$2:$A$1000) -> 2020-06-08 | K109: 4.4 | L109: =IF(ISERROR(VLOOKUP(J109,'Cenários COPOM'!$A$1:$K$100,4,FALSE)),0,VLOOKUP(J109,'Cenários COPOM'!$A$1:$K$100,4,FALSE)/100) -> 0 | M109: 4.4 | N109: 10184.51 | O109: 4.399913855 | Q109: 107 | R109: =WORKDAY(R108,1,feriados!$A$2:$A$1000) -> 2020-06-08 | S109: 4.4 | T109: =IF(ISERROR(VLOOKUP(R109,'Cenários COPOM'!$A$1:$K$100,6,FALSE)),0,VLOOKUP(R109,'Cenários COPOM'!$A$1:$K$100,6,FALSE)/100) -> 0 | U109: 4.4 | V109: 10184.51 | W109: 4.399913855 | Y109: 107 | Z109: =WORKDAY(Z108,1,feriados!$A$2:$A$1000) -> 2020-06-08 | AA109: 4.4 | AB109: =IF(ISERROR(VLOOKUP(Z109,'Cenários COPOM'!$A$1:$K$100,8,FALSE)),0,VLOOKUP(Z109,'Cenários COPOM'!$A$1:$K$100,8,FALSE)/100) -> 0 | AC109: 4.4 | AD109: 10184.51 | AE109: 4.399913855 | AG109: 107 | AH109: =WORKDAY(AH108,1,feriados!$A$2:$A$1000) -> 2020-06-08 | AI109: 4.4 | AJ109: =IF(ISERROR(VLOOKUP(AH109,'Cenários COPOM'!$A$1:$K$100,10,FALSE)),0,VLOOKUP(AH109,'Cenários COPOM'!$A$1:$K$100,10,FALSE)/100) -> 0 | AK109: 4.4 | AL109: 10184.51 | AM109: 4.399913855
A110: 108 | B110: =WORKDAY(B109,1,feriados!$A$2:$A$1000) -> 2020-06-09 | C110: 4.4 | D110: =IF(ISERROR(VLOOKUP(B110,'Cenários COPOM'!$A$1:$K$100,2,FALSE)),0,VLOOKUP(B110,'Cenários COPOM'!$A$1:$K$100,2,FALSE)/100) -> 0 | E110: 4.4 | F110: 10186.25 | G110: 4.399905422 | I110: 108 | J110: =WORKDAY(J109,1,feriados!$A$2:$A$1000) -> 2020-06-09 | K110: 4.4 | L110: =IF(ISERROR(VLOOKUP(J110,'Cenários COPOM'!$A$1:$K$100,4,FALSE)),0,VLOOKUP(J110,'Cenários COPOM'!$A$1:$K$100,4,FALSE)/100) -> 0 | M110: 4.4 | N110: 10186.25 | O110: 4.399905422 | Q110: 108 | R110: =WORKDAY(R109,1,feriados!$A$2:$A$1000) -> 2020-06-09 | S110: 4.4 | T110: =IF(ISERROR(VLOOKUP(R110,'Cenários COPOM'!$A$1:$K$100,6,FALSE)),0,VLOOKUP(R110,'Cenários COPOM'!$A$1:$K$100,6,FALSE)/100) -> 0 | U110: 4.4 | V110: 10186.25 | W110: 4.399905422 | Y110: 108 | Z110: =WORKDAY(Z109,1,feriados!$A$2:$A$1000) -> 2020-06-09 | AA110: 4.4 | AB110: =IF(ISERROR(VLOOKUP(Z110,'Cenários COPOM'!$A$1:$K$100,8,FALSE)),0,VLOOKUP(Z110,'Cenários COPOM'!$A$1:$K$100,8,FALSE)/100) -> 0 | AC110: 4.4 | AD110: 10186.25 | AE110: 4.399905422 | AG110: 108 | AH110: =WORKDAY(AH109,1,feriados!$A$2:$A$1000) -> 2020-06-09 | AI110: 4.4 | AJ110: =IF(ISERROR(VLOOKUP(AH110,'Cenários COPOM'!$A$1:$K$100,10,FALSE)),0,VLOOKUP(AH110,'Cenários COPOM'!$A$1:$K$100,10,FALSE)/100) -> 0 | AK110: 4.4 | AL110: 10186.25 | AM110: 4.399905422
A111: 109 | B111: =WORKDAY(B110,1,feriados!$A$2:$A$1000) -> 2020-06-10 | C111: 4.4 | D111: =IF(ISERROR(VLOOKUP(B111,'Cenários COPOM'!$A$1:$K$100,2,FALSE)),0,VLOOKUP(B111,'Cenários COPOM'!$A$1:$K$100,2,FALSE)/100) -> 0 | E111: 4.4 | F111: 10187.99 | G111: 4.3998901 | I111: 109 | J111: =WORKDAY(J110,1,feriados!$A$2:$A$1000) -> 2020-06-10 | K111: 4.4 | L111: =IF(ISERROR(VLOOKUP(J111,'Cenários COPOM'!$A$1:$K$100,4,FALSE)),0,VLOOKUP(J111,'Cenários COPOM'!$A$1:$K$100,4,FALSE)/100) -> 0 | M111: 4.4 | N111: 10187.99 | O111: 4.3998901 | Q111: 109 | R111: =WORKDAY(R110,1,feriados!$A$2:$A$1000) -> 2020-06-10 | S111: 4.4 | T111: =IF(ISERROR(VLOOKUP(R111,'Cenários COPOM'!$A$1:$K$100,6,FALSE)),0,VLOOKUP(R111,'Cenários COPOM'!$A$1:$K$100,6,FALSE)/100) -> 0 | U111: 4.4 | V111: 10187.99 | W111: 4.3998901 | Y111: 109 | Z111: =WORKDAY(Z110,1,feriados!$A$2:$A$1000) -> 2020-06-10 | AA111: 4.4 | AB111: =IF(ISERROR(VLOOKUP(Z111,'Cenários COPOM'!$A$1:$K$100,8,FALSE)),0,VLOOKUP(Z111,'Cenários COPOM'!$A$1:$K$100,8,FALSE)/100) -> 0 | AC111: 4.4 | AD111: 10187.99 | AE111: 4.3998901 | AG111: 109 | AH111: =WORKDAY(AH110,1,feriados!$A$2:$A$1000) -> 2020-06-10 | AI111: 4.4 | AJ111: =IF(ISERROR(VLOOKUP(AH111,'Cenários COPOM'!$A$1:$K$100,10,FALSE)),0,VLOOKUP(AH111,'Cenários COPOM'!$A$1:$K$100,10,FALSE)/100) -> 0 | AK111: 4.4 | AL111: 10187.99 | AM111: 4.3998901
A112: 110 | B112: =WORKDAY(B111,1,feriados!$A$2:$A$1000) -> 2020-06-12 | C112: 4.4 | D112: =IF(ISERROR(VLOOKUP(B112,'Cenários COPOM'!$A$1:$K$100,2,FALSE)),0,VLOOKUP(B112,'Cenários COPOM'!$A$1:$K$100,2,FALSE)/100) -> 0 | E112: 4.4 | F112: 10189.73 | G112: 4.399868081 | I112: 110 | J112: =WORKDAY(J111,1,feriados!$A$2:$A$1000) -> 2020-06-12 | K112: 4.4 | L112: =IF(ISERROR(VLOOKUP(J112,'Cenários COPOM'!$A$1:$K$100,4,FALSE)),0,VLOOKUP(J112,'Cenários COPOM'!$A$1:$K$100,4,FALSE)/100) -> 0 | M112: 4.4 | N112: 10189.73 | O112: 4.399868081 | Q112: 110 | R112: =WORKDAY(R111,1,feriados!$A$2:$A$1000) -> 2020-06-12 | S112: 4.4 | T112: =IF(ISERROR(VLOOKUP(R112,'Cenários COPOM'!$A$1:$K$100,6,FALSE)),0,VLOOKUP(R112,'Cenários COPOM'!$A$1:$K$100,6,FALSE)/100) -> 0 | U112: 4.4 | V112: 10189.73 | W112: 4.399868081 | Y112: 110 | Z112: =WORKDAY(Z111,1,feriados!$A$2:$A$1000) -> 2020-06-12 | AA112: 4.4 | AB112: =IF(ISERROR(VLOOKUP(Z112,'Cenários COPOM'!$A$1:$K$100,8,FALSE)),0,VLOOKUP(Z112,'Cenários COPOM'!$A$1:$K$100,8,FALSE)/100) -> 0 | AC112: 4.4 | AD112: 10189.73 | AE112: 4.399868081 | AG112: 110 | AH112: =WORKDAY(AH111,1,feriados!$A$2:$A$1000) -> 2020-06-12 | AI112: 4.4 | AJ112: =IF(ISERROR(VLOOKUP(AH112,'Cenários COPOM'!$A$1:$K$100,10,FALSE)),0,VLOOKUP(AH112,'Cenários COPOM'!$A$1:$K$100,10,FALSE)/100) -> 0 | AK112: 4.4 | AL112: 10189.73 | AM112: 4.399868081
A113: 111 | B113: =WORKDAY(B112,1,feriados!$A$2:$A$1000) -> 2020-06-15 | C113: 4.4 | D113: =IF(ISERROR(VLOOKUP(B113,'Cenários COPOM'!$A$1:$K$100,2,FALSE)),0,VLOOKUP(B113,'Cenários COPOM'!$A$1:$K$100,2,FALSE)/100) -> 0 | E113: 4.4 | F113: 10191.47 | G113: 4.399839548 | I113: 111 | J113: =WORKDAY(J112,1,feriados!$A$2:$A$1000) -> 2020-06-15 | K113: 4.4 | L113: =IF(ISERROR(VLOOKUP(J113,'Cenários COPOM'!$A$1:$K$100,4,FALSE)),0,VLOOKUP(J113,'Cenários COPOM'!$A$1:$K$100,4,FALSE)/100) -> 0 | M113: 4.4 | N113: 10191.47 | O113: 4.399839548 | Q113: 111 | R113: =WORKDAY(R112,1,feriados!$A$2:$A$1000) -> 2020-06-15 | S113: 4.4 | T113: =IF(ISERROR(VLOOKUP(R113,'Cenários COPOM'!$A$1:$K$100,6,FALSE)),0,VLOOKUP(R113,'Cenários COPOM'!$A$1:$K$100,6,FALSE)/100) -> 0 | U113: 4.4 | V113: 10191.47 | W113: 4.399839548 | Y113: 111 | Z113: =WORKDAY(Z112,1,feriados!$A$2:$A$1000) -> 2020-06-15 | AA113: 4.4 | AB113: =IF(ISERROR(VLOOKUP(Z113,'Cenários COPOM'!$A$1:$K$100,8,FALSE)),0,VLOOKUP(Z113,'Cenários COPOM'!$A$1:$K$100,8,FALSE)/100) -> 0 | AC113: 4.4 | AD113: 10191.47 | AE113: 4.399839548 | AG113: 111 | AH113: =WORKDAY(AH112,1,feriados!$A$2:$A$1000) -> 2020-06-15 | AI113: 4.4 | AJ113: =IF(ISERROR(VLOOKUP(AH113,'Cenários COPOM'!$A$1:$K$100,10,FALSE)),0,VLOOKUP(AH113,'Cenários COPOM'!$A$1:$K$100,10,FALSE)/100) -> 0 | AK113: 4.4 | AL113: 10191.47 | AM113: 4.399839548
A114: 112 | B114: =WORKDAY(B113,1,feriados!$A$2:$A$1000) -> 2020-06-16 | C114: 4.4 | D114: =IF(ISERROR(VLOOKUP(B114,'Cenários COPOM'!$A$1:$K$100,2,FALSE)),0,VLOOKUP(B114,'Cenários COPOM'!$A$1:$K$100,2,FALSE)/100) -> 0 | E114: 4.4 | F114: 10193.21 | G114: 4.399804677 | I114: 112 | J114: =WORKDAY(J113,1,feriados!$A$2:$A$1000) -> 2020-06-16 | K114: 4.4 | L114: =IF(ISERROR(VLOOKUP(J114,'Cenários COPOM'!$A$1:$K$100,4,FALSE)),0,VLOOKUP(J114,'Cenários COPOM'!$A$1:$K$100,4,FALSE)/100) -> 0 | M114: 4.4 | N114: 10193.21 | O114: 4.399804677 | Q114: 112 | R114: =WORKDAY(R113,1,feriados!$A$2:$A$1000) -> 2020-06-16 | S114: 4.4 | T114: =IF(ISERROR(VLOOKUP(R114,'Cenários COPOM'!$A$1:$K$100,6,FALSE)),0,VLOOKUP(R114,'Cenários COPOM'!$A$1:$K$100,6,FALSE)/100) -> 0 | U114: 4.4 | V114: 10193.21 | W114: 4.399804677 | Y114: 112 | Z114: =WORKDAY(Z113,1,feriados!$A$2:$A$1000) -> 2020-06-16 | AA114: 4.4 | AB114: =IF(ISERROR(VLOOKUP(Z114,'Cenários COPOM'!$A$1:$K$100,8,FALSE)),0,VLOOKUP(Z114,'Cenários COPOM'!$A$1:$K$100,8,FALSE)/100) -> 0 | AC114: 4.4 | AD114: 10193.21 | AE114: 4.399804677 | AG114: 112 | AH114: =WORKDAY(AH113,1,feriados!$A$2:$A$1000) -> 2020-06-16 | AI114: 4.4 | AJ114: =IF(ISERROR(VLOOKUP(AH114,'Cenários COPOM'!$A$1:$K$100,10,FALSE)),0,VLOOKUP(AH114,'Cenários COPOM'!$A$1:$K$100,10,FALSE)/100) -> 0 | AK114: 4.4 | AL114: 10193.21 | AM114: 4.399804677
A115: 113 | B115: =WORKDAY(B114,1,feriados!$A$2:$A$1000) -> 2020-06-17 | C115: 4.4 | D115: =IF(ISERROR(VLOOKUP(B115,'Cenários COPOM'!$A$1:$K$100,2,FALSE)),0,VLOOKUP(B115,'Cenários COPOM'!$A$1:$K$100,2,FALSE)/100) -> 0 | E115: 4.4 | F115: 10194.95 | G115: 4.399763639 | I115: 113 | J115: =WORKDAY(J114,1,feriados!$A$2:$A$1000) -> 2020-06-17 | K115: 4.4 | L115: =IF(ISERROR(VLOOKUP(J115,'Cenários COPOM'!$A$1:$K$100,4,FALSE)),0,VLOOKUP(J115,'Cenários COPOM'!$A$1:$K$100,4,FALSE)/100) -> 0 | M115: 4.4 | N115: 10194.95 | O115: 4.399763639 | Q115: 113 | R115: =WORKDAY(R114,1,feriados!$A$2:$A$1000) -> 2020-06-17 | S115: 4.4 | T115: =IF(ISERROR(VLOOKUP(R115,'Cenários COPOM'!$A$1:$K$100,6,FALSE)),0,VLOOKUP(R115,'Cenários COPOM'!$A$1:$K$100,6,FALSE)/100) -> 0 | U115: 4.4 | V115: 10194.95 | W115: 4.399763639 | Y115: 113 | Z115: =WORKDAY(Z114,1,feriados!$A$2:$A$1000) -> 2020-06-17 | AA115: 4.4 | AB115: =IF(ISERROR(VLOOKUP(Z115,'Cenários COPOM'!$A$1:$K$100,8,FALSE)),0,VLOOKUP(Z115,'Cenários COPOM'!$A$1:$K$100,8,FALSE)/100) -> 0 | AC115: 4.4 | AD115: 10194.95 | AE115: 4.399763639 | AG115: 113 | AH115: =WORKDAY(AH114,1,feriados!$A$2:$A$1000) -> 2020-06-17 | AI115: 4.4 | AJ115: =IF(ISERROR(VLOOKUP(AH115,'Cenários COPOM'!$A$1:$K$100,10,FALSE)),0,VLOOKUP(AH115,'Cenários COPOM'!$A$1:$K$100,10,FALSE)/100) -> 0 | AK115: 4.4 | AL115: 10194.95 | AM115: 4.399763639
A116: 114 | B116: =WORKDAY(B115,1,feriados!$A$2:$A$1000) -> 2020-06-18 | C116: 4.4 | D116: =IF(ISERROR(VLOOKUP(B116,'Cenários COPOM'!$A$1:$K$100,2,FALSE)),0,VLOOKUP(B116,'Cenários COPOM'!$A$1:$K$100,2,FALSE)/100) -> 0 | E116: 4.4 | F116: 10196.69 | G116: 4.399716598 | I116: 114 | J116: =WORKDAY(J115,1,feriados!$A$2:$A$1000) -> 2020-06-18 | K116: 4.4 | L116: =IF(ISERROR(VLOOKUP(J116,'Cenários COPOM'!$A$1:$K$100,4,FALSE)),0,VLOOKUP(J116,'Cenários COPOM'!$A$1:$K$100,4,FALSE)/100) -> 0 | M116: 4.4 | N116: 10196.69 | O116: 4.399716598 | Q116: 114 | R116: =WORKDAY(R115,1,feriados!$A$2:$A$1000) -> 2020-06-18 | S116: 4.4 | T116: =IF(ISERROR(VLOOKUP(R116,'Cenários COPOM'!$A$1:$K$100,6,FALSE)),0,VLOOKUP(R116,'Cenários COPOM'!$A$1:$K$100,6,FALSE)/100) -> 0 | U116: 4.4 | V116: 10196.69 | W116: 4.399716598 | Y116: 114 | Z116: =WORKDAY(Z115,1,feriados!$A$2:$A$1000) -> 2020-06-18 | AA116: 4.4 | AB116: =IF(ISERROR(VLOOKUP(Z116,'Cenários COPOM'!$A$1:$K$100,8,FALSE)),0,VLOOKUP(Z116,'Cenários COPOM'!$A$1:$K$100,8,FALSE)/100) -> 0 | AC116: 4.4 | AD116: 10196.69 | AE116: 4.399716598 | AG116: 114 | AH116: =WORKDAY(AH115,1,feriados!$A$2:$A$1000) -> 2020-06-18 | AI116: 4.4 | AJ116: =IF(ISERROR(VLOOKUP(AH116,'Cenários COPOM'!$A$1:$K$100,10,FALSE)),0,VLOOKUP(AH116,'Cenários COPOM'!$A$1:$K$100,10,FALSE)/100) -> 0 | AK116: 4.4 | AL116: 10196.69 | AM116: 4.399716598
A117: 115 | B117: =WORKDAY(B116,1,feriados!$A$2:$A$1000) -> 2020-06-19 | C117: 4.4 | D117: =IF(ISERROR(VLOOKUP(B117,'Cenários COPOM'!$A$1:$K$100,2,FALSE)),0,VLOOKUP(B117,'Cenários COPOM'!$A$1:$K$100,2,FALSE)/100) -> 0 | E117: 4.4 | F117: 10198.43 | G117: 4.399663714 | I117: 115 | J117: =WORKDAY(J116,1,feriados!$A$2:$A$1000) -> 2020-06-19 | K117: 4.4 | L117: =IF(ISERROR(VLOOKUP(J117,'Cenários COPOM'!$A$1:$K$100,4,FALSE)),0,VLOOKUP(J117,'Cenários COPOM'!$A$1:$K$100,4,FALSE)/100) -> 0 | M117: 4.4 | N117: 10198.43 | O117: 4.399663714 | Q117: 115 | R117: =WORKDAY(R116,1,feriados!$A$2:$A$1000) -> 2020-06-19 | S117: 4.4 | T117: =IF(ISERROR(VLOOKUP(R117,'Cenários COPOM'!$A$1:$K$100,6,FALSE)),0,VLOOKUP(R117,'Cenários COPOM'!$A$1:$K$100,6,FALSE)/100) -> 0 | U117: 4.4 | V117: 10198.43 | W117: 4.399663714 | Y117: 115 | Z117: =WORKDAY(Z116,1,feriados!$A$2:$A$1000) -> 2020-06-19 | AA117: 4.4 | AB117: =IF(ISERROR(VLOOKUP(Z117,'Cenários COPOM'!$A$1:$K$100,8,FALSE)),0,VLOOKUP(Z117,'Cenários COPOM'!$A$1:$K$100,8,FALSE)/100) -> 0 | AC117: 4.4 | AD117: 10198.43 | AE117: 4.399663714 | AG117: 115 | AH117: =WORKDAY(AH116,1,feriados!$A$2:$A$1000) -> 2020-06-19 | AI117: 4.4 | AJ117: =IF(ISERROR(VLOOKUP(AH117,'Cenários COPOM'!$A$1:$K$100,10,FALSE)),0,VLOOKUP(AH117,'Cenários COPOM'!$A$1:$K$100,10,FALSE)/100) -> 0 | AK117: 4.4 | AL117: 10198.43 | AM117: 4.399663714
A118: 116 | B118: =WORKDAY(B117,1,feriados!$A$2:$A$1000) -> 2020-06-22 | C118: 4.4 | D118: =IF(ISERROR(VLOOKUP(B118,'Cenários COPOM'!$A$1:$K$100,2,FALSE)),0,VLOOKUP(B118,'Cenários COPOM'!$A$1:$K$100,2,FALSE)/100) -> 0 | E118: 4.4 | F118: 10200.17 | G118: 4.39960514 | I118: 116 | J118: =WORKDAY(J117,1,feriados!$A$2:$A$1000) -> 2020-06-22 | K118: 4.4 | L118: =IF(ISERROR(VLOOKUP(J118,'Cenários COPOM'!$A$1:$K$100,4,FALSE)),0,VLOOKUP(J118,'Cenários COPOM'!$A$1:$K$100,4,FALSE)/100) -> 0 | M118: 4.4 | N118: 10200.17 | O118: 4.39960514 | Q118: 116 | R118: =WORKDAY(R117,1,feriados!$A$2:$A$1000) -> 2020-06-22 | S118: 4.4 | T118: =IF(ISERROR(VLOOKUP(R118,'Cenários COPOM'!$A$1:$K$100,6,FALSE)),0,VLOOKUP(R118,'Cenários COPOM'!$A$1:$K$100,6,FALSE)/100) -> 0 | U118: 4.4 | V118: 10200.17 | W118: 4.39960514 | Y118: 116 | Z118: =WORKDAY(Z117,1,feriados!$A$2:$A$1000) -> 2020-06-22 | AA118: 4.4 | AB118: =IF(ISERROR(VLOOKUP(Z118,'Cenários COPOM'!$A$1:$K$100,8,FALSE)),0,VLOOKUP(Z118,'Cenários COPOM'!$A$1:$K$100,8,FALSE)/100) -> 0 | AC118: 4.4 | AD118: 10200.17 | AE118: 4.39960514 | AG118: 116 | AH118: =WORKDAY(AH117,1,feriados!$A$2:$A$1000) -> 2020-06-22 | AI118: 4.4 | AJ118: =IF(ISERROR(VLOOKUP(AH118,'Cenários COPOM'!$A$1:$K$100,10,FALSE)),0,VLOOKUP(AH118,'Cenários COPOM'!$A$1:$K$100,10,FALSE)/100) -> 0 | AK118: 4.4 | AL118: 10200.17 | AM118: 4.39960514
A119: 117 | B119: =WORKDAY(B118,1,feriados!$A$2:$A$1000) -> 2020-06-23 | C119: 4.4 | D119: =IF(ISERROR(VLOOKUP(B119,'Cenários COPOM'!$A$1:$K$100,2,FALSE)),0,VLOOKUP(B119,'Cenários COPOM'!$A$1:$K$100,2,FALSE)/100) -> 0 | E119: 4.4 | F119: 10201.91 | G119: 4.399541024 | I119: 117 | J119: =WORKDAY(J118,1,feriados!$A$2:$A$1000) -> 2020-06-23 | K119: 4.4 | L119: =IF(ISERROR(VLOOKUP(J119,'Cenários COPOM'!$A$1:$K$100,4,FALSE)),0,VLOOKUP(J119,'Cenários COPOM'!$A$1:$K$100,4,FALSE)/100) -> 0 | M119: 4.4 | N119: 10201.91 | O119: 4.399541024 | Q119: 117 | R119: =WORKDAY(R118,1,feriados!$A$2:$A$1000) -> 2020-06-23 | S119: 4.4 | T119: =IF(ISERROR(VLOOKUP(R119,'Cenários COPOM'!$A$1:$K$100,6,FALSE)),0,VLOOKUP(R119,'Cenários COPOM'!$A$1:$K$100,6,FALSE)/100) -> 0 | U119: 4.4 | V119: 10201.91 | W119: 4.399541024 | Y119: 117 | Z119: =WORKDAY(Z118,1,feriados!$A$2:$A$1000) -> 2020-06-23 | AA119: 4.4 | AB119: =IF(ISERROR(VLOOKUP(Z119,'Cenários COPOM'!$A$1:$K$100,8,FALSE)),0,VLOOKUP(Z119,'Cenários COPOM'!$A$1:$K$100,8,FALSE)/100) -> 0 | AC119: 4.4 | AD119: 10201.91 | AE119: 4.399541024 | AG119: 117 | AH119: =WORKDAY(AH118,1,feriados!$A$2:$A$1000) -> 2020-06-23 | AI119: 4.4 | AJ119: =IF(ISERROR(VLOOKUP(AH119,'Cenários COPOM'!$A$1:$K$100,10,FALSE)),0,VLOOKUP(AH119,'Cenários COPOM'!$A$1:$K$100,10,FALSE)/100) -> 0 | AK119: 4.4 | AL119: 10201.91 | AM119: 4.399541024
A120: 118 | B120: =WORKDAY(B119,1,feriados!$A$2:$A$1000) -> 2020-06-24 | C120: 4.4 | D120: =IF(ISERROR(VLOOKUP(B120,'Cenários COPOM'!$A$1:$K$100,2,FALSE)),0,VLOOKUP(B120,'Cenários COPOM'!$A$1:$K$100,2,FALSE)/100) -> 0 | E120: 4.4 | F120: 10203.65 | G120: 4.399471509 | I120: 118 | J120: =WORKDAY(J119,1,feriados!$A$2:$A$1000) -> 2020-06-24 | K120: 4.4 | L120: =IF(ISERROR(VLOOKUP(J120,'Cenários COPOM'!$A$1:$K$100,4,FALSE)),0,VLOOKUP(J120,'Cenários COPOM'!$A$1:$K$100,4,FALSE)/100) -> 0 | M120: 4.4 | N120: 10203.65 | O120: 4.399471509 | Q120: 118 | R120: =WORKDAY(R119,1,feriados!$A$2:$A$1000) -> 2020-06-24 | S120: 4.4 | T120: =IF(ISERROR(VLOOKUP(R120,'Cenários COPOM'!$A$1:$K$100,6,FALSE)),0,VLOOKUP(R120,'Cenários COPOM'!$A$1:$K$100,6,FALSE)/100) -> 0 | U120: 4.4 | V120: 10203.65 | W120: 4.399471509 | Y120: 118 | Z120: =WORKDAY(Z119,1,feriados!$A$2:$A$1000) -> 2020-06-24 | AA120: 4.4 | AB120: =IF(ISERROR(VLOOKUP(Z120,'Cenários COPOM'!$A$1:$K$100,8,FALSE)),0,VLOOKUP(Z120,'Cenários COPOM'!$A$1:$K$100,8,FALSE)/100) -> 0 | AC120: 4.4 | AD120: 10203.65 | AE120: 4.399471509 | AG120: 118 | AH120: =WORKDAY(AH119,1,feriados!$A$2:$A$1000) -> 2020-06-24 | AI120: 4.4 | AJ120: =IF(ISERROR(VLOOKUP(AH120,'Cenários COPOM'!$A$1:$K$100,10,FALSE)),0,VLOOKUP(AH120,'Cenários COPOM'!$A$1:$K$100,10,FALSE)/100) -> 0 | AK120: 4.4 | AL120: 10203.65 | AM120: 4.399471509
A121: 119 | B121: =WORKDAY(B120,1,feriados!$A$2:$A$1000) -> 2020-06-25 | C121: 4.4 | D121: =IF(ISERROR(VLOOKUP(B121,'Cenários COPOM'!$A$1:$K$100,2,FALSE)),0,VLOOKUP(B121,'Cenários COPOM'!$A$1:$K$100,2,FALSE)/100) -> 0 | E121: 4.4 | F121: 10205.39 | G121: 4.399396734 | I121: 119 | J121: =WORKDAY(J120,1,feriados!$A$2:$A$1000) -> 2020-06-25 | K121: 4.4 | L121: =IF(ISERROR(VLOOKUP(J121,'Cenários COPOM'!$A$1:$K$100,4,FALSE)),0,VLOOKUP(J121,'Cenários COPOM'!$A$1:$K$100,4,FALSE)/100) -> 0 | M121: 4.4 | N121: 10205.39 | O121: 4.399396734 | Q121: 119 | R121: =WORKDAY(R120,1,feriados!$A$2:$A$1000) -> 2020-06-25 | S121: 4.4 | T121: =IF(ISERROR(VLOOKUP(R121,'Cenários COPOM'!$A$1:$K$100,6,FALSE)),0,VLOOKUP(R121,'Cenários COPOM'!$A$1:$K$100,6,FALSE)/100) -> 0 | U121: 4.4 | V121: 10205.39 | W121: 4.399396734 | Y121: 119 | Z121: =WORKDAY(Z120,1,feriados!$A$2:$A$1000) -> 2020-06-25 | AA121: 4.4 | AB121: =IF(ISERROR(VLOOKUP(Z121,'Cenários COPOM'!$A$1:$K$100,8,FALSE)),0,VLOOKUP(Z121,'Cenários COPOM'!$A$1:$K$100,8,FALSE)/100) -> 0 | AC121: 4.4 | AD121: 10205.39 | AE121: 4.399396734 | AG121: 119 | AH121: =WORKDAY(AH120,1,feriados!$A$2:$A$1000) -> 2020-06-25 | AI121: 4.4 | AJ121: =IF(ISERROR(VLOOKUP(AH121,'Cenários COPOM'!$A$1:$K$100,10,FALSE)),0,VLOOKUP(AH121,'Cenários COPOM'!$A$1:$K$100,10,FALSE)/100) -> 0 | AK121: 4.4 | AL121: 10205.39 | AM121: 4.399396734
A122: 120 | B122: =WORKDAY(B121,1,feriados!$A$2:$A$1000) -> 2020-06-26 | C122: 4.4 | D122: =IF(ISERROR(VLOOKUP(B122,'Cenários COPOM'!$A$1:$K$100,2,FALSE)),0,VLOOKUP(B122,'Cenários COPOM'!$A$1:$K$100,2,FALSE)/100) -> 0 | E122: 4.4 | F122: 10207.13 | G122: 4.399316831 | I122: 120 | J122: =WORKDAY(J121,1,feriados!$A$2:$A$1000) -> 2020-06-26 | K122: 4.4 | L122: =IF(ISERROR(VLOOKUP(J122,'Cenários COPOM'!$A$1:$K$100,4,FALSE)),0,VLOOKUP(J122,'Cenários COPOM'!$A$1:$K$100,4,FALSE)/100) -> 0 | M122: 4.4 | N122: 10207.13 | O122: 4.399316831 | Q122: 120 | R122: =WORKDAY(R121,1,feriados!$A$2:$A$1000) -> 2020-06-26 | S122: 4.4 | T122: =IF(ISERROR(VLOOKUP(R122,'Cenários COPOM'!$A$1:$K$100,6,FALSE)),0,VLOOKUP(R122,'Cenários COPOM'!$A$1:$K$100,6,FALSE)/100) -> 0 | U122: 4.4 | V122: 10207.13 | W122: 4.399316831 | Y122: 120 | Z122: =WORKDAY(Z121,1,feriados!$A$2:$A$1000) -> 2020-06-26 | AA122: 4.4 | AB122: =IF(ISERROR(VLOOKUP(Z122,'Cenários COPOM'!$A$1:$K$100,8,FALSE)),0,VLOOKUP(Z122,'Cenários COPOM'!$A$1:$K$100,8,FALSE)/100) -> 0 | AC122: 4.4 | AD122: 10207.13 | AE122: 4.399316831 | AG122: 120 | AH122: =WORKDAY(AH121,1,feriados!$A$2:$A$1000) -> 2020-06-26 | AI122: 4.4 | AJ122: =IF(ISERROR(VLOOKUP(AH122,'Cenários COPOM'!$A$1:$K$100,10,FALSE)),0,VLOOKUP(AH122,'Cenários COPOM'!$A$1:$K$100,10,FALSE)/100) -> 0 | AK122: 4.4 | AL122: 10207.13 | AM122: 4.399316831
A123: 121 | B123: =WORKDAY(B122,1,feriados!$A$2:$A$1000) -> 2020-06-29 | C123: 4.4 | D123: =IF(ISERROR(VLOOKUP(B123,'Cenários COPOM'!$A$1:$K$100,2,FALSE)),0,VLOOKUP(B123,'Cenários COPOM'!$A$1:$K$100,2,FALSE)/100) -> 0 | E123: 4.4 | F123: 10208.87 | G123: 4.399231931 | I123: 121 | J123: =WORKDAY(J122,1,feriados!$A$2:$A$1000) -> 2020-06-29 | K123: 4.4 | L123: =IF(ISERROR(VLOOKUP(J123,'Cenários COPOM'!$A$1:$K$100,4,FALSE)),0,VLOOKUP(J123,'Cenários COPOM'!$A$1:$K$100,4,FALSE)/100) -> 0 | M123: 4.4 | N123: 10208.87 | O123: 4.399231931 | Q123: 121 | R123: =WORKDAY(R122,1,feriados!$A$2:$A$1000) -> 2020-06-29 | S123: 4.4 | T123: =IF(ISERROR(VLOOKUP(R123,'Cenários COPOM'!$A$1:$K$100,6,FALSE)),0,VLOOKUP(R123,'Cenários COPOM'!$A$1:$K$100,6,FALSE)/100) -> 0 | U123: 4.4 | V123: 10208.87 | W123: 4.399231931 | Y123: 121 | Z123: =WORKDAY(Z122,1,feriados!$A$2:$A$1000) -> 2020-06-29 | AA123: 4.4 | AB123: =IF(ISERROR(VLOOKUP(Z123,'Cenários COPOM'!$A$1:$K$100,8,FALSE)),0,VLOOKUP(Z123,'Cenários COPOM'!$A$1:$K$100,8,FALSE)/100) -> 0 | AC123: 4.4 | AD123: 10208.87 | AE123: 4.399231931 | AG123: 121 | AH123: =WORKDAY(AH122,1,feriados!$A$2:$A$1000) -> 2020-06-29 | AI123: 4.4 | AJ123: =IF(ISERROR(VLOOKUP(AH123,'Cenários COPOM'!$A$1:$K$100,10,FALSE)),0,VLOOKUP(AH123,'Cenários COPOM'!$A$1:$K$100,10,FALSE)/100) -> 0 | AK123: 4.4 | AL123: 10208.87 | AM123: 4.399231931
A124: 122 | B124: =WORKDAY(B123,1,feriados!$A$2:$A$1000) -> 2020-06-30 | C124: 4.4 | D124: =IF(ISERROR(VLOOKUP(B124,'Cenários COPOM'!$A$1:$K$100,2,FALSE)),0,VLOOKUP(B124,'Cenários COPOM'!$A$1:$K$100,2,FALSE)/100) -> 0 | E124: 4.4 | F124: 10210.61 | G124: 4.399142159 | I124: 122 | J124: =WORKDAY(J123,1,feriados!$A$2:$A$1000) -> 2020-06-30 | K124: 4.4 | L124: =IF(ISERROR(VLOOKUP(J124,'Cenários COPOM'!$A$1:$K$100,4,FALSE)),0,VLOOKUP(J124,'Cenários COPOM'!$A$1:$K$100,4,FALSE)/100) -> 0 | M124: 4.4 | N124: 10210.61 | O124: 4.399142159 | Q124: 122 | R124: =WORKDAY(R123,1,feriados!$A$2:$A$1000) -> 2020-06-30 | S124: 4.4 | T124: =IF(ISERROR(VLOOKUP(R124,'Cenários COPOM'!$A$1:$K$100,6,FALSE)),0,VLOOKUP(R124,'Cenários COPOM'!$A$1:$K$100,6,FALSE)/100) -> 0 | U124: 4.4 | V124: 10210.61 | W124: 4.399142159 | Y124: 122 | Z124: =WORKDAY(Z123,1,feriados!$A$2:$A$1000) -> 2020-06-30 | AA124: 4.4 | AB124: =IF(ISERROR(VLOOKUP(Z124,'Cenários COPOM'!$A$1:$K$100,8,FALSE)),0,VLOOKUP(Z124,'Cenários COPOM'!$A$1:$K$100,8,FALSE)/100) -> 0 | AC124: 4.4 | AD124: 10210.61 | AE124: 4.399142159 | AG124: 122 | AH124: =WORKDAY(AH123,1,feriados!$A$2:$A$1000) -> 2020-06-30 | AI124: 4.4 | AJ124: =IF(ISERROR(VLOOKUP(AH124,'Cenários COPOM'!$A$1:$K$100,10,FALSE)),0,VLOOKUP(AH124,'Cenários COPOM'!$A$1:$K$100,10,FALSE)/100) -> 0 | AK124: 4.4 | AL124: 10210.61 | AM124: 4.399142159
A125: 123 | B125: =WORKDAY(B124,1,feriados!$A$2:$A$1000) -> 2020-07-01 | C125: 4.4 | D125: =IF(ISERROR(VLOOKUP(B125,'Cenários COPOM'!$A$1:$K$100,2,FALSE)),0,VLOOKUP(B125,'Cenários COPOM'!$A$1:$K$100,2,FALSE)/100) -> 0 | E125: 4.4 | F125: 10212.35 | G125: 4.399047635 | I125: 123 | J125: =WORKDAY(J124,1,feriados!$A$2:$A$1000) -> 2020-07-01 | K125: 4.4 | L125: =IF(ISERROR(VLOOKUP(J125,'Cenários COPOM'!$A$1:$K$100,4,FALSE)),0,VLOOKUP(J125,'Cenários COPOM'!$A$1:$K$100,4,FALSE)/100) -> 0 | M125: 4.4 | N125: 10212.35 | O125: 4.399047635 | Q125: 123 | R125: =WORKDAY(R124,1,feriados!$A$2:$A$1000) -> 2020-07-01 | S125: 4.4 | T125: =IF(ISERROR(VLOOKUP(R125,'Cenários COPOM'!$A$1:$K$100,6,FALSE)),0,VLOOKUP(R125,'Cenários COPOM'!$A$1:$K$100,6,FALSE)/100) -> 0 | U125: 4.4 | V125: 10212.35 | W125: 4.399047635 | Y125: 123 | Z125: =WORKDAY(Z124,1,feriados!$A$2:$A$1000) -> 2020-07-01 | AA125: 4.4 | AB125: =IF(ISERROR(VLOOKUP(Z125,'Cenários COPOM'!$A$1:$K$100,8,FALSE)),0,VLOOKUP(Z125,'Cenários COPOM'!$A$1:$K$100,8,FALSE)/100) -> 0 | AC125: 4.4 | AD125: 10212.35 | AE125: 4.399047635 | AG125: 123 | AH125: =WORKDAY(AH124,1,feriados!$A$2:$A$1000) -> 2020-07-01 | AI125: 4.4 | AJ125: =IF(ISERROR(VLOOKUP(AH125,'Cenários COPOM'!$A$1:$K$100,10,FALSE)),0,VLOOKUP(AH125,'Cenários COPOM'!$A$1:$K$100,10,FALSE)/100) -> 0 | AK125: 4.4 | AL125: 10212.35 | AM125: 4.399047635
A126: 124 | B126: =WORKDAY(B125,1,feriados!$A$2:$A$1000) -> 2020-07-02 | C126: 4.4 | D126: =IF(ISERROR(VLOOKUP(B126,'Cenários COPOM'!$A$1:$K$100,2,FALSE)),0,VLOOKUP(B126,'Cenários COPOM'!$A$1:$K$100,2,FALSE)/100) -> 0 | E126: 4.4 | F126: 10214.1 | G126: 4.399156195 | I126: 124 | J126: =WORKDAY(J125,1,feriados!$A$2:$A$1000) -> 2020-07-02 | K126: 4.4 | L126: =IF(ISERROR(VLOOKUP(J126,'Cenários COPOM'!$A$1:$K$100,4,FALSE)),0,VLOOKUP(J126,'Cenários COPOM'!$A$1:$K$100,4,FALSE)/100) -> 0 | M126: 4.4 | N126: 10214.1 | O126: 4.399156195 | Q126: 124 | R126: =WORKDAY(R125,1,feriados!$A$2:$A$1000) -> 2020-07-02 | S126: 4.4 | T126: =IF(ISERROR(VLOOKUP(R126,'Cenários COPOM'!$A$1:$K$100,6,FALSE)),0,VLOOKUP(R126,'Cenários COPOM'!$A$1:$K$100,6,FALSE)/100) -> 0 | U126: 4.4 | V126: 10214.1 | W126: 4.399156195 | Y126: 124 | Z126: =WORKDAY(Z125,1,feriados!$A$2:$A$1000) -> 2020-07-02 | AA126: 4.4 | AB126: =IF(ISERROR(VLOOKUP(Z126,'Cenários COPOM'!$A$1:$K$100,8,FALSE)),0,VLOOKUP(Z126,'Cenários COPOM'!$A$1:$K$100,8,FALSE)/100) -> 0 | AC126: 4.4 | AD126: 10214.1 | AE126: 4.399156195 | AG126: 124 | AH126: =WORKDAY(AH125,1,feriados!$A$2:$A$1000) -> 2020-07-02 | AI126: 4.4 | AJ126: =IF(ISERROR(VLOOKUP(AH126,'Cenários COPOM'!$A$1:$K$100,10,FALSE)),0,VLOOKUP(AH126,'Cenários COPOM'!$A$1:$K$100,10,FALSE)/100) -> 0 | AK126: 4.4 | AL126: 10214.1 | AM126: 4.399156195
A127: 125 | B127: =WORKDAY(B126,1,feriados!$A$2:$A$1000) -> 2020-07-03 | C127: 4.4 | D127: =IF(ISERROR(VLOOKUP(B127,'Cenários COPOM'!$A$1:$K$100,2,FALSE)),0,VLOOKUP(B127,'Cenários COPOM'!$A$1:$K$100,2,FALSE)/100) -> 0 | E127: 4.4 | F127: 10215.85 | G127: 4.39925684 | I127: 125 | J127: =WORKDAY(J126,1,feriados!$A$2:$A$1000) -> 2020-07-03 | K127: 4.4 | L127: =IF(ISERROR(VLOOKUP(J127,'Cenários COPOM'!$A$1:$K$100,4,FALSE)),0,VLOOKUP(J127,'Cenários COPOM'!$A$1:$K$100,4,FALSE)/100) -> 0 | M127: 4.4 | N127: 10215.85 | O127: 4.39925684 | Q127: 125 | R127: =WORKDAY(R126,1,feriados!$A$2:$A$1000) -> 2020-07-03 | S127: 4.4 | T127: =IF(ISERROR(VLOOKUP(R127,'Cenários COPOM'!$A$1:$K$100,6,FALSE)),0,VLOOKUP(R127,'Cenários COPOM'!$A$1:$K$100,6,FALSE)/100) -> 0 | U127: 4.4 | V127: 10215.85 | W127: 4.39925684 | Y127: 125 | Z127: =WORKDAY(Z126,1,feriados!$A$2:$A$1000) -> 2020-07-03 | AA127: 4.4 | AB127: =IF(ISERROR(VLOOKUP(Z127,'Cenários COPOM'!$A$1:$K$100,8,FALSE)),0,VLOOKUP(Z127,'Cenários COPOM'!$A$1:$K$100,8,FALSE)/100) -> 0 | AC127: 4.4 | AD127: 10215.85 | AE127: 4.39925684 | AG127: 125 | AH127: =WORKDAY(AH126,1,feriados!$A$2:$A$1000) -> 2020-07-03 | AI127: 4.4 | AJ127: =IF(ISERROR(VLOOKUP(AH127,'Cenários COPOM'!$A$1:$K$100,10,FALSE)),0,VLOOKUP(AH127,'Cenários COPOM'!$A$1:$K$100,10,FALSE)/100) -> 0 | AK127: 4.4 | AL127: 10215.85 | AM127: 4.39925684
A128: 126 | B128: =WORKDAY(B127,1,feriados!$A$2:$A$1000) -> 2020-07-06 | C128: 4.4 | D128: =IF(ISERROR(VLOOKUP(B128,'Cenários COPOM'!$A$1:$K$100,2,FALSE)),0,VLOOKUP(B128,'Cenários COPOM'!$A$1:$K$100,2,FALSE)/100) -> 0 | E128: 4.4 | F128: 10217.6 | G128: 4.39934976 | I128: 126 | J128: =WORKDAY(J127,1,feriados!$A$2:$A$1000) -> 2020-07-06 | K128: 4.4 | L128: =IF(ISERROR(VLOOKUP(J128,'Cenários COPOM'!$A$1:$K$100,4,FALSE)),0,VLOOKUP(J128,'Cenários COPOM'!$A$1:$K$100,4,FALSE)/100) -> 0 | M128: 4.4 | N128: 10217.6 | O128: 4.39934976 | Q128: 126 | R128: =WORKDAY(R127,1,feriados!$A$2:$A$1000) -> 2020-07-06 | S128: 4.4 | T128: =IF(ISERROR(VLOOKUP(R128,'Cenários COPOM'!$A$1:$K$100,6,FALSE)),0,VLOOKUP(R128,'Cenários COPOM'!$A$1:$K$100,6,FALSE)/100) -> 0 | U128: 4.4 | V128: 10217.6 | W128: 4.39934976 | Y128: 126 | Z128: =WORKDAY(Z127,1,feriados!$A$2:$A$1000) -> 2020-07-06 | AA128: 4.4 | AB128: =IF(ISERROR(VLOOKUP(Z128,'Cenários COPOM'!$A$1:$K$100,8,FALSE)),0,VLOOKUP(Z128,'Cenários COPOM'!$A$1:$K$100,8,FALSE)/100) -> 0 | AC128: 4.4 | AD128: 10217.6 | AE128: 4.39934976 | AG128: 126 | AH128: =WORKDAY(AH127,1,feriados!$A$2:$A$1000) -> 2020-07-06 | AI128: 4.4 | AJ128: =IF(ISERROR(VLOOKUP(AH128,'Cenários COPOM'!$A$1:$K$100,10,FALSE)),0,VLOOKUP(AH128,'Cenários COPOM'!$A$1:$K$100,10,FALSE)/100) -> 0 | AK128: 4.4 | AL128: 10217.6 | AM128: 4.39934976
A129: 127 | B129: =WORKDAY(B128,1,feriados!$A$2:$A$1000) -> 2020-07-07 | C129: 4.4 | D129: =IF(ISERROR(VLOOKUP(B129,'Cenários COPOM'!$A$1:$K$100,2,FALSE)),0,VLOOKUP(B129,'Cenários COPOM'!$A$1:$K$100,2,FALSE)/100) -> 0 | E129: 4.4 | F129: 10219.35 | G129: 4.39943514 | I129: 127 | J129: =WORKDAY(J128,1,feriados!$A$2:$A$1000) -> 2020-07-07 | K129: 4.4 | L129: =IF(ISERROR(VLOOKUP(J129,'Cenários COPOM'!$A$1:$K$100,4,FALSE)),0,VLOOKUP(J129,'Cenários COPOM'!$A$1:$K$100,4,FALSE)/100) -> 0 | M129: 4.4 | N129: 10219.35 | O129: 4.39943514 | Q129: 127 | R129: =WORKDAY(R128,1,feriados!$A$2:$A$1000) -> 2020-07-07 | S129: 4.4 | T129: =IF(ISERROR(VLOOKUP(R129,'Cenários COPOM'!$A$1:$K$100,6,FALSE)),0,VLOOKUP(R129,'Cenários COPOM'!$A$1:$K$100,6,FALSE)/100) -> 0 | U129: 4.4 | V129: 10219.35 | W129: 4.39943514 | Y129: 127 | Z129: =WORKDAY(Z128,1,feriados!$A$2:$A$1000) -> 2020-07-07 | AA129: 4.4 | AB129: =IF(ISERROR(VLOOKUP(Z129,'Cenários COPOM'!$A$1:$K$100,8,FALSE)),0,VLOOKUP(Z129,'Cenários COPOM'!$A$1:$K$100,8,FALSE)/100) -> 0 | AC129: 4.4 | AD129: 10219.35 | AE129: 4.39943514 | AG129: 127 | AH129: =WORKDAY(AH128,1,feriados!$A$2:$A$1000) -> 2020-07-07 | AI129: 4.4 | AJ129: =IF(ISERROR(VLOOKUP(AH129,'Cenários COPOM'!$A$1:$K$100,10,FALSE)),0,VLOOKUP(AH129,'Cenários COPOM'!$A$1:$K$100,10,FALSE)/100) -> 0 | AK129: 4.4 | AL129: 10219.35 | AM129: 4.39943514
A130: 128 | B130: =WORKDAY(B129,1,feriados!$A$2:$A$1000) -> 2020-07-08 | C130: 4.4 | D130: =IF(ISERROR(VLOOKUP(B130,'Cenários COPOM'!$A$1:$K$100,2,FALSE)),0,VLOOKUP(B130,'Cenários COPOM'!$A$1:$K$100,2,FALSE)/100) -> 0 | E130: 4.4 | F130: 10221.1 | G130: 4.39951316 | I130: 128 | J130: =WORKDAY(J129,1,feriados!$A$2:$A$1000) -> 2020-07-08 | K130: 4.4 | L130: =IF(ISERROR(VLOOKUP(J130,'Cenários COPOM'!$A$1:$K$100,4,FALSE)),0,VLOOKUP(J130,'Cenários COPOM'!$A$1:$K$100,4,FALSE)/100) -> 0 | M130: 4.4 | N130: 10221.1 | O130: 4.39951316 | Q130: 128 | R130: =WORKDAY(R129,1,feriados!$A$2:$A$1000) -> 2020-07-08 | S130: 4.4 | T130: =IF(ISERROR(VLOOKUP(R130,'Cenários COPOM'!$A$1:$K$100,6,FALSE)),0,VLOOKUP(R130,'Cenários COPOM'!$A$1:$K$100,6,FALSE)/100) -> 0 | U130: 4.4 | V130: 10221.1 | W130: 4.39951316 | Y130: 128 | Z130: =WORKDAY(Z129,1,feriados!$A$2:$A$1000) -> 2020-07-08 | AA130: 4.4 | AB130: =IF(ISERROR(VLOOKUP(Z130,'Cenários COPOM'!$A$1:$K$100,8,FALSE)),0,VLOOKUP(Z130,'Cenários COPOM'!$A$1:$K$100,8,FALSE)/100) -> 0 | AC130: 4.4 | AD130: 10221.1 | AE130: 4.39951316 | AG130: 128 | AH130: =WORKDAY(AH129,1,feriados!$A$2:$A$1000) -> 2020-07-08 | AI130: 4.4 | AJ130: =IF(ISERROR(VLOOKUP(AH130,'Cenários COPOM'!$A$1:$K$100,10,FALSE)),0,VLOOKUP(AH130,'Cenários COPOM'!$A$1:$K$100,10,FALSE)/100) -> 0 | AK130: 4.4 | AL130: 10221.1 | AM130: 4.39951316
A131: 129 | B131: =WORKDAY(B130,1,feriados!$A$2:$A$1000) -> 2020-07-09 | C131: 4.4 | D131: =IF(ISERROR(VLOOKUP(B131,'Cenários COPOM'!$A$1:$K$100,2,FALSE)),0,VLOOKUP(B131,'Cenários COPOM'!$A$1:$K$100,2,FALSE)/100) -> 0 | E131: 4.4 | F131: 10222.85 | G131: 4.399583991 | I131: 129 | J131: =WORKDAY(J130,1,feriados!$A$2:$A$1000) -> 2020-07-09 | K131: 4.4 | L131: =IF(ISERROR(VLOOKUP(J131,'Cenários COPOM'!$A$1:$K$100,4,FALSE)),0,VLOOKUP(J131,'Cenários COPOM'!$A$1:$K$100,4,FALSE)/100) -> 0 | M131: 4.4 | N131: 10222.85 | O131: 4.399583991 | Q131: 129 | R131: =WORKDAY(R130,1,feriados!$A$2:$A$1000) -> 2020-07-09 | S131: 4.4 | T131: =IF(ISERROR(VLOOKUP(R131,'Cenários COPOM'!$A$1:$K$100,6,FALSE)),0,VLOOKUP(R131,'Cenários COPOM'!$A$1:$K$100,6,FALSE)/100) -> 0 | U131: 4.4 | V131: 10222.85 | W131: 4.399583991 | Y131: 129 | Z131: =WORKDAY(Z130,1,feriados!$A$2:$A$1000) -> 2020-07-09 | AA131: 4.4 | AB131: =IF(ISERROR(VLOOKUP(Z131,'Cenários COPOM'!$A$1:$K$100,8,FALSE)),0,VLOOKUP(Z131,'Cenários COPOM'!$A$1:$K$100,8,FALSE)/100) -> 0 | AC131: 4.4 | AD131: 10222.85 | AE131: 4.399583991 | AG131: 129 | AH131: =WORKDAY(AH130,1,feriados!$A$2:$A$1000) -> 2020-07-09 | AI131: 4.4 | AJ131: =IF(ISERROR(VLOOKUP(AH131,'Cenários COPOM'!$A$1:$K$100,10,FALSE)),0,VLOOKUP(AH131,'Cenários COPOM'!$A$1:$K$100,10,FALSE)/100) -> 0 | AK131: 4.4 | AL131: 10222.85 | AM131: 4.399583991
A132: =+A131+1 -> 130 | B132: =WORKDAY(B131,1,feriados!$A$2:$A$1000) -> 2020-07-10 | C132: =+C131 -> 4.4 | D132: =IF(ISERROR(VLOOKUP(B132,'Cenários COPOM'!$A$1:$K$100,2,FALSE)),0,VLOOKUP(B132,'Cenários COPOM'!$A$1:$K$100,2,FALSE)/100) -> 0 | E132: =+E131+D132 -> 4.4 | F132: =+ROUND(((1+E131/100)^(1/252))*F131,2) -> 10224.6 | G132: =+((F132/$F$2)^(252/A132)-1)*100 -> 4.399647802 | I132: =+I131+1 -> 130 | J132: =WORKDAY(J131,1,feriados!$A$2:$A$1000) -> 2020-07-10 | K132: =+K131 -> 4.4 | L132: =IF(ISERROR(VLOOKUP(J132,'Cenários COPOM'!$A$1:$K$100,4,FALSE)),0,VLOOKUP(J132,'Cenários COPOM'!$A$1:$K$100,4,FALSE)/100) -> 0 | M132: =+M131+L132 -> 4.4 | N132: =+ROUND(((1+M131/100)^(1/252))*N131,2) -> 10224.6 | O132: =+((N132/$N$2)^(252/I132)-1)*100 -> 4.399647802 | Q132: =+Q131+1 -> 130 | R132: =WORKDAY(R131,1,feriados!$A$2:$A$1000) -> 2020-07-10 | S132: =+S131 -> 4.4 | T132: =IF(ISERROR(VLOOKUP(R132,'Cenários COPOM'!$A$1:$K$100,6,FALSE)),0,VLOOKUP(R132,'Cenários COPOM'!$A$1:$K$100,6,FALSE)/100) -> 0 | U132: =+U131+T132 -> 4.4 | V132: =+ROUND(((1+U131/100)^(1/252))*V131,2) -> 10224.6 | W132: =+((V132/$V$2)^(252/Q132)-1)*100 -> 4.399647802 | Y132: =+Y131+1 -> 130 | Z132: =WORKDAY(Z131,1,feriados!$A$2:$A$1000) -> 2020-07-10 | AA132: =+AA131 -> 4.4 | AB132: =IF(ISERROR(VLOOKUP(Z132,'Cenários COPOM'!$A$1:$K$100,8,FALSE)),0,VLOOKUP(Z132,'Cenários COPOM'!$A$1:$K$100,8,FALSE)/100) -> 0 | AC132: =+AC131+AB132 -> 4.4 | AD132: =+ROUND(((1+AC131/100)^(1/252))*AD131,2) -> 10224.6 | AE132: =+((AD132/$AD$2)^(252/Y132)-1)*100 -> 4.399647802 | AG132: =+AG131+1 -> 130 | AH132: =WORKDAY(AH131,1,feriados!$A$2:$A$1000) -> 2020-07-10 | AI132: =+AI131 -> 4.4 | AJ132: =IF(ISERROR(VLOOKUP(AH132,'Cenários COPOM'!$A$1:$K$100,10,FALSE)),0,VLOOKUP(AH132,'Cenários COPOM'!$A$1:$K$100,10,FALSE)/100) -> 0 | AK132: =+AK131+AJ132 -> 4.4 | AL132: =+ROUND(((1+AK131/100)^(1/252))*AL131,2) -> 10224.6 | AM132: =+((AL132/$F$2)^(252/AG132)-1)*100 -> 4.399647802
A133: 131 | B133: =WORKDAY(B132,1,feriados!$A$2:$A$1000) -> 2020-07-13 | C133: 4.4 | D133: =IF(ISERROR(VLOOKUP(B133,'Cenários COPOM'!$A$1:$K$100,2,FALSE)),0,VLOOKUP(B133,'Cenários COPOM'!$A$1:$K$100,2,FALSE)/100) -> 0 | E133: 4.4 | F133: 10226.35 | G133: 4.399704755 | I133: 131 | J133: =WORKDAY(J132,1,feriados!$A$2:$A$1000) -> 2020-07-13 | K133: 4.4 | L133: =IF(ISERROR(VLOOKUP(J133,'Cenários COPOM'!$A$1:$K$100,4,FALSE)),0,VLOOKUP(J133,'Cenários COPOM'!$A$1:$K$100,4,FALSE)/100) -> 0 | M133: 4.4 | N133: 10226.35 | O133: 4.399704755 | Q133: 131 | R133: =WORKDAY(R132,1,feriados!$A$2:$A$1000) -> 2020-07-13 | S133: 4.4 | T133: =IF(ISERROR(VLOOKUP(R133,'Cenários COPOM'!$A$1:$K$100,6,FALSE)),0,VLOOKUP(R133,'Cenários COPOM'!$A$1:$K$100,6,FALSE)/100) -> 0 | U133: 4.4 | V133: 10226.35 | W133: 4.399704755 | Y133: 131 | Z133: =WORKDAY(Z132,1,feriados!$A$2:$A$1000) -> 2020-07-13 | AA133: 4.4 | AB133: =IF(ISERROR(VLOOKUP(Z133,'Cenários COPOM'!$A$1:$K$100,8,FALSE)),0,VLOOKUP(Z133,'Cenários COPOM'!$A$1:$K$100,8,FALSE)/100) -> 0 | AC133: 4.4 | AD133: 10226.35 | AE133: 4.399704755 | AG133: 131 | AH133: =WORKDAY(AH132,1,feriados!$A$2:$A$1000) -> 2020-07-13 | AI133: 4.4 | AJ133: =IF(ISERROR(VLOOKUP(AH133,'Cenários COPOM'!$A$1:$K$100,10,FALSE)),0,VLOOKUP(AH133,'Cenários COPOM'!$A$1:$K$100,10,FALSE)/100) -> 0 | AK133: 4.4 | AL133: 10226.35 | AM133: 4.399704755
A134: 132 | B134: =WORKDAY(B133,1,feriados!$A$2:$A$1000) -> 2020-07-14 | C134: 4.4 | D134: =IF(ISERROR(VLOOKUP(B134,'Cenários COPOM'!$A$1:$K$100,2,FALSE)),0,VLOOKUP(B134,'Cenários COPOM'!$A$1:$K$100,2,FALSE)/100) -> 0 | E134: 4.4 | F134: 10228.1 | G134: 4.39975501 | I134: 132 | J134: =WORKDAY(J133,1,feriados!$A$2:$A$1000) -> 2020-07-14 | K134: 4.4 | L134: =IF(ISERROR(VLOOKUP(J134,'Cenários COPOM'!$A$1:$K$100,4,FALSE)),0,VLOOKUP(J134,'Cenários COPOM'!$A$1:$K$100,4,FALSE)/100) -> 0 | M134: 4.4 | N134: 10228.1 | O134: 4.39975501 | Q134: 132 | R134: =WORKDAY(R133,1,feriados!$A$2:$A$1000) -> 2020-07-14 | S134: 4.4 | T134: =IF(ISERROR(VLOOKUP(R134,'Cenários COPOM'!$A$1:$K$100,6,FALSE)),0,VLOOKUP(R134,'Cenários COPOM'!$A$1:$K$100,6,FALSE)/100) -> 0 | U134: 4.4 | V134: 10228.1 | W134: 4.39975501 | Y134: 132 | Z134: =WORKDAY(Z133,1,feriados!$A$2:$A$1000) -> 2020-07-14 | AA134: 4.4 | AB134: =IF(ISERROR(VLOOKUP(Z134,'Cenários COPOM'!$A$1:$K$100,8,FALSE)),0,VLOOKUP(Z134,'Cenários COPOM'!$A$1:$K$100,8,FALSE)/100) -> 0 | AC134: 4.4 | AD134: 10228.1 | AE134: 4.39975501 | AG134: 132 | AH134: =WORKDAY(AH133,1,feriados!$A$2:$A$1000) -> 2020-07-14 | AI134: 4.4 | AJ134: =IF(ISERROR(VLOOKUP(AH134,'Cenários COPOM'!$A$1:$K$100,10,FALSE)),0,VLOOKUP(AH134,'Cenários COPOM'!$A$1:$K$100,10,FALSE)/100) -> 0 | AK134: 4.4 | AL134: 10228.1 | AM134: 4.39975501
A135: 133 | B135: =WORKDAY(B134,1,feriados!$A$2:$A$1000) -> 2020-07-15 | C135: 4.4 | D135: =IF(ISERROR(VLOOKUP(B135,'Cenários COPOM'!$A$1:$K$100,2,FALSE)),0,VLOOKUP(B135,'Cenários COPOM'!$A$1:$K$100,2,FALSE)/100) -> 0 | E135: 4.4 | F135: 10229.85 | G135: 4.399798717 | I135: 133 | J135: =WORKDAY(J134,1,feriados!$A$2:$A$1000) -> 2020-07-15 | K135: 4.4 | L135: =IF(ISERROR(VLOOKUP(J135,'Cenários COPOM'!$A$1:$K$100,4,FALSE)),0,VLOOKUP(J135,'Cenários COPOM'!$A$1:$K$100,4,FALSE)/100) -> 0 | M135: 4.4 | N135: 10229.85 | O135: 4.399798717 | Q135: 133 | R135: =WORKDAY(R134,1,feriados!$A$2:$A$1000) -> 2020-07-15 | S135: 4.4 | T135: =IF(ISERROR(VLOOKUP(R135,'Cenários COPOM'!$A$1:$K$100,6,FALSE)),0,VLOOKUP(R135,'Cenários COPOM'!$A$1:$K$100,6,FALSE)/100) -> 0 | U135: 4.4 | V135: 10229.85 | W135: 4.399798717 | Y135: 133 | Z135: =WORKDAY(Z134,1,feriados!$A$2:$A$1000) -> 2020-07-15 | AA135: 4.4 | AB135: =IF(ISERROR(VLOOKUP(Z135,'Cenários COPOM'!$A$1:$K$100,8,FALSE)),0,VLOOKUP(Z135,'Cenários COPOM'!$A$1:$K$100,8,FALSE)/100) -> 0 | AC135: 4.4 | AD135: 10229.85 | AE135: 4.399798717 | AG135: 133 | AH135: =WORKDAY(AH134,1,feriados!$A$2:$A$1000) -> 2020-07-15 | AI135: 4.4 | AJ135: =IF(ISERROR(VLOOKUP(AH135,'Cenários COPOM'!$A$1:$K$100,10,FALSE)),0,VLOOKUP(AH135,'Cenários COPOM'!$A$1:$K$100,10,FALSE)/100) -> 0 | AK135: 4.4 | AL135: 10229.85 | AM135: 4.399798717
A136: 134 | B136: =WORKDAY(B135,1,feriados!$A$2:$A$1000) -> 2020-07-16 | C136: 4.4 | D136: =IF(ISERROR(VLOOKUP(B136,'Cenários COPOM'!$A$1:$K$100,2,FALSE)),0,VLOOKUP(B136,'Cenários COPOM'!$A$1:$K$100,2,FALSE)/100) -> 0 | E136: 4.4 | F136: 10231.6 | G136: 4.399836027 | I136: 134 | J136: =WORKDAY(J135,1,feriados!$A$2:$A$1000) -> 2020-07-16 | K136: 4.4 | L136: =IF(ISERROR(VLOOKUP(J136,'Cenários COPOM'!$A$1:$K$100,4,FALSE)),0,VLOOKUP(J136,'Cenários COPOM'!$A$1:$K$100,4,FALSE)/100) -> 0 | M136: 4.4 | N136: 10231.6 | O136: 4.399836027 | Q136: 134 | R136: =WORKDAY(R135,1,feriados!$A$2:$A$1000) -> 2020-07-16 | S136: 4.4 | T136: =IF(ISERROR(VLOOKUP(R136,'Cenários COPOM'!$A$1:$K$100,6,FALSE)),0,VLOOKUP(R136,'Cenários COPOM'!$A$1:$K$100,6,FALSE)/100) -> 0 | U136: 4.4 | V136: 10231.6 | W136: 4.399836027 | Y136: 134 | Z136: =WORKDAY(Z135,1,feriados!$A$2:$A$1000) -> 2020-07-16 | AA136: 4.4 | AB136: =IF(ISERROR(VLOOKUP(Z136,'Cenários COPOM'!$A$1:$K$100,8,FALSE)),0,VLOOKUP(Z136,'Cenários COPOM'!$A$1:$K$100,8,FALSE)/100) -> 0 | AC136: 4.4 | AD136: 10231.6 | AE136: 4.399836027 | AG136: 134 | AH136: =WORKDAY(AH135,1,feriados!$A$2:$A$1000) -> 2020-07-16 | AI136: 4.4 | AJ136: =IF(ISERROR(VLOOKUP(AH136,'Cenários COPOM'!$A$1:$K$100,10,FALSE)),0,VLOOKUP(AH136,'Cenários COPOM'!$A$1:$K$100,10,FALSE)/100) -> 0 | AK136: 4.4 | AL136: 10231.6 | AM136: 4.399836027
A137: 135 | B137: =WORKDAY(B136,1,feriados!$A$2:$A$1000) -> 2020-07-17 | C137: 4.4 | D137: =IF(ISERROR(VLOOKUP(B137,'Cenários COPOM'!$A$1:$K$100,2,FALSE)),0,VLOOKUP(B137,'Cenários COPOM'!$A$1:$K$100,2,FALSE)/100) -> 0 | E137: 4.4 | F137: 10233.35 | G137: 4.399867083 | I137: 135 | J137: =WORKDAY(J136,1,feriados!$A$2:$A$1000) -> 2020-07-17 | K137: 4.4 | L137: =IF(ISERROR(VLOOKUP(J137,'Cenários COPOM'!$A$1:$K$100,4,FALSE)),0,VLOOKUP(J137,'Cenários COPOM'!$A$1:$K$100,4,FALSE)/100) -> 0 | M137: 4.4 | N137: 10233.35 | O137: 4.399867083 | Q137: 135 | R137: =WORKDAY(R136,1,feriados!$A$2:$A$1000) -> 2020-07-17 | S137: 4.4 | T137: =IF(ISERROR(VLOOKUP(R137,'Cenários COPOM'!$A$1:$K$100,6,FALSE)),0,VLOOKUP(R137,'Cenários COPOM'!$A$1:$K$100,6,FALSE)/100) -> 0 | U137: 4.4 | V137: 10233.35 | W137: 4.399867083 | Y137: 135 | Z137: =WORKDAY(Z136,1,feriados!$A$2:$A$1000) -> 2020-07-17 | AA137: 4.4 | AB137: =IF(ISERROR(VLOOKUP(Z137,'Cenários COPOM'!$A$1:$K$100,8,FALSE)),0,VLOOKUP(Z137,'Cenários COPOM'!$A$1:$K$100,8,FALSE)/100) -> 0 | AC137: 4.4 | AD137: 10233.35 | AE137: 4.399867083 | AG137: 135 | AH137: =WORKDAY(AH136,1,feriados!$A$2:$A$1000) -> 2020-07-17 | AI137: 4.4 | AJ137: =IF(ISERROR(VLOOKUP(AH137,'Cenários COPOM'!$A$1:$K$100,10,FALSE)),0,VLOOKUP(AH137,'Cenários COPOM'!$A$1:$K$100,10,FALSE)/100) -> 0 | AK137: 4.4 | AL137: 10233.35 | AM137: 4.399867083
A138: 136 | B138: =WORKDAY(B137,1,feriados!$A$2:$A$1000) -> 2020-07-20 | C138: 4.4 | D138: =IF(ISERROR(VLOOKUP(B138,'Cenários COPOM'!$A$1:$K$100,2,FALSE)),0,VLOOKUP(B138,'Cenários COPOM'!$A$1:$K$100,2,FALSE)/100) -> 0 | E138: 4.4 | F138: 10235.1 | G138: 4.399892025 | I138: 136 | J138: =WORKDAY(J137,1,feriados!$A$2:$A$1000) -> 2020-07-20 | K138: 4.4 | L138: =IF(ISERROR(VLOOKUP(J138,'Cenários COPOM'!$A$1:$K$100,4,FALSE)),0,VLOOKUP(J138,'Cenários COPOM'!$A$1:$K$100,4,FALSE)/100) -> 0 | M138: 4.4 | N138: 10235.1 | O138: 4.399892025 | Q138: 136 | R138: =WORKDAY(R137,1,feriados!$A$2:$A$1000) -> 2020-07-20 | S138: 4.4 | T138: =IF(ISERROR(VLOOKUP(R138,'Cenários COPOM'!$A$1:$K$100,6,FALSE)),0,VLOOKUP(R138,'Cenários COPOM'!$A$1:$K$100,6,FALSE)/100) -> 0 | U138: 4.4 | V138: 10235.1 | W138: 4.399892025 | Y138: 136 | Z138: =WORKDAY(Z137,1,feriados!$A$2:$A$1000) -> 2020-07-20 | AA138: 4.4 | AB138: =IF(ISERROR(VLOOKUP(Z138,'Cenários COPOM'!$A$1:$K$100,8,FALSE)),0,VLOOKUP(Z138,'Cenários COPOM'!$A$1:$K$100,8,FALSE)/100) -> 0 | AC138: 4.4 | AD138: 10235.1 | AE138: 4.399892025 | AG138: 136 | AH138: =WORKDAY(AH137,1,feriados!$A$2:$A$1000) -> 2020-07-20 | AI138: 4.4 | AJ138: =IF(ISERROR(VLOOKUP(AH138,'Cenários COPOM'!$A$1:$K$100,10,FALSE)),0,VLOOKUP(AH138,'Cenários COPOM'!$A$1:$K$100,10,FALSE)/100) -> 0 | AK138: 4.4 | AL138: 10235.1 | AM138: 4.399892025
A139: 137 | B139: =WORKDAY(B138,1,feriados!$A$2:$A$1000) -> 2020-07-21 | C139: 4.4 | D139: =IF(ISERROR(VLOOKUP(B139,'Cenários COPOM'!$A$1:$K$100,2,FALSE)),0,VLOOKUP(B139,'Cenários COPOM'!$A$1:$K$100,2,FALSE)/100) -> 0 | E139: 4.4 | F139: 10236.85 | G139: 4.399910989 | I139: 137 | J139: =WORKDAY(J138,1,feriados!$A$2:$A$1000) -> 2020-07-21 | K139: 4.4 | L139: =IF(ISERROR(VLOOKUP(J139,'Cenários COPOM'!$A$1:$K$100,4,FALSE)),0,VLOOKUP(J139,'Cenários COPOM'!$A$1:$K$100,4,FALSE)/100) -> 0 | M139: 4.4 | N139: 10236.85 | O139: 4.399910989 | Q139: 137 | R139: =WORKDAY(R138,1,feriados!$A$2:$A$1000) -> 2020-07-21 | S139: 4.4 | T139: =IF(ISERROR(VLOOKUP(R139,'Cenários COPOM'!$A$1:$K$100,6,FALSE)),0,VLOOKUP(R139,'Cenários COPOM'!$A$1:$K$100,6,FALSE)/100) -> 0 | U139: 4.4 | V139: 10236.85 | W139: 4.399910989 | Y139: 137 | Z139: =WORKDAY(Z138,1,feriados!$A$2:$A$1000) -> 2020-07-21 | AA139: 4.4 | AB139: =IF(ISERROR(VLOOKUP(Z139,'Cenários COPOM'!$A$1:$K$100,8,FALSE)),0,VLOOKUP(Z139,'Cenários COPOM'!$A$1:$K$100,8,FALSE)/100) -> 0 | AC139: 4.4 | AD139: 10236.85 | AE139: 4.399910989 | AG139: 137 | AH139: =WORKDAY(AH138,1,feriados!$A$2:$A$1000) -> 2020-07-21 | AI139: 4.4 | AJ139: =IF(ISERROR(VLOOKUP(AH139,'Cenários COPOM'!$A$1:$K$100,10,FALSE)),0,VLOOKUP(AH139,'Cenários COPOM'!$A$1:$K$100,10,FALSE)/100) -> 0 | AK139: 4.4 | AL139: 10236.85 | AM139: 4.399910989
A140: 138 | B140: =WORKDAY(B139,1,feriados!$A$2:$A$1000) -> 2020-07-22 | C140: 4.4 | D140: =IF(ISERROR(VLOOKUP(B140,'Cenários COPOM'!$A$1:$K$100,2,FALSE)),0,VLOOKUP(B140,'Cenários COPOM'!$A$1:$K$100,2,FALSE)/100) -> 0 | E140: 4.4 | F140: 10238.6 | G140: 4.399924107 | I140: 138 | J140: =WORKDAY(J139,1,feriados!$A$2:$A$1000) -> 2020-07-22 | K140: 4.4 | L140: =IF(ISERROR(VLOOKUP(J140,'Cenários COPOM'!$A$1:$K$100,4,FALSE)),0,VLOOKUP(J140,'Cenários COPOM'!$A$1:$K$100,4,FALSE)/100) -> 0 | M140: 4.4 | N140: 10238.6 | O140: 4.399924107 | Q140: 138 | R140: =WORKDAY(R139,1,feriados!$A$2:$A$1000) -> 2020-07-22 | S140: 4.4 | T140: =IF(ISERROR(VLOOKUP(R140,'Cenários COPOM'!$A$1:$K$100,6,FALSE)),0,VLOOKUP(R140,'Cenários COPOM'!$A$1:$K$100,6,FALSE)/100) -> 0 | U140: 4.4 | V140: 10238.6 | W140: 4.399924107 | Y140: 138 | Z140: =WORKDAY(Z139,1,feriados!$A$2:$A$1000) -> 2020-07-22 | AA140: 4.4 | AB140: =IF(ISERROR(VLOOKUP(Z140,'Cenários COPOM'!$A$1:$K$100,8,FALSE)),0,VLOOKUP(Z140,'Cenários COPOM'!$A$1:$K$100,8,FALSE)/100) -> 0 | AC140: 4.4 | AD140: 10238.6 | AE140: 4.399924107 | AG140: 138 | AH140: =WORKDAY(AH139,1,feriados!$A$2:$A$1000) -> 2020-07-22 | AI140: 4.4 | AJ140: =IF(ISERROR(VLOOKUP(AH140,'Cenários COPOM'!$A$1:$K$100,10,FALSE)),0,VLOOKUP(AH140,'Cenários COPOM'!$A$1:$K$100,10,FALSE)/100) -> 0 | AK140: 4.4 | AL140: 10238.6 | AM140: 4.399924107
A141: 139 | B141: =WORKDAY(B140,1,feriados!$A$2:$A$1000) -> 2020-07-23 | C141: 4.4 | D141: =IF(ISERROR(VLOOKUP(B141,'Cenários COPOM'!$A$1:$K$100,2,FALSE)),0,VLOOKUP(B141,'Cenários COPOM'!$A$1:$K$100,2,FALSE)/100) -> 0 | E141: 4.4 | F141: 10240.35 | G141: 4.399931507 | I141: 139 | J141: =WORKDAY(J140,1,feriados!$A$2:$A$1000) -> 2020-07-23 | K141: 4.4 | L141: =IF(ISERROR(VLOOKUP(J141,'Cenários COPOM'!$A$1:$K$100,4,FALSE)),0,VLOOKUP(J141,'Cenários COPOM'!$A$1:$K$100,4,FALSE)/100) -> 0 | M141: 4.4 | N141: 10240.35 | O141: 4.399931507 | Q141: 139 | R141: =WORKDAY(R140,1,feriados!$A$2:$A$1000) -> 2020-07-23 | S141: 4.4 | T141: =IF(ISERROR(VLOOKUP(R141,'Cenários COPOM'!$A$1:$K$100,6,FALSE)),0,VLOOKUP(R141,'Cenários COPOM'!$A$1:$K$100,6,FALSE)/100) -> 0 | U141: 4.4 | V141: 10240.35 | W141: 4.399931507 | Y141: 139 | Z141: =WORKDAY(Z140,1,feriados!$A$2:$A$1000) -> 2020-07-23 | AA141: 4.4 | AB141: =IF(ISERROR(VLOOKUP(Z141,'Cenários COPOM'!$A$1:$K$100,8,FALSE)),0,VLOOKUP(Z141,'Cenários COPOM'!$A$1:$K$100,8,FALSE)/100) -> 0 | AC141: 4.4 | AD141: 10240.35 | AE141: 4.399931507 | AG141: 139 | AH141: =WORKDAY(AH140,1,feriados!$A$2:$A$1000) -> 2020-07-23 | AI141: 4.4 | AJ141: =IF(ISERROR(VLOOKUP(AH141,'Cenários COPOM'!$A$1:$K$100,10,FALSE)),0,VLOOKUP(AH141,'Cenários COPOM'!$A$1:$K$100,10,FALSE)/100) -> 0 | AK141: 4.4 | AL141: 10240.35 | AM141: 4.399931507
A142: 140 | B142: =WORKDAY(B141,1,feriados!$A$2:$A$1000) -> 2020-07-24 | C142: 4.4 | D142: =IF(ISERROR(VLOOKUP(B142,'Cenários COPOM'!$A$1:$K$100,2,FALSE)),0,VLOOKUP(B142,'Cenários COPOM'!$A$1:$K$100,2,FALSE)/100) -> 0 | E142: 4.4 | F142: 10242.1 | G142: 4.399933312 | I142: 140 | J142: =WORKDAY(J141,1,feriados!$A$2:$A$1000) -> 2020-07-24 | K142: 4.4 | L142: =IF(ISERROR(VLOOKUP(J142,'Cenários COPOM'!$A$1:$K$100,4,FALSE)),0,VLOOKUP(J142,'Cenários COPOM'!$A$1:$K$100,4,FALSE)/100) -> 0 | M142: 4.4 | N142: 10242.1 | O142: 4.399933312 | Q142: 140 | R142: =WORKDAY(R141,1,feriados!$A$2:$A$1000) -> 2020-07-24 | S142: 4.4 | T142: =IF(ISERROR(VLOOKUP(R142,'Cenários COPOM'!$A$1:$K$100,6,FALSE)),0,VLOOKUP(R142,'Cenários COPOM'!$A$1:$K$100,6,FALSE)/100) -> 0 | U142: 4.4 | V142: 10242.1 | W142: 4.399933312 | Y142: 140 | Z142: =WORKDAY(Z141,1,feriados!$A$2:$A$1000) -> 2020-07-24 | AA142: 4.4 | AB142: =IF(ISERROR(VLOOKUP(Z142,'Cenários COPOM'!$A$1:$K$100,8,FALSE)),0,VLOOKUP(Z142,'Cenários COPOM'!$A$1:$K$100,8,FALSE)/100) -> 0 | AC142: 4.4 | AD142: 10242.1 | AE142: 4.399933312 | AG142: 140 | AH142: =WORKDAY(AH141,1,feriados!$A$2:$A$1000) -> 2020-07-24 | AI142: 4.4 | AJ142: =IF(ISERROR(VLOOKUP(AH142,'Cenários COPOM'!$A$1:$K$100,10,FALSE)),0,VLOOKUP(AH142,'Cenários COPOM'!$A$1:$K$100,10,FALSE)/100) -> 0 | AK142: 4.4 | AL142: 10242.1 | AM142: 4.399933312
A143: 141 | B143: =WORKDAY(B142,1,feriados!$A$2:$A$1000) -> 2020-07-27 | C143: 4.4 | D143: =IF(ISERROR(VLOOKUP(B143,'Cenários COPOM'!$A$1:$K$100,2,FALSE)),0,VLOOKUP(B143,'Cenários COPOM'!$A$1:$K$100,2,FALSE)/100) -> 0 | E143: 4.4 | F143: 10243.85 | G143: 4.399929645 | I143: 141 | J143: =WORKDAY(J142,1,feriados!$A$2:$A$1000) -> 2020-07-27 | K143: 4.4 | L143: =IF(ISERROR(VLOOKUP(J143,'Cenários COPOM'!$A$1:$K$100,4,FALSE)),0,VLOOKUP(J143,'Cenários COPOM'!$A$1:$K$100,4,FALSE)/100) -> 0 | M143: 4.4 | N143: 10243.85 | O143: 4.399929645 | Q143: 141 | R143: =WORKDAY(R142,1,feriados!$A$2:$A$1000) -> 2020-07-27 | S143: 4.4 | T143: =IF(ISERROR(VLOOKUP(R143,'Cenários COPOM'!$A$1:$K$100,6,FALSE)),0,VLOOKUP(R143,'Cenários COPOM'!$A$1:$K$100,6,FALSE)/100) -> 0 | U143: 4.4 | V143: 10243.85 | W143: 4.399929645 | Y143: 141 | Z143: =WORKDAY(Z142,1,feriados!$A$2:$A$1000) -> 2020-07-27 | AA143: 4.4 | AB143: =IF(ISERROR(VLOOKUP(Z143,'Cenários COPOM'!$A$1:$K$100,8,FALSE)),0,VLOOKUP(Z143,'Cenários COPOM'!$A$1:$K$100,8,FALSE)/100) -> 0 | AC143: 4.4 | AD143: 10243.85 | AE143: 4.399929645 | AG143: 141 | AH143: =WORKDAY(AH142,1,feriados!$A$2:$A$1000) -> 2020-07-27 | AI143: 4.4 | AJ143: =IF(ISERROR(VLOOKUP(AH143,'Cenários COPOM'!$A$1:$K$100,10,FALSE)),0,VLOOKUP(AH143,'Cenários COPOM'!$A$1:$K$100,10,FALSE)/100) -> 0 | AK143: 4.4 | AL143: 10243.85 | AM143: 4.399929645
A144: 142 | B144: =WORKDAY(B143,1,feriados!$A$2:$A$1000) -> 2020-07-28 | C144: 4.4 | D144: =IF(ISERROR(VLOOKUP(B144,'Cenários COPOM'!$A$1:$K$100,2,FALSE)),0,VLOOKUP(B144,'Cenários COPOM'!$A$1:$K$100,2,FALSE)/100) -> 0 | E144: 4.4 | F144: 10245.6 | G144: 4.399920623 | I144: 142 | J144: =WORKDAY(J143,1,feriados!$A$2:$A$1000) -> 2020-07-28 | K144: 4.4 | L144: =IF(ISERROR(VLOOKUP(J144,'Cenários COPOM'!$A$1:$K$100,4,FALSE)),0,VLOOKUP(J144,'Cenários COPOM'!$A$1:$K$100,4,FALSE)/100) -> 0 | M144: 4.4 | N144: 10245.6 | O144: 4.399920623 | Q144: 142 | R144: =WORKDAY(R143,1,feriados!$A$2:$A$1000) -> 2020-07-28 | S144: 4.4 | T144: =IF(ISERROR(VLOOKUP(R144,'Cenários COPOM'!$A$1:$K$100,6,FALSE)),0,VLOOKUP(R144,'Cenários COPOM'!$A$1:$K$100,6,FALSE)/100) -> 0 | U144: 4.4 | V144: 10245.6 | W144: 4.399920623 | Y144: 142 | Z144: =WORKDAY(Z143,1,feriados!$A$2:$A$1000) -> 2020-07-28 | AA144: 4.4 | AB144: =IF(ISERROR(VLOOKUP(Z144,'Cenários COPOM'!$A$1:$K$100,8,FALSE)),0,VLOOKUP(Z144,'Cenários COPOM'!$A$1:$K$100,8,FALSE)/100) -> 0 | AC144: 4.4 | AD144: 10245.6 | AE144: 4.399920623 | AG144: 142 | AH144: =WORKDAY(AH143,1,feriados!$A$2:$A$1000) -> 2020-07-28 | AI144: 4.4 | AJ144: =IF(ISERROR(VLOOKUP(AH144,'Cenários COPOM'!$A$1:$K$100,10,FALSE)),0,VLOOKUP(AH144,'Cenários COPOM'!$A$1:$K$100,10,FALSE)/100) -> 0 | AK144: 4.4 | AL144: 10245.6 | AM144: 4.399920623
A145: 143 | B145: =WORKDAY(B144,1,feriados!$A$2:$A$1000) -> 2020-07-29 | C145: 4.4 | D145: =IF(ISERROR(VLOOKUP(B145,'Cenários COPOM'!$A$1:$K$100,2,FALSE)),0,VLOOKUP(B145,'Cenários COPOM'!$A$1:$K$100,2,FALSE)/100) -> 0 | E145: 4.4 | F145: 10247.35 | G145: 4.399906359 | I145: 143 | J145: =WORKDAY(J144,1,feriados!$A$2:$A$1000) -> 2020-07-29 | K145: 4.4 | L145: =IF(ISERROR(VLOOKUP(J145,'Cenários COPOM'!$A$1:$K$100,4,FALSE)),0,VLOOKUP(J145,'Cenários COPOM'!$A$1:$K$100,4,FALSE)/100) -> 0 | M145: 4.4 | N145: 10247.35 | O145: 4.399906359 | Q145: 143 | R145: =WORKDAY(R144,1,feriados!$A$2:$A$1000) -> 2020-07-29 | S145: 4.4 | T145: =IF(ISERROR(VLOOKUP(R145,'Cenários COPOM'!$A$1:$K$100,6,FALSE)),0,VLOOKUP(R145,'Cenários COPOM'!$A$1:$K$100,6,FALSE)/100) -> 0 | U145: 4.4 | V145: 10247.35 | W145: 4.399906359 | Y145: 143 | Z145: =WORKDAY(Z144,1,feriados!$A$2:$A$1000) -> 2020-07-29 | AA145: 4.4 | AB145: =IF(ISERROR(VLOOKUP(Z145,'Cenários COPOM'!$A$1:$K$100,8,FALSE)),0,VLOOKUP(Z145,'Cenários COPOM'!$A$1:$K$100,8,FALSE)/100) -> 0 | AC145: 4.4 | AD145: 10247.35 | AE145: 4.399906359 | AG145: 143 | AH145: =WORKDAY(AH144,1,feriados!$A$2:$A$1000) -> 2020-07-29 | AI145: 4.4 | AJ145: =IF(ISERROR(VLOOKUP(AH145,'Cenários COPOM'!$A$1:$K$100,10,FALSE)),0,VLOOKUP(AH145,'Cenários COPOM'!$A$1:$K$100,10,FALSE)/100) -> 0 | AK145: 4.4 | AL145: 10247.35 | AM145: 4.399906359
A146: 144 | B146: =WORKDAY(B145,1,feriados!$A$2:$A$1000) -> 2020-07-30 | C146: 4.4 | D146: =IF(ISERROR(VLOOKUP(B146,'Cenários COPOM'!$A$1:$K$100,2,FALSE)),0,VLOOKUP(B146,'Cenários COPOM'!$A$1:$K$100,2,FALSE)/100) -> 0 | E146: 4.4 | F146: 10249.1 | G146: 4.399886965 | I146: 144 | J146: =WORKDAY(J145,1,feriados!$A$2:$A$1000) -> 2020-07-30 | K146: 4.4 | L146: =IF(ISERROR(VLOOKUP(J146,'Cenários COPOM'!$A$1:$K$100,4,FALSE)),0,VLOOKUP(J146,'Cenários COPOM'!$A$1:$K$100,4,FALSE)/100) -> 0 | M146: 4.4 | N146: 10249.1 | O146: 4.399886965 | Q146: 144 | R146: =WORKDAY(R145,1,feriados!$A$2:$A$1000) -> 2020-07-30 | S146: 4.4 | T146: =IF(ISERROR(VLOOKUP(R146,'Cenários COPOM'!$A$1:$K$100,6,FALSE)),0,VLOOKUP(R146,'Cenários COPOM'!$A$1:$K$100,6,FALSE)/100) -> 0 | U146: 4.4 | V146: 10249.1 | W146: 4.399886965 | Y146: 144 | Z146: =WORKDAY(Z145,1,feriados!$A$2:$A$1000) -> 2020-07-30 | AA146: 4.4 | AB146: =IF(ISERROR(VLOOKUP(Z146,'Cenários COPOM'!$A$1:$K$100,8,FALSE)),0,VLOOKUP(Z146,'Cenários COPOM'!$A$1:$K$100,8,FALSE)/100) -> 0 | AC146: 4.4 | AD146: 10249.1 | AE146: 4.399886965 | AG146: 144 | AH146: =WORKDAY(AH145,1,feriados!$A$2:$A$1000) -> 2020-07-30 | AI146: 4.4 | AJ146: =IF(ISERROR(VLOOKUP(AH146,'Cenários COPOM'!$A$1:$K$100,10,FALSE)),0,VLOOKUP(AH146,'Cenários COPOM'!$A$1:$K$100,10,FALSE)/100) -> 0 | AK146: 4.4 | AL146: 10249.1 | AM146: 4.399886965
A147: 145 | B147: =WORKDAY(B146,1,feriados!$A$2:$A$1000) -> 2020-07-31 | C147: 4.4 | D147: =IF(ISERROR(VLOOKUP(B147,'Cenários COPOM'!$A$1:$K$100,2,FALSE)),0,VLOOKUP(B147,'Cenários COPOM'!$A$1:$K$100,2,FALSE)/100) -> 0 | E147: 4.4 | F147: 10250.85 | G147: 4.399862549 | I147: 145 | J147: =WORKDAY(J146,1,feriados!$A$2:$A$1000) -> 2020-07-31 | K147: 4.4 | L147: =IF(ISERROR(VLOOKUP(J147,'Cenários COPOM'!$A$1:$K$100,4,FALSE)),0,VLOOKUP(J147,'Cenários COPOM'!$A$1:$K$100,4,FALSE)/100) -> 0 | M147: 4.4 | N147: 10250.85 | O147: 4.399862549 | Q147: 145 | R147: =WORKDAY(R146,1,feriados!$A$2:$A$1000) -> 2020-07-31 | S147: 4.4 | T147: =IF(ISERROR(VLOOKUP(R147,'Cenários COPOM'!$A$1:$K$100,6,FALSE)),0,VLOOKUP(R147,'Cenários COPOM'!$A$1:$K$100,6,FALSE)/100) -> 0 | U147: 4.4 | V147: 10250.85 | W147: 4.399862549 | Y147: 145 | Z147: =WORKDAY(Z146,1,feriados!$A$2:$A$1000) -> 2020-07-31 | AA147: 4.4 | AB147: =IF(ISERROR(VLOOKUP(Z147,'Cenários COPOM'!$A$1:$K$100,8,FALSE)),0,VLOOKUP(Z147,'Cenários COPOM'!$A$1:$K$100,8,FALSE)/100) -> 0 | AC147: 4.4 | AD147: 10250.85 | AE147: 4.399862549 | AG147: 145 | AH147: =WORKDAY(AH146,1,feriados!$A$2:$A$1000) -> 2020-07-31 | AI147: 4.4 | AJ147: =IF(ISERROR(VLOOKUP(AH147,'Cenários COPOM'!$A$1:$K$100,10,FALSE)),0,VLOOKUP(AH147,'Cenários COPOM'!$A$1:$K$100,10,FALSE)/100) -> 0 | AK147: 4.4 | AL147: 10250.85 | AM147: 4.399862549
A148: 146 | B148: =WORKDAY(B147,1,feriados!$A$2:$A$1000) -> 2020-08-03 | C148: 4.4 | D148: =IF(ISERROR(VLOOKUP(B148,'Cenários COPOM'!$A$1:$K$100,2,FALSE)),0,VLOOKUP(B148,'Cenários COPOM'!$A$1:$K$100,2,FALSE)/100) -> 0 | E148: 4.4 | F148: 10252.6 | G148: 4.399833215 | I148: 146 | J148: =WORKDAY(J147,1,feriados!$A$2:$A$1000) -> 2020-08-03 | K148: 4.4 | L148: =IF(ISERROR(VLOOKUP(J148,'Cenários COPOM'!$A$1:$K$100,4,FALSE)),0,VLOOKUP(J148,'Cenários COPOM'!$A$1:$K$100,4,FALSE)/100) -> 0 | M148: 4.4 | N148: 10252.6 | O148: 4.399833215 | Q148: 146 | R148: =WORKDAY(R147,1,feriados!$A$2:$A$1000) -> 2020-08-03 | S148: 4.4 | T148: =IF(ISERROR(VLOOKUP(R148,'Cenários COPOM'!$A$1:$K$100,6,FALSE)),0,VLOOKUP(R148,'Cenários COPOM'!$A$1:$K$100,6,FALSE)/100) -> 0 | U148: 4.4 | V148: 10252.6 | W148: 4.399833215 | Y148: 146 | Z148: =WORKDAY(Z147,1,feriados!$A$2:$A$1000) -> 2020-08-03 | AA148: 4.4 | AB148: =IF(ISERROR(VLOOKUP(Z148,'Cenários COPOM'!$A$1:$K$100,8,FALSE)),0,VLOOKUP(Z148,'Cenários COPOM'!$A$1:$K$100,8,FALSE)/100) -> 0 | AC148: 4.4 | AD148: 10252.6 | AE148: 4.399833215 | AG148: 146 | AH148: =WORKDAY(AH147,1,feriados!$A$2:$A$1000) -> 2020-08-03 | AI148: 4.4 | AJ148: =IF(ISERROR(VLOOKUP(AH148,'Cenários COPOM'!$A$1:$K$100,10,FALSE)),0,VLOOKUP(AH148,'Cenários COPOM'!$A$1:$K$100,10,FALSE)/100) -> 0 | AK148: 4.4 | AL148: 10252.6 | AM148: 4.399833215
A149: 147 | B149: =WORKDAY(B148,1,feriados!$A$2:$A$1000) -> 2020-08-04 | C149: 4.4 | D149: =IF(ISERROR(VLOOKUP(B149,'Cenários COPOM'!$A$1:$K$100,2,FALSE)),0,VLOOKUP(B149,'Cenários COPOM'!$A$1:$K$100,2,FALSE)/100) -> 0 | E149: 4.4 | F149: 10254.35 | G149: 4.399799067 | I149: 147 | J149: =WORKDAY(J148,1,feriados!$A$2:$A$1000) -> 2020-08-04 | K149: 4.4 | L149: =IF(ISERROR(VLOOKUP(J149,'Cenários COPOM'!$A$1:$K$100,4,FALSE)),0,VLOOKUP(J149,'Cenários COPOM'!$A$1:$K$100,4,FALSE)/100) -> 0 | M149: 4.4 | N149: 10254.35 | O149: 4.399799067 | Q149: 147 | R149: =WORKDAY(R148,1,feriados!$A$2:$A$1000) -> 2020-08-04 | S149: 4.4 | T149: =IF(ISERROR(VLOOKUP(R149,'Cenários COPOM'!$A$1:$K$100,6,FALSE)),0,VLOOKUP(R149,'Cenários COPOM'!$A$1:$K$100,6,FALSE)/100) -> 0 | U149: 4.4 | V149: 10254.35 | W149: 4.399799067 | Y149: 147 | Z149: =WORKDAY(Z148,1,feriados!$A$2:$A$1000) -> 2020-08-04 | AA149: 4.4 | AB149: =IF(ISERROR(VLOOKUP(Z149,'Cenários COPOM'!$A$1:$K$100,8,FALSE)),0,VLOOKUP(Z149,'Cenários COPOM'!$A$1:$K$100,8,FALSE)/100) -> 0 | AC149: 4.4 | AD149: 10254.35 | AE149: 4.399799067 | AG149: 147 | AH149: =WORKDAY(AH148,1,feriados!$A$2:$A$1000) -> 2020-08-04 | AI149: 4.4 | AJ149: =IF(ISERROR(VLOOKUP(AH149,'Cenários COPOM'!$A$1:$K$100,10,FALSE)),0,VLOOKUP(AH149,'Cenários COPOM'!$A$1:$K$100,10,FALSE)/100) -> 0 | AK149: 4.4 | AL149: 10254.35 | AM149: 4.399799067
A150: 148 | B150: =WORKDAY(B149,1,feriados!$A$2:$A$1000) -> 2020-08-05 | C150: 4.4 | D150: =IF(ISERROR(VLOOKUP(B150,'Cenários COPOM'!$A$1:$K$100,2,FALSE)),0,VLOOKUP(B150,'Cenários COPOM'!$A$1:$K$100,2,FALSE)/100) -> 0 | E150: 4.4 | F150: 10256.1 | G150: 4.399760202 | I150: 148 | J150: =WORKDAY(J149,1,feriados!$A$2:$A$1000) -> 2020-08-05 | K150: 4.4 | L150: =IF(ISERROR(VLOOKUP(J150,'Cenários COPOM'!$A$1:$K$100,4,FALSE)),0,VLOOKUP(J150,'Cenários COPOM'!$A$1:$K$100,4,FALSE)/100) -> 0 | M150: 4.4 | N150: 10256.1 | O150: 4.399760202 | Q150: 148 | R150: =WORKDAY(R149,1,feriados!$A$2:$A$1000) -> 2020-08-05 | S150: 4.4 | T150: =IF(ISERROR(VLOOKUP(R150,'Cenários COPOM'!$A$1:$K$100,6,FALSE)),0,VLOOKUP(R150,'Cenários COPOM'!$A$1:$K$100,6,FALSE)/100) -> 0 | U150: 4.4 | V150: 10256.1 | W150: 4.399760202 | Y150: 148 | Z150: =WORKDAY(Z149,1,feriados!$A$2:$A$1000) -> 2020-08-05 | AA150: 4.4 | AB150: =IF(ISERROR(VLOOKUP(Z150,'Cenários COPOM'!$A$1:$K$100,8,FALSE)),0,VLOOKUP(Z150,'Cenários COPOM'!$A$1:$K$100,8,FALSE)/100) -> 0 | AC150: 4.4 | AD150: 10256.1 | AE150: 4.399760202 | AG150: 148 | AH150: =WORKDAY(AH149,1,feriados!$A$2:$A$1000) -> 2020-08-05 | AI150: 4.4 | AJ150: =IF(ISERROR(VLOOKUP(AH150,'Cenários COPOM'!$A$1:$K$100,10,FALSE)),0,VLOOKUP(AH150,'Cenários COPOM'!$A$1:$K$100,10,FALSE)/100) -> 0 | AK150: 4.4 | AL150: 10256.1 | AM150: 4.399760202
A151: 149 | B151: =WORKDAY(B150,1,feriados!$A$2:$A$1000) -> 2020-08-06 | C151: 4.4 | D151: =IF(ISERROR(VLOOKUP(B151,'Cenários COPOM'!$A$1:$K$100,2,FALSE)),0,VLOOKUP(B151,'Cenários COPOM'!$A$1:$K$100,2,FALSE)/100) -> 0 | E151: 4.4 | F151: 10257.85 | G151: 4.399716719 | I151: 149 | J151: =WORKDAY(J150,1,feriados!$A$2:$A$1000) -> 2020-08-06 | K151: 4.4 | L151: =IF(ISERROR(VLOOKUP(J151,'Cenários COPOM'!$A$1:$K$100,4,FALSE)),0,VLOOKUP(J151,'Cenários COPOM'!$A$1:$K$100,4,FALSE)/100) -> 0 | M151: 4.4 | N151: 10257.85 | O151: 4.399716719 | Q151: 149 | R151: =WORKDAY(R150,1,feriados!$A$2:$A$1000) -> 2020-08-06 | S151: 4.4 | T151: =IF(ISERROR(VLOOKUP(R151,'Cenários COPOM'!$A$1:$K$100,6,FALSE)),0,VLOOKUP(R151,'Cenários COPOM'!$A$1:$K$100,6,FALSE)/100) -> 0 | U151: 4.4 | V151: 10257.85 | W151: 4.399716719 | Y151: 149 | Z151: =WORKDAY(Z150,1,feriados!$A$2:$A$1000) -> 2020-08-06 | AA151: 4.4 | AB151: =IF(ISERROR(VLOOKUP(Z151,'Cenários COPOM'!$A$1:$K$100,8,FALSE)),0,VLOOKUP(Z151,'Cenários COPOM'!$A$1:$K$100,8,FALSE)/100) -> 0 | AC151: 4.4 | AD151: 10257.85 | AE151: 4.399716719 | AG151: 149 | AH151: =WORKDAY(AH150,1,feriados!$A$2:$A$1000) -> 2020-08-06 | AI151: 4.4 | AJ151: =IF(ISERROR(VLOOKUP(AH151,'Cenários COPOM'!$A$1:$K$100,10,FALSE)),0,VLOOKUP(AH151,'Cenários COPOM'!$A$1:$K$100,10,FALSE)/100) -> 0 | AK151: 4.4 | AL151: 10257.85 | AM151: 4.399716719
A152: 150 | B152: =WORKDAY(B151,1,feriados!$A$2:$A$1000) -> 2020-08-07 | C152: 4.4 | D152: =IF(ISERROR(VLOOKUP(B152,'Cenários COPOM'!$A$1:$K$100,2,FALSE)),0,VLOOKUP(B152,'Cenários COPOM'!$A$1:$K$100,2,FALSE)/100) -> 0 | E152: 4.4 | F152: 10259.6 | G152: 4.399668711 | I152: 150 | J152: =WORKDAY(J151,1,feriados!$A$2:$A$1000) -> 2020-08-07 | K152: 4.4 | L152: =IF(ISERROR(VLOOKUP(J152,'Cenários COPOM'!$A$1:$K$100,4,FALSE)),0,VLOOKUP(J152,'Cenários COPOM'!$A$1:$K$100,4,FALSE)/100) -> 0 | M152: 4.4 | N152: 10259.6 | O152: 4.399668711 | Q152: 150 | R152: =WORKDAY(R151,1,feriados!$A$2:$A$1000) -> 2020-08-07 | S152: 4.4 | T152: =IF(ISERROR(VLOOKUP(R152,'Cenários COPOM'!$A$1:$K$100,6,FALSE)),0,VLOOKUP(R152,'Cenários COPOM'!$A$1:$K$100,6,FALSE)/100) -> 0 | U152: 4.4 | V152: 10259.6 | W152: 4.399668711 | Y152: 150 | Z152: =WORKDAY(Z151,1,feriados!$A$2:$A$1000) -> 2020-08-07 | AA152: 4.4 | AB152: =IF(ISERROR(VLOOKUP(Z152,'Cenários COPOM'!$A$1:$K$100,8,FALSE)),0,VLOOKUP(Z152,'Cenários COPOM'!$A$1:$K$100,8,FALSE)/100) -> 0 | AC152: 4.4 | AD152: 10259.6 | AE152: 4.399668711 | AG152: 150 | AH152: =WORKDAY(AH151,1,feriados!$A$2:$A$1000) -> 2020-08-07 | AI152: 4.4 | AJ152: =IF(ISERROR(VLOOKUP(AH152,'Cenários COPOM'!$A$1:$K$100,10,FALSE)),0,VLOOKUP(AH152,'Cenários COPOM'!$A$1:$K$100,10,FALSE)/100) -> 0 | AK152: 4.4 | AL152: 10259.6 | AM152: 4.399668711
A153: 151 | B153: =WORKDAY(B152,1,feriados!$A$2:$A$1000) -> 2020-08-10 | C153: 4.4 | D153: =IF(ISERROR(VLOOKUP(B153,'Cenários COPOM'!$A$1:$K$100,2,FALSE)),0,VLOOKUP(B153,'Cenários COPOM'!$A$1:$K$100,2,FALSE)/100) -> 0 | E153: 4.4 | F153: 10261.35 | G153: 4.399616269 | I153: 151 | J153: =WORKDAY(J152,1,feriados!$A$2:$A$1000) -> 2020-08-10 | K153: 4.4 | L153: =IF(ISERROR(VLOOKUP(J153,'Cenários COPOM'!$A$1:$K$100,4,FALSE)),0,VLOOKUP(J153,'Cenários COPOM'!$A$1:$K$100,4,FALSE)/100) -> 0 | M153: 4.4 | N153: 10261.35 | O153: 4.399616269 | Q153: 151 | R153: =WORKDAY(R152,1,feriados!$A$2:$A$1000) -> 2020-08-10 | S153: 4.4 | T153: =IF(ISERROR(VLOOKUP(R153,'Cenários COPOM'!$A$1:$K$100,6,FALSE)),0,VLOOKUP(R153,'Cenários COPOM'!$A$1:$K$100,6,FALSE)/100) -> 0 | U153: 4.4 | V153: 10261.35 | W153: 4.399616269 | Y153: 151 | Z153: =WORKDAY(Z152,1,feriados!$A$2:$A$1000) -> 2020-08-10 | AA153: 4.4 | AB153: =IF(ISERROR(VLOOKUP(Z153,'Cenários COPOM'!$A$1:$K$100,8,FALSE)),0,VLOOKUP(Z153,'Cenários COPOM'!$A$1:$K$100,8,FALSE)/100) -> 0 | AC153: 4.4 | AD153: 10261.35 | AE153: 4.399616269 | AG153: 151 | AH153: =WORKDAY(AH152,1,feriados!$A$2:$A$1000) -> 2020-08-10 | AI153: 4.4 | AJ153: =IF(ISERROR(VLOOKUP(AH153,'Cenários COPOM'!$A$1:$K$100,10,FALSE)),0,VLOOKUP(AH153,'Cenários COPOM'!$A$1:$K$100,10,FALSE)/100) -> 0 | AK153: 4.4 | AL153: 10261.35 | AM153: 4.399616269
A154: 152 | B154: =WORKDAY(B153,1,feriados!$A$2:$A$1000) -> 2020-08-11 | C154: 4.4 | D154: =IF(ISERROR(VLOOKUP(B154,'Cenários COPOM'!$A$1:$K$100,2,FALSE)),0,VLOOKUP(B154,'Cenários COPOM'!$A$1:$K$100,2,FALSE)/100) -> 0 | E154: 4.4 | F154: 10263.1 | G154: 4.399559483 | I154: 152 | J154: =WORKDAY(J153,1,feriados!$A$2:$A$1000) -> 2020-08-11 | K154: 4.4 | L154: =IF(ISERROR(VLOOKUP(J154,'Cenários COPOM'!$A$1:$K$100,4,FALSE)),0,VLOOKUP(J154,'Cenários COPOM'!$A$1:$K$100,4,FALSE)/100) -> 0 | M154: 4.4 | N154: 10263.1 | O154: 4.399559483 | Q154: 152 | R154: =WORKDAY(R153,1,feriados!$A$2:$A$1000) -> 2020-08-11 | S154: 4.4 | T154: =IF(ISERROR(VLOOKUP(R154,'Cenários COPOM'!$A$1:$K$100,6,FALSE)),0,VLOOKUP(R154,'Cenários COPOM'!$A$1:$K$100,6,FALSE)/100) -> 0 | U154: 4.4 | V154: 10263.1 | W154: 4.399559483 | Y154: 152 | Z154: =WORKDAY(Z153,1,feriados!$A$2:$A$1000) -> 2020-08-11 | AA154: 4.4 | AB154: =IF(ISERROR(VLOOKUP(Z154,'Cenários COPOM'!$A$1:$K$100,8,FALSE)),0,VLOOKUP(Z154,'Cenários COPOM'!$A$1:$K$100,8,FALSE)/100) -> 0 | AC154: 4.4 | AD154: 10263.1 | AE154: 4.399559483 | AG154: 152 | AH154: =WORKDAY(AH153,1,feriados!$A$2:$A$1000) -> 2020-08-11 | AI154: 4.4 | AJ154: =IF(ISERROR(VLOOKUP(AH154,'Cenários COPOM'!$A$1:$K$100,10,FALSE)),0,VLOOKUP(AH154,'Cenários COPOM'!$A$1:$K$100,10,FALSE)/100) -> 0 | AK154: 4.4 | AL154: 10263.1 | AM154: 4.399559483
A155: 153 | B155: =WORKDAY(B154,1,feriados!$A$2:$A$1000) -> 2020-08-12 | C155: 4.4 | D155: =IF(ISERROR(VLOOKUP(B155,'Cenários COPOM'!$A$1:$K$100,2,FALSE)),0,VLOOKUP(B155,'Cenários COPOM'!$A$1:$K$100,2,FALSE)/100) -> 0 | E155: 4.4 | F155: 10264.85 | G155: 4.39949844 | I155: 153 | J155: =WORKDAY(J154,1,feriados!$A$2:$A$1000) -> 2020-08-12 | K155: 4.4 | L155: =IF(ISERROR(VLOOKUP(J155,'Cenários COPOM'!$A$1:$K$100,4,FALSE)),0,VLOOKUP(J155,'Cenários COPOM'!$A$1:$K$100,4,FALSE)/100) -> 0 | M155: 4.4 | N155: 10264.85 | O155: 4.39949844 | Q155: 153 | R155: =WORKDAY(R154,1,feriados!$A$2:$A$1000) -> 2020-08-12 | S155: 4.4 | T155: =IF(ISERROR(VLOOKUP(R155,'Cenários COPOM'!$A$1:$K$100,6,FALSE)),0,VLOOKUP(R155,'Cenários COPOM'!$A$1:$K$100,6,FALSE)/100) -> 0 | U155: 4.4 | V155: 10264.85 | W155: 4.39949844 | Y155: 153 | Z155: =WORKDAY(Z154,1,feriados!$A$2:$A$1000) -> 2020-08-12 | AA155: 4.4 | AB155: =IF(ISERROR(VLOOKUP(Z155,'Cenários COPOM'!$A$1:$K$100,8,FALSE)),0,VLOOKUP(Z155,'Cenários COPOM'!$A$1:$K$100,8,FALSE)/100) -> 0 | AC155: 4.4 | AD155: 10264.85 | AE155: 4.39949844 | AG155: 153 | AH155: =WORKDAY(AH154,1,feriados!$A$2:$A$1000) -> 2020-08-12 | AI155: 4.4 | AJ155: =IF(ISERROR(VLOOKUP(AH155,'Cenários COPOM'!$A$1:$K$100,10,FALSE)),0,VLOOKUP(AH155,'Cenários COPOM'!$A$1:$K$100,10,FALSE)/100) -> 0 | AK155: 4.4 | AL155: 10264.85 | AM155: 4.39949844
A156: 154 | B156: =WORKDAY(B155,1,feriados!$A$2:$A$1000) -> 2020-08-13 | C156: 4.4 | D156: =IF(ISERROR(VLOOKUP(B156,'Cenários COPOM'!$A$1:$K$100,2,FALSE)),0,VLOOKUP(B156,'Cenários COPOM'!$A$1:$K$100,2,FALSE)/100) -> 0 | E156: 4.4 | F156: 10266.6 | G156: 4.399433225 | I156: 154 | J156: =WORKDAY(J155,1,feriados!$A$2:$A$1000) -> 2020-08-13 | K156: 4.4 | L156: =IF(ISERROR(VLOOKUP(J156,'Cenários COPOM'!$A$1:$K$100,4,FALSE)),0,VLOOKUP(J156,'Cenários COPOM'!$A$1:$K$100,4,FALSE)/100) -> 0 | M156: 4.4 | N156: 10266.6 | O156: 4.399433225 | Q156: 154 | R156: =WORKDAY(R155,1,feriados!$A$2:$A$1000) -> 2020-08-13 | S156: 4.4 | T156: =IF(ISERROR(VLOOKUP(R156,'Cenários COPOM'!$A$1:$K$100,6,FALSE)),0,VLOOKUP(R156,'Cenários COPOM'!$A$1:$K$100,6,FALSE)/100) -> 0 | U156: 4.4 | V156: 10266.6 | W156: 4.399433225 | Y156: 154 | Z156: =WORKDAY(Z155,1,feriados!$A$2:$A$1000) -> 2020-08-13 | AA156: 4.4 | AB156: =IF(ISERROR(VLOOKUP(Z156,'Cenários COPOM'!$A$1:$K$100,8,FALSE)),0,VLOOKUP(Z156,'Cenários COPOM'!$A$1:$K$100,8,FALSE)/100) -> 0 | AC156: 4.4 | AD156: 10266.6 | AE156: 4.399433225 | AG156: 154 | AH156: =WORKDAY(AH155,1,feriados!$A$2:$A$1000) -> 2020-08-13 | AI156: 4.4 | AJ156: =IF(ISERROR(VLOOKUP(AH156,'Cenários COPOM'!$A$1:$K$100,10,FALSE)),0,VLOOKUP(AH156,'Cenários COPOM'!$A$1:$K$100,10,FALSE)/100) -> 0 | AK156: 4.4 | AL156: 10266.6 | AM156: 4.399433225
A157: 155 | B157: =WORKDAY(B156,1,feriados!$A$2:$A$1000) -> 2020-08-14 | C157: 4.4 | D157: =IF(ISERROR(VLOOKUP(B157,'Cenários COPOM'!$A$1:$K$100,2,FALSE)),0,VLOOKUP(B157,'Cenários COPOM'!$A$1:$K$100,2,FALSE)/100) -> 0 | E157: 4.4 | F157: 10268.35 | G157: 4.399363919 | I157: 155 | J157: =WORKDAY(J156,1,feriados!$A$2:$A$1000) -> 2020-08-14 | K157: 4.4 | L157: =IF(ISERROR(VLOOKUP(J157,'Cenários COPOM'!$A$1:$K$100,4,FALSE)),0,VLOOKUP(J157,'Cenários COPOM'!$A$1:$K$100,4,FALSE)/100) -> 0 | M157: 4.4 | N157: 10268.35 | O157: 4.399363919 | Q157: 155 | R157: =WORKDAY(R156,1,feriados!$A$2:$A$1000) -> 2020-08-14 | S157: 4.4 | T157: =IF(ISERROR(VLOOKUP(R157,'Cenários COPOM'!$A$1:$K$100,6,FALSE)),0,VLOOKUP(R157,'Cenários COPOM'!$A$1:$K$100,6,FALSE)/100) -> 0 | U157: 4.4 | V157: 10268.35 | W157: 4.399363919 | Y157: 155 | Z157: =WORKDAY(Z156,1,feriados!$A$2:$A$1000) -> 2020-08-14 | AA157: 4.4 | AB157: =IF(ISERROR(VLOOKUP(Z157,'Cenários COPOM'!$A$1:$K$100,8,FALSE)),0,VLOOKUP(Z157,'Cenários COPOM'!$A$1:$K$100,8,FALSE)/100) -> 0 | AC157: 4.4 | AD157: 10268.35 | AE157: 4.399363919 | AG157: 155 | AH157: =WORKDAY(AH156,1,feriados!$A$2:$A$1000) -> 2020-08-14 | AI157: 4.4 | AJ157: =IF(ISERROR(VLOOKUP(AH157,'Cenários COPOM'!$A$1:$K$100,10,FALSE)),0,VLOOKUP(AH157,'Cenários COPOM'!$A$1:$K$100,10,FALSE)/100) -> 0 | AK157: 4.4 | AL157: 10268.35 | AM157: 4.399363919
A158: 156 | B158: =WORKDAY(B157,1,feriados!$A$2:$A$1000) -> 2020-08-17 | C158: 4.4 | D158: =IF(ISERROR(VLOOKUP(B158,'Cenários COPOM'!$A$1:$K$100,2,FALSE)),0,VLOOKUP(B158,'Cenários COPOM'!$A$1:$K$100,2,FALSE)/100) -> 0 | E158: 4.4 | F158: 10270.1 | G158: 4.399290604 | I158: 156 | J158: =WORKDAY(J157,1,feriados!$A$2:$A$1000) -> 2020-08-17 | K158: 4.4 | L158: =IF(ISERROR(VLOOKUP(J158,'Cenários COPOM'!$A$1:$K$100,4,FALSE)),0,VLOOKUP(J158,'Cenários COPOM'!$A$1:$K$100,4,FALSE)/100) -> 0 | M158: 4.4 | N158: 10270.1 | O158: 4.399290604 | Q158: 156 | R158: =WORKDAY(R157,1,feriados!$A$2:$A$1000) -> 2020-08-17 | S158: 4.4 | T158: =IF(ISERROR(VLOOKUP(R158,'Cenários COPOM'!$A$1:$K$100,6,FALSE)),0,VLOOKUP(R158,'Cenários COPOM'!$A$1:$K$100,6,FALSE)/100) -> 0 | U158: 4.4 | V158: 10270.1 | W158: 4.399290604 | Y158: 156 | Z158: =WORKDAY(Z157,1,feriados!$A$2:$A$1000) -> 2020-08-17 | AA158: 4.4 | AB158: =IF(ISERROR(VLOOKUP(Z158,'Cenários COPOM'!$A$1:$K$100,8,FALSE)),0,VLOOKUP(Z158,'Cenários COPOM'!$A$1:$K$100,8,FALSE)/100) -> 0 | AC158: 4.4 | AD158: 10270.1 | AE158: 4.399290604 | AG158: 156 | AH158: =WORKDAY(AH157,1,feriados!$A$2:$A$1000) -> 2020-08-17 | AI158: 4.4 | AJ158: =IF(ISERROR(VLOOKUP(AH158,'Cenários COPOM'!$A$1:$K$100,10,FALSE)),0,VLOOKUP(AH158,'Cenários COPOM'!$A$1:$K$100,10,FALSE)/100) -> 0 | AK158: 4.4 | AL158: 10270.1 | AM158: 4.399290604
A159: 157 | B159: =WORKDAY(B158,1,feriados!$A$2:$A$1000) -> 2020-08-18 | C159: 4.4 | D159: =IF(ISERROR(VLOOKUP(B159,'Cenários COPOM'!$A$1:$K$100,2,FALSE)),0,VLOOKUP(B159,'Cenários COPOM'!$A$1:$K$100,2,FALSE)/100) -> 0 | E159: 4.4 | F159: 10271.86 | G159: 4.399376493 | I159: 157 | J159: =WORKDAY(J158,1,feriados!$A$2:$A$1000) -> 2020-08-18 | K159: 4.4 | L159: =IF(ISERROR(VLOOKUP(J159,'Cenários COPOM'!$A$1:$K$100,4,FALSE)),0,VLOOKUP(J159,'Cenários COPOM'!$A$1:$K$100,4,FALSE)/100) -> 0 | M159: 4.4 | N159: 10271.86 | O159: 4.399376493 | Q159: 157 | R159: =WORKDAY(R158,1,feriados!$A$2:$A$1000) -> 2020-08-18 | S159: 4.4 | T159: =IF(ISERROR(VLOOKUP(R159,'Cenários COPOM'!$A$1:$K$100,6,FALSE)),0,VLOOKUP(R159,'Cenários COPOM'!$A$1:$K$100,6,FALSE)/100) -> 0 | U159: 4.4 | V159: 10271.86 | W159: 4.399376493 | Y159: 157 | Z159: =WORKDAY(Z158,1,feriados!$A$2:$A$1000) -> 2020-08-18 | AA159: 4.4 | AB159: =IF(ISERROR(VLOOKUP(Z159,'Cenários COPOM'!$A$1:$K$100,8,FALSE)),0,VLOOKUP(Z159,'Cenários COPOM'!$A$1:$K$100,8,FALSE)/100) -> 0 | AC159: 4.4 | AD159: 10271.86 | AE159: 4.399376493 | AG159: 157 | AH159: =WORKDAY(AH158,1,feriados!$A$2:$A$1000) -> 2020-08-18 | AI159: 4.4 | AJ159: =IF(ISERROR(VLOOKUP(AH159,'Cenários COPOM'!$A$1:$K$100,10,FALSE)),0,VLOOKUP(AH159,'Cenários COPOM'!$A$1:$K$100,10,FALSE)/100) -> 0 | AK159: 4.4 | AL159: 10271.86 | AM159: 4.399376493
A160: 158 | B160: =WORKDAY(B159,1,feriados!$A$2:$A$1000) -> 2020-08-19 | C160: 4.4 | D160: =IF(ISERROR(VLOOKUP(B160,'Cenários COPOM'!$A$1:$K$100,2,FALSE)),0,VLOOKUP(B160,'Cenários COPOM'!$A$1:$K$100,2,FALSE)/100) -> 0 | E160: 4.4 | F160: 10273.62 | G160: 4.399456407 | I160: 158 | J160: =WORKDAY(J159,1,feriados!$A$2:$A$1000) -> 2020-08-19 | K160: 4.4 | L160: =IF(ISERROR(VLOOKUP(J160,'Cenários COPOM'!$A$1:$K$100,4,FALSE)),0,VLOOKUP(J160,'Cenários COPOM'!$A$1:$K$100,4,FALSE)/100) -> 0 | M160: 4.4 | N160: 10273.62 | O160: 4.399456407 | Q160: 158 | R160: =WORKDAY(R159,1,feriados!$A$2:$A$1000) -> 2020-08-19 | S160: 4.4 | T160: =IF(ISERROR(VLOOKUP(R160,'Cenários COPOM'!$A$1:$K$100,6,FALSE)),0,VLOOKUP(R160,'Cenários COPOM'!$A$1:$K$100,6,FALSE)/100) -> 0 | U160: 4.4 | V160: 10273.62 | W160: 4.399456407 | Y160: 158 | Z160: =WORKDAY(Z159,1,feriados!$A$2:$A$1000) -> 2020-08-19 | AA160: 4.4 | AB160: =IF(ISERROR(VLOOKUP(Z160,'Cenários COPOM'!$A$1:$K$100,8,FALSE)),0,VLOOKUP(Z160,'Cenários COPOM'!$A$1:$K$100,8,FALSE)/100) -> 0 | AC160: 4.4 | AD160: 10273.62 | AE160: 4.399456407 | AG160: 158 | AH160: =WORKDAY(AH159,1,feriados!$A$2:$A$1000) -> 2020-08-19 | AI160: 4.4 | AJ160: =IF(ISERROR(VLOOKUP(AH160,'Cenários COPOM'!$A$1:$K$100,10,FALSE)),0,VLOOKUP(AH160,'Cenários COPOM'!$A$1:$K$100,10,FALSE)/100) -> 0 | AK160: 4.4 | AL160: 10273.62 | AM160: 4.399456407
A161: 159 | B161: =WORKDAY(B160,1,feriados!$A$2:$A$1000) -> 2020-08-20 | C161: 4.4 | D161: =IF(ISERROR(VLOOKUP(B161,'Cenários COPOM'!$A$1:$K$100,2,FALSE)),0,VLOOKUP(B161,'Cenários COPOM'!$A$1:$K$100,2,FALSE)/100) -> 0 | E161: 4.4 | F161: 10275.38 | G161: 4.399530459 | I161: 159 | J161: =WORKDAY(J160,1,feriados!$A$2:$A$1000) -> 2020-08-20 | K161: 4.4 | L161: =IF(ISERROR(VLOOKUP(J161,'Cenários COPOM'!$A$1:$K$100,4,FALSE)),0,VLOOKUP(J161,'Cenários COPOM'!$A$1:$K$100,4,FALSE)/100) -> 0 | M161: 4.4 | N161: 10275.38 | O161: 4.399530459 | Q161: 159 | R161: =WORKDAY(R160,1,feriados!$A$2:$A$1000) -> 2020-08-20 | S161: 4.4 | T161: =IF(ISERROR(VLOOKUP(R161,'Cenários COPOM'!$A$1:$K$100,6,FALSE)),0,VLOOKUP(R161,'Cenários COPOM'!$A$1:$K$100,6,FALSE)/100) -> 0 | U161: 4.4 | V161: 10275.38 | W161: 4.399530459 | Y161: 159 | Z161: =WORKDAY(Z160,1,feriados!$A$2:$A$1000) -> 2020-08-20 | AA161: 4.4 | AB161: =IF(ISERROR(VLOOKUP(Z161,'Cenários COPOM'!$A$1:$K$100,8,FALSE)),0,VLOOKUP(Z161,'Cenários COPOM'!$A$1:$K$100,8,FALSE)/100) -> 0 | AC161: 4.4 | AD161: 10275.38 | AE161: 4.399530459 | AG161: 159 | AH161: =WORKDAY(AH160,1,feriados!$A$2:$A$1000) -> 2020-08-20 | AI161: 4.4 | AJ161: =IF(ISERROR(VLOOKUP(AH161,'Cenários COPOM'!$A$1:$K$100,10,FALSE)),0,VLOOKUP(AH161,'Cenários COPOM'!$A$1:$K$100,10,FALSE)/100) -> 0 | AK161: 4.4 | AL161: 10275.38 | AM161: 4.399530459
A162: 160 | B162: =WORKDAY(B161,1,feriados!$A$2:$A$1000) -> 2020-08-21 | C162: 4.4 | D162: =IF(ISERROR(VLOOKUP(B162,'Cenários COPOM'!$A$1:$K$100,2,FALSE)),0,VLOOKUP(B162,'Cenários COPOM'!$A$1:$K$100,2,FALSE)/100) -> 0 | E162: 4.4 | F162: 10277.14 | G162: 4.399598762 | I162: 160 | J162: =WORKDAY(J161,1,feriados!$A$2:$A$1000) -> 2020-08-21 | K162: 4.4 | L162: =IF(ISERROR(VLOOKUP(J162,'Cenários COPOM'!$A$1:$K$100,4,FALSE)),0,VLOOKUP(J162,'Cenários COPOM'!$A$1:$K$100,4,FALSE)/100) -> 0 | M162: 4.4 | N162: 10277.14 | O162: 4.399598762 | Q162: 160 | R162: =WORKDAY(R161,1,feriados!$A$2:$A$1000) -> 2020-08-21 | S162: 4.4 | T162: =IF(ISERROR(VLOOKUP(R162,'Cenários COPOM'!$A$1:$K$100,6,FALSE)),0,VLOOKUP(R162,'Cenários COPOM'!$A$1:$K$100,6,FALSE)/100) -> 0 | U162: 4.4 | V162: 10277.14 | W162: 4.399598762 | Y162: 160 | Z162: =WORKDAY(Z161,1,feriados!$A$2:$A$1000) -> 2020-08-21 | AA162: 4.4 | AB162: =IF(ISERROR(VLOOKUP(Z162,'Cenários COPOM'!$A$1:$K$100,8,FALSE)),0,VLOOKUP(Z162,'Cenários COPOM'!$A$1:$K$100,8,FALSE)/100) -> 0 | AC162: 4.4 | AD162: 10277.14 | AE162: 4.399598762 | AG162: 160 | AH162: =WORKDAY(AH161,1,feriados!$A$2:$A$1000) -> 2020-08-21 | AI162: 4.4 | AJ162: =IF(ISERROR(VLOOKUP(AH162,'Cenários COPOM'!$A$1:$K$100,10,FALSE)),0,VLOOKUP(AH162,'Cenários COPOM'!$A$1:$K$100,10,FALSE)/100) -> 0 | AK162: 4.4 | AL162: 10277.14 | AM162: 4.399598762
A163: 161 | B163: =WORKDAY(B162,1,feriados!$A$2:$A$1000) -> 2020-08-24 | C163: 4.4 | D163: =IF(ISERROR(VLOOKUP(B163,'Cenários COPOM'!$A$1:$K$100,2,FALSE)),0,VLOOKUP(B163,'Cenários COPOM'!$A$1:$K$100,2,FALSE)/100) -> 0 | E163: 4.4 | F163: 10278.9 | G163: 4.399661424 | I163: 161 | J163: =WORKDAY(J162,1,feriados!$A$2:$A$1000) -> 2020-08-24 | K163: 4.4 | L163: =IF(ISERROR(VLOOKUP(J163,'Cenários COPOM'!$A$1:$K$100,4,FALSE)),0,VLOOKUP(J163,'Cenários COPOM'!$A$1:$K$100,4,FALSE)/100) -> 0 | M163: 4.4 | N163: 10278.9 | O163: 4.399661424 | Q163: 161 | R163: =WORKDAY(R162,1,feriados!$A$2:$A$1000) -> 2020-08-24 | S163: 4.4 | T163: =IF(ISERROR(VLOOKUP(R163,'Cenários COPOM'!$A$1:$K$100,6,FALSE)),0,VLOOKUP(R163,'Cenários COPOM'!$A$1:$K$100,6,FALSE)/100) -> 0 | U163: 4.4 | V163: 10278.9 | W163: 4.399661424 | Y163: 161 | Z163: =WORKDAY(Z162,1,feriados!$A$2:$A$1000) -> 2020-08-24 | AA163: 4.4 | AB163: =IF(ISERROR(VLOOKUP(Z163,'Cenários COPOM'!$A$1:$K$100,8,FALSE)),0,VLOOKUP(Z163,'Cenários COPOM'!$A$1:$K$100,8,FALSE)/100) -> 0 | AC163: 4.4 | AD163: 10278.9 | AE163: 4.399661424 | AG163: 161 | AH163: =WORKDAY(AH162,1,feriados!$A$2:$A$1000) -> 2020-08-24 | AI163: 4.4 | AJ163: =IF(ISERROR(VLOOKUP(AH163,'Cenários COPOM'!$A$1:$K$100,10,FALSE)),0,VLOOKUP(AH163,'Cenários COPOM'!$A$1:$K$100,10,FALSE)/100) -> 0 | AK163: 4.4 | AL163: 10278.9 | AM163: 4.399661424
A164: 162 | B164: =WORKDAY(B163,1,feriados!$A$2:$A$1000) -> 2020-08-25 | C164: 4.4 | D164: =IF(ISERROR(VLOOKUP(B164,'Cenários COPOM'!$A$1:$K$100,2,FALSE)),0,VLOOKUP(B164,'Cenários COPOM'!$A$1:$K$100,2,FALSE)/100) -> 0 | E164: 4.4 | F164: 10280.66 | G164: 4.399718551 | I164: 162 | J164: =WORKDAY(J163,1,feriados!$A$2:$A$1000) -> 2020-08-25 | K164: 4.4 | L164: =IF(ISERROR(VLOOKUP(J164,'Cenários COPOM'!$A$1:$K$100,4,FALSE)),0,VLOOKUP(J164,'Cenários COPOM'!$A$1:$K$100,4,FALSE)/100) -> 0 | M164: 4.4 | N164: 10280.66 | O164: 4.399718551 | Q164: 162 | R164: =WORKDAY(R163,1,feriados!$A$2:$A$1000) -> 2020-08-25 | S164: 4.4 | T164: =IF(ISERROR(VLOOKUP(R164,'Cenários COPOM'!$A$1:$K$100,6,FALSE)),0,VLOOKUP(R164,'Cenários COPOM'!$A$1:$K$100,6,FALSE)/100) -> 0 | U164: 4.4 | V164: 10280.66 | W164: 4.399718551 | Y164: 162 | Z164: =WORKDAY(Z163,1,feriados!$A$2:$A$1000) -> 2020-08-25 | AA164: 4.4 | AB164: =IF(ISERROR(VLOOKUP(Z164,'Cenários COPOM'!$A$1:$K$100,8,FALSE)),0,VLOOKUP(Z164,'Cenários COPOM'!$A$1:$K$100,8,FALSE)/100) -> 0 | AC164: 4.4 | AD164: 10280.66 | AE164: 4.399718551 | AG164: 162 | AH164: =WORKDAY(AH163,1,feriados!$A$2:$A$1000) -> 2020-08-25 | AI164: 4.4 | AJ164: =IF(ISERROR(VLOOKUP(AH164,'Cenários COPOM'!$A$1:$K$100,10,FALSE)),0,VLOOKUP(AH164,'Cenários COPOM'!$A$1:$K$100,10,FALSE)/100) -> 0 | AK164: 4.4 | AL164: 10280.66 | AM164: 4.399718551
A165: 163 | B165: =WORKDAY(B164,1,feriados!$A$2:$A$1000) -> 2020-08-26 | C165: 4.4 | D165: =IF(ISERROR(VLOOKUP(B165,'Cenários COPOM'!$A$1:$K$100,2,FALSE)),0,VLOOKUP(B165,'Cenários COPOM'!$A$1:$K$100,2,FALSE)/100) -> 0 | E165: 4.4 | F165: 10282.42 | G165: 4.399770247 | I165: 163 | J165: =WORKDAY(J164,1,feriados!$A$2:$A$1000) -> 2020-08-26 | K165: 4.4 | L165: =IF(ISERROR(VLOOKUP(J165,'Cenários COPOM'!$A$1:$K$100,4,FALSE)),0,VLOOKUP(J165,'Cenários COPOM'!$A$1:$K$100,4,FALSE)/100) -> 0 | M165: 4.4 | N165: 10282.42 | O165: 4.399770247 | Q165: 163 | R165: =WORKDAY(R164,1,feriados!$A$2:$A$1000) -> 2020-08-26 | S165: 4.4 | T165: =IF(ISERROR(VLOOKUP(R165,'Cenários COPOM'!$A$1:$K$100,6,FALSE)),0,VLOOKUP(R165,'Cenários COPOM'!$A$1:$K$100,6,FALSE)/100) -> 0 | U165: 4.4 | V165: 10282.42 | W165: 4.399770247 | Y165: 163 | Z165: =WORKDAY(Z164,1,feriados!$A$2:$A$1000) -> 2020-08-26 | AA165: 4.4 | AB165: =IF(ISERROR(VLOOKUP(Z165,'Cenários COPOM'!$A$1:$K$100,8,FALSE)),0,VLOOKUP(Z165,'Cenários COPOM'!$A$1:$K$100,8,FALSE)/100) -> 0 | AC165: 4.4 | AD165: 10282.42 | AE165: 4.399770247 | AG165: 163 | AH165: =WORKDAY(AH164,1,feriados!$A$2:$A$1000) -> 2020-08-26 | AI165: 4.4 | AJ165: =IF(ISERROR(VLOOKUP(AH165,'Cenários COPOM'!$A$1:$K$100,10,FALSE)),0,VLOOKUP(AH165,'Cenários COPOM'!$A$1:$K$100,10,FALSE)/100) -> 0 | AK165: 4.4 | AL165: 10282.42 | AM165: 4.399770247
A166: 164 | B166: =WORKDAY(B165,1,feriados!$A$2:$A$1000) -> 2020-08-27 | C166: 4.4 | D166: =IF(ISERROR(VLOOKUP(B166,'Cenários COPOM'!$A$1:$K$100,2,FALSE)),0,VLOOKUP(B166,'Cenários COPOM'!$A$1:$K$100,2,FALSE)/100) -> 0 | E166: 4.4 | F166: 10284.18 | G166: 4.399816613 | I166: 164 | J166: =WORKDAY(J165,1,feriados!$A$2:$A$1000) -> 2020-08-27 | K166: 4.4 | L166: =IF(ISERROR(VLOOKUP(J166,'Cenários COPOM'!$A$1:$K$100,4,FALSE)),0,VLOOKUP(J166,'Cenários COPOM'!$A$1:$K$100,4,FALSE)/100) -> 0 | M166: 4.4 | N166: 10284.18 | O166: 4.399816613 | Q166: 164 | R166: =WORKDAY(R165,1,feriados!$A$2:$A$1000) -> 2020-08-27 | S166: 4.4 | T166: =IF(ISERROR(VLOOKUP(R166,'Cenários COPOM'!$A$1:$K$100,6,FALSE)),0,VLOOKUP(R166,'Cenários COPOM'!$A$1:$K$100,6,FALSE)/100) -> 0 | U166: 4.4 | V166: 10284.18 | W166: 4.399816613 | Y166: 164 | Z166: =WORKDAY(Z165,1,feriados!$A$2:$A$1000) -> 2020-08-27 | AA166: 4.4 | AB166: =IF(ISERROR(VLOOKUP(Z166,'Cenários COPOM'!$A$1:$K$100,8,FALSE)),0,VLOOKUP(Z166,'Cenários COPOM'!$A$1:$K$100,8,FALSE)/100) -> 0 | AC166: 4.4 | AD166: 10284.18 | AE166: 4.399816613 | AG166: 164 | AH166: =WORKDAY(AH165,1,feriados!$A$2:$A$1000) -> 2020-08-27 | AI166: 4.4 | AJ166: =IF(ISERROR(VLOOKUP(AH166,'Cenários COPOM'!$A$1:$K$100,10,FALSE)),0,VLOOKUP(AH166,'Cenários COPOM'!$A$1:$K$100,10,FALSE)/100) -> 0 | AK166: 4.4 | AL166: 10284.18 | AM166: 4.399816613
A167: 165 | B167: =WORKDAY(B166,1,feriados!$A$2:$A$1000) -> 2020-08-28 | C167: 4.4 | D167: =IF(ISERROR(VLOOKUP(B167,'Cenários COPOM'!$A$1:$K$100,2,FALSE)),0,VLOOKUP(B167,'Cenários COPOM'!$A$1:$K$100,2,FALSE)/100) -> 0 | E167: 4.4 | F167: 10285.94 | G167: 4.399857747 | I167: 165 | J167: =WORKDAY(J166,1,feriados!$A$2:$A$1000) -> 2020-08-28 | K167: 4.4 | L167: =IF(ISERROR(VLOOKUP(J167,'Cenários COPOM'!$A$1:$K$100,4,FALSE)),0,VLOOKUP(J167,'Cenários COPOM'!$A$1:$K$100,4,FALSE)/100) -> 0 | M167: 4.4 | N167: 10285.94 | O167: 4.399857747 | Q167: 165 | R167: =WORKDAY(R166,1,feriados!$A$2:$A$1000) -> 2020-08-28 | S167: 4.4 | T167: =IF(ISERROR(VLOOKUP(R167,'Cenários COPOM'!$A$1:$K$100,6,FALSE)),0,VLOOKUP(R167,'Cenários COPOM'!$A$1:$K$100,6,FALSE)/100) -> 0 | U167: 4.4 | V167: 10285.94 | W167: 4.399857747 | Y167: 165 | Z167: =WORKDAY(Z166,1,feriados!$A$2:$A$1000) -> 2020-08-28 | AA167: 4.4 | AB167: =IF(ISERROR(VLOOKUP(Z167,'Cenários COPOM'!$A$1:$K$100,8,FALSE)),0,VLOOKUP(Z167,'Cenários COPOM'!$A$1:$K$100,8,FALSE)/100) -> 0 | AC167: 4.4 | AD167: 10285.94 | AE167: 4.399857747 | AG167: 165 | AH167: =WORKDAY(AH166,1,feriados!$A$2:$A$1000) -> 2020-08-28 | AI167: 4.4 | AJ167: =IF(ISERROR(VLOOKUP(AH167,'Cenários COPOM'!$A$1:$K$100,10,FALSE)),0,VLOOKUP(AH167,'Cenários COPOM'!$A$1:$K$100,10,FALSE)/100) -> 0 | AK167: 4.4 | AL167: 10285.94 | AM167: 4.399857747
A168: 166 | B168: =WORKDAY(B167,1,feriados!$A$2:$A$1000) -> 2020-08-31 | C168: 4.4 | D168: =IF(ISERROR(VLOOKUP(B168,'Cenários COPOM'!$A$1:$K$100,2,FALSE)),0,VLOOKUP(B168,'Cenários COPOM'!$A$1:$K$100,2,FALSE)/100) -> 0 | E168: 4.4 | F168: 10287.7 | G168: 4.399893745 | I168: 166 | J168: =WORKDAY(J167,1,feriados!$A$2:$A$1000) -> 2020-08-31 | K168: 4.4 | L168: =IF(ISERROR(VLOOKUP(J168,'Cenários COPOM'!$A$1:$K$100,4,FALSE)),0,VLOOKUP(J168,'Cenários COPOM'!$A$1:$K$100,4,FALSE)/100) -> 0 | M168: 4.4 | N168: 10287.7 | O168: 4.399893745 | Q168: 166 | R168: =WORKDAY(R167,1,feriados!$A$2:$A$1000) -> 2020-08-31 | S168: 4.4 | T168: =IF(ISERROR(VLOOKUP(R168,'Cenários COPOM'!$A$1:$K$100,6,FALSE)),0,VLOOKUP(R168,'Cenários COPOM'!$A$1:$K$100,6,FALSE)/100) -> 0 | U168: 4.4 | V168: 10287.7 | W168: 4.399893745 | Y168: 166 | Z168: =WORKDAY(Z167,1,feriados!$A$2:$A$1000) -> 2020-08-31 | AA168: 4.4 | AB168: =IF(ISERROR(VLOOKUP(Z168,'Cenários COPOM'!$A$1:$K$100,8,FALSE)),0,VLOOKUP(Z168,'Cenários COPOM'!$A$1:$K$100,8,FALSE)/100) -> 0 | AC168: 4.4 | AD168: 10287.7 | AE168: 4.399893745 | AG168: 166 | AH168: =WORKDAY(AH167,1,feriados!$A$2:$A$1000) -> 2020-08-31 | AI168: 4.4 | AJ168: =IF(ISERROR(VLOOKUP(AH168,'Cenários COPOM'!$A$1:$K$100,10,FALSE)),0,VLOOKUP(AH168,'Cenários COPOM'!$A$1:$K$100,10,FALSE)/100) -> 0 | AK168: 4.4 | AL168: 10287.7 | AM168: 4.399893745
A169: 167 | B169: =WORKDAY(B168,1,feriados!$A$2:$A$1000) -> 2020-09-01 | C169: 4.4 | D169: =IF(ISERROR(VLOOKUP(B169,'Cenários COPOM'!$A$1:$K$100,2,FALSE)),0,VLOOKUP(B169,'Cenários COPOM'!$A$1:$K$100,2,FALSE)/100) -> 0 | E169: 4.4 | F169: 10289.46 | G169: 4.399924701 | I169: 167 | J169: =WORKDAY(J168,1,feriados!$A$2:$A$1000) -> 2020-09-01 | K169: 4.4 | L169: =IF(ISERROR(VLOOKUP(J169,'Cenários COPOM'!$A$1:$K$100,4,FALSE)),0,VLOOKUP(J169,'Cenários COPOM'!$A$1:$K$100,4,FALSE)/100) -> 0 | M169: 4.4 | N169: 10289.46 | O169: 4.399924701 | Q169: 167 | R169: =WORKDAY(R168,1,feriados!$A$2:$A$1000) -> 2020-09-01 | S169: 4.4 | T169: =IF(ISERROR(VLOOKUP(R169,'Cenários COPOM'!$A$1:$K$100,6,FALSE)),0,VLOOKUP(R169,'Cenários COPOM'!$A$1:$K$100,6,FALSE)/100) -> 0 | U169: 4.4 | V169: 10289.46 | W169: 4.399924701 | Y169: 167 | Z169: =WORKDAY(Z168,1,feriados!$A$2:$A$1000) -> 2020-09-01 | AA169: 4.4 | AB169: =IF(ISERROR(VLOOKUP(Z169,'Cenários COPOM'!$A$1:$K$100,8,FALSE)),0,VLOOKUP(Z169,'Cenários COPOM'!$A$1:$K$100,8,FALSE)/100) -> 0 | AC169: 4.4 | AD169: 10289.46 | AE169: 4.399924701 | AG169: 167 | AH169: =WORKDAY(AH168,1,feriados!$A$2:$A$1000) -> 2020-09-01 | AI169: 4.4 | AJ169: =IF(ISERROR(VLOOKUP(AH169,'Cenários COPOM'!$A$1:$K$100,10,FALSE)),0,VLOOKUP(AH169,'Cenários COPOM'!$A$1:$K$100,10,FALSE)/100) -> 0 | AK169: 4.4 | AL169: 10289.46 | AM169: 4.399924701
A170: 168 | B170: =WORKDAY(B169,1,feriados!$A$2:$A$1000) -> 2020-09-02 | C170: 4.4 | D170: =IF(ISERROR(VLOOKUP(B170,'Cenários COPOM'!$A$1:$K$100,2,FALSE)),0,VLOOKUP(B170,'Cenários COPOM'!$A$1:$K$100,2,FALSE)/100) -> 0 | E170: 4.4 | F170: 10291.22 | G170: 4.399950707 | I170: 168 | J170: =WORKDAY(J169,1,feriados!$A$2:$A$1000) -> 2020-09-02 | K170: 4.4 | L170: =IF(ISERROR(VLOOKUP(J170,'Cenários COPOM'!$A$1:$K$100,4,FALSE)),0,VLOOKUP(J170,'Cenários COPOM'!$A$1:$K$100,4,FALSE)/100) -> 0 | M170: 4.4 | N170: 10291.22 | O170: 4.399950707 | Q170: 168 | R170: =WORKDAY(R169,1,feriados!$A$2:$A$1000) -> 2020-09-02 | S170: 4.4 | T170: =IF(ISERROR(VLOOKUP(R170,'Cenários COPOM'!$A$1:$K$100,6,FALSE)),0,VLOOKUP(R170,'Cenários COPOM'!$A$1:$K$100,6,FALSE)/100) -> 0 | U170: 4.4 | V170: 10291.22 | W170: 4.399950707 | Y170: 168 | Z170: =WORKDAY(Z169,1,feriados!$A$2:$A$1000) -> 2020-09-02 | AA170: 4.4 | AB170: =IF(ISERROR(VLOOKUP(Z170,'Cenários COPOM'!$A$1:$K$100,8,FALSE)),0,VLOOKUP(Z170,'Cenários COPOM'!$A$1:$K$100,8,FALSE)/100) -> 0 | AC170: 4.4 | AD170: 10291.22 | AE170: 4.399950707 | AG170: 168 | AH170: =WORKDAY(AH169,1,feriados!$A$2:$A$1000) -> 2020-09-02 | AI170: 4.4 | AJ170: =IF(ISERROR(VLOOKUP(AH170,'Cenários COPOM'!$A$1:$K$100,10,FALSE)),0,VLOOKUP(AH170,'Cenários COPOM'!$A$1:$K$100,10,FALSE)/100) -> 0 | AK170: 4.4 | AL170: 10291.22 | AM170: 4.399950707
A171: 169 | B171: =WORKDAY(B170,1,feriados!$A$2:$A$1000) -> 2020-09-03 | C171: 4.4 | D171: =IF(ISERROR(VLOOKUP(B171,'Cenários COPOM'!$A$1:$K$100,2,FALSE)),0,VLOOKUP(B171,'Cenários COPOM'!$A$1:$K$100,2,FALSE)/100) -> 0 | E171: 4.4 | F171: 10292.98 | G171: 4.399971852 | I171: 169 | J171: =WORKDAY(J170,1,feriados!$A$2:$A$1000) -> 2020-09-03 | K171: 4.4 | L171: =IF(ISERROR(VLOOKUP(J171,'Cenários COPOM'!$A$1:$K$100,4,FALSE)),0,VLOOKUP(J171,'Cenários COPOM'!$A$1:$K$100,4,FALSE)/100) -> 0 | M171: 4.4 | N171: 10292.98 | O171: 4.399971852 | Q171: 169 | R171: =WORKDAY(R170,1,feriados!$A$2:$A$1000) -> 2020-09-03 | S171: 4.4 | T171: =IF(ISERROR(VLOOKUP(R171,'Cenários COPOM'!$A$1:$K$100,6,FALSE)),0,VLOOKUP(R171,'Cenários COPOM'!$A$1:$K$100,6,FALSE)/100) -> 0 | U171: 4.4 | V171: 10292.98 | W171: 4.399971852 | Y171: 169 | Z171: =WORKDAY(Z170,1,feriados!$A$2:$A$1000) -> 2020-09-03 | AA171: 4.4 | AB171: =IF(ISERROR(VLOOKUP(Z171,'Cenários COPOM'!$A$1:$K$100,8,FALSE)),0,VLOOKUP(Z171,'Cenários COPOM'!$A$1:$K$100,8,FALSE)/100) -> 0 | AC171: 4.4 | AD171: 10292.98 | AE171: 4.399971852 | AG171: 169 | AH171: =WORKDAY(AH170,1,feriados!$A$2:$A$1000) -> 2020-09-03 | AI171: 4.4 | AJ171: =IF(ISERROR(VLOOKUP(AH171,'Cenários COPOM'!$A$1:$K$100,10,FALSE)),0,VLOOKUP(AH171,'Cenários COPOM'!$A$1:$K$100,10,FALSE)/100) -> 0 | AK171: 4.4 | AL171: 10292.98 | AM171: 4.399971852
A172: 170 | B172: =WORKDAY(B171,1,feriados!$A$2:$A$1000) -> 2020-09-04 | C172: 4.4 | D172: =IF(ISERROR(VLOOKUP(B172,'Cenários COPOM'!$A$1:$K$100,2,FALSE)),0,VLOOKUP(B172,'Cenários COPOM'!$A$1:$K$100,2,FALSE)/100) -> 0 | E172: 4.4 | F172: 10294.74 | G172: 4.399988223 | I172: 170 | J172: =WORKDAY(J171,1,feriados!$A$2:$A$1000) -> 2020-09-04 | K172: 4.4 | L172: =IF(ISERROR(VLOOKUP(J172,'Cenários COPOM'!$A$1:$K$100,4,FALSE)),0,VLOOKUP(J172,'Cenários COPOM'!$A$1:$K$100,4,FALSE)/100) -> 0 | M172: 4.4 | N172: 10294.74 | O172: 4.399988223 | Q172: 170 | R172: =WORKDAY(R171,1,feriados!$A$2:$A$1000) -> 2020-09-04 | S172: 4.4 | T172: =IF(ISERROR(VLOOKUP(R172,'Cenários COPOM'!$A$1:$K$100,6,FALSE)),0,VLOOKUP(R172,'Cenários COPOM'!$A$1:$K$100,6,FALSE)/100) -> 0 | U172: 4.4 | V172: 10294.74 | W172: 4.399988223 | Y172: 170 | Z172: =WORKDAY(Z171,1,feriados!$A$2:$A$1000) -> 2020-09-04 | AA172: 4.4 | AB172: =IF(ISERROR(VLOOKUP(Z172,'Cenários COPOM'!$A$1:$K$100,8,FALSE)),0,VLOOKUP(Z172,'Cenários COPOM'!$A$1:$K$100,8,FALSE)/100) -> 0 | AC172: 4.4 | AD172: 10294.74 | AE172: 4.399988223 | AG172: 170 | AH172: =WORKDAY(AH171,1,feriados!$A$2:$A$1000) -> 2020-09-04 | AI172: 4.4 | AJ172: =IF(ISERROR(VLOOKUP(AH172,'Cenários COPOM'!$A$1:$K$100,10,FALSE)),0,VLOOKUP(AH172,'Cenários COPOM'!$A$1:$K$100,10,FALSE)/100) -> 0 | AK172: 4.4 | AL172: 10294.74 | AM172: 4.399988223
A173: 171 | B173: =WORKDAY(B172,1,feriados!$A$2:$A$1000) -> 2020-09-08 | C173: 4.4 | D173: =IF(ISERROR(VLOOKUP(B173,'Cenários COPOM'!$A$1:$K$100,2,FALSE)),0,VLOOKUP(B173,'Cenários COPOM'!$A$1:$K$100,2,FALSE)/100) -> 0 | E173: 4.4 | F173: 10296.5 | G173: 4.399999907 | I173: 171 | J173: =WORKDAY(J172,1,feriados!$A$2:$A$1000) -> 2020-09-08 | K173: 4.4 | L173: =IF(ISERROR(VLOOKUP(J173,'Cenários COPOM'!$A$1:$K$100,4,FALSE)),0,VLOOKUP(J173,'Cenários COPOM'!$A$1:$K$100,4,FALSE)/100) -> 0 | M173: 4.4 | N173: 10296.5 | O173: 4.399999907 | Q173: 171 | R173: =WORKDAY(R172,1,feriados!$A$2:$A$1000) -> 2020-09-08 | S173: 4.4 | T173: =IF(ISERROR(VLOOKUP(R173,'Cenários COPOM'!$A$1:$K$100,6,FALSE)),0,VLOOKUP(R173,'Cenários COPOM'!$A$1:$K$100,6,FALSE)/100) -> 0 | U173: 4.4 | V173: 10296.5 | W173: 4.399999907 | Y173: 171 | Z173: =WORKDAY(Z172,1,feriados!$A$2:$A$1000) -> 2020-09-08 | AA173: 4.4 | AB173: =IF(ISERROR(VLOOKUP(Z173,'Cenários COPOM'!$A$1:$K$100,8,FALSE)),0,VLOOKUP(Z173,'Cenários COPOM'!$A$1:$K$100,8,FALSE)/100) -> 0 | AC173: 4.4 | AD173: 10296.5 | AE173: 4.399999907 | AG173: 171 | AH173: =WORKDAY(AH172,1,feriados!$A$2:$A$1000) -> 2020-09-08 | AI173: 4.4 | AJ173: =IF(ISERROR(VLOOKUP(AH173,'Cenários COPOM'!$A$1:$K$100,10,FALSE)),0,VLOOKUP(AH173,'Cenários COPOM'!$A$1:$K$100,10,FALSE)/100) -> 0 | AK173: 4.4 | AL173: 10296.5 | AM173: 4.399999907
A174: 172 | B174: =WORKDAY(B173,1,feriados!$A$2:$A$1000) -> 2020-09-09 | C174: 4.4 | D174: =IF(ISERROR(VLOOKUP(B174,'Cenários COPOM'!$A$1:$K$100,2,FALSE)),0,VLOOKUP(B174,'Cenários COPOM'!$A$1:$K$100,2,FALSE)/100) -> 0 | E174: 4.4 | F174: 10298.26 | G174: 4.400006985 | I174: 172 | J174: =WORKDAY(J173,1,feriados!$A$2:$A$1000) -> 2020-09-09 | K174: 4.4 | L174: =IF(ISERROR(VLOOKUP(J174,'Cenários COPOM'!$A$1:$K$100,4,FALSE)),0,VLOOKUP(J174,'Cenários COPOM'!$A$1:$K$100,4,FALSE)/100) -> 0 | M174: 4.4 | N174: 10298.26 | O174: 4.400006985 | Q174: 172 | R174: =WORKDAY(R173,1,feriados!$A$2:$A$1000) -> 2020-09-09 | S174: 4.4 | T174: =IF(ISERROR(VLOOKUP(R174,'Cenários COPOM'!$A$1:$K$100,6,FALSE)),0,VLOOKUP(R174,'Cenários COPOM'!$A$1:$K$100,6,FALSE)/100) -> 0 | U174: 4.4 | V174: 10298.26 | W174: 4.400006985 | Y174: 172 | Z174: =WORKDAY(Z173,1,feriados!$A$2:$A$1000) -> 2020-09-09 | AA174: 4.4 | AB174: =IF(ISERROR(VLOOKUP(Z174,'Cenários COPOM'!$A$1:$K$100,8,FALSE)),0,VLOOKUP(Z174,'Cenários COPOM'!$A$1:$K$100,8,FALSE)/100) -> 0 | AC174: 4.4 | AD174: 10298.26 | AE174: 4.400006985 | AG174: 172 | AH174: =WORKDAY(AH173,1,feriados!$A$2:$A$1000) -> 2020-09-09 | AI174: 4.4 | AJ174: =IF(ISERROR(VLOOKUP(AH174,'Cenários COPOM'!$A$1:$K$100,10,FALSE)),0,VLOOKUP(AH174,'Cenários COPOM'!$A$1:$K$100,10,FALSE)/100) -> 0 | AK174: 4.4 | AL174: 10298.26 | AM174: 4.400006985
A175: 173 | B175: =WORKDAY(B174,1,feriados!$A$2:$A$1000) -> 2020-09-10 | C175: 4.4 | D175: =IF(ISERROR(VLOOKUP(B175,'Cenários COPOM'!$A$1:$K$100,2,FALSE)),0,VLOOKUP(B175,'Cenários COPOM'!$A$1:$K$100,2,FALSE)/100) -> 0 | E175: 4.4 | F175: 10300.02 | G175: 4.40000954 | I175: 173 | J175: =WORKDAY(J174,1,feriados!$A$2:$A$1000) -> 2020-09-10 | K175: 4.4 | L175: =IF(ISERROR(VLOOKUP(J175,'Cenários COPOM'!$A$1:$K$100,4,FALSE)),0,VLOOKUP(J175,'Cenários COPOM'!$A$1:$K$100,4,FALSE)/100) -> 0 | M175: 4.4 | N175: 10300.02 | O175: 4.40000954 | Q175: 173 | R175: =WORKDAY(R174,1,feriados!$A$2:$A$1000) -> 2020-09-10 | S175: 4.4 | T175: =IF(ISERROR(VLOOKUP(R175,'Cenários COPOM'!$A$1:$K$100,6,FALSE)),0,VLOOKUP(R175,'Cenários COPOM'!$A$1:$K$100,6,FALSE)/100) -> 0 | U175: 4.4 | V175: 10300.02 | W175: 4.40000954 | Y175: 173 | Z175: =WORKDAY(Z174,1,feriados!$A$2:$A$1000) -> 2020-09-10 | AA175: 4.4 | AB175: =IF(ISERROR(VLOOKUP(Z175,'Cenários COPOM'!$A$1:$K$100,8,FALSE)),0,VLOOKUP(Z175,'Cenários COPOM'!$A$1:$K$100,8,FALSE)/100) -> 0 | AC175: 4.4 | AD175: 10300.02 | AE175: 4.40000954 | AG175: 173 | AH175: =WORKDAY(AH174,1,feriados!$A$2:$A$1000) -> 2020-09-10 | AI175: 4.4 | AJ175: =IF(ISERROR(VLOOKUP(AH175,'Cenários COPOM'!$A$1:$K$100,10,FALSE)),0,VLOOKUP(AH175,'Cenários COPOM'!$A$1:$K$100,10,FALSE)/100) -> 0 | AK175: 4.4 | AL175: 10300.02 | AM175: 4.40000954
A176: 174 | B176: =WORKDAY(B175,1,feriados!$A$2:$A$1000) -> 2020-09-11 | C176: 4.4 | D176: =IF(ISERROR(VLOOKUP(B176,'Cenários COPOM'!$A$1:$K$100,2,FALSE)),0,VLOOKUP(B176,'Cenários COPOM'!$A$1:$K$100,2,FALSE)/100) -> 0 | E176: 4.4 | F176: 10301.78 | G176: 4.40000765 | I176: 174 | J176: =WORKDAY(J175,1,feriados!$A$2:$A$1000) -> 2020-09-11 | K176: 4.4 | L176: =IF(ISERROR(VLOOKUP(J176,'Cenários COPOM'!$A$1:$K$100,4,FALSE)),0,VLOOKUP(J176,'Cenários COPOM'!$A$1:$K$100,4,FALSE)/100) -> 0 | M176: 4.4 | N176: 10301.78 | O176: 4.40000765 | Q176: 174 | R176: =WORKDAY(R175,1,feriados!$A$2:$A$1000) -> 2020-09-11 | S176: 4.4 | T176: =IF(ISERROR(VLOOKUP(R176,'Cenários COPOM'!$A$1:$K$100,6,FALSE)),0,VLOOKUP(R176,'Cenários COPOM'!$A$1:$K$100,6,FALSE)/100) -> 0 | U176: 4.4 | V176: 10301.78 | W176: 4.40000765 | Y176: 174 | Z176: =WORKDAY(Z175,1,feriados!$A$2:$A$1000) -> 2020-09-11 | AA176: 4.4 | AB176: =IF(ISERROR(VLOOKUP(Z176,'Cenários COPOM'!$A$1:$K$100,8,FALSE)),0,VLOOKUP(Z176,'Cenários COPOM'!$A$1:$K$100,8,FALSE)/100) -> 0 | AC176: 4.4 | AD176: 10301.78 | AE176: 4.40000765 | AG176: 174 | AH176: =WORKDAY(AH175,1,feriados!$A$2:$A$1000) -> 2020-09-11 | AI176: 4.4 | AJ176: =IF(ISERROR(VLOOKUP(AH176,'Cenários COPOM'!$A$1:$K$100,10,FALSE)),0,VLOOKUP(AH176,'Cenários COPOM'!$A$1:$K$100,10,FALSE)/100) -> 0 | AK176: 4.4 | AL176: 10301.78 | AM176: 4.40000765
A177: 175 | B177: =WORKDAY(B176,1,feriados!$A$2:$A$1000) -> 2020-09-14 | C177: 4.4 | D177: =IF(ISERROR(VLOOKUP(B177,'Cenários COPOM'!$A$1:$K$100,2,FALSE)),0,VLOOKUP(B177,'Cenários COPOM'!$A$1:$K$100,2,FALSE)/100) -> 0 | E177: 4.4 | F177: 10303.54 | G177: 4.400001395 | I177: 175 | J177: =WORKDAY(J176,1,feriados!$A$2:$A$1000) -> 2020-09-14 | K177: 4.4 | L177: =IF(ISERROR(VLOOKUP(J177,'Cenários COPOM'!$A$1:$K$100,4,FALSE)),0,VLOOKUP(J177,'Cenários COPOM'!$A$1:$K$100,4,FALSE)/100) -> 0 | M177: 4.4 | N177: 10303.54 | O177: 4.400001395 | Q177: 175 | R177: =WORKDAY(R176,1,feriados!$A$2:$A$1000) -> 2020-09-14 | S177: 4.4 | T177: =IF(ISERROR(VLOOKUP(R177,'Cenários COPOM'!$A$1:$K$100,6,FALSE)),0,VLOOKUP(R177,'Cenários COPOM'!$A$1:$K$100,6,FALSE)/100) -> 0 | U177: 4.4 | V177: 10303.54 | W177: 4.400001395 | Y177: 175 | Z177: =WORKDAY(Z176,1,feriados!$A$2:$A$1000) -> 2020-09-14 | AA177: 4.4 | AB177: =IF(ISERROR(VLOOKUP(Z177,'Cenários COPOM'!$A$1:$K$100,8,FALSE)),0,VLOOKUP(Z177,'Cenários COPOM'!$A$1:$K$100,8,FALSE)/100) -> 0 | AC177: 4.4 | AD177: 10303.54 | AE177: 4.400001395 | AG177: 175 | AH177: =WORKDAY(AH176,1,feriados!$A$2:$A$1000) -> 2020-09-14 | AI177: 4.4 | AJ177: =IF(ISERROR(VLOOKUP(AH177,'Cenários COPOM'!$A$1:$K$100,10,FALSE)),0,VLOOKUP(AH177,'Cenários COPOM'!$A$1:$K$100,10,FALSE)/100) -> 0 | AK177: 4.4 | AL177: 10303.54 | AM177: 4.400001395
A178: 176 | B178: =WORKDAY(B177,1,feriados!$A$2:$A$1000) -> 2020-09-15 | C178: 4.4 | D178: =IF(ISERROR(VLOOKUP(B178,'Cenários COPOM'!$A$1:$K$100,2,FALSE)),0,VLOOKUP(B178,'Cenários COPOM'!$A$1:$K$100,2,FALSE)/100) -> 0 | E178: 4.4 | F178: 10305.3 | G178: 4.399990849 | I178: 176 | J178: =WORKDAY(J177,1,feriados!$A$2:$A$1000) -> 2020-09-15 | K178: 4.4 | L178: =IF(ISERROR(VLOOKUP(J178,'Cenários COPOM'!$A$1:$K$100,4,FALSE)),0,VLOOKUP(J178,'Cenários COPOM'!$A$1:$K$100,4,FALSE)/100) -> 0 | M178: 4.4 | N178: 10305.3 | O178: 4.399990849 | Q178: 176 | R178: =WORKDAY(R177,1,feriados!$A$2:$A$1000) -> 2020-09-15 | S178: 4.4 | T178: =IF(ISERROR(VLOOKUP(R178,'Cenários COPOM'!$A$1:$K$100,6,FALSE)),0,VLOOKUP(R178,'Cenários COPOM'!$A$1:$K$100,6,FALSE)/100) -> 0 | U178: 4.4 | V178: 10305.3 | W178: 4.399990849 | Y178: 176 | Z178: =WORKDAY(Z177,1,feriados!$A$2:$A$1000) -> 2020-09-15 | AA178: 4.4 | AB178: =IF(ISERROR(VLOOKUP(Z178,'Cenários COPOM'!$A$1:$K$100,8,FALSE)),0,VLOOKUP(Z178,'Cenários COPOM'!$A$1:$K$100,8,FALSE)/100) -> 0 | AC178: 4.4 | AD178: 10305.3 | AE178: 4.399990849 | AG178: 176 | AH178: =WORKDAY(AH177,1,feriados!$A$2:$A$1000) -> 2020-09-15 | AI178: 4.4 | AJ178: =IF(ISERROR(VLOOKUP(AH178,'Cenários COPOM'!$A$1:$K$100,10,FALSE)),0,VLOOKUP(AH178,'Cenários COPOM'!$A$1:$K$100,10,FALSE)/100) -> 0 | AK178: 4.4 | AL178: 10305.3 | AM178: 4.399990849
A179: 177 | B179: =WORKDAY(B178,1,feriados!$A$2:$A$1000) -> 2020-09-16 | C179: 4.4 | D179: =IF(ISERROR(VLOOKUP(B179,'Cenários COPOM'!$A$1:$K$100,2,FALSE)),0,VLOOKUP(B179,'Cenários COPOM'!$A$1:$K$100,2,FALSE)/100) -> 0 | E179: 4.4 | F179: 10307.06 | G179: 4.399976086 | I179: 177 | J179: =WORKDAY(J178,1,feriados!$A$2:$A$1000) -> 2020-09-16 | K179: 4.4 | L179: =IF(ISERROR(VLOOKUP(J179,'Cenários COPOM'!$A$1:$K$100,4,FALSE)),0,VLOOKUP(J179,'Cenários COPOM'!$A$1:$K$100,4,FALSE)/100) -> 0 | M179: 4.4 | N179: 10307.06 | O179: 4.399976086 | Q179: 177 | R179: =WORKDAY(R178,1,feriados!$A$2:$A$1000) -> 2020-09-16 | S179: 4.4 | T179: =IF(ISERROR(VLOOKUP(R179,'Cenários COPOM'!$A$1:$K$100,6,FALSE)),0,VLOOKUP(R179,'Cenários COPOM'!$A$1:$K$100,6,FALSE)/100) -> 0 | U179: 4.4 | V179: 10307.06 | W179: 4.399976086 | Y179: 177 | Z179: =WORKDAY(Z178,1,feriados!$A$2:$A$1000) -> 2020-09-16 | AA179: 4.4 | AB179: =IF(ISERROR(VLOOKUP(Z179,'Cenários COPOM'!$A$1:$K$100,8,FALSE)),0,VLOOKUP(Z179,'Cenários COPOM'!$A$1:$K$100,8,FALSE)/100) -> 0 | AC179: 4.4 | AD179: 10307.06 | AE179: 4.399976086 | AG179: 177 | AH179: =WORKDAY(AH178,1,feriados!$A$2:$A$1000) -> 2020-09-16 | AI179: 4.4 | AJ179: =IF(ISERROR(VLOOKUP(AH179,'Cenários COPOM'!$A$1:$K$100,10,FALSE)),0,VLOOKUP(AH179,'Cenários COPOM'!$A$1:$K$100,10,FALSE)/100) -> 0 | AK179: 4.4 | AL179: 10307.06 | AM179: 4.399976086
A180: 178 | B180: =WORKDAY(B179,1,feriados!$A$2:$A$1000) -> 2020-09-17 | C180: 4.4 | D180: =IF(ISERROR(VLOOKUP(B180,'Cenários COPOM'!$A$1:$K$100,2,FALSE)),0,VLOOKUP(B180,'Cenários COPOM'!$A$1:$K$100,2,FALSE)/100) -> 0 | E180: 4.4 | F180: 10308.82 | G180: 4.39995718 | I180: 178 | J180: =WORKDAY(J179,1,feriados!$A$2:$A$1000) -> 2020-09-17 | K180: 4.4 | L180: =IF(ISERROR(VLOOKUP(J180,'Cenários COPOM'!$A$1:$K$100,4,FALSE)),0,VLOOKUP(J180,'Cenários COPOM'!$A$1:$K$100,4,FALSE)/100) -> 0 | M180: 4.4 | N180: 10308.82 | O180: 4.39995718 | Q180: 178 | R180: =WORKDAY(R179,1,feriados!$A$2:$A$1000) -> 2020-09-17 | S180: 4.4 | T180: =IF(ISERROR(VLOOKUP(R180,'Cenários COPOM'!$A$1:$K$100,6,FALSE)),0,VLOOKUP(R180,'Cenários COPOM'!$A$1:$K$100,6,FALSE)/100) -> 0 | U180: 4.4 | V180: 10308.82 | W180: 4.39995718 | Y180: 178 | Z180: =WORKDAY(Z179,1,feriados!$A$2:$A$1000) -> 2020-09-17 | AA180: 4.4 | AB180: =IF(ISERROR(VLOOKUP(Z180,'Cenários COPOM'!$A$1:$K$100,8,FALSE)),0,VLOOKUP(Z180,'Cenários COPOM'!$A$1:$K$100,8,FALSE)/100) -> 0 | AC180: 4.4 | AD180: 10308.82 | AE180: 4.39995718 | AG180: 178 | AH180: =WORKDAY(AH179,1,feriados!$A$2:$A$1000) -> 2020-09-17 | AI180: 4.4 | AJ180: =IF(ISERROR(VLOOKUP(AH180,'Cenários COPOM'!$A$1:$K$100,10,FALSE)),0,VLOOKUP(AH180,'Cenários COPOM'!$A$1:$K$100,10,FALSE)/100) -> 0 | AK180: 4.4 | AL180: 10308.82 | AM180: 4.39995718
A181: 179 | B181: =WORKDAY(B180,1,feriados!$A$2:$A$1000) -> 2020-09-18 | C181: 4.4 | D181: =IF(ISERROR(VLOOKUP(B181,'Cenários COPOM'!$A$1:$K$100,2,FALSE)),0,VLOOKUP(B181,'Cenários COPOM'!$A$1:$K$100,2,FALSE)/100) -> 0 | E181: 4.4 | F181: 10310.58 | G181: 4.399934201 | I181: 179 | J181: =WORKDAY(J180,1,feriados!$A$2:$A$1000) -> 2020-09-18 | K181: 4.4 | L181: =IF(ISERROR(VLOOKUP(J181,'Cenários COPOM'!$A$1:$K$100,4,FALSE)),0,VLOOKUP(J181,'Cenários COPOM'!$A$1:$K$100,4,FALSE)/100) -> 0 | M181: 4.4 | N181: 10310.58 | O181: 4.399934201 | Q181: 179 | R181: =WORKDAY(R180,1,feriados!$A$2:$A$1000) -> 2020-09-18 | S181: 4.4 | T181: =IF(ISERROR(VLOOKUP(R181,'Cenários COPOM'!$A$1:$K$100,6,FALSE)),0,VLOOKUP(R181,'Cenários COPOM'!$A$1:$K$100,6,FALSE)/100) -> 0 | U181: 4.4 | V181: 10310.58 | W181: 4.399934201 | Y181: 179 | Z181: =WORKDAY(Z180,1,feriados!$A$2:$A$1000) -> 2020-09-18 | AA181: 4.4 | AB181: =IF(ISERROR(VLOOKUP(Z181,'Cenários COPOM'!$A$1:$K$100,8,FALSE)),0,VLOOKUP(Z181,'Cenários COPOM'!$A$1:$K$100,8,FALSE)/100) -> 0 | AC181: 4.4 | AD181: 10310.58 | AE181: 4.399934201 | AG181: 179 | AH181: =WORKDAY(AH180,1,feriados!$A$2:$A$1000) -> 2020-09-18 | AI181: 4.4 | AJ181: =IF(ISERROR(VLOOKUP(AH181,'Cenários COPOM'!$A$1:$K$100,10,FALSE)),0,VLOOKUP(AH181,'Cenários COPOM'!$A$1:$K$100,10,FALSE)/100) -> 0 | AK181: 4.4 | AL181: 10310.58 | AM181: 4.399934201
A182: 180 | B182: =WORKDAY(B181,1,feriados!$A$2:$A$1000) -> 2020-09-21 | C182: 4.4 | D182: =IF(ISERROR(VLOOKUP(B182,'Cenários COPOM'!$A$1:$K$100,2,FALSE)),0,VLOOKUP(B182,'Cenários COPOM'!$A$1:$K$100,2,FALSE)/100) -> 0 | E182: 4.4 | F182: 10312.34 | G182: 4.399907219 | I182: 180 | J182: =WORKDAY(J181,1,feriados!$A$2:$A$1000) -> 2020-09-21 | K182: 4.4 | L182: =IF(ISERROR(VLOOKUP(J182,'Cenários COPOM'!$A$1:$K$100,4,FALSE)),0,VLOOKUP(J182,'Cenários COPOM'!$A$1:$K$100,4,FALSE)/100) -> 0 | M182: 4.4 | N182: 10312.34 | O182: 4.399907219 | Q182: 180 | R182: =WORKDAY(R181,1,feriados!$A$2:$A$1000) -> 2020-09-21 | S182: 4.4 | T182: =IF(ISERROR(VLOOKUP(R182,'Cenários COPOM'!$A$1:$K$100,6,FALSE)),0,VLOOKUP(R182,'Cenários COPOM'!$A$1:$K$100,6,FALSE)/100) -> 0 | U182: 4.4 | V182: 10312.34 | W182: 4.399907219 | Y182: 180 | Z182: =WORKDAY(Z181,1,feriados!$A$2:$A$1000) -> 2020-09-21 | AA182: 4.4 | AB182: =IF(ISERROR(VLOOKUP(Z182,'Cenários COPOM'!$A$1:$K$100,8,FALSE)),0,VLOOKUP(Z182,'Cenários COPOM'!$A$1:$K$100,8,FALSE)/100) -> 0 | AC182: 4.4 | AD182: 10312.34 | AE182: 4.399907219 | AG182: 180 | AH182: =WORKDAY(AH181,1,feriados!$A$2:$A$1000) -> 2020-09-21 | AI182: 4.4 | AJ182: =IF(ISERROR(VLOOKUP(AH182,'Cenários COPOM'!$A$1:$K$100,10,FALSE)),0,VLOOKUP(AH182,'Cenários COPOM'!$A$1:$K$100,10,FALSE)/100) -> 0 | AK182: 4.4 | AL182: 10312.34 | AM182: 4.399907219
A183: 181 | B183: =WORKDAY(B182,1,feriados!$A$2:$A$1000) -> 2020-09-22 | C183: 4.4 | D183: =IF(ISERROR(VLOOKUP(B183,'Cenários COPOM'!$A$1:$K$100,2,FALSE)),0,VLOOKUP(B183,'Cenários COPOM'!$A$1:$K$100,2,FALSE)/100) -> 0 | E183: 4.4 | F183: 10314.1 | G183: 4.399876301 | I183: 181 | J183: =WORKDAY(J182,1,feriados!$A$2:$A$1000) -> 2020-09-22 | K183: 4.4 | L183: =IF(ISERROR(VLOOKUP(J183,'Cenários COPOM'!$A$1:$K$100,4,FALSE)),0,VLOOKUP(J183,'Cenários COPOM'!$A$1:$K$100,4,FALSE)/100) -> 0 | M183: 4.4 | N183: 10314.1 | O183: 4.399876301 | Q183: 181 | R183: =WORKDAY(R182,1,feriados!$A$2:$A$1000) -> 2020-09-22 | S183: 4.4 | T183: =IF(ISERROR(VLOOKUP(R183,'Cenários COPOM'!$A$1:$K$100,6,FALSE)),0,VLOOKUP(R183,'Cenários COPOM'!$A$1:$K$100,6,FALSE)/100) -> 0 | U183: 4.4 | V183: 10314.1 | W183: 4.399876301 | Y183: 181 | Z183: =WORKDAY(Z182,1,feriados!$A$2:$A$1000) -> 2020-09-22 | AA183: 4.4 | AB183: =IF(ISERROR(VLOOKUP(Z183,'Cenários COPOM'!$A$1:$K$100,8,FALSE)),0,VLOOKUP(Z183,'Cenários COPOM'!$A$1:$K$100,8,FALSE)/100) -> 0 | AC183: 4.4 | AD183: 10314.1 | AE183: 4.399876301 | AG183: 181 | AH183: =WORKDAY(AH182,1,feriados!$A$2:$A$1000) -> 2020-09-22 | AI183: 4.4 | AJ183: =IF(ISERROR(VLOOKUP(AH183,'Cenários COPOM'!$A$1:$K$100,10,FALSE)),0,VLOOKUP(AH183,'Cenários COPOM'!$A$1:$K$100,10,FALSE)/100) -> 0 | AK183: 4.4 | AL183: 10314.1 | AM183: 4.399876301
A184: 182 | B184: =WORKDAY(B183,1,feriados!$A$2:$A$1000) -> 2020-09-23 | C184: 4.4 | D184: =IF(ISERROR(VLOOKUP(B184,'Cenários COPOM'!$A$1:$K$100,2,FALSE)),0,VLOOKUP(B184,'Cenários COPOM'!$A$1:$K$100,2,FALSE)/100) -> 0 | E184: 4.4 | F184: 10315.86 | G184: 4.399841514 | I184: 182 | J184: =WORKDAY(J183,1,feriados!$A$2:$A$1000) -> 2020-09-23 | K184: 4.4 | L184: =IF(ISERROR(VLOOKUP(J184,'Cenários COPOM'!$A$1:$K$100,4,FALSE)),0,VLOOKUP(J184,'Cenários COPOM'!$A$1:$K$100,4,FALSE)/100) -> 0 | M184: 4.4 | N184: 10315.86 | O184: 4.399841514 | Q184: 182 | R184: =WORKDAY(R183,1,feriados!$A$2:$A$1000) -> 2020-09-23 | S184: 4.4 | T184: =IF(ISERROR(VLOOKUP(R184,'Cenários COPOM'!$A$1:$K$100,6,FALSE)),0,VLOOKUP(R184,'Cenários COPOM'!$A$1:$K$100,6,FALSE)/100) -> 0 | U184: 4.4 | V184: 10315.86 | W184: 4.399841514 | Y184: 182 | Z184: =WORKDAY(Z183,1,feriados!$A$2:$A$1000) -> 2020-09-23 | AA184: 4.4 | AB184: =IF(ISERROR(VLOOKUP(Z184,'Cenários COPOM'!$A$1:$K$100,8,FALSE)),0,VLOOKUP(Z184,'Cenários COPOM'!$A$1:$K$100,8,FALSE)/100) -> 0 | AC184: 4.4 | AD184: 10315.86 | AE184: 4.399841514 | AG184: 182 | AH184: =WORKDAY(AH183,1,feriados!$A$2:$A$1000) -> 2020-09-23 | AI184: 4.4 | AJ184: =IF(ISERROR(VLOOKUP(AH184,'Cenários COPOM'!$A$1:$K$100,10,FALSE)),0,VLOOKUP(AH184,'Cenários COPOM'!$A$1:$K$100,10,FALSE)/100) -> 0 | AK184: 4.4 | AL184: 10315.86 | AM184: 4.399841514
A185: 183 | B185: =WORKDAY(B184,1,feriados!$A$2:$A$1000) -> 2020-09-24 | C185: 4.4 | D185: =IF(ISERROR(VLOOKUP(B185,'Cenários COPOM'!$A$1:$K$100,2,FALSE)),0,VLOOKUP(B185,'Cenários COPOM'!$A$1:$K$100,2,FALSE)/100) -> 0 | E185: 4.4 | F185: 10317.62 | G185: 4.399802922 | I185: 183 | J185: =WORKDAY(J184,1,feriados!$A$2:$A$1000) -> 2020-09-24 | K185: 4.4 | L185: =IF(ISERROR(VLOOKUP(J185,'Cenários COPOM'!$A$1:$K$100,4,FALSE)),0,VLOOKUP(J185,'Cenários COPOM'!$A$1:$K$100,4,FALSE)/100) -> 0 | M185: 4.4 | N185: 10317.62 | O185: 4.399802922 | Q185: 183 | R185: =WORKDAY(R184,1,feriados!$A$2:$A$1000) -> 2020-09-24 | S185: 4.4 | T185: =IF(ISERROR(VLOOKUP(R185,'Cenários COPOM'!$A$1:$K$100,6,FALSE)),0,VLOOKUP(R185,'Cenários COPOM'!$A$1:$K$100,6,FALSE)/100) -> 0 | U185: 4.4 | V185: 10317.62 | W185: 4.399802922 | Y185: 183 | Z185: =WORKDAY(Z184,1,feriados!$A$2:$A$1000) -> 2020-09-24 | AA185: 4.4 | AB185: =IF(ISERROR(VLOOKUP(Z185,'Cenários COPOM'!$A$1:$K$100,8,FALSE)),0,VLOOKUP(Z185,'Cenários COPOM'!$A$1:$K$100,8,FALSE)/100) -> 0 | AC185: 4.4 | AD185: 10317.62 | AE185: 4.399802922 | AG185: 183 | AH185: =WORKDAY(AH184,1,feriados!$A$2:$A$1000) -> 2020-09-24 | AI185: 4.4 | AJ185: =IF(ISERROR(VLOOKUP(AH185,'Cenários COPOM'!$A$1:$K$100,10,FALSE)),0,VLOOKUP(AH185,'Cenários COPOM'!$A$1:$K$100,10,FALSE)/100) -> 0 | AK185: 4.4 | AL185: 10317.62 | AM185: 4.399802922
A186: 184 | B186: =WORKDAY(B185,1,feriados!$A$2:$A$1000) -> 2020-09-25 | C186: 4.4 | D186: =IF(ISERROR(VLOOKUP(B186,'Cenários COPOM'!$A$1:$K$100,2,FALSE)),0,VLOOKUP(B186,'Cenários COPOM'!$A$1:$K$100,2,FALSE)/100) -> 0 | E186: 4.4 | F186: 10319.38 | G186: 4.399760589 | I186: 184 | J186: =WORKDAY(J185,1,feriados!$A$2:$A$1000) -> 2020-09-25 | K186: 4.4 | L186: =IF(ISERROR(VLOOKUP(J186,'Cenários COPOM'!$A$1:$K$100,4,FALSE)),0,VLOOKUP(J186,'Cenários COPOM'!$A$1:$K$100,4,FALSE)/100) -> 0 | M186: 4.4 | N186: 10319.38 | O186: 4.399760589 | Q186: 184 | R186: =WORKDAY(R185,1,feriados!$A$2:$A$1000) -> 2020-09-25 | S186: 4.4 | T186: =IF(ISERROR(VLOOKUP(R186,'Cenários COPOM'!$A$1:$K$100,6,FALSE)),0,VLOOKUP(R186,'Cenários COPOM'!$A$1:$K$100,6,FALSE)/100) -> 0 | U186: 4.4 | V186: 10319.38 | W186: 4.399760589 | Y186: 184 | Z186: =WORKDAY(Z185,1,feriados!$A$2:$A$1000) -> 2020-09-25 | AA186: 4.4 | AB186: =IF(ISERROR(VLOOKUP(Z186,'Cenários COPOM'!$A$1:$K$100,8,FALSE)),0,VLOOKUP(Z186,'Cenários COPOM'!$A$1:$K$100,8,FALSE)/100) -> 0 | AC186: 4.4 | AD186: 10319.38 | AE186: 4.399760589 | AG186: 184 | AH186: =WORKDAY(AH185,1,feriados!$A$2:$A$1000) -> 2020-09-25 | AI186: 4.4 | AJ186: =IF(ISERROR(VLOOKUP(AH186,'Cenários COPOM'!$A$1:$K$100,10,FALSE)),0,VLOOKUP(AH186,'Cenários COPOM'!$A$1:$K$100,10,FALSE)/100) -> 0 | AK186: 4.4 | AL186: 10319.38 | AM186: 4.399760589
A187: 185 | B187: =WORKDAY(B186,1,feriados!$A$2:$A$1000) -> 2020-09-28 | C187: 4.4 | D187: =IF(ISERROR(VLOOKUP(B187,'Cenários COPOM'!$A$1:$K$100,2,FALSE)),0,VLOOKUP(B187,'Cenários COPOM'!$A$1:$K$100,2,FALSE)/100) -> 0 | E187: 4.4 | F187: 10321.14 | G187: 4.399714577 | I187: 185 | J187: =WORKDAY(J186,1,feriados!$A$2:$A$1000) -> 2020-09-28 | K187: 4.4 | L187: =IF(ISERROR(VLOOKUP(J187,'Cenários COPOM'!$A$1:$K$100,4,FALSE)),0,VLOOKUP(J187,'Cenários COPOM'!$A$1:$K$100,4,FALSE)/100) -> 0 | M187: 4.4 | N187: 10321.14 | O187: 4.399714577 | Q187: 185 | R187: =WORKDAY(R186,1,feriados!$A$2:$A$1000) -> 2020-09-28 | S187: 4.4 | T187: =IF(ISERROR(VLOOKUP(R187,'Cenários COPOM'!$A$1:$K$100,6,FALSE)),0,VLOOKUP(R187,'Cenários COPOM'!$A$1:$K$100,6,FALSE)/100) -> 0 | U187: 4.4 | V187: 10321.14 | W187: 4.399714577 | Y187: 185 | Z187: =WORKDAY(Z186,1,feriados!$A$2:$A$1000) -> 2020-09-28 | AA187: 4.4 | AB187: =IF(ISERROR(VLOOKUP(Z187,'Cenários COPOM'!$A$1:$K$100,8,FALSE)),0,VLOOKUP(Z187,'Cenários COPOM'!$A$1:$K$100,8,FALSE)/100) -> 0 | AC187: 4.4 | AD187: 10321.14 | AE187: 4.399714577 | AG187: 185 | AH187: =WORKDAY(AH186,1,feriados!$A$2:$A$1000) -> 2020-09-28 | AI187: 4.4 | AJ187: =IF(ISERROR(VLOOKUP(AH187,'Cenários COPOM'!$A$1:$K$100,10,FALSE)),0,VLOOKUP(AH187,'Cenários COPOM'!$A$1:$K$100,10,FALSE)/100) -> 0 | AK187: 4.4 | AL187: 10321.14 | AM187: 4.399714577
A188: 186 | B188: =WORKDAY(B187,1,feriados!$A$2:$A$1000) -> 2020-09-29 | C188: 4.4 | D188: =IF(ISERROR(VLOOKUP(B188,'Cenários COPOM'!$A$1:$K$100,2,FALSE)),0,VLOOKUP(B188,'Cenários COPOM'!$A$1:$K$100,2,FALSE)/100) -> 0 | E188: 4.4 | F188: 10322.9 | G188: 4.399664947 | I188: 186 | J188: =WORKDAY(J187,1,feriados!$A$2:$A$1000) -> 2020-09-29 | K188: 4.4 | L188: =IF(ISERROR(VLOOKUP(J188,'Cenários COPOM'!$A$1:$K$100,4,FALSE)),0,VLOOKUP(J188,'Cenários COPOM'!$A$1:$K$100,4,FALSE)/100) -> 0 | M188: 4.4 | N188: 10322.9 | O188: 4.399664947 | Q188: 186 | R188: =WORKDAY(R187,1,feriados!$A$2:$A$1000) -> 2020-09-29 | S188: 4.4 | T188: =IF(ISERROR(VLOOKUP(R188,'Cenários COPOM'!$A$1:$K$100,6,FALSE)),0,VLOOKUP(R188,'Cenários COPOM'!$A$1:$K$100,6,FALSE)/100) -> 0 | U188: 4.4 | V188: 10322.9 | W188: 4.399664947 | Y188: 186 | Z188: =WORKDAY(Z187,1,feriados!$A$2:$A$1000) -> 2020-09-29 | AA188: 4.4 | AB188: =IF(ISERROR(VLOOKUP(Z188,'Cenários COPOM'!$A$1:$K$100,8,FALSE)),0,VLOOKUP(Z188,'Cenários COPOM'!$A$1:$K$100,8,FALSE)/100) -> 0 | AC188: 4.4 | AD188: 10322.9 | AE188: 4.399664947 | AG188: 186 | AH188: =WORKDAY(AH187,1,feriados!$A$2:$A$1000) -> 2020-09-29 | AI188: 4.4 | AJ188: =IF(ISERROR(VLOOKUP(AH188,'Cenários COPOM'!$A$1:$K$100,10,FALSE)),0,VLOOKUP(AH188,'Cenários COPOM'!$A$1:$K$100,10,FALSE)/100) -> 0 | AK188: 4.4 | AL188: 10322.9 | AM188: 4.399664947
A189: 187 | B189: =WORKDAY(B188,1,feriados!$A$2:$A$1000) -> 2020-09-30 | C189: 4.4 | D189: =IF(ISERROR(VLOOKUP(B189,'Cenários COPOM'!$A$1:$K$100,2,FALSE)),0,VLOOKUP(B189,'Cenários COPOM'!$A$1:$K$100,2,FALSE)/100) -> 0 | E189: 4.4 | F189: 10324.66 | G189: 4.399611758 | I189: 187 | J189: =WORKDAY(J188,1,feriados!$A$2:$A$1000) -> 2020-09-30 | K189: 4.4 | L189: =IF(ISERROR(VLOOKUP(J189,'Cenários COPOM'!$A$1:$K$100,4,FALSE)),0,VLOOKUP(J189,'Cenários COPOM'!$A$1:$K$100,4,FALSE)/100) -> 0 | M189: 4.4 | N189: 10324.66 | O189: 4.399611758 | Q189: 187 | R189: =WORKDAY(R188,1,feriados!$A$2:$A$1000) -> 2020-09-30 | S189: 4.4 | T189: =IF(ISERROR(VLOOKUP(R189,'Cenários COPOM'!$A$1:$K$100,6,FALSE)),0,VLOOKUP(R189,'Cenários COPOM'!$A$1:$K$100,6,FALSE)/100) -> 0 | U189: 4.4 | V189: 10324.66 | W189: 4.399611758 | Y189: 187 | Z189: =WORKDAY(Z188,1,feriados!$A$2:$A$1000) -> 2020-09-30 | AA189: 4.4 | AB189: =IF(ISERROR(VLOOKUP(Z189,'Cenários COPOM'!$A$1:$K$100,8,FALSE)),0,VLOOKUP(Z189,'Cenários COPOM'!$A$1:$K$100,8,FALSE)/100) -> 0 | AC189: 4.4 | AD189: 10324.66 | AE189: 4.399611758 | AG189: 187 | AH189: =WORKDAY(AH188,1,feriados!$A$2:$A$1000) -> 2020-09-30 | AI189: 4.4 | AJ189: =IF(ISERROR(VLOOKUP(AH189,'Cenários COPOM'!$A$1:$K$100,10,FALSE)),0,VLOOKUP(AH189,'Cenários COPOM'!$A$1:$K$100,10,FALSE)/100) -> 0 | AK189: 4.4 | AL189: 10324.66 | AM189: 4.399611758
A190: 188 | B190: =WORKDAY(B189,1,feriados!$A$2:$A$1000) -> 2020-10-01 | C190: 4.4 | D190: =IF(ISERROR(VLOOKUP(B190,'Cenários COPOM'!$A$1:$K$100,2,FALSE)),0,VLOOKUP(B190,'Cenários COPOM'!$A$1:$K$100,2,FALSE)/100) -> 0 | E190: 4.4 | F190: 10326.42 | G190: 4.399555068 | I190: 188 | J190: =WORKDAY(J189,1,feriados!$A$2:$A$1000) -> 2020-10-01 | K190: 4.4 | L190: =IF(ISERROR(VLOOKUP(J190,'Cenários COPOM'!$A$1:$K$100,4,FALSE)),0,VLOOKUP(J190,'Cenários COPOM'!$A$1:$K$100,4,FALSE)/100) -> 0 | M190: 4.4 | N190: 10326.42 | O190: 4.399555068 | Q190: 188 | R190: =WORKDAY(R189,1,feriados!$A$2:$A$1000) -> 2020-10-01 | S190: 4.4 | T190: =IF(ISERROR(VLOOKUP(R190,'Cenários COPOM'!$A$1:$K$100,6,FALSE)),0,VLOOKUP(R190,'Cenários COPOM'!$A$1:$K$100,6,FALSE)/100) -> 0 | U190: 4.4 | V190: 10326.42 | W190: 4.399555068 | Y190: 188 | Z190: =WORKDAY(Z189,1,feriados!$A$2:$A$1000) -> 2020-10-01 | AA190: 4.4 | AB190: =IF(ISERROR(VLOOKUP(Z190,'Cenários COPOM'!$A$1:$K$100,8,FALSE)),0,VLOOKUP(Z190,'Cenários COPOM'!$A$1:$K$100,8,FALSE)/100) -> 0 | AC190: 4.4 | AD190: 10326.42 | AE190: 4.399555068 | AG190: 188 | AH190: =WORKDAY(AH189,1,feriados!$A$2:$A$1000) -> 2020-10-01 | AI190: 4.4 | AJ190: =IF(ISERROR(VLOOKUP(AH190,'Cenários COPOM'!$A$1:$K$100,10,FALSE)),0,VLOOKUP(AH190,'Cenários COPOM'!$A$1:$K$100,10,FALSE)/100) -> 0 | AK190: 4.4 | AL190: 10326.42 | AM190: 4.399555068
A191: 189 | B191: =WORKDAY(B190,1,feriados!$A$2:$A$1000) -> 2020-10-02 | C191: 4.4 | D191: =IF(ISERROR(VLOOKUP(B191,'Cenários COPOM'!$A$1:$K$100,2,FALSE)),0,VLOOKUP(B191,'Cenários COPOM'!$A$1:$K$100,2,FALSE)/100) -> 0 | E191: 4.4 | F191: 10328.18 | G191: 4.399494935 | I191: 189 | J191: =WORKDAY(J190,1,feriados!$A$2:$A$1000) -> 2020-10-02 | K191: 4.4 | L191: =IF(ISERROR(VLOOKUP(J191,'Cenários COPOM'!$A$1:$K$100,4,FALSE)),0,VLOOKUP(J191,'Cenários COPOM'!$A$1:$K$100,4,FALSE)/100) -> 0 | M191: 4.4 | N191: 10328.18 | O191: 4.399494935 | Q191: 189 | R191: =WORKDAY(R190,1,feriados!$A$2:$A$1000) -> 2020-10-02 | S191: 4.4 | T191: =IF(ISERROR(VLOOKUP(R191,'Cenários COPOM'!$A$1:$K$100,6,FALSE)),0,VLOOKUP(R191,'Cenários COPOM'!$A$1:$K$100,6,FALSE)/100) -> 0 | U191: 4.4 | V191: 10328.18 | W191: 4.399494935 | Y191: 189 | Z191: =WORKDAY(Z190,1,feriados!$A$2:$A$1000) -> 2020-10-02 | AA191: 4.4 | AB191: =IF(ISERROR(VLOOKUP(Z191,'Cenários COPOM'!$A$1:$K$100,8,FALSE)),0,VLOOKUP(Z191,'Cenários COPOM'!$A$1:$K$100,8,FALSE)/100) -> 0 | AC191: 4.4 | AD191: 10328.18 | AE191: 4.399494935 | AG191: 189 | AH191: =WORKDAY(AH190,1,feriados!$A$2:$A$1000) -> 2020-10-02 | AI191: 4.4 | AJ191: =IF(ISERROR(VLOOKUP(AH191,'Cenários COPOM'!$A$1:$K$100,10,FALSE)),0,VLOOKUP(AH191,'Cenários COPOM'!$A$1:$K$100,10,FALSE)/100) -> 0 | AK191: 4.4 | AL191: 10328.18 | AM191: 4.399494935
A192: 190 | B192: =WORKDAY(B191,1,feriados!$A$2:$A$1000) -> 2020-10-05 | C192: 4.4 | D192: =IF(ISERROR(VLOOKUP(B192,'Cenários COPOM'!$A$1:$K$100,2,FALSE)),0,VLOOKUP(B192,'Cenários COPOM'!$A$1:$K$100,2,FALSE)/100) -> 0 | E192: 4.4 | F192: 10329.94 | G192: 4.399431414 | I192: 190 | J192: =WORKDAY(J191,1,feriados!$A$2:$A$1000) -> 2020-10-05 | K192: 4.4 | L192: =IF(ISERROR(VLOOKUP(J192,'Cenários COPOM'!$A$1:$K$100,4,FALSE)),0,VLOOKUP(J192,'Cenários COPOM'!$A$1:$K$100,4,FALSE)/100) -> 0 | M192: 4.4 | N192: 10329.94 | O192: 4.399431414 | Q192: 190 | R192: =WORKDAY(R191,1,feriados!$A$2:$A$1000) -> 2020-10-05 | S192: 4.4 | T192: =IF(ISERROR(VLOOKUP(R192,'Cenários COPOM'!$A$1:$K$100,6,FALSE)),0,VLOOKUP(R192,'Cenários COPOM'!$A$1:$K$100,6,FALSE)/100) -> 0 | U192: 4.4 | V192: 10329.94 | W192: 4.399431414 | Y192: 190 | Z192: =WORKDAY(Z191,1,feriados!$A$2:$A$1000) -> 2020-10-05 | AA192: 4.4 | AB192: =IF(ISERROR(VLOOKUP(Z192,'Cenários COPOM'!$A$1:$K$100,8,FALSE)),0,VLOOKUP(Z192,'Cenários COPOM'!$A$1:$K$100,8,FALSE)/100) -> 0 | AC192: 4.4 | AD192: 10329.94 | AE192: 4.399431414 | AG192: 190 | AH192: =WORKDAY(AH191,1,feriados!$A$2:$A$1000) -> 2020-10-05 | AI192: 4.4 | AJ192: =IF(ISERROR(VLOOKUP(AH192,'Cenários COPOM'!$A$1:$K$100,10,FALSE)),0,VLOOKUP(AH192,'Cenários COPOM'!$A$1:$K$100,10,FALSE)/100) -> 0 | AK192: 4.4 | AL192: 10329.94 | AM192: 4.399431414
A193: 191 | B193: =WORKDAY(B192,1,feriados!$A$2:$A$1000) -> 2020-10-06 | C193: 4.4 | D193: =IF(ISERROR(VLOOKUP(B193,'Cenários COPOM'!$A$1:$K$100,2,FALSE)),0,VLOOKUP(B193,'Cenários COPOM'!$A$1:$K$100,2,FALSE)/100) -> 0 | E193: 4.4 | F193: 10331.71 | G193: 4.39949788 | I193: 191 | J193: =WORKDAY(J192,1,feriados!$A$2:$A$1000) -> 2020-10-06 | K193: 4.4 | L193: =IF(ISERROR(VLOOKUP(J193,'Cenários COPOM'!$A$1:$K$100,4,FALSE)),0,VLOOKUP(J193,'Cenários COPOM'!$A$1:$K$100,4,FALSE)/100) -> 0 | M193: 4.4 | N193: 10331.71 | O193: 4.39949788 | Q193: 191 | R193: =WORKDAY(R192,1,feriados!$A$2:$A$1000) -> 2020-10-06 | S193: 4.4 | T193: =IF(ISERROR(VLOOKUP(R193,'Cenários COPOM'!$A$1:$K$100,6,FALSE)),0,VLOOKUP(R193,'Cenários COPOM'!$A$1:$K$100,6,FALSE)/100) -> 0 | U193: 4.4 | V193: 10331.71 | W193: 4.39949788 | Y193: 191 | Z193: =WORKDAY(Z192,1,feriados!$A$2:$A$1000) -> 2020-10-06 | AA193: 4.4 | AB193: =IF(ISERROR(VLOOKUP(Z193,'Cenários COPOM'!$A$1:$K$100,8,FALSE)),0,VLOOKUP(Z193,'Cenários COPOM'!$A$1:$K$100,8,FALSE)/100) -> 0 | AC193: 4.4 | AD193: 10331.71 | AE193: 4.39949788 | AG193: 191 | AH193: =WORKDAY(AH192,1,feriados!$A$2:$A$1000) -> 2020-10-06 | AI193: 4.4 | AJ193: =IF(ISERROR(VLOOKUP(AH193,'Cenários COPOM'!$A$1:$K$100,10,FALSE)),0,VLOOKUP(AH193,'Cenários COPOM'!$A$1:$K$100,10,FALSE)/100) -> 0 | AK193: 4.4 | AL193: 10331.71 | AM193: 4.39949788
A194: 192 | B194: =WORKDAY(B193,1,feriados!$A$2:$A$1000) -> 2020-10-07 | C194: 4.4 | D194: =IF(ISERROR(VLOOKUP(B194,'Cenários COPOM'!$A$1:$K$100,2,FALSE)),0,VLOOKUP(B194,'Cenários COPOM'!$A$1:$K$100,2,FALSE)/100) -> 0 | E194: 4.4 | F194: 10333.48 | G194: 4.399559631 | I194: 192 | J194: =WORKDAY(J193,1,feriados!$A$2:$A$1000) -> 2020-10-07 | K194: 4.4 | L194: =IF(ISERROR(VLOOKUP(J194,'Cenários COPOM'!$A$1:$K$100,4,FALSE)),0,VLOOKUP(J194,'Cenários COPOM'!$A$1:$K$100,4,FALSE)/100) -> 0 | M194: 4.4 | N194: 10333.48 | O194: 4.399559631 | Q194: 192 | R194: =WORKDAY(R193,1,feriados!$A$2:$A$1000) -> 2020-10-07 | S194: 4.4 | T194: =IF(ISERROR(VLOOKUP(R194,'Cenários COPOM'!$A$1:$K$100,6,FALSE)),0,VLOOKUP(R194,'Cenários COPOM'!$A$1:$K$100,6,FALSE)/100) -> 0 | U194: 4.4 | V194: 10333.48 | W194: 4.399559631 | Y194: 192 | Z194: =WORKDAY(Z193,1,feriados!$A$2:$A$1000) -> 2020-10-07 | AA194: 4.4 | AB194: =IF(ISERROR(VLOOKUP(Z194,'Cenários COPOM'!$A$1:$K$100,8,FALSE)),0,VLOOKUP(Z194,'Cenários COPOM'!$A$1:$K$100,8,FALSE)/100) -> 0 | AC194: 4.4 | AD194: 10333.48 | AE194: 4.399559631 | AG194: 192 | AH194: =WORKDAY(AH193,1,feriados!$A$2:$A$1000) -> 2020-10-07 | AI194: 4.4 | AJ194: =IF(ISERROR(VLOOKUP(AH194,'Cenários COPOM'!$A$1:$K$100,10,FALSE)),0,VLOOKUP(AH194,'Cenários COPOM'!$A$1:$K$100,10,FALSE)/100) -> 0 | AK194: 4.4 | AL194: 10333.48 | AM194: 4.399559631
A195: 193 | B195: =WORKDAY(B194,1,feriados!$A$2:$A$1000) -> 2020-10-08 | C195: 4.4 | D195: =IF(ISERROR(VLOOKUP(B195,'Cenários COPOM'!$A$1:$K$100,2,FALSE)),0,VLOOKUP(B195,'Cenários COPOM'!$A$1:$K$100,2,FALSE)/100) -> 0 | E195: 4.4 | F195: 10335.25 | G195: 4.399616743 | I195: 193 | J195: =WORKDAY(J194,1,feriados!$A$2:$A$1000) -> 2020-10-08 | K195: 4.4 | L195: =IF(ISERROR(VLOOKUP(J195,'Cenários COPOM'!$A$1:$K$100,4,FALSE)),0,VLOOKUP(J195,'Cenários COPOM'!$A$1:$K$100,4,FALSE)/100) -> 0 | M195: 4.4 | N195: 10335.25 | O195: 4.399616743 | Q195: 193 | R195: =WORKDAY(R194,1,feriados!$A$2:$A$1000) -> 2020-10-08 | S195: 4.4 | T195: =IF(ISERROR(VLOOKUP(R195,'Cenários COPOM'!$A$1:$K$100,6,FALSE)),0,VLOOKUP(R195,'Cenários COPOM'!$A$1:$K$100,6,FALSE)/100) -> 0 | U195: 4.4 | V195: 10335.25 | W195: 4.399616743 | Y195: 193 | Z195: =WORKDAY(Z194,1,feriados!$A$2:$A$1000) -> 2020-10-08 | AA195: 4.4 | AB195: =IF(ISERROR(VLOOKUP(Z195,'Cenários COPOM'!$A$1:$K$100,8,FALSE)),0,VLOOKUP(Z195,'Cenários COPOM'!$A$1:$K$100,8,FALSE)/100) -> 0 | AC195: 4.4 | AD195: 10335.25 | AE195: 4.399616743 | AG195: 193 | AH195: =WORKDAY(AH194,1,feriados!$A$2:$A$1000) -> 2020-10-08 | AI195: 4.4 | AJ195: =IF(ISERROR(VLOOKUP(AH195,'Cenários COPOM'!$A$1:$K$100,10,FALSE)),0,VLOOKUP(AH195,'Cenários COPOM'!$A$1:$K$100,10,FALSE)/100) -> 0 | AK195: 4.4 | AL195: 10335.25 | AM195: 4.399616743
A196: =+A195+1 -> 194 | B196: =WORKDAY(B195,1,feriados!$A$2:$A$1000) -> 2020-10-09 | C196: =+C195 -> 4.4 | D196: =IF(ISERROR(VLOOKUP(B196,'Cenários COPOM'!$A$1:$K$100,2,FALSE)),0,VLOOKUP(B196,'Cenários COPOM'!$A$1:$K$100,2,FALSE)/100) -> 0 | E196: =+E195+D196 -> 4.4 | F196: =+ROUND(((1+E195/100)^(1/252))*F195,2) -> 10337.02 | G196: =+((F196/$F$2)^(252/A196)-1)*100 -> 4.399669288 | I196: =+I195+1 -> 194 | J196: =WORKDAY(J195,1,feriados!$A$2:$A$1000) -> 2020-10-09 | K196: =+K195 -> 4.4 | L196: =IF(ISERROR(VLOOKUP(J196,'Cenários COPOM'!$A$1:$K$100,4,FALSE)),0,VLOOKUP(J196,'Cenários COPOM'!$A$1:$K$100,4,FALSE)/100) -> 0 | M196: =+M195+L196 -> 4.4 | N196: =+ROUND(((1+M195/100)^(1/252))*N195,2) -> 10337.02 | O196: =+((N196/$N$2)^(252/I196)-1)*100 -> 4.399669288 | Q196: =+Q195+1 -> 194 | R196: =WORKDAY(R195,1,feriados!$A$2:$A$1000) -> 2020-10-09 | S196: =+S195 -> 4.4 | T196: =IF(ISERROR(VLOOKUP(R196,'Cenários COPOM'!$A$1:$K$100,6,FALSE)),0,VLOOKUP(R196,'Cenários COPOM'!$A$1:$K$100,6,FALSE)/100) -> 0 | U196: =+U195+T196 -> 4.4 | V196: =+ROUND(((1+U195/100)^(1/252))*V195,2) -> 10337.02 | W196: =+((V196/$V$2)^(252/Q196)-1)*100 -> 4.399669288 | Y196: =+Y195+1 -> 194 | Z196: =WORKDAY(Z195,1,feriados!$A$2:$A$1000) -> 2020-10-09 | AA196: =+AA195 -> 4.4 | AB196: =IF(ISERROR(VLOOKUP(Z196,'Cenários COPOM'!$A$1:$K$100,8,FALSE)),0,VLOOKUP(Z196,'Cenários COPOM'!$A$1:$K$100,8,FALSE)/100) -> 0 | AC196: =+AC195+AB196 -> 4.4 | AD196: =+ROUND(((1+AC195/100)^(1/252))*AD195,2) -> 10337.02 | AE196: =+((AD196/$AD$2)^(252/Y196)-1)*100 -> 4.399669288 | AG196: =+AG195+1 -> 194 | AH196: =WORKDAY(AH195,1,feriados!$A$2:$A$1000) -> 2020-10-09 | AI196: =+AI195 -> 4.4 | AJ196: =IF(ISERROR(VLOOKUP(AH196,'Cenários COPOM'!$A$1:$K$100,10,FALSE)),0,VLOOKUP(AH196,'Cenários COPOM'!$A$1:$K$100,10,FALSE)/100) -> 0 | AK196: =+AK195+AJ196 -> 4.4 | AL196: =+ROUND(((1+AK195/100)^(1/252))*AL195,2) -> 10337.02 | AM196: =+((AL196/$F$2)^(252/AG196)-1)*100 -> 4.399669288
A197: 195 | B197: =WORKDAY(B196,1,feriados!$A$2:$A$1000) -> 2020-10-13 | C197: 4.4 | D197: =IF(ISERROR(VLOOKUP(B197,'Cenários COPOM'!$A$1:$K$100,2,FALSE)),0,VLOOKUP(B197,'Cenários COPOM'!$A$1:$K$100,2,FALSE)/100) -> 0 | E197: 4.4 | F197: 10338.79 | G197: 4.39971734 | I197: 195 | J197: =WORKDAY(J196,1,feriados!$A$2:$A$1000) -> 2020-10-13 | K197: 4.4 | L197: =IF(ISERROR(VLOOKUP(J197,'Cenários COPOM'!$A$1:$K$100,4,FALSE)),0,VLOOKUP(J197,'Cenários COPOM'!$A$1:$K$100,4,FALSE)/100) -> 0 | M197: 4.4 | N197: 10338.79 | O197: 4.39971734 | Q197: 195 | R197: =WORKDAY(R196,1,feriados!$A$2:$A$1000) -> 2020-10-13 | S197: 4.4 | T197: =IF(ISERROR(VLOOKUP(R197,'Cenários COPOM'!$A$1:$K$100,6,FALSE)),0,VLOOKUP(R197,'Cenários COPOM'!$A$1:$K$100,6,FALSE)/100) -> 0 | U197: 4.4 | V197: 10338.79 | W197: 4.39971734 | Y197: 195 | Z197: =WORKDAY(Z196,1,feriados!$A$2:$A$1000) -> 2020-10-13 | AA197: 4.4 | AB197: =IF(ISERROR(VLOOKUP(Z197,'Cenários COPOM'!$A$1:$K$100,8,FALSE)),0,VLOOKUP(Z197,'Cenários COPOM'!$A$1:$K$100,8,FALSE)/100) -> 0 | AC197: 4.4 | AD197: 10338.79 | AE197: 4.39971734 | AG197: 195 | AH197: =WORKDAY(AH196,1,feriados!$A$2:$A$1000) -> 2020-10-13 | AI197: 4.4 | AJ197: =IF(ISERROR(VLOOKUP(AH197,'Cenários COPOM'!$A$1:$K$100,10,FALSE)),0,VLOOKUP(AH197,'Cenários COPOM'!$A$1:$K$100,10,FALSE)/100) -> 0 | AK197: 4.4 | AL197: 10338.79 | AM197: 4.39971734
A198: 196 | B198: =WORKDAY(B197,1,feriados!$A$2:$A$1000) -> 2020-10-14 | C198: 4.4 | D198: =IF(ISERROR(VLOOKUP(B198,'Cenários COPOM'!$A$1:$K$100,2,FALSE)),0,VLOOKUP(B198,'Cenários COPOM'!$A$1:$K$100,2,FALSE)/100) -> 0 | E198: 4.4 | F198: 10340.56 | G198: 4.399760966 | I198: 196 | J198: =WORKDAY(J197,1,feriados!$A$2:$A$1000) -> 2020-10-14 | K198: 4.4 | L198: =IF(ISERROR(VLOOKUP(J198,'Cenários COPOM'!$A$1:$K$100,4,FALSE)),0,VLOOKUP(J198,'Cenários COPOM'!$A$1:$K$100,4,FALSE)/100) -> 0 | M198: 4.4 | N198: 10340.56 | O198: 4.399760966 | Q198: 196 | R198: =WORKDAY(R197,1,feriados!$A$2:$A$1000) -> 2020-10-14 | S198: 4.4 | T198: =IF(ISERROR(VLOOKUP(R198,'Cenários COPOM'!$A$1:$K$100,6,FALSE)),0,VLOOKUP(R198,'Cenários COPOM'!$A$1:$K$100,6,FALSE)/100) -> 0 | U198: 4.4 | V198: 10340.56 | W198: 4.399760966 | Y198: 196 | Z198: =WORKDAY(Z197,1,feriados!$A$2:$A$1000) -> 2020-10-14 | AA198: 4.4 | AB198: =IF(ISERROR(VLOOKUP(Z198,'Cenários COPOM'!$A$1:$K$100,8,FALSE)),0,VLOOKUP(Z198,'Cenários COPOM'!$A$1:$K$100,8,FALSE)/100) -> 0 | AC198: 4.4 | AD198: 10340.56 | AE198: 4.399760966 | AG198: 196 | AH198: =WORKDAY(AH197,1,feriados!$A$2:$A$1000) -> 2020-10-14 | AI198: 4.4 | AJ198: =IF(ISERROR(VLOOKUP(AH198,'Cenários COPOM'!$A$1:$K$100,10,FALSE)),0,VLOOKUP(AH198,'Cenários COPOM'!$A$1:$K$100,10,FALSE)/100) -> 0 | AK198: 4.4 | AL198: 10340.56 | AM198: 4.399760966
A199: 197 | B199: =WORKDAY(B198,1,feriados!$A$2:$A$1000) -> 2020-10-15 | C199: 4.4 | D199: =IF(ISERROR(VLOOKUP(B199,'Cenários COPOM'!$A$1:$K$100,2,FALSE)),0,VLOOKUP(B199,'Cenários COPOM'!$A$1:$K$100,2,FALSE)/100) -> 0 | E199: 4.4 | F199: 10342.33 | G199: 4.399800237 | I199: 197 | J199: =WORKDAY(J198,1,feriados!$A$2:$A$1000) -> 2020-10-15 | K199: 4.4 | L199: =IF(ISERROR(VLOOKUP(J199,'Cenários COPOM'!$A$1:$K$100,4,FALSE)),0,VLOOKUP(J199,'Cenários COPOM'!$A$1:$K$100,4,FALSE)/100) -> 0 | M199: 4.4 | N199: 10342.33 | O199: 4.399800237 | Q199: 197 | R199: =WORKDAY(R198,1,feriados!$A$2:$A$1000) -> 2020-10-15 | S199: 4.4 | T199: =IF(ISERROR(VLOOKUP(R199,'Cenários COPOM'!$A$1:$K$100,6,FALSE)),0,VLOOKUP(R199,'Cenários COPOM'!$A$1:$K$100,6,FALSE)/100) -> 0 | U199: 4.4 | V199: 10342.33 | W199: 4.399800237 | Y199: 197 | Z199: =WORKDAY(Z198,1,feriados!$A$2:$A$1000) -> 2020-10-15 | AA199: 4.4 | AB199: =IF(ISERROR(VLOOKUP(Z199,'Cenários COPOM'!$A$1:$K$100,8,FALSE)),0,VLOOKUP(Z199,'Cenários COPOM'!$A$1:$K$100,8,FALSE)/100) -> 0 | AC199: 4.4 | AD199: 10342.33 | AE199: 4.399800237 | AG199: 197 | AH199: =WORKDAY(AH198,1,feriados!$A$2:$A$1000) -> 2020-10-15 | AI199: 4.4 | AJ199: =IF(ISERROR(VLOOKUP(AH199,'Cenários COPOM'!$A$1:$K$100,10,FALSE)),0,VLOOKUP(AH199,'Cenários COPOM'!$A$1:$K$100,10,FALSE)/100) -> 0 | AK199: 4.4 | AL199: 10342.33 | AM199: 4.399800237
A200: 198 | B200: =WORKDAY(B199,1,feriados!$A$2:$A$1000) -> 2020-10-16 | C200: 4.4 | D200: =IF(ISERROR(VLOOKUP(B200,'Cenários COPOM'!$A$1:$K$100,2,FALSE)),0,VLOOKUP(B200,'Cenários COPOM'!$A$1:$K$100,2,FALSE)/100) -> 0 | E200: 4.4 | F200: 10344.1 | G200: 4.39983522 | I200: 198 | J200: =WORKDAY(J199,1,feriados!$A$2:$A$1000) -> 2020-10-16 | K200: 4.4 | L200: =IF(ISERROR(VLOOKUP(J200,'Cenários COPOM'!$A$1:$K$100,4,FALSE)),0,VLOOKUP(J200,'Cenários COPOM'!$A$1:$K$100,4,FALSE)/100) -> 0 | M200: 4.4 | N200: 10344.1 | O200: 4.39983522 | Q200: 198 | R200: =WORKDAY(R199,1,feriados!$A$2:$A$1000) -> 2020-10-16 | S200: 4.4 | T200: =IF(ISERROR(VLOOKUP(R200,'Cenários COPOM'!$A$1:$K$100,6,FALSE)),0,VLOOKUP(R200,'Cenários COPOM'!$A$1:$K$100,6,FALSE)/100) -> 0 | U200: 4.4 | V200: 10344.1 | W200: 4.39983522 | Y200: 198 | Z200: =WORKDAY(Z199,1,feriados!$A$2:$A$1000) -> 2020-10-16 | AA200: 4.4 | AB200: =IF(ISERROR(VLOOKUP(Z200,'Cenários COPOM'!$A$1:$K$100,8,FALSE)),0,VLOOKUP(Z200,'Cenários COPOM'!$A$1:$K$100,8,FALSE)/100) -> 0 | AC200: 4.4 | AD200: 10344.1 | AE200: 4.39983522 | AG200: 198 | AH200: =WORKDAY(AH199,1,feriados!$A$2:$A$1000) -> 2020-10-16 | AI200: 4.4 | AJ200: =IF(ISERROR(VLOOKUP(AH200,'Cenários COPOM'!$A$1:$K$100,10,FALSE)),0,VLOOKUP(AH200,'Cenários COPOM'!$A$1:$K$100,10,FALSE)/100) -> 0 | AK200: 4.4 | AL200: 10344.1 | AM200: 4.39983522
... 2050 more rows

Sheet Resultados Cenários
E1: Mercado (aba Projeções) | I1: =+'Cenários COPOM'!B1 -> Cenário 1 | N1: =+'Cenários COPOM'!D1 -> Cenário 2 | S1: =+'Cenários COPOM'!F1 -> Cenário 3 | X1: =+'Cenários COPOM'!H1 -> Cenário 4 | AC1: =+'Cenários COPOM'!J1 -> Cenário 5
A2: Reuniões | B2: d.u. reunião | C2: d.u. DI | D2: Expectativa COPOM | E2: Trajetória | F2: Mercado DI Fut | G2: Expectativa COPOM | H2: Trajetória | I2: Projeção DI Fut | J2: Dif ptb | K2: % | L2: Expectativa COPOM | M2: Trajetória | N2: Projeção DI Fut | O2: Dif ptb | P2: % | Q2: Expectativa COPOM | R2: Trajetória | S2: Projeção DI Fut | T2: Dif ptb | U2: % | V2: Expectativa COPOM | W2: Trajetória | X2: Projeção DI Fut | Y2: Dif ptb | Z2: % | AA2: Expectativa COPOM | AB2: Trajetória | AC2: Projeção DI Fut | AD2: Dif ptb | AE2: %
A3: Base | B3: =+'Resumo estatístico Futuro DI'!B1 -> 2020-01-02 | E3: =+'Resumo estatístico Futuro DI'!B3 -> 0.044 | F3: =+'Resumo estatístico Futuro DI'!B3 -> 0.044 | H3: =+E3 -> 0.044 | I3: =+F3 -> 0.044 | M3: =+H3 -> 0.044 | N3: =+I3 -> 0.044 | R3: =+M3 -> 0.044 | S3: =+N3 -> 0.044 | W3: =+R3 -> 0.044 | X3: =+S3 -> 0.044 | AB3: =+W3 -> 0.044 | AC3: =+X3 -> 0.044
A4: Reunião* | B4: 2021-01-21 | C4: =NETWORKDAYS($B$3,B4-1,feriados!$A$2:$A$2000) -> 264 | D4: =IF(OR(A4="Reunião",A4="Reunião*"),VLOOKUP(C4,Projeções!D:G,4,FALSE),0) -> -50 | E4: =+E3+(D4/10000) -> 0.039 | F4: =VLOOKUP(B4,Projeções!C:J,7,FALSE) -> 0.04536452501 | G4: =IF(OR(A4="Reunião",A4="Reunião*"),VLOOKUP(WORKDAY(B4,-1,feriados!$A$2:$A$2000),'Projeção DI Futuro'!B:G,3,FALSE)*100,0) -> 0 | H4: =+H3+(G4/10000) -> 0.044 | I4: =VLOOKUP(B4,'Projeção DI Futuro'!B:G,6,FALSE)/100 -> 0.04399822062 | J4: =+F4-I4 -> 0.001366304382 | K4: =+F4/I4 -> 1.031053628 | L4: =IF(OR(A4="Reunião",A4="Reunião*"),VLOOKUP(WORKDAY(B4,-1,feriados!$A$2:$A$2000),'Projeção DI Futuro'!J:O,3,FALSE)*100,0) -> 0 | M4: =+M3+(L4/10000) -> 0.044 | N4: =VLOOKUP(B4,'Projeção DI Futuro'!J:O,6,FALSE)/100 -> 0.04399822062 | O4: =+$F4-N4 -> 0.001366304382 | P4: =+$F4/N4 -> 1.031053628 | Q4: =IF(OR(A4="Reunião",A4="Reunião*"),VLOOKUP(WORKDAY(B4,-1,feriados!$A$2:$A$2000),'Projeção DI Futuro'!R:W,3,FALSE)*100,0) -> 0 | R4: =+R3+(Q4/10000) -> 0.044 | S4: =VLOOKUP(B4,'Projeção DI Futuro'!R:W,6,FALSE)/100 -> 0.04399822062 | T4: =+$F4-S4 -> 0.001366304382 | U4: =+$F4/S4 -> 1.031053628 | V4: =IF(OR(A4="Reunião",A4="Reunião*"),VLOOKUP(WORKDAY(B4,-1,feriados!$A$2:$A$2000),'Projeção DI Futuro'!Z:AE,3,FALSE)*100,0) -> 0 | W4: =+W3+(V4/10000) -> 0.044 | X4: =VLOOKUP(B4,'Projeção DI Futuro'!Z:AE,6,FALSE)/100 -> 0.04399822062 | Y4: =+$F4-X4 -> 0.001366304382 | Z4: =+$F4/X4 -> 1.031053628 | AA4: =IF(OR(A4="Reunião",A4="Reunião*"),VLOOKUP(WORKDAY(B4,-1,feriados!$A$2:$A$2000),'Projeção DI Futuro'!AH:AM,3,FALSE)*100,0) -> 0 | AB4: =+AB3+(AA4/10000) -> 0.044 | AC4: =VLOOKUP(B4,'Projeção DI Futuro'!AH:AM,6,FALSE)/100 -> 0.04399822062 | AD4: =+$F4-AC4 -> 0.001366304382 | AE4: =+$F4/AC4 -> 1.031053628
A5: DI | B5: 2021-02-01 | C5: =NETWORKDAYS($B$3,B5-1,feriados!$A$2:$A$2000) -> 271 | D5: =IF(OR(A5="Reunião",A5="Reunião*"),VLOOKUP(C5,Projeções!D:G,4,FALSE),0) -> 0 | E5: =+E4+(D5/10000) -> 0.039 | F5: =VLOOKUP(B5,Projeções!C:J,7,FALSE) ->  | G5: =IF(OR(A5="Reunião",A5="Reunião*"),VLOOKUP(WORKDAY(B5,-1,feriados!$A$2:$A$2000),'Projeção DI Futuro'!B:G,3,FALSE)*100,0) -> 0 | H5: =+H4+(G5/10000) -> 0.044 | I5: =VLOOKUP(B5,'Projeção DI Futuro'!B:G,6,FALSE)/100 -> 0.04399916133 | J5: =+F5-I5 ->  | K5: =+F5/I5 ->  | L5: =IF(OR(A5="Reunião",A5="Reunião*"),VLOOKUP(WORKDAY(B5,-1,feriados!$A$2:$A$2000),'Projeção DI Futuro'!J:O,3,FALSE)*100,0) -> 0 | M5: =+M4+(L5/10000) -> 0.044 | N5: =VLOOKUP(B5,'Projeção DI Futuro'!J:O,6,FALSE)/100 -> 0.04399916133 | O5: =+$F5-N5 ->  | P5: =+$F5/N5 ->  | Q5: =IF(OR(A5="Reunião",A5="Reunião*"),VLOOKUP(WORKDAY(B5,-1,feriados!$A$2:$A$2000),'Projeção DI Futuro'!R:W,3,FALSE)*100,0) -> 0 | R5: =+R4+(Q5/10000) -> 0.044 | S5: =VLOOKUP(B5,'Projeção DI Futuro'!R:W,6,FALSE)/100 -> 0.04399916133 | T5: =+$F5-S5 ->  | U5: =+$F5/S5 ->  | V5: =IF(OR(A5="Reunião",A5="Reunião*"),VLOOKUP(WORKDAY(B5,-1,feriados!$A$2:$A$2000),'Projeção DI Futuro'!Z:AE,3,FALSE)*100,0) -> 0 | W5: =+W4+(V5/10000) -> 0.044 | X5: =VLOOKUP(B5,'Projeção DI Futuro'!Z:AE,6,FALSE)/100 -> 0.04399916133 | Y5: =+$F5-X5 ->  | Z5: =+$F5/X5 ->  | AA5: =IF(OR(A5="Reunião",A5="Reunião*"),VLOOKUP(WORKDAY(B5,-1,feriados!$A$2:$A$2000),'Projeção DI Futuro'!AH:AM,3,FALSE)*100,0) -> 0 | AB5: =+AB4+(AA5/10000) -> 0.044 | AC5: =VLOOKUP(B5,'Projeção DI Futuro'!AH:AM,6,FALSE)/100 -> 0.04399916133 | AD5: =+$F5-AC5 ->  | AE5: =+$F5/AC5 -> 
A6: DI | B6: 2021-03-01 | C6: =NETWORKDAYS($B$3,B6-1,feriados!$A$2:$A$2000) -> 289 | D6: =IF(OR(A6="Reunião",A6="Reunião*"),VLOOKUP(C6,Projeções!D:G,4,FALSE),0) -> 0 | E6: 0.039 | F6: =VLOOKUP(B6,Projeções!C:J,7,FALSE) ->  | G6: =IF(OR(A6="Reunião",A6="Reunião*"),VLOOKUP(WORKDAY(B6,-1,feriados!$A$2:$A$2000),'Projeção DI Futuro'!B:G,3,FALSE)*100,0) -> 0 | H6: 0.044 | I6: =VLOOKUP(B6,'Projeção DI Futuro'!B:G,6,FALSE)/100 -> 0.04399626265 | L6: =IF(OR(A6="Reunião",A6="Reunião*"),VLOOKUP(WORKDAY(B6,-1,feriados!$A$2:$A$2000),'Projeção DI Futuro'!J:O,3,FALSE)*100,0) -> 0 | M6: 0.044 | N6: =VLOOKUP(B6,'Projeção DI Futuro'!J:O,6,FALSE)/100 -> 0.04399626265 | Q6: =IF(OR(A6="Reunião",A6="Reunião*"),VLOOKUP(WORKDAY(B6,-1,feriados!$A$2:$A$2000),'Projeção DI Futuro'!R:W,3,FALSE)*100,0) -> 0 | R6: 0.044 | S6: =VLOOKUP(B6,'Projeção DI Futuro'!R:W,6,FALSE)/100 -> 0.04399626265 | V6: =IF(OR(A6="Reunião",A6="Reunião*"),VLOOKUP(WORKDAY(B6,-1,feriados!$A$2:$A$2000),'Projeção DI Futuro'!Z:AE,3,FALSE)*100,0) -> 0 | W6: 0.044 | X6: =VLOOKUP(B6,'Projeção DI Futuro'!Z:AE,6,FALSE)/100 -> 0.04399626265 | AA6: =IF(OR(A6="Reunião",A6="Reunião*"),VLOOKUP(WORKDAY(B6,-1,feriados!$A$2:$A$2000),'Projeção DI Futuro'!AH:AM,3,FALSE)*100,0) -> 0 | AB6: 0.044 | AC6: =VLOOKUP(B6,'Projeção DI Futuro'!AH:AM,6,FALSE)/100 -> 0.04399626265
A7: Reunião* | B7: 2021-03-18 | C7: =NETWORKDAYS($B$3,B7-1,feriados!$A$2:$A$2000) -> 302 | D7: =IF(OR(A7="Reunião",A7="Reunião*"),VLOOKUP(C7,Projeções!D:G,4,FALSE),0) -> 0 | E7: 0.039 | F7: =VLOOKUP(B7,Projeções!C:J,7,FALSE) -> 0.04562201029 | G7: =IF(OR(A7="Reunião",A7="Reunião*"),VLOOKUP(WORKDAY(B7,-1,feriados!$A$2:$A$2000),'Projeção DI Futuro'!B:G,3,FALSE)*100,0) -> 0 | H7: 0.044 | I7: =VLOOKUP(B7,'Projeção DI Futuro'!B:G,6,FALSE)/100 -> 0.04399944042 | J7: 0.001622569871 | K7: 1.036877057 | L7: =IF(OR(A7="Reunião",A7="Reunião*"),VLOOKUP(WORKDAY(B7,-1,feriados!$A$2:$A$2000),'Projeção DI Futuro'!J:O,3,FALSE)*100,0) -> 0 | M7: 0.044 | N7: =VLOOKUP(B7,'Projeção DI Futuro'!J:O,6,FALSE)/100 -> 0.04399944042 | O7: 0.001622569871 | P7: 1.036877057 | Q7: =IF(OR(A7="Reunião",A7="Reunião*"),VLOOKUP(WORKDAY(B7,-1,feriados!$A$2:$A$2000),'Projeção DI Futuro'!R:W,3,FALSE)*100,0) -> 0 | R7: 0.044 | S7: =VLOOKUP(B7,'Projeção DI Futuro'!R:W,6,FALSE)/100 -> 0.04399944042 | T7: 0.001622569871 | U7: 1.036877057 | V7: =IF(OR(A7="Reunião",A7="Reunião*"),VLOOKUP(WORKDAY(B7,-1,feriados!$A$2:$A$2000),'Projeção DI Futuro'!Z:AE,3,FALSE)*100,0) -> 0 | W7: 0.044 | X7: =VLOOKUP(B7,'Projeção DI Futuro'!Z:AE,6,FALSE)/100 -> 0.04399944042 | Y7: 0.001622569871 | Z7: 1.036877057 | AA7: =IF(OR(A7="Reunião",A7="Reunião*"),VLOOKUP(WORKDAY(B7,-1,feriados!$A$2:$A$2000),'Projeção DI Futuro'!AH:AM,3,FALSE)*100,0) -> 0 | AB7: 0.044 | AC7: =VLOOKUP(B7,'Projeção DI Futuro'!AH:AM,6,FALSE)/100 -> 0.04399944042 | AD7: 0.001622569871 | AE7: 1.036877057
A8: DI | B8: 2021-04-01 | C8: =NETWORKDAYS($B$3,B8-1,feriados!$A$2:$A$2000) -> 312 | D8: =IF(OR(A8="Reunião",A8="Reunião*"),VLOOKUP(C8,Projeções!D:G,4,FALSE),0) -> 0 | E8: 0.039 | F8: =VLOOKUP(B8,Projeções!C:J,7,FALSE) -> 0.04628159401 | G8: =IF(OR(A8="Reunião",A8="Reunião*"),VLOOKUP(WORKDAY(B8,-1,feriados!$A$2:$A$2000),'Projeção DI Futuro'!B:G,3,FALSE)*100,0) -> 0 | H8: 0.044 | I8: =VLOOKUP(B8,'Projeção DI Futuro'!B:G,6,FALSE)/100 -> 0.04399886989 | J8: 0.002282724122 | K8: 1.051881426 | L8: =IF(OR(A8="Reunião",A8="Reunião*"),VLOOKUP(WORKDAY(B8,-1,feriados!$A$2:$A$2000),'Projeção DI Futuro'!J:O,3,FALSE)*100,0) -> 0 | M8: 0.044 | N8: =VLOOKUP(B8,'Projeção DI Futuro'!J:O,6,FALSE)/100 -> 0.04399886989 | O8: 0.002282724122 | P8: 1.051881426 | Q8: =IF(OR(A8="Reunião",A8="Reunião*"),VLOOKUP(WORKDAY(B8,-1,feriados!$A$2:$A$2000),'Projeção DI Futuro'!R:W,3,FALSE)*100,0) -> 0 | R8: 0.044 | S8: =VLOOKUP(B8,'Projeção DI Futuro'!R:W,6,FALSE)/100 -> 0.04399886989 | T8: 0.002282724122 | U8: 1.051881426 | V8: =IF(OR(A8="Reunião",A8="Reunião*"),VLOOKUP(WORKDAY(B8,-1,feriados!$A$2:$A$2000),'Projeção DI Futuro'!Z:AE,3,FALSE)*100,0) -> 0 | W8: 0.044 | X8: =VLOOKUP(B8,'Projeção DI Futuro'!Z:AE,6,FALSE)/100 -> 0.04399886989 | Y8: 0.002282724122 | Z8: 1.051881426 | AA8: =IF(OR(A8="Reunião",A8="Reunião*"),VLOOKUP(WORKDAY(B8,-1,feriados!$A$2:$A$2000),'Projeção DI Futuro'!AH:AM,3,FALSE)*100,0) -> 0 | AB8: 0.044 | AC8: =VLOOKUP(B8,'Projeção DI Futuro'!AH:AM,6,FALSE)/100 -> 0.04399886989 | AD8: 0.002282724122 | AE8: 1.051881426
A9: DI | B9: 2021-05-03 | C9: =NETWORKDAYS($B$3,B9-1,feriados!$A$2:$A$2000) -> 332 | D9: =IF(OR(A9="Reunião",A9="Reunião*"),VLOOKUP(C9,Projeções!D:G,4,FALSE),0) -> 0 | E9: 0.039 | F9: =VLOOKUP(B9,Projeções!C:J,7,FALSE) ->  | G9: =IF(OR(A9="Reunião",A9="Reunião*"),VLOOKUP(WORKDAY(B9,-1,feriados!$A$2:$A$2000),'Projeção DI Futuro'!B:G,3,FALSE)*100,0) -> 0 | H9: 0.044 | I9: =VLOOKUP(B9,'Projeção DI Futuro'!B:G,6,FALSE)/100 -> 0.04399915241 | L9: =IF(OR(A9="Reunião",A9="Reunião*"),VLOOKUP(WORKDAY(B9,-1,feriados!$A$2:$A$2000),'Projeção DI Futuro'!J:O,3,FALSE)*100,0) -> 0 | M9: 0.044 | N9: =VLOOKUP(B9,'Projeção DI Futuro'!J:O,6,FALSE)/100 -> 0.04399915241 | Q9: =IF(OR(A9="Reunião",A9="Reunião*"),VLOOKUP(WORKDAY(B9,-1,feriados!$A$2:$A$2000),'Projeção DI Futuro'!R:W,3,FALSE)*100,0) -> 0 | R9: 0.044 | S9: =VLOOKUP(B9,'Projeção DI Futuro'!R:W,6,FALSE)/100 -> 0.04399915241 | V9: =IF(OR(A9="Reunião",A9="Reunião*"),VLOOKUP(WORKDAY(B9,-1,feriados!$A$2:$A$2000),'Projeção DI Futuro'!Z:AE,3,FALSE)*100,0) -> 0 | W9: 0.044 | X9: =VLOOKUP(B9,'Projeção DI Futuro'!Z:AE,6,FALSE)/100 -> 0.04399915241 | AA9: =IF(OR(A9="Reunião",A9="Reunião*"),VLOOKUP(WORKDAY(B9,-1,feriados!$A$2:$A$2000),'Projeção DI Futuro'!AH:AM,3,FALSE)*100,0) -> 0 | AB9: 0.044 | AC9: =VLOOKUP(B9,'Projeção DI Futuro'!AH:AM,6,FALSE)/100 -> 0.04399915241
A10: Reunião* | B10: 2021-05-06 | C10: =NETWORKDAYS($B$3,B10-1,feriados!$A$2:$A$2000) -> 335 | D10: =IF(OR(A10="Reunião",A10="Reunião*"),VLOOKUP(C10,Projeções!D:G,4,FALSE),0) -> 0 | E10: 0.039 | F10: =VLOOKUP(B10,Projeções!C:J,7,FALSE) -> 0.04628159401 | G10: =IF(OR(A10="Reunião",A10="Reunião*"),VLOOKUP(WORKDAY(B10,-1,feriados!$A$2:$A$2000),'Projeção DI Futuro'!B:G,3,FALSE)*100,0) -> 0 | H10: 0.044 | I10: =VLOOKUP(B10,'Projeção DI Futuro'!B:G,6,FALSE)/100 -> 0.04399940308 | J10: 0.002282190938 | K10: 1.05186868 | L10: =IF(OR(A10="Reunião",A10="Reunião*"),VLOOKUP(WORKDAY(B10,-1,feriados!$A$2:$A$2000),'Projeção DI Futuro'!J:O,3,FALSE)*100,0) -> 0 | M10: 0.044 | N10: =VLOOKUP(B10,'Projeção DI Futuro'!J:O,6,FALSE)/100 -> 0.04399940308 | O10: 0.002282190938 | P10: 1.05186868 | Q10: =IF(OR(A10="Reunião",A10="Reunião*"),VLOOKUP(WORKDAY(B10,-1,feriados!$A$2:$A$2000),'Projeção DI Futuro'!R:W,3,FALSE)*100,0) -> 0 | R10: 0.044 | S10: =VLOOKUP(B10,'Projeção DI Futuro'!R:W,6,FALSE)/100 -> 0.04399940308 | T10: 0.002282190938 | U10: 1.05186868 | V10: =IF(OR(A10="Reunião",A10="Reunião*"),VLOOKUP(WORKDAY(B10,-1,feriados!$A$2:$A$2000),'Projeção DI Futuro'!Z:AE,3,FALSE)*100,0) -> 0 | W10: 0.044 | X10: =VLOOKUP(B10,'Projeção DI Futuro'!Z:AE,6,FALSE)/100 -> 0.04399940308 | Y10: 0.002282190938 | Z10: 1.05186868 | AA10: =IF(OR(A10="Reunião",A10="Reunião*"),VLOOKUP(WORKDAY(B10,-1,feriados!$A$2:$A$2000),'Projeção DI Futuro'!AH:AM,3,FALSE)*100,0) -> 0 | AB10: 0.044 | AC10: =VLOOKUP(B10,'Projeção DI Futuro'!AH:AM,6,FALSE)/100 -> 0.04399940308 | AD10: 0.002282190938 | AE10: 1.05186868
A11: DI | B11: 2021-06-01 | C11: =NETWORKDAYS($B$3,B11-1,feriados!$A$2:$A$2000) -> 353 | D11: =IF(OR(A11="Reunião",A11="Reunião*"),VLOOKUP(C11,Projeções!D:G,4,FALSE),0) -> 0 | E11: 0.039 | F11: =VLOOKUP(B11,Projeções!C:J,7,FALSE) ->  | G11: =IF(OR(A11="Reunião",A11="Reunião*"),VLOOKUP(WORKDAY(B11,-1,feriados!$A$2:$A$2000),'Projeção DI Futuro'!B:G,3,FALSE)*100,0) -> 0 | H11: 0.044 | I11: =VLOOKUP(B11,'Projeção DI Futuro'!B:G,6,FALSE)/100 -> 0.04399670911 | L11: =IF(OR(A11="Reunião",A11="Reunião*"),VLOOKUP(WORKDAY(B11,-1,feriados!$A$2:$A$2000),'Projeção DI Futuro'!J:O,3,FALSE)*100,0) -> 0 | M11: 0.044 | N11: =VLOOKUP(B11,'Projeção DI Futuro'!J:O,6,FALSE)/100 -> 0.04399670911 | Q11: =IF(OR(A11="Reunião",A11="Reunião*"),VLOOKUP(WORKDAY(B11,-1,feriados!$A$2:$A$2000),'Projeção DI Futuro'!R:W,3,FALSE)*100,0) -> 0 | R11: 0.044 | S11: =VLOOKUP(B11,'Projeção DI Futuro'!R:W,6,FALSE)/100 -> 0.04399670911 | V11: =IF(OR(A11="Reunião",A11="Reunião*"),VLOOKUP(WORKDAY(B11,-1,feriados!$A$2:$A$2000),'Projeção DI Futuro'!Z:AE,3,FALSE)*100,0) -> 0 | W11: 0.044 | X11: =VLOOKUP(B11,'Projeção DI Futuro'!Z:AE,6,FALSE)/100 -> 0.04399670911 | AA11: =IF(OR(A11="Reunião",A11="Reunião*"),VLOOKUP(WORKDAY(B11,-1,feriados!$A$2:$A$2000),'Projeção DI Futuro'!AH:AM,3,FALSE)*100,0) -> 0 | AB11: 0.044 | AC11: =VLOOKUP(B11,'Projeção DI Futuro'!AH:AM,6,FALSE)/100 -> 0.04399670911
A12: Reunião* | B12: 2021-06-17 | C12: =NETWORKDAYS($B$3,B12-1,feriados!$A$2:$A$2000) -> 364 | D12: =IF(OR(A12="Reunião",A12="Reunião*"),VLOOKUP(C12,Projeções!D:G,4,FALSE),0) -> 0 | E12: 0.039 | F12: =VLOOKUP(B12,Projeções!C:J,7,FALSE) -> 0.04628159401 | G12: =IF(OR(A12="Reunião",A12="Reunião*"),VLOOKUP(WORKDAY(B12,-1,feriados!$A$2:$A$2000),'Projeção DI Futuro'!B:G,3,FALSE)*100,0) -> 0 | H12: 0.044 | I12: =VLOOKUP(B12,'Projeção DI Futuro'!B:G,6,FALSE)/100 -> 0.04399931479 | J12: 0.002282279229 | K12: 1.05187079 | L12: =IF(OR(A12="Reunião",A12="Reunião*"),VLOOKUP(WORKDAY(B12,-1,feriados!$A$2:$A$2000),'Projeção DI Futuro'!J:O,3,FALSE)*100,0) -> 0 | M12: 0.044 | N12: =VLOOKUP(B12,'Projeção DI Futuro'!J:O,6,FALSE)/100 -> 0.04399931479 | O12: 0.002282279229 | P12: 1.05187079 | Q12: =IF(OR(A12="Reunião",A12="Reunião*"),VLOOKUP(WORKDAY(B12,-1,feriados!$A$2:$A$2000),'Projeção DI Futuro'!R:W,3,FALSE)*100,0) -> 0 | R12: 0.044 | S12: =VLOOKUP(B12,'Projeção DI Futuro'!R:W,6,FALSE)/100 -> 0.04399931479 | T12: 0.002282279229 | U12: 1.05187079 | V12: =IF(OR(A12="Reunião",A12="Reunião*"),VLOOKUP(WORKDAY(B12,-1,feriados!$A$2:$A$2000),'Projeção DI Futuro'!Z:AE,3,FALSE)*100,0) -> 0 | W12: 0.044 | X12: =VLOOKUP(B12,'Projeção DI Futuro'!Z:AE,6,FALSE)/100 -> 0.04399931479 | Y12: 0.002282279229 | Z12: 1.05187079 | AA12: =IF(OR(A12="Reunião",A12="Reunião*"),VLOOKUP(WORKDAY(B12,-1,feriados!$A$2:$A$2000),'Projeção DI Futuro'!AH:AM,3,FALSE)*100,0) -> 0 | AB12: 0.044 | AC12: =VLOOKUP(B12,'Projeção DI Futuro'!AH:AM,6,FALSE)/100 -> 0.04399931479 | AD12: 0.002282279229 | AE12: 1.05187079
A13: DI | B13: 2021-07-01 | C13: =NETWORKDAYS($B$3,B13-1,feriados!$A$2:$A$2000) -> 374 | D13: =IF(OR(A13="Reunião",A13="Reunião*"),VLOOKUP(C13,Projeções!D:G,4,FALSE),0) -> 0 | E13: 0.039 | F13: =VLOOKUP(B13,Projeções!C:J,7,FALSE) -> 0.04673175126 | G13: =IF(OR(A13="Reunião",A13="Reunião*"),VLOOKUP(WORKDAY(B13,-1,feriados!$A$2:$A$2000),'Projeção DI Futuro'!B:G,3,FALSE)*100,0) -> 0 | H13: 0.044 | I13: =VLOOKUP(B13,'Projeção DI Futuro'!B:G,6,FALSE)/100 -> 0.0439993899 | J13: 0.002732361354 | K13: 1.062099983 | L13: =IF(OR(A13="Reunião",A13="Reunião*"),VLOOKUP(WORKDAY(B13,-1,feriados!$A$2:$A$2000),'Projeção DI Futuro'!J:O,3,FALSE)*100,0) -> 0 | M13: 0.044 | N13: =VLOOKUP(B13,'Projeção DI Futuro'!J:O,6,FALSE)/100 -> 0.0439993899 | O13: 0.002732361354 | P13: 1.062099983 | Q13: =IF(OR(A13="Reunião",A13="Reunião*"),VLOOKUP(WORKDAY(B13,-1,feriados!$A$2:$A$2000),'Projeção DI Futuro'!R:W,3,FALSE)*100,0) -> 0 | R13: 0.044 | S13: =VLOOKUP(B13,'Projeção DI Futuro'!R:W,6,FALSE)/100 -> 0.0439993899 | T13: 0.002732361354 | U13: 1.062099983 | V13: =IF(OR(A13="Reunião",A13="Reunião*"),VLOOKUP(WORKDAY(B13,-1,feriados!$A$2:$A$2000),'Projeção DI Futuro'!Z:AE,3,FALSE)*100,0) -> 0 | W13: 0.044 | X13: =VLOOKUP(B13,'Projeção DI Futuro'!Z:AE,6,FALSE)/100 -> 0.0439993899 | Y13: 0.002732361354 | Z13: 1.062099983 | AA13: =IF(OR(A13="Reunião",A13="Reunião*"),VLOOKUP(WORKDAY(B13,-1,feriados!$A$2:$A$2000),'Projeção DI Futuro'!AH:AM,3,FALSE)*100,0) -> 0 | AB13: 0.044 | AC13: =VLOOKUP(B13,'Projeção DI Futuro'!AH:AM,6,FALSE)/100 -> 0.0439993899 | AD13: 0.002732361354 | AE13: 1.062099983
A14: DI | B14: 2021-08-02 | C14: =NETWORKDAYS($B$3,B14-1,feriados!$A$2:$A$2000) -> 396 | D14: =IF(OR(A14="Reunião",A14="Reunião*"),VLOOKUP(C14,Projeções!D:G,4,FALSE),0) -> 0 | E14: 0.039 | F14: =VLOOKUP(B14,Projeções!C:J,7,FALSE) ->  | G14: =IF(OR(A14="Reunião",A14="Reunião*"),VLOOKUP(WORKDAY(B14,-1,feriados!$A$2:$A$2000),'Projeção DI Futuro'!B:G,3,FALSE)*100,0) -> 0 | H14: 0.044 | I14: =VLOOKUP(B14,'Projeção DI Futuro'!B:G,6,FALSE)/100 -> 0.04399956413 | L14: =IF(OR(A14="Reunião",A14="Reunião*"),VLOOKUP(WORKDAY(B14,-1,feriados!$A$2:$A$2000),'Projeção DI Futuro'!J:O,3,FALSE)*100,0) -> 0 | M14: 0.044 | N14: =VLOOKUP(B14,'Projeção DI Futuro'!J:O,6,FALSE)/100 -> 0.04399956413 | Q14: =IF(OR(A14="Reunião",A14="Reunião*"),VLOOKUP(WORKDAY(B14,-1,feriados!$A$2:$A$2000),'Projeção DI Futuro'!R:W,3,FALSE)*100,0) -> 0 | R14: 0.044 | S14: =VLOOKUP(B14,'Projeção DI Futuro'!R:W,6,FALSE)/100 -> 0.04399956413 | V14: =IF(OR(A14="Reunião",A14="Reunião*"),VLOOKUP(WORKDAY(B14,-1,feriados!$A$2:$A$2000),'Projeção DI Futuro'!Z:AE,3,FALSE)*100,0) -> 0 | W14: 0.044 | X14: =VLOOKUP(B14,'Projeção DI Futuro'!Z:AE,6,FALSE)/100 -> 0.04399956413 | AA14: =IF(OR(A14="Reunião",A14="Reunião*"),VLOOKUP(WORKDAY(B14,-1,feriados!$A$2:$A$2000),'Projeção DI Futuro'!AH:AM,3,FALSE)*100,0) -> 0 | AB14: 0.044 | AC14: =VLOOKUP(B14,'Projeção DI Futuro'!AH:AM,6,FALSE)/100 -> 0.04399956413
A15: Reunião* | B15: 2021-08-05 | C15: =NETWORKDAYS($B$3,B15-1,feriados!$A$2:$A$2000) -> 399 | D15: =IF(OR(A15="Reunião",A15="Reunião*"),VLOOKUP(C15,Projeções!D:G,4,FALSE),0) -> 0 | E15: 0.039 | F15: =VLOOKUP(B15,Projeções!C:J,7,FALSE) -> 0.04673175126 | G15: =IF(OR(A15="Reunião",A15="Reunião*"),VLOOKUP(WORKDAY(B15,-1,feriados!$A$2:$A$2000),'Projeção DI Futuro'!B:G,3,FALSE)*100,0) -> 0 | H15: 0.044 | I15: =VLOOKUP(B15,'Projeção DI Futuro'!B:G,6,FALSE)/100 -> 0.0439997894 | J15: 0.002731961853 | K15: 1.062090339 | L15: =IF(OR(A15="Reunião",A15="Reunião*"),VLOOKUP(WORKDAY(B15,-1,feriados!$A$2:$A$2000),'Projeção DI Futuro'!J:O,3,FALSE)*100,0) -> 0 | M15: 0.044 | N15: =VLOOKUP(B15,'Projeção DI Futuro'!J:O,6,FALSE)/100 -> 0.0439997894 | O15: 0.002731961853 | P15: 1.062090339 | Q15: =IF(OR(A15="Reunião",A15="Reunião*"),VLOOKUP(WORKDAY(B15,-1,feriados!$A$2:$A$2000),'Projeção DI Futuro'!R:W,3,FALSE)*100,0) -> 0 | R15: 0.044 | S15: =VLOOKUP(B15,'Projeção DI Futuro'!R:W,6,FALSE)/100 -> 0.0439997894 | T15: 0.002731961853 | U15: 1.062090339 | V15: =IF(OR(A15="Reunião",A15="Reunião*"),VLOOKUP(WORKDAY(B15,-1,feriados!$A$2:$A$2000),'Projeção DI Futuro'!Z:AE,3,FALSE)*100,0) -> 0 | W15: 0.044 | X15: =VLOOKUP(B15,'Projeção DI Futuro'!Z:AE,6,FALSE)/100 -> 0.0439997894 | Y15: 0.002731961853 | Z15: 1.062090339 | AA15: =IF(OR(A15="Reunião",A15="Reunião*"),VLOOKUP(WORKDAY(B15,-1,feriados!$A$2:$A$2000),'Projeção DI Futuro'!AH:AM,3,FALSE)*100,0) -> 0 | AB15: 0.044 | AC15: =VLOOKUP(B15,'Projeção DI Futuro'!AH:AM,6,FALSE)/100 -> 0.0439997894 | AD15: 0.002731961853 | AE15: 1.062090339
A16: DI | B16: 2021-09-01 | C16: =NETWORKDAYS($B$3,B16-1,feriados!$A$2:$A$2000) -> 418 | D16: =IF(OR(A16="Reunião",A16="Reunião*"),VLOOKUP(C16,Projeções!D:G,4,FALSE),0) -> 0 | E16: 0.039 | F16: =VLOOKUP(B16,Projeções!C:J,7,FALSE) ->  | G16: =IF(OR(A16="Reunião",A16="Reunião*"),VLOOKUP(WORKDAY(B16,-1,feriados!$A$2:$A$2000),'Projeção DI Futuro'!B:G,3,FALSE)*100,0) -> 0 | H16: 0.044 | I16: =VLOOKUP(B16,'Projeção DI Futuro'!B:G,6,FALSE)/100 -> 0.04399789032 | L16: =IF(OR(A16="Reunião",A16="Reunião*"),VLOOKUP(WORKDAY(B16,-1,feriados!$A$2:$A$2000),'Projeção DI Futuro'!J:O,3,FALSE)*100,0) -> 0 | M16: 0.044 | N16: =VLOOKUP(B16,'Projeção DI Futuro'!J:O,6,FALSE)/100 -> 0.04399789032 | Q16: =IF(OR(A16="Reunião",A16="Reunião*"),VLOOKUP(WORKDAY(B16,-1,feriados!$A$2:$A$2000),'Projeção DI Futuro'!R:W,3,FALSE)*100,0) -> 0 | R16: 0.044 | S16: =VLOOKUP(B16,'Projeção DI Futuro'!R:W,6,FALSE)/100 -> 0.04399789032 | V16: =IF(OR(A16="Reunião",A16="Reunião*"),VLOOKUP(WORKDAY(B16,-1,feriados!$A$2:$A$2000),'Projeção DI Futuro'!Z:AE,3,FALSE)*100,0) -> 0 | W16: 0.044 | X16: =VLOOKUP(B16,'Projeção DI Futuro'!Z:AE,6,FALSE)/100 -> 0.04399789032 | AA16: =IF(OR(A16="Reunião",A16="Reunião*"),VLOOKUP(WORKDAY(B16,-1,feriados!$A$2:$A$2000),'Projeção DI Futuro'!AH:AM,3,FALSE)*100,0) -> 0 | AB16: 0.044 | AC16: =VLOOKUP(B16,'Projeção DI Futuro'!AH:AM,6,FALSE)/100 -> 0.04399789032
A17: Reunião* | B17: 2021-09-23 | C17: =NETWORKDAYS($B$3,B17-1,feriados!$A$2:$A$2000) -> 433 | D17: =IF(OR(A17="Reunião",A17="Reunião*"),VLOOKUP(C17,Projeções!D:G,4,FALSE),0) -> 75 | E17: 0.0465 | F17: =VLOOKUP(B17,Projeções!C:J,7,FALSE) -> 0.04673175126 | G17: =IF(OR(A17="Reunião",A17="Reunião*"),VLOOKUP(WORKDAY(B17,-1,feriados!$A$2:$A$2000),'Projeção DI Futuro'!B:G,3,FALSE)*100,0) -> 0 | H17: 0.044 | I17: =VLOOKUP(B17,'Projeção DI Futuro'!B:G,6,FALSE)/100 -> 0.04400002461 | J17: 0.002731726645 | K17: 1.062084662 | L17: =IF(OR(A17="Reunião",A17="Reunião*"),VLOOKUP(WORKDAY(B17,-1,feriados!$A$2:$A$2000),'Projeção DI Futuro'!J:O,3,FALSE)*100,0) -> 0 | M17: 0.044 | N17: =VLOOKUP(B17,'Projeção DI Futuro'!J:O,6,FALSE)/100 -> 0.04400002461 | O17: 0.002731726645 | P17: 1.062084662 | Q17: =IF(OR(A17="Reunião",A17="Reunião*"),VLOOKUP(WORKDAY(B17,-1,feriados!$A$2:$A$2000),'Projeção DI Futuro'!R:W,3,FALSE)*100,0) -> 0 | R17: 0.044 | S17: =VLOOKUP(B17,'Projeção DI Futuro'!R:W,6,FALSE)/100 -> 0.04400002461 | T17: 0.002731726645 | U17: 1.062084662 | V17: =IF(OR(A17="Reunião",A17="Reunião*"),VLOOKUP(WORKDAY(B17,-1,feriados!$A$2:$A$2000),'Projeção DI Futuro'!Z:AE,3,FALSE)*100,0) -> 0 | W17: 0.044 | X17: =VLOOKUP(B17,'Projeção DI Futuro'!Z:AE,6,FALSE)/100 -> 0.04400002461 | Y17: 0.002731726645 | Z17: 1.062084662 | AA17: =IF(OR(A17="Reunião",A17="Reunião*"),VLOOKUP(WORKDAY(B17,-1,feriados!$A$2:$A$2000),'Projeção DI Futuro'!AH:AM,3,FALSE)*100,0) -> 0 | AB17: 0.044 | AC17: =VLOOKUP(B17,'Projeção DI Futuro'!AH:AM,6,FALSE)/100 -> 0.04400002461 | AD17: 0.002731726645 | AE17: 1.062084662
A18: DI | B18: 2021-10-01 | C18: =NETWORKDAYS($B$3,B18-1,feriados!$A$2:$A$2000) -> 439 | D18: =IF(OR(A18="Reunião",A18="Reunião*"),VLOOKUP(C18,Projeções!D:G,4,FALSE),0) -> 0 | E18: 0.0465 | F18: =VLOOKUP(B18,Projeções!C:J,7,FALSE) -> 0.04716924492 | G18: =IF(OR(A18="Reunião",A18="Reunião*"),VLOOKUP(WORKDAY(B18,-1,feriados!$A$2:$A$2000),'Projeção DI Futuro'!B:G,3,FALSE)*100,0) -> 0 | H18: 0.044 | I18: =VLOOKUP(B18,'Projeção DI Futuro'!B:G,6,FALSE)/100 -> 0.04399973394 | J18: 0.00316951098 | K18: 1.072034776 | L18: =IF(OR(A18="Reunião",A18="Reunião*"),VLOOKUP(WORKDAY(B18,-1,feriados!$A$2:$A$2000),'Projeção DI Futuro'!J:O,3,FALSE)*100,0) -> 0 | M18: 0.044 | N18: =VLOOKUP(B18,'Projeção DI Futuro'!J:O,6,FALSE)/100 -> 0.04399973394 | O18: 0.00316951098 | P18: 1.072034776 | Q18: =IF(OR(A18="Reunião",A18="Reunião*"),VLOOKUP(WORKDAY(B18,-1,feriados!$A$2:$A$2000),'Projeção DI Futuro'!R:W,3,FALSE)*100,0) -> 0 | R18: 0.044 | S18: =VLOOKUP(B18,'Projeção DI Futuro'!R:W,6,FALSE)/100 -> 0.04399973394 | T18: 0.00316951098 | U18: 1.072034776 | V18: =IF(OR(A18="Reunião",A18="Reunião*"),VLOOKUP(WORKDAY(B18,-1,feriados!$A$2:$A$2000),'Projeção DI Futuro'!Z:AE,3,FALSE)*100,0) -> 0 | W18: 0.044 | X18: =VLOOKUP(B18,'Projeção DI Futuro'!Z:AE,6,FALSE)/100 -> 0.04399973394 | Y18: 0.00316951098 | Z18: 1.072034776 | AA18: =IF(OR(A18="Reunião",A18="Reunião*"),VLOOKUP(WORKDAY(B18,-1,feriados!$A$2:$A$2000),'Projeção DI Futuro'!AH:AM,3,FALSE)*100,0) -> 0 | AB18: 0.044 | AC18: =VLOOKUP(B18,'Projeção DI Futuro'!AH:AM,6,FALSE)/100 -> 0.04399973394 | AD18: 0.00316951098 | AE18: 1.072034776
A19: Reunião* | B19: 2021-10-28 | C19: =NETWORKDAYS($B$3,B19-1,feriados!$A$2:$A$2000) -> 457 | D19: =IF(OR(A19="Reunião",A19="Reunião*"),VLOOKUP(C19,Projeções!D:G,4,FALSE),0) -> 75 | E19: 0.054 | F19: =VLOOKUP(B19,Projeções!C:J,7,FALSE) -> 0.04716924492 | G19: =IF(OR(A19="Reunião",A19="Reunião*"),VLOOKUP(WORKDAY(B19,-1,feriados!$A$2:$A$2000),'Projeção DI Futuro'!B:G,3,FALSE)*100,0) -> 0 | H19: 0.044 | I19: =VLOOKUP(B19,'Projeção DI Futuro'!B:G,6,FALSE)/100 -> 0.04399954876 | J19: 0.003169696154 | K19: 1.072039288 | L19: =IF(OR(A19="Reunião",A19="Reunião*"),VLOOKUP(WORKDAY(B19,-1,feriados!$A$2:$A$2000),'Projeção DI Futuro'!J:O,3,FALSE)*100,0) -> 0 | M19: 0.044 | N19: =VLOOKUP(B19,'Projeção DI Futuro'!J:O,6,FALSE)/100 -> 0.04399954876 | O19: 0.003169696154 | P19: 1.072039288 | Q19: =IF(OR(A19="Reunião",A19="Reunião*"),VLOOKUP(WORKDAY(B19,-1,feriados!$A$2:$A$2000),'Projeção DI Futuro'!R:W,3,FALSE)*100,0) -> 0 | R19: 0.044 | S19: =VLOOKUP(B19,'Projeção DI Futuro'!R:W,6,FALSE)/100 -> 0.04399954876 | T19: 0.003169696154 | U19: 1.072039288 | V19: =IF(OR(A19="Reunião",A19="Reunião*"),VLOOKUP(WORKDAY(B19,-1,feriados!$A$2:$A$2000),'Projeção DI Futuro'!Z:AE,3,FALSE)*100,0) -> 0 | W19: 0.044 | X19: =VLOOKUP(B19,'Projeção DI Futuro'!Z:AE,6,FALSE)/100 -> 0.04399954876 | Y19: 0.003169696154 | Z19: 1.072039288 | AA19: =IF(OR(A19="Reunião",A19="Reunião*"),VLOOKUP(WORKDAY(B19,-1,feriados!$A$2:$A$2000),'Projeção DI Futuro'!AH:AM,3,FALSE)*100,0) -> 0 | AB19: 0.044 | AC19: =VLOOKUP(B19,'Projeção DI Futuro'!AH:AM,6,FALSE)/100 -> 0.04399954876 | AD19: 0.003169696154 | AE19: 1.072039288
A20: DI | B20: 2021-11-01 | C20: =NETWORKDAYS($B$3,B20-1,feriados!$A$2:$A$2000) -> 459 | D20: =IF(OR(A20="Reunião",A20="Reunião*"),VLOOKUP(C20,Projeções!D:G,4,FALSE),0) -> 0 | E20: 0.054 | F20: =VLOOKUP(B20,Projeções!C:J,7,FALSE) ->  | G20: =IF(OR(A20="Reunião",A20="Reunião*"),VLOOKUP(WORKDAY(B20,-1,feriados!$A$2:$A$2000),'Projeção DI Futuro'!B:G,3,FALSE)*100,0) -> 0 | H20: 0.044 | I20: =VLOOKUP(B20,'Projeção DI Futuro'!B:G,6,FALSE)/100 -> 0.0439997837 | L20: =IF(OR(A20="Reunião",A20="Reunião*"),VLOOKUP(WORKDAY(B20,-1,feriados!$A$2:$A$2000),'Projeção DI Futuro'!J:O,3,FALSE)*100,0) -> 0 | M20: 0.044 | N20: =VLOOKUP(B20,'Projeção DI Futuro'!J:O,6,FALSE)/100 -> 0.0439997837 | Q20: =IF(OR(A20="Reunião",A20="Reunião*"),VLOOKUP(WORKDAY(B20,-1,feriados!$A$2:$A$2000),'Projeção DI Futuro'!R:W,3,FALSE)*100,0) -> 0 | R20: 0.044 | S20: =VLOOKUP(B20,'Projeção DI Futuro'!R:W,6,FALSE)/100 -> 0.0439997837 | V20: =IF(OR(A20="Reunião",A20="Reunião*"),VLOOKUP(WORKDAY(B20,-1,feriados!$A$2:$A$2000),'Projeção DI Futuro'!Z:AE,3,FALSE)*100,0) -> 0 | W20: 0.044 | X20: =VLOOKUP(B20,'Projeção DI Futuro'!Z:AE,6,FALSE)/100 -> 0.0439997837 | AA20: =IF(OR(A20="Reunião",A20="Reunião*"),VLOOKUP(WORKDAY(B20,-1,feriados!$A$2:$A$2000),'Projeção DI Futuro'!AH:AM,3,FALSE)*100,0) -> 0 | AB20: 0.044 | AC20: =VLOOKUP(B20,'Projeção DI Futuro'!AH:AM,6,FALSE)/100 -> 0.0439997837
A21: DI | B21: 2021-12-01 | C21: =NETWORKDAYS($B$3,B21-1,feriados!$A$2:$A$2000) -> 479 | D21: =IF(OR(A21="Reunião",A21="Reunião*"),VLOOKUP(C21,Projeções!D:G,4,FALSE),0) -> 0 | E21: 0.054 | F21: =VLOOKUP(B21,Projeções!C:J,7,FALSE) ->  | G21: =IF(OR(A21="Reunião",A21="Reunião*"),VLOOKUP(WORKDAY(B21,-1,feriados!$A$2:$A$2000),'Projeção DI Futuro'!B:G,3,FALSE)*100,0) -> 0 | H21: 0.044 | I21: =VLOOKUP(B21,'Projeção DI Futuro'!B:G,6,FALSE)/100 -> 0.04399849725 | L21: =IF(OR(A21="Reunião",A21="Reunião*"),VLOOKUP(WORKDAY(B21,-1,feriados!$A$2:$A$2000),'Projeção DI Futuro'!J:O,3,FALSE)*100,0) -> 0 | M21: 0.044 | N21: =VLOOKUP(B21,'Projeção DI Futuro'!J:O,6,FALSE)/100 -> 0.04399849725 | Q21: =IF(OR(A21="Reunião",A21="Reunião*"),VLOOKUP(WORKDAY(B21,-1,feriados!$A$2:$A$2000),'Projeção DI Futuro'!R:W,3,FALSE)*100,0) -> 0 | R21: 0.044 | S21: =VLOOKUP(B21,'Projeção DI Futuro'!R:W,6,FALSE)/100 -> 0.04399849725 | V21: =IF(OR(A21="Reunião",A21="Reunião*"),VLOOKUP(WORKDAY(B21,-1,feriados!$A$2:$A$2000),'Projeção DI Futuro'!Z:AE,3,FALSE)*100,0) -> 0 | W21: 0.044 | X21: =VLOOKUP(B21,'Projeção DI Futuro'!Z:AE,6,FALSE)/100 -> 0.04399849725 | AA21: =IF(OR(A21="Reunião",A21="Reunião*"),VLOOKUP(WORKDAY(B21,-1,feriados!$A$2:$A$2000),'Projeção DI Futuro'!AH:AM,3,FALSE)*100,0) -> 0 | AB21: 0.044 | AC21: =VLOOKUP(B21,'Projeção DI Futuro'!AH:AM,6,FALSE)/100 -> 0.04399849725
